Workbook

Sheet Auswahl

Sheet Offene Punkte
A1: Bauteilsuche, Baupreisindex überarbeiten
A2: Button über Tab ansteuern
A5: Bauteilkatalog | B5: Neue Einträge
B6: Einträge Bearbeiten
B7: Einträge Löschen
A10: MS1 Basisdaten | B10: Einträge anpassbar
A12: 211 | B12: Stahlpreis

Sheet Suche
E3: BKP | F3: eBKP-H
E4: 212.2
A5: Bauteil | B5: Untertitel | C5: Einheit | D5: 2024
A6: Balkonbrüstungen Beton. | B6: Aussen liegende Absturzsicherung | C6: m | D6: 250
A7: Erdverbundene Treppe, Rampe | B7: (Leer) | C7: m2 | D7: 500
A8: Erdverbundenes Podest. | B8: (Leer) | C8: m2 | D8: 300
A9: Vorfabrizierte aussen Podest in Beton. | B9: Aussen liegendes Podest | C9: m2 | D9: 590
A10: Vorfabrizierte aussen Treppen in Beton. | B10: Aussen liegende Treppe, Rampe | C10: m2 | D10: 650
A11: Vorfabrizierte Betonstützen 20x20cm. | B11: Aussenstütze vorfabriziert | C11: m | D11: 500
B12: Innenstütze vorfabriziert | C12: m | D12: 500
A13: Vorfabrizierte innen Podest in Beton. | B13: Innen liegendes Podest | C13: m2 | D13: 590
A14: Vorfabrizierte innen Treppen in Beton. (Gemessene Aufsichtsfläche) | B14: Innen liegende Treppen, Rampe | C14: m2 | D14: 650

Sheet Bauteile
A1: BKP | B1: eBKP-H | C1: Beschreibung | D1: Untertitel | E1: Bauteil | F1: Einheit | G1: 2024 | H1: 2023 | I1: 2022
A2: 101 | B2: B 01.02 | C2: Bestandesaufnahmen | E2: Gebäudeaufnahme Rissprotokolle | F2: gl
A3: 102 | B3: B 01.01 | C3: =IF(A3=0,"",LOOKUP(A3,BKP,Baukostenplan)) -> Baugrunduntersuchungen | E3: Untersuchung | F3: gl
A4: 102 | B4: B 01.03 | C4: Baugrunduntersuchungen | D4: Umweltmessungen | E4: Materialanalysen (falls Schadstoffe). | F4: gl
A5: 287 | B5: G 06.03 | C5: 287 Baureinigung | D5: Test 7000 | E5: Spülen der Schmutz- und Meteorleitungen. | F5: gl | G5: 1500
A6: 111 | B6: B 05.01 | C6: Rodungen | E6: Roden bestehender Sträucher und Bäume. | F6: m2 | G6: 3.5
A7: 112 | C7: Abbrüche | D7: Rückbau nicht kontaminiertes Bauwerk | E7: Budgetbetrag für Entrümpelung. Verrechung nach effektivem Aufwand. | F7: gl
A8: 112 | B8: B 05.02 | C8: Abbrüche | D8: Rückbau nicht kontaminiertes Bauwerk | E8: Abbrüche / Demontagen | F8: m3 | G8: 40
A9: 119 | B9: B 05.03 | C9: Übriges | D9: Rückbau kontaminiertes Bauwerk | E9: Abbruch | F9: m3 | G9: 42
A10: 119 | B10: B 05.03 | C10: Übriges | D10: Rückbau kontaminiertes Bauwerk | E10: Zusätzliche Entsorgungsgebühren. | F10: m3 | G10: 32
A11: 119 | C11: Übriges | D11: Rückbau kontaminiertes Bauwerk | E11: Schadstoffsanierung. Verrechung nach effektivem Aufwand. | F11: gl
A12: 120 | B12: B 03 | C12: Übergangsposition | E12: Sicherung und Provisorien. | F12: gl
A13: 13 | B13: B 02.01 | C13: Gemeinsame Baustelleneinrichtung | E13: Prozentsatz von BKP 2-4 | F13: %
A14: 131 | B14: B 02.01 | C14: Abschrankungen | E14: Signalisation u.d.gl. | F14: gl
A15: 132 | B15: B 02.01 | C15: Zufahrten, Plätze | E15: Zufahrten und Plätze | F15: m2
A16: 132 | B16: B 02.01 | C16: Zufahrten, Plätze | E16: Provisorische Parkplätze | F16: Stk. | G16: 150
A17: 133 | B17: B 02.03 | C17: Büro Bauleitung | E17: Einr. + Vorh. Bauleitungscontainer (LE=St x Mt). | F17: LE | G17: 650
A18: 135.0 | B18: B 02.02 | C18: Kanalisationen | D18: Provisorische Installationen | F18: gl
A19: 135.1 | B19: B 02.02 | C19: Elektro | D19: Provisorische Installationen | E19: Einr. + Vorh. Baustromverteiler 2 Stk | F19: Mnt. | G19: 535
A20: 135.1 | B20: B 02.02 | C20: Elektro | D20: Provisorische Installationen | E20: Längeres Vorh. Baustromv. 2 Stk | F20: Mnt. | G20: 344
A21: 135.3 | B21: B 02.02 | C21: Wasser | D21: Provisorische Installationen | F21: gl
A22: 136 | B22: B 02.02 | C22: Kosten für Energie, Wasser und dgl . | E22: Verbr.+Ents. Baustrom, -wasser, -heizung | F22: Mnt. | G22: 3750
A23: 139 | B23: B 02.06 | C23: Übriges | E23: Winterbaumassnahmen. | F23: m2
A24: 150 | C24: Übergangsposition | D24: Telekommunikationsleitung | E24: Nur Kabel. | F24: m
A25: 150 | C25: Übergangsposition | D25: Wasserleitung | F25: m
A26: 151 | B26: B 04 | C26: Erdarbeiten | D26: Aushub und Hinterfüllung | E26: Für sämtliche Werkleitungen (Wasser, Elektro, Medien). | F26: m3 | G26: 50
A27: 152 | C27: Kanalisationsleitungen | E27: Kanalisation inkl. Schächte, Grabarbeiten und Spülung. | F27: pl
A28: 153 | C28: Elektroleitungen | E28: Hüllrohre inkl. Schächte. | F28: m
A29: 153 | C29: Elektroleitungen | E29: Stark.- Schwachstrom | F29: m | G29: 95
A30: 153 | C30: Elektroleitungen | E30: Bestehende Leitungen umlegen inkl. Grabarbeiten. | F30: m
A31: 154 | B31: B 04 | C31: Heizungs-, Lüftungs-, Klima-, Kälteleitungen | D31: Fernwärme, Fernbkälte | E31: Heizungs- und Kälteleitung. | F31: m | G31: 500
A32: 154 | B32: B 04.08 | C32: Heizungs-, Lüftungs-, Klima-, Kälteleitungen | D32: Gasleitung | F32: m | G32: 80
A33: 172 | B33: B 06.03 | C33: Baugrubenabschlüsse | D33: Böschungssicherung | E33: Spritzbeton. | F33: m2 | G33: 180
A34: 172 | B34: B 06.03 | C34: Baugrubenabschlüsse | D34: Böschungssicherung | E34: Nagelwände. | F34: m2 | G34: 360
A35: 172 | B35: B 06.04 | C35: Baugrubenabschlüsse | E35: Spundwand. | F35: m2 | G35: 470
A36: 172 | B36: B 06.04 | C36: Baugrubenabschlüsse | E36: Rühlwand. | F36: m2 | G36: 560
A37: 172 | B37: B 06.04 | C37: Baugrubenabschlüsse | E37: Bohrpfahlwand. | F37: m2 | G37: 920
A38: 175 | B38: C 01.01 | C38: Grundwasserabdichtungen | E38: Feuchtigkeitsabdichtung DK 2. | F38: GGF | G38: 35
A39: 175 | B39: C 01.01 | C39: Grundwasserabdichtungen | E39: Feuchtigkeitsabdichtung DK 1. | F39: GGF | G39: 60
A40: 175 | B40: E 01.01 | C40: Grundwasserabdichtungen | D40: Abdichtung, Beschichtung unter Terrain | E40: Abdichtung DK 2 Wände UG. | F40: m2 | G40: 35
A41: 175 | B41: E 01.01 | C41: Grundwasserabdichtungen | D41: Abdichtung, Beschichtung unter Terrain | E41: Abdichtung DK 1 Wände UG. | F41: m2 | G41: 75
A42: 176 | B42: B 06.06 | C42: Wasserhaltung | E42: Wasserhaltung für Oberflächenwasser. | F42: gl
A43: 176 | B43: B 06.06 | C43: Wasserhaltung | E43: Gebühren für Einleitung Meteorwasser in Kanalisation. | F43: m3 | G43: 0.65
A44: 176 | B44: B 06.06 | C44: Wasserhaltung | E44: Grundwasserabsenkung | F44: m3
A45: 201.1 | B45: B 06.01 | C45: Erdarbeiten | D45: Nicht kontaminierter Aushub | E45: Oberboden maschinell mit seitlicher Lagerung. | F45: m3 | G45: 3.05
A46: 201.1 | B46: B 06.01 | C46: Erdarbeiten | D46: Nicht kontaminierter Aushub | E46: Aushub maschinell mit seitlicher Lagerung. | F46: m3 | G46: 3.65
A47: 201.1 | B47: B 06.01 | C47: Erdarbeiten | D47: Nicht kontaminierter Aushub | E47: Sohlenaushub letzte 20cm. | F47: m3 | G47: 4
A48: 201.1 | B48: B 06.01 | C48: Erdarbeiten | D48: Nicht kontaminierter Aushub | E48: Transport Oberboden auf Deponie Baustelle. | F48: m3 | G48: 4
A49: 201.1 | B49: B 06.01 | C49: Erdarbeiten | D49: Nicht kontaminierter Aushub | E49: Transport Oberboden auf Deponie Unternehmer. | F49: m3 | G49: 6.7
A50: 201.1 | B50: B 06.01 | C50: Erdarbeiten | D50: Nicht kontaminierter Aushub | E50: Transport Aushub auf Deponie Unternehmer. | F50: m3 | G50: 10.6 | H50: 12 | I50: 11
A51: 201.1 | B51: B 06.01 | C51: Erdarbeiten | D51: Nicht kontaminierter Aushub | E51: Gebühren Oberboden (Lagerung oder Abgabe). | F51: m3 | G51: 0.55
A52: 201.1 | B52: B 06.01 | C52: Erdarbeiten | D52: Nicht kontaminierter Aushub | E52: Gebühren Aushub (Lagerung oder Abgabe). | F52: m3 | G52: 5.6
A53: 201.1 | B53: B 06.02 | C53: Erdarbeiten | D53: Kontaminierter Aushub | E53: Kontaminierter Aushub baggerfähig. | F53: m3 | G53: 36
A54: 201.1 | B54: B 06.02 | C54: Erdarbeiten | D54: Kontaminierter Aushub | E54: Zusätzliche Gebühren. | F54: m3
A55: 201.1 | B55: B 06.03 | C55: Erdarbeiten | D55: Böschungssicherung | E55: Einfache Baugrubensicherung mit PE-Folie. | F55: m2 | G55: 5.5
A56: 201.1 | B56: B 06.05 | C56: Erdarbeiten | D56: Materialeinbau | E56: Einbringen Hinterfüllung von Deponie Baustelle. | F56: m3 | G56: 6.5
A57: 201.1 | B57: B 06.05 | C57: Erdarbeiten | D57: Materialeinbau | E57: Hinderfüllung maschinell Verdichten. | F57: m3 | G57: 2.5
A58: 201.1 | B58: B 06.05 | C58: Erdarbeiten | D58: Materialeinbau | E58: Liefern und Einbringen von Sickerkies 32-45mm. | F58: m3 | G58: 83
A59: 211.0 | B59: B 02.01 | C59: Baustelleneinrichtung | D59: Allgemeine Baustelleneinrichtung | E59: Prozentsatz von BKP 2 | F59: % | G59: 6-8
A60: 211.0 | B60: B 02.03 | C60: Baustelleneinrichtung | E60: Bau-WC (LE=St x Mt) | F60: LE | G60: 200
A61: 211.0 | B61: B 02.03 | C61: Baustelleneinrichtung | E61: Längeres Vorh. Bau-WC (LE=St x Mt) | F61: LE | G61: 200
A62: 211.0 | B62: B 02.04 | C62: Baustelleneinrichtung | E62: Baukran (LE=St x Mt) | F62: LE | G62: 5500
A63: 211.0 | B63: B 02.04 | C63: Baustelleneinrichtung | E63: Kranbetrieb für dritte inkl. Bedinung | F63: h
A64: 211.0 | B64: B 02.04 | C64: Baustelleneinrichtung | E64: Radwaschanlage (LE=St x Mt). | F64: LE | G64: 2640
A65: 211.1 | B65: B 08.01 | C65: Gerüste | E65: Fassadengerüst. | F65: m2 | G65: 36
A66: 211.1 | B66: B 08.02 | C66: =IF(A66=0,"",LOOKUP(A66,BKP,Baukostenplan)) -> Gerüste | E66: Innengerüst. | F66: GF | G66: 2
A67: 211.1 | B67: B 08.02 | C67: Gerüste | E67: Liftschachtgerüste. | F67: Stk | G67: 410
A68: 211.4 | B68: D 09.04 | C68: Kanalisationen im Gebäude | E68: Kanalisation unter/in Bodenplatte inkl. Aushub. | F68: GGF | G68: 65
A69: 211.4 | B69: D 09.04 | C69: Kanalisationen im Gebäude | E69: Versickerungsanlage | F69: GGF | G69: 8
A70: 211.4 | B70: D 09.04 | C70: Kanalisationen im Gebäude | D70: Abwassersammlung | E70: Kanalisation. | F70: GGF | G70: 40
A71: 211.5 | B71: C 01.02 | C71: Beton- und Stahlbetonarbeiten | E71: Einzelfundament, Beton horizontal oder im Gefalle bis 3%, | F71: m2 | G71: Link | H71: 1000 | I71: 800
A72: 211.5 | B72: C 01.03 | C72: Beton- und Stahlbetonarbeiten | E72: Bodenplatte, Beton horizontal oder im Gefalle bis 3%, | F72: m2 | G72: Link
A73: 211.5 | B73: C 02.01 | C73: Beton- und Stahlbetonarbeiten | D73: Aussenwand | E73: Aussenwandkonstruktion Betonwände | F73: m2 | G73: Link
A74: 211.5 | B74: C 02.02 | C74: Beton- und Stahlbetonarbeiten | D74: Innenwand | E74: Innenwandkonstruktion Betonwände | F74: m2 | G74: Link
A75: 211.5 | B75: C 04.01 | C75: Beton- und Stahlbetonarbeiten | E75: Geschossdecke in Beton | F75: m2 | G75: Link
A76: 211.5 | B76: C 04.04 | C76: Beton- und Stahlbetonarbeiten | E76: Flachdachkonstruktion in Beton | F76: m2 | G76: Link
A77: 211.5 | B77: C 04.08 | C77: Beton- und Stahlbetonarbeiten | D77: Aussen liegende Konstruktion, Vordach | E77: Kragplattenanschlüsse gedämmt. | F77: m | G77: 320
A78: 211.5 | B78: C 04.08 | C78: Beton- und Stahlbetonarbeiten | D78: Aussen liegende Konstruktion, Vordach | E78: Balkone | F78: m2 | G78: 230
A79: 211.5 | B79: C 05.01 | C79: Beton- und Stahlbetonarbeiten | D79: Durchbruch, Schlitz zu Konstruktion | E79: Regie Baumeister, Prozent von BKP 23, 24, 25, 26 | F79: % | G79: 2.3
A80: 211.5 | B80: C 05.01 | C80: Beton- und Stahlbetonarbeiten | D80: Durchbruch, Schlitz zu Konstruktion | E80: Durchbruch, Schlitz zu Konstruktion, Prozent von BKP 23, 24, 25, 26 | F80: % | G80: 2.3
A81: 211.5 | B81: C 01 03 | C81: Beton- und Stahlbetonarbeiten | E81: Bodenplatte aus Stahlfaserbeton (ca. 35Kg/m3) | F81: m2 | G81: Link
A82: 211.6 | B82: C 02.01 | C82: Maurerarbeiten | D82: Backstein | E82: Aussenwandkonstruktion Backstein | F82: m2 | G82: Link
A83: 211.6 | B83: C 02.01 | C83: Maurerarbeiten | D83: Dämmbackstein | E83: Aussenwand Dämmbackstein Imbrex z7 inkl. Leibungen und Stürze | F83: m2 | G83: Link
A84: 211.6 | B84: C 02.02 | C84: Maurerarbeiten | E84: Innenwandkonstruktion Backstein | F84: m2 | G84: Link
A85: 211.6 | B85: C 02.02 | C85: Maurerarbeiten | E85: Innenwandkonstruktion Backstein | F85: m2 | G85: Link
A86: 211.6 | B86: C 02.02 | C86: Maurerarbeiten | E86: Innenwandkonstruktion Kalksandstein | F86: m2 | G86: Link
A87: 211.6 | B87: C 02.02 | C87: Maurerarbeiten | E87: Stürze zu Mauerwerke | F87: m | G87: Link
A88: 211.6 | B88: C 05.02 | C88: Maurerarbeiten | D88: Ergänzende Leistungen | E88: Zu Maurerarbeiten wie Mörtel Stahlzargen und dgl, Prozent von BKP 27+28 | F88: % | G88: 4.5
A89: 211.9 | B89: C 01.01 | C89: 0 | D89: Abdichtung, Dämmung Bodenplatte | E89: Perimeterdämmung XPS 500, 160mm. | F89: m2 | G89: 75
A90: 211.9 | B90: E 01.02 | C90: 0 | D90: Aussenwärmedämmung unter Terrain | E90: Perimeterdämmung. | F90: m2 | G90: 60
A91: 211.9 | B91: E 01.03 | C91: 0 | E91: Schutzschicht unter Terrain. | F91: m2 | G91: 15
A92: 212.2 | B92: C 03.01 | C92: Elemente aus Beton | D92: Aussenstütze vorfabriziert | E92: Vorfabrizierte Betonstützen 20x20cm. | F92: m | G92: 500
A93: 212.2 | B93: C 03.02 | C93: Elemente aus Beton | D93: Innenstütze vorfabriziert | E93: Vorfabrizierte Betonstützen 20x20cm. | F93: m | G93: 500
A94: 212.2 | B94: C 04.02 | C94: Elemente aus Beton | D94: Innen liegende Treppen, Rampe | E94: Vorfabrizierte innen Treppen in Beton. (Gemessene Aufsichtsfläche) | F94: m2 | G94: 650
A95: 212.2 | B95: C 04.03 | C95: Elemente aus Beton | D95: Innen liegendes Podest | E95: Vorfabrizierte innen Podest in Beton. | F95: m2 | G95: 590
A96: 212.2 | B96: C 04.06 | C96: Elemente aus Beton | D96: Aussen liegende Treppe, Rampe | E96: Vorfabrizierte aussen Treppen in Beton. | F96: m2 | G96: 650
A97: 212.2 | B97: C 04.07 | C97: Elemente aus Beton | D97: Aussen liegendes Podest | E97: Vorfabrizierte aussen Podest in Beton. | F97: m2 | G97: 590
A98: 212.2 | B98: E 02.06 | C98: Elemente aus Beton | D98: Aussen liegende Absturzsicherung | E98: Balkonbrüstungen Beton. | F98: m | G98: 250
A99: 212.2 | B99: C 01.04 | C99: Elemente aus Beton | E99: Erdverbundene Treppe, Rampe | F99: m2 | G99: 500
A100: 212.2 | B100: C 01.05 | C100: Elemente aus Beton | E100: Erdverbundenes Podest. | F100: m2 | G100: 300
A101: 214.1 | B101: C 04.05 | C101: Traggerippe (Zimmermanns- konstruktionen) | D101: Konstruktion geneigtes Dach | E101: Konstruktion geneigtes Dach in Holz. | F101: m2 | G101: 160
A102: 215.2 | B102: E 02.03 | C102: Fassadenbau | D102: Hinterlüftete Fassadensysteme | E102: Lattenrost ausgedämmt, hinterl. Faserzementplatten. | F102: m2 | G102: 450
A103: 217 | B103: C 05.02 | C103: Schutzraumabschlüsse | D103: Schutzraumbauteile | E103: Panzertüre. | F103: Stk. | G103: 1200
A104: 217 | B104: C 05.02 | C104: Schutzraumabschlüsse | D104: Schutzraumbauteile | E104: Fluchtröhre. | F104: m1
A105: 221.1 | B105: E 03.01 | C105: Fenster aus Holz/Metall | D105: Fenster Test | E105: Hebeschiebe in Holz/Metall (mit SIGAB). | F105: m2 | G105: 800 | H105: 800 | I105: 650
A106: 221.1 | B106: E 03.01 | C106: Fenster aus Holz/Metall | D106: Fenster | E106: Hebeschiebe in Holz/Metall (mit SIGAB). | F106: m2 | G106: 800
A107: 221.1 | B107: E 03.01 | C107: Fenster aus Holz/Metall | D107: Fenster Test | E107: Hebeschiebe in Holz/Metall (mit SIGAB). | F107: m2 | G107: 800 | H107: 150
A108: 221.2 | B108: E 03.01 | C108: Fenster aus Kunststoff | D108: Fenster | E108: Fenster und Fenstertüren in Kunststoff (mit SIGAB). | F108: m2 | G108: 500
A109: 221.2 | B109: E 03.01 | C109: Fenster aus Kunststoff | D109: Fenster | E109: Hebeschiebe in Kunststoff (mit SIGAB). | F109: m2 | G109: 560
A110: 221.3 | B110: E 03.01 | C110: Fenster aus Stahl | D110: Fenster | E110: Fenster und Fenstertüren in Kunststoff/Metall (mit SIGAB). | F110: m2 | G110: 560
A111: 221.3 | B111: E 03.01 | C111: Fenster aus Stahl | D111: Fenster | E111: Hebeschiebe in Kunststoff/Metall (mit SIGAB). | F111: m2 | G111: 680
A112: 221.6 | B112: E 03.02 | C112: Aussentüren, Tore aus Metall | D112: Aussentüre | E112: Aluminium Haustüre. | F112: m2 | G112: 1500
A113: 221.6 | B113: E 03.03 | C113: Aussentüren, Tore aus Metall | D113: Aussentor | E113: Kipptor aus Metall. | F113: m2 | G113: 1200
A114: 221.6 | B114: E 03.03 | C114: Aussentüren, Tore aus Metall | D114: Aussentor | E114: Handsender zu Tor | F114: Stk | G114: 90
A115: 221.7 | B115: E 02.04 | C115: Schaufensteranlagen | D115: Systemfassade | E115: Pfosten-/Riegel ohne Konstruktion max. über 1 Gechoss. | F115: m2 | G115: 1050
A116: 222 | B116: F 01.01 | C116: Spenglerarbeiten | D116: Dachabdichtung | E116: Spenglerarbeiten, pro m2 Dachfläche | F116: m2 | G116: 35
A117: 223 | B117: F 02.03 | C117: Blitzschutz | D117: Schutzanlage zu Dach | E117: Blitzschutz.Pro m2 Dachfläche | F117: m2 | G117: 13
A118: 224.1 | B118: F 01.01 | C118: Plastische und elastische Dichtungsbeläge (Flachdächer) | D118: Dachabdichtung unter Terrain | E118: Vorarbeiten und Arbeiten. | F118: m2 | G118: 2.5
A119: 224.1 | B119: F 01.01 | C119: Plastische und elastische Dichtungsbeläge (Flachdächer) | D119: Dachabdichtung unter Terrain | E119: Bitumenvoranstrich. | F119: m2 | G119: 3
A120: 224.1 | B120: F 01.01 | C120: Plastische und elastische Dichtungsbeläge (Flachdächer) | D120: Dachabdichtung unter Terrain | E120: 1cm Abdichtung bituminös 2-lagig. | F120: m2 | G120: 25
A121: 224.1 | B121: F 01.01 | C121: Plastische und elastische Dichtungsbeläge (Flachdächer) | D121: Dachabdichtung unter Terrain | E121: Drain WS20. | F121: m2 | G121: 9
A122: 224.1 | B122: F 01.01 | C122: Plastische und elastische Dichtungsbeläge (Flachdächer) | D122: Dachabdichtung unter Terrain | E122: Service pro Jahr. 5 x Kosten Dachabdichtung unter Terrain | F122: Stk | G122: 0.75
A123: 224.1 | B123: F 01.01 | C123: Plastische und elastische Dichtungsbeläge (Flachdächer) | D123: Dachabdichtung | E123: Zuschläge, Prozentsatz auf Adichtungsarbeiten | F123: % | G123: 10
A124: 224.1 | B124: F 01.02 | C124: Plastische und elastische Dichtungsbeläge (Flachdächer) | D124: Flachdach begrünt | E124: Dampfsperre. | F124: m2 | G124: 13
A125: 224.1 | B125: F 01.02 | C125: Plastische und elastische Dichtungsbeläge (Flachdächer) | D125: Flachdach begrünt | E125: Wärmedämmung. | F125: m2 | G125: 60
A126: 224.1 | B126: F 01.02 | C126: Plastische und elastische Dichtungsbeläge (Flachdächer) | D126: Flachdach begrünt | E126: Bitumendichtungsbahn 2-lagig. | F126: m2 | G126: 30
A127: 224.1 | B127: F 01.02 | C127: Plastische und elastische Dichtungsbeläge (Flachdächer) | D127: Flachdach begrünt | E127: Schutz-/Entwässerungsschicht. | F127: m2 | G127: 15
A128: 224.1 | B128: F 01.02 | C128: Plastische und elastische Dichtungsbeläge (Flachdächer) | D128: Flachdach begrünt | E128: Extensive Begrünung. | F128: m2 | G128: 30
A129: 224.1 | B129: F 01.02 | C129: Plastische und elastische Dichtungsbeläge (Flachdächer) | D129: Flachdach Balkon ungedämmt | E129: Abdichtung. | F129: m2 | G129: 20
A130: 224.1 | B130: F 01.02 | C130: =IF(A130=0,"",LOOKUP(A130,BKP,Baukostenplan)) -> Plastische und elastische Dichtungsbeläge (Flachdächer) | D130: Flachdach Balkon ungedämmt | E130: Zementüberzug. | F130: m2 | G130: 35
A131: 224.1 | B131: F 01.02 | C131: Plastische und elastische Dichtungsbeläge (Flachdächer) | D131: Flachdach Balkon gedämmt | E131: Zementplatten inkl. Kiesschicht. | F131: m2 | G131: 65
A132: 224.1 | B132: F 01.02 | C132: Plastische und elastische Dichtungsbeläge (Flachdächer) | D132: Absturzsicherung Flachdach | E132: Anschlagpunkte mit Grundplatten auf Beton. 5 Stück pro m | F132: m | G132: 240
A133: 224.1 | B133: F 01.02 | C133: Plastische und elastische Dichtungsbeläge (Flachdächer) | D133: Absturzsicherung Flachdach | E133: Führungsseil. | F133: m | G133: 14
A134: 224.1 | B134: F 01.02 | C134: Plastische und elastische Dichtungsbeläge (Flachdächer) | D134: Absturzsicherung Flachdach | E134: Eckverbindung. | F134: Stk | G134: 25
A135: 224.1 | B135: F 01.02 | C135: Plastische und elastische Dichtungsbeläge (Flachdächer) | D135: Absturzsicherung Flachdach | E135: Sicherheitstest. | F135: Stk | G135: 375
A136: 224.1 | B136: F 01.02 | C136: Plastische und elastische Dichtungsbeläge (Flachdächer) | D136: Absturzsicherung Flachdach | E136: Auffanggurt. | F136: Stk | G136: 170
A137: 224.1 | B137: F 01.02 | C137: Plastische und elastische Dichtungsbeläge (Flachdächer) | D137: Absturzsicherung Flachdach | E137: Sicherungsseil. | F137: Stk | G137: 160
A138: 224.2 | B138: F 02.02 | C138: Glaseinbauten in Steildächern | D138: Element zu geneigtem Dach | E138: Dachfenster z.B. Velux | F138: Stk | G138: 2000
A139: 224.3 | B139: F 02.01 | C139: Glaseinbauten in Flachdächern | D139: Element zu Flachdach | E139: RWA 1.2x1.2m ohne Sonnenschutz. | F139: Stk | G139: 3500
A140: 224.3 | B140: F 02.01 | C140: Glaseinbauten in Flachdächern | D140: Element zu Flachdach | E140: Dachausstieg 1.5x0.75m. | F140: Stk | G140: 2500
A141: 225.1 | B141: G 06.01 | C141: .1 Fugendichtungen | D141: Durchbruch, Schlitz zu Ausbau | E141: Fugendichtungen. | F141: GF | G141: 5
A142: 225.2 | B142: G 03.01 | C142: .2 Spezielle Dämmungen | D142: Unterkonstruktion zu Wandbekleidung | E142: Wanddämmung z.B. Unitex gestrichen UG. | F142: m2 | G142: 65
A143: 225.2 | B143: G 04.01 | C143: .2 Spezielle Dämmungen | D143: Fertige Bekleidung Decke | E143: Deckendämmung z.B. Unitex gestrichen UG. | F143: m2 | G143: 65
A144: 225.4 | B144: G 06.02 | C144: .4 Brandschutzbekleidungen und dgl . | D144: Abschottung | E144: Brandschutzbekleidungen. | F144: GF | G144: 6
A145: 225.4 | B145: G 06.02 | C145: .4 Brandschutzbekleidungen und dgl . | D145: Abschottung | E145: Ausflocken von GIS-Elemente. | F145: m3 | G145: 210
A146: 226.2 | B146: E 02.01 | C146: .2 Verputzte Aussenwärmedämmungen | D146: Äussere Beschichtung | E146: Kunststoffnetz-Armierung. | F146: m2 | G146: 9
A147: 226.2 | B147: E 02.01 | C147: .2 Verputzte Aussenwärmedämmungen | D147: Äussere Beschichtung | E147: Grundputz. | F147: m2 | G147: 18
A148: 226.2 | B148: E 02.01 | C148: .2 Verputzte Aussenwärmedämmungen | D148: Äussere Beschichtung | E148: Deckputz. | F148: m2 | G148: 30
A149: 226.2 | B149: E 02.01 | C149: .2 Verputzte Aussenwärmedämmungen | D149: Äussere Beschichtung | E149: Zuschläge für Anschlüsse, Durchdringungen, etc., Prozentsatz auf Aussenwärmedämmung | F149: % | G149: 12
A150: 226.2 | B150: E 02.02 | C150: .2 Verputzte Aussenwärmedämmungen | D150: Aussendämmung | E150: Klebemörtel 0.5cm. | F150: m2 | G150: 12
A151: 226.2 | B151: E 02.02 | C151: .2 Verputzte Aussenwärmedämmungen | D151: Aussendämmung | E151: EPS-Dämmplatte 20.0cm. | F151: m2 | G151: 72
A152: 226.2 | B152: E 02.02 | C152: .2 Verputzte Aussenwärmedämmungen | D152: Aussendämmung | E152: Sturzelemente. | F152: m | G152: 60
A153: 226.2 | B153: E 02.02 | C153: .2 Verputzte Aussenwärmedämmungen | D153: Aussendämmung | E153: Alu-Fensterbänke inkl. Winkel. | F153: m | G153: 130
A154: 226.2 | B154: E 02.02 | C154: .2 Verputzte Aussenwärmedämmungen | D154: Aussendämmung | E154: Zuschläge für Leibungen. Prozentsatz auf Aussenwärmedämmung | F154: % | G154: 3
A155: 226.2 | B155: E 02.02 | C155: .2 Verputzte Aussenwärmedämmungen | D155: Aussendämmung | E155: Zuschläge für Trawik in Leibungen (zur Handlaufbef.). Prozentsatz auf Aussenwärmedämmung | F155: % | G155: 8
A156: 226.2 | B156: E 02.02 | C156: .2 Verputzte Aussenwärmedämmungen | D156: Aussendämmung | E156: Zuschläge für Anschlüsse, Durchdringungen, etc. Prozentsatz auf Aussenwärmedämmung | F156: % | G156: 10
A157: 227.1 | B157: E 02.01 | C157: .1 Äussere Malerarbeiten | D157: Äussere Beschichtung | E157: Anstrich auf Deckputz. | F157: m2 | G157: 12
A158: 227.1 | B158: E 02.05 | C158: .1 Äussere Malerarbeiten | D158: Fassadenbekleidung Untersicht | E158: Anstrich auf Balkonuntersichten. | F158: m2 | G158: 10
A159: 228.2 | B159: E 03.04 | C159: .2 Lamellenstoren | D159: Sonnenschutz | E159: Verbundraffstoren mit Handkurbel. | F159: m2 | G159: 110
A160: 228.3 | B160: E 03.04 | C160: .3 Sonnenstoren | D160: Sonnenschutz | E160: Gelenkarmmarkisen mit Handkurbel. | F160: m2 | G160: 130
A161: 228.3 | B161: E 03.04 | C161: .3 Sonnenstoren | D161: Sonnenschutz | E161: Balkon / Loggia Vertikalmarkise Seilführung. Elektrisch. | F161: m2 | G161: 190
A162: 228.3 | B162: E 03.04 | C162: .3 Sonnenstoren | D162: Sonnenschutz | E162: Balkon / Loggia Vertikalmarkise Seilführung. Manuell | F162: m2 | G162: 170
A163: 231 | B163: D 01.01 | C163: Apparate Starkstrom | D163: Anlage Erzeugung Starkstrom | E163: EG-OG. | F163: GF | G163: 90
A164: 231 | B164: D 01.01 | C164: Apparate Starkstrom | D164: Anlage Erzeugung Starkstrom | E164: UG/Keller. | F164: GF | G164: 25
A165: 231 | B165: D 01.01 | C165: Apparate Starkstrom | D165: Anlage Erzeugung Starkstrom | E165: Photovoltaikanlagen | F165: m2 | G165: 280
A166: 233 | B166: D 01.05 | C166: Leuchten und Lampen | D166: Verbraucher Starkstrom: Leuchten | E166: EG-OG. | F166: GF | G166: 12
A167: 233 | B167: D 01.05 | C167: Leuchten und Lampen | D167: Verbraucher Starkstrom: Leuchten | E167: UG/Keller. | F167: GF | G167: 8
A168: 236 | B168: D 04.01 | C168: Schwachstrominstallationen | D168: Brandmeldeanlage | E168: Brandmeldeanlage EG-AG. | F168: GF | G168: 25
A169: 236 | B169: D 04.01 | C169: Schwachstrominstallationen | D169: Brandmeldeanlage | E169: Brandmeldeanlage ESH. | F169: GF | G169: 7
A170: 236 | B170: D 04.02 | C170: Schwachstrominstallationen | E170: Gaswarnanlage. | F170: GF | G170: 15
A171: 237.1 | B171: D 02.01 | C171: .1 Automationsebene | D171: Managementebene | E171: Elektro. | F171: GF | G171: 7
A172: 237.1 | B172: D 02.01 | C172: .1 Automationsebene | D172: Managementebene | E172: HLKS | F172: GF | G172: 12
A173: 242 | B173: D 05.02 | C173: 242 Wärmeerzeugung | E173: Wärmepumpe Erdsonde/Wasser & Bohrung ca. 200m. | F173: EBF | G173: 60
A174: 243 | B174: D 05.04 | C174: 243 Wärmeverteilung | E174: Wärmehauptverteilung. | F174: EBF | G174: 60
A175: 244 | B175: D 04.06 | C175: 244 Lüftungsanlagen | E175: Rauch- und Wärmeabzugsanlage ESH. | F175: GF | G175: 20
A176: 244 | B176: D 07.01 | C176: 244 Lüftungsanlagen | D176: Aussenluftversorgung, Fortluftführung | E176: Lüftungsanalgen UG/Keller. | F176: GF | G176: 35
A177: 244 | B177: D 07.01 | C177: 244 Lüftungsanlagen | D177: Aussenluftversorgung, Fortluftführung | E177: Lüftungsanalgen ESH. | F177: GF | G177: 40
A178: 244 | B178: D 07.02 | C178: 244 Lüftungsanlagen | D178: Luftaufbereitung | E178: Kontrollierte Wohnungslüftung. | F178: Whg. | G178: 11000
A179: 244 | B179: D 07.02 | C179: 244 Lüftungsanlagen | E179: Einzelne Abluftanlagen. | F179: Stk | G179: 1800
A180: 244 | B180: D 07.03 | C180: 244 Lüftungsanlagen | E180: Luftwärmespeicherung. | F180: GF | G180: 500
A181: 246 | B181: D 06.02 | C181: 246 Kälteanlagen | E181: Freecooling. | F181: EBF | G181: 2.5
A182: 251 | B182: D 08.05 | C182: 251 Allgemeine Sanitärapparate | D182: Wasser: Armatur, Apparat | E182: Lieferung Sanitärapparate 2.5-Zimmerwohnung. | F182: Whg | G182: 7000
A183: 251 | B183: D 08.05 | C183: 251 Allgemeine Sanitärapparate | D183: Wasser: Armatur, Apparat | E183: Lieferung Sanitärapparate 3.5-Zimmerwohnung. | F183: Whg | G183: 7000
A184: 251 | B184: D 08.05 | C184: 251 Allgemeine Sanitärapparate | D184: Wasser: Armatur, Apparat | E184: Lieferung Sanitärapparate 4.5-Zimmerwohnung. | F184: Whg | G184: 13000
A185: 251 | B185: D 08.05 | C185: 251 Allgemeine Sanitärapparate | D185: Wasser: Armatur, Apparat | E185: Lieferung Sanitärapparate 5.5-Zimmerwohnung. | F185: Whg | G185: 13000
A186: 251 | B186: D 08.05 | C186: 251 Allgemeine Sanitärapparate | D186: Wasser: Armatur, Apparat | E186: Montage Sanitärapparate, Prozentsatz auf Apparatelieferung | F186: % | G186: 30
A187: 253 | B187: D 08.02 | C187: 253 Sanitäre Ver- und Entsorgungsapparate | E187: Wasserbehandlung. | F187: GF | G187: 555
A188: 254 | B188: D 08.04 | C188: 254 Sanitärleitungen | D188: Wasserverteilung | E188: Leitungen über GF. | F188: GF | G188: 38
A189: 255 | B189: D 08.04 | C189: 255 Dämmungen Sanitärinstallationen | D189: Wasserverteilung | E189: Dämmungen Leitungen über GF. | F189: GF | G189: 18
A190: 256 | B190: D 08.06 | C190: 256 Sanitärinstallationselemente | D190: Wasser: Installationselemente | E190: Installationselemente. | F190: Stk | G190: 1600
A191: 257 | B191: D 04.05 | C191: 257 Elektro- und Pneumatiktafeln | D191: Löschgerät | E191: Handfeuerlöscher. | F191: Stk. | G191: 550
A192: 257 | B192: D 04.05 | C192: 257 Elektro- und Pneumatiktafeln | D192: Löschgerät | E192: Feuerlöschposten. | F192: Stk. | G192: 2600
A193: 257 | B193: D 04.03 | C193: 257 Elektro- und Pneumatiktafeln | E193: Sprinkleranlage ESH | F193: GF | G193: 15
A194: 258 | B194: G 05.02 | C194: =IF(A194=0,"",LOOKUP(A194,BKP,Baukostenplan)) -> 258 Kücheneinrichtungen | E194: Küche für 2.5-Zimmerwohnung (5 Elemente). | F194: Stk | G194: 7500
A195: 258 | B195: G 05.02 | C195: 258 Kücheneinrichtungen | E195: Küche für 3.5-Zimmerwohnung (6 Elemente). | F195: Stk | G195: 9000
A196: 258 | B196: G 05.02 | C196: 258 Kücheneinrichtungen | E196: Küche für 4.5-Zimmerwohnung (7 Elemente). | F196: Stk | G196: 10500
A197: 258 | B197: G 05.02 | C197: 258 Kücheneinrichtungen | E197: Küche für 5.5-Zimmerwohnung (7 Elemente). | F197: Stk | G197: 10500
A198: 261 | B198: D 12.01 | C198: 261 Aufzüge | D198: Personenaufzug | E198: Aufzüge (8 Pers.) mit xy Haltestellen (pro Haltestelle Hst). | F198: Hst | G198: 8200
A199: 261 | B199: D 12.02 | C199: 261 Aufzüge | D199: Lasten- und Serviceaufzug | E199: Lasten- und Serviceaufzüge. | F199: Hst | G199: 20000
A200: 263 | B200: D 12.03 | C200: 263 Fassadenreinigungsanlagen | D200: Spezialaufzüge | E200: Befahranlage für Fassade | F200: Stk | G200: 150000
... 76 more rows

Sheet 211
B2: Bewehrung CHF/Kg: | C2: 1.7 | F2: 2024-09-01
B4: ="EP: "&" " & ROUND(SUM(F7:F17),2) &" "&"CHF"&" "& C7&" "&C8&" m" -> EP: 198.92 CHF 3.Bodenplatte 0.45 m
A6: BKP | D6: Kosten/Einheit | E6: Index | F6: Kosten pro Bauteil
A7: 211.5 | B7: Bauteil | C7: 3.Bodenplatte
A8: 211.5 | B8: Bauteildicke in m | C8: 0.45
A9: 211.5 | B9: Bauteil Umfang in m | C9: 0
A10: 211.5 | B10: Unterbau | D10: =IF(C10="","",INDEX(Listenfelder_211!H:H,MATCH('211'!C10,Beton),1)) ->  | E10: 1 | F10: =+D10 -> 
A11: 211.5 | B11: Schalung | C11: 1.Stirn- und Abschalung | D11: =INDEX(Listenfelder_211!E:E,MATCH('211'!C11,Schalung),1) -> 167 | E11: =INDEX(Listenfelder_211!B:B,MATCH('211'!C7,Bauteil),1) -> 0 | F11: =+D11*E11 -> 0
A12: 211.5 | B12: Beton | C12: 3.PC kg/m3 300 | D12: =INDEX(Listenfelder_211!H:H,MATCH('211'!C12,Beton),1) -> 200 | E12: =IF(C9=0,1*C8,C9*C8) -> 0.45 | F12: =+D12*E12 -> 90 | J12: Bodenplatte | K12: ca. 100-115 Kg/m3
A13: 211.5 | B13: Bewehrungsanteil KG/m3 | C13: 100 | E13: =IF(C9=0,1*C8*C13,C9*C8*C13) -> 45 | F13: =+E13*C15 -> 76.5 | I13: Durchschnittliche Bewehrungsgehalte | J13: Decken | K13: ca. 100-135 Kg/m3
A14: 211.5 | B14: Anschlussbewehrung / Durchstanzarmierung und dgl. | C14: 0.3 | E14: =+E13*C14 -> 13.5 | F14: =+E14*C15 -> 22.95 | I14: Durchschnittswert 30% | J14: Wände | K14: ca. 80-95 Kg/m3
A15: 211.5 | B15: Bewehrung kg | C15: =+C2 -> 1.7 | J15: Stützen | K15: ca. 100 Kg/m3
A16: 211.5 | B16: Zuschlage | C16: =INDEX(Listenfelder_211!C:C,MATCH('211'!C7,Bauteil),1) -> 0.05 | F16: =SUM(F7:F15)*C16 -> 9.4725
B18: ="EP: "&" " & ROUND(SUM(F20:F24),2) &" "&"CHF"&" "& C20 -> EP: 1220.75 CHF 6.Kalksandstein / Innenwand, 15cm
A20: 211.6 | B20: Stein | C20: 6.Kalksandstein / Innenwand, 15cm | D20: =INDEX(Listenfelder_211!J:J,MATCH('211'!C20,Stein),1) -> 105 | F20: =+D20 -> 105
A21: 211.6 | B21: Gleitlager in m | C21: 100 | D21: 11 | F21: =+C21*D21 -> 1100
A22: 211.6 | B22: Sturz
A23: 211.6 | B23: Zuschläge. | C23: =INDEX(Listenfelder_211!K:K,MATCH('211'!C20,Stein),1) -> 0.15 | F23: =+F20*C23 -> 15.75

Sheet Teuerung
B2: Veränderungsrate | C2: = | D2: ( Index neu | E2: - | F2: Index alt ) | G2: x | H2: 100 | K2: Region | L2: Nordwestschweiz
D3: Index alt | K3: Objektart | L3: Neubau Mehrfamilienhaus
L4: Jahr | M4: Monat | N4: Indexwert
K5: Index alt | L5: 2005 | M5: Oktober | N5: =_xlfn.AGGREGATE(15,6,Baupreisindex!E$9:BD$1150/(Baupreisindex!B$9:B$1150=L$2)/(Baupreisindex!C$9:C$1150=L$3)/(Baupreisindex!E$6:BZ$6=--L5)/(Baupreisindex!E$5:BZ$5=M5),1) -> 89.9
K6: Index neu | L6: 2024 | M6: April | N6: =_xlfn.AGGREGATE(15,6,Baupreisindex!E$9:BD$1150/(Baupreisindex!B$9:B$1150=L$2)/(Baupreisindex!C$9:C$1150=L$3)/(Baupreisindex!E$6:BZ$6=--L6)/(Baupreisindex!E$5:BZ$5=M6),1) -> 118.1
L8: =Baupreisindex!C4 -> Basis Oktober 2020 = 100
K9: Berechnungsbasis | L9: Preisstand, Total KV Original | M9: =Baupreisindex!C4 -> Basis Oktober 2020 = 100 | N9: 100000000
L10: Index KV Original (alt) | M10: =TEXT(M5,)&" "&TEXT(L5,0) -> Oktober 2005 | N10: =N5 -> 89.9
L11: Index mitte Bauzeit (neu) | M11: =TEXT(M6,)&" "&TEXT(L6,0) -> April 2024 | N11: =N6 -> 118.1
K13: Veränderungsrate | L13: ((Index neu – Index alt)/Index alt)*100 | N13: =((N11-N10)/N10)*100 -> 31.36818687
K15: Ergebnis | L15: Total KV Original, Preisstand | M15: =M9 -> Basis Oktober 2020 = 100 | N15: =+N9 -> 100000000
L16: Teuerung | N16: =ROUND((N9*N13%),0) -> 31368187
L17: Total KV indexiert | N17: =+N15+N16 -> 131368187

Sheet Baupreisindex_NPK
A1: NPK Position | B1: BKP | C1: Beschreibung | D1: Menge | E1: Einheit | F1: Schweiz | G1: Mittelland | H1: Nordwestschweiz | I1: Zürich | J1: Ostschweiz | K1: Zentralschweiz
A2: 1 Erdarbeiten | B2: 201
A3: '211.111.111 | B3: 201 | C3: Oberboden maschinell abtragen. Flächen horizontal oder mit Neigung bis 1:4. Volumen fest. Inkl. direkter Auflad auf Transportmittel oder seitlicher Lagerung. Schichtdicke bis m 0,20 | D3: 100 | E3: m3 | F3: 7.4174 | G3: 6.5793 | H3: 5.7025 | I3: 7.6286 | J3: 5.63 | K3: 5.4
A4: '211.211.101 | B4: 201 | C4: Baugrubenaushub maschinell. Inkl. Auflad auf Transportmittel oder seitlicher Lagerung. Offene Baugruben. Aushubtiefe bis m 5,00 | D4: 1500 | E4: m3 | F4: 6.5472 | G4: 5.5487 | H4: 5.4442 | I4: 6.3229 | J4: 6.2029 | K4: 5.1022
A5: '211.523.104 | B5: 201 | C5: Primärmaterial: Kies, Geröll. Kiessand I | D5: 25 | E5: m3 | F5: 54.9752 | G5: 51.9836 | H5: 48.9067 | I5: 52.04 | J5: 65.4329 | K5: 55.3356
A6: '211.651.111 | B6: 201 | C6: Auffüllungen mit seitlich gelagertem oder zugeführtem Material. Maschinell. Volumen fest | D6: 700 | E6: m3 | F6: 12.3494 | G6: 11.5653 | H6: 11.7158 | I6: 9.5986 | J6: 10.9414 | K6: 10.2111
A7: '211.282.112 | B7: 201 | C7: Fundationsschichten auf Planum, Schichtdicke m 0,26 bis 0,30 | D7: 25 | E7: m3 | F7: 14.8687 | G7: 12.4579 | H7: 12.3992 | I7: 14.52 | J7: 12.1971 | K7: 11.3422
A9: 2 Tiefbauarbeiten
A10: '221.411.132 | B10: 211.3 | C10: Fundationsschichten einbauen. Ausmass: Volumen fest. Einbaubreite über m 3,0. Fertig eingebaute Schicht, d m 0,21 bis 0,40. | D10: 1350 | E10: m3 | F10: 10.9986 | G10: 11.2133 | H10: 8.6738 | I10: 10.7222 | J10: 10.6458 | K10: 11.4056
A11: '221.421.103 | B11: 211.3 | C11: Rohplanie erstellen auf Fundationsschicht. Toleranz ab Sollhöhe + mm 0, - mm 50. Ohne Verwendung von Planiematerial. Rohplaniebreite über m 3,0. | D11: 3000 | E11: m2 | F11: 1.8679 | G11: 1.5642 | H11: 1.6744 | I11: 1.5522 | J11: 1.5025 | K11: 1.9411
A12: '221.423.123 | B12: 211.3 | C12: Planie erstellen auf Fundationsschichten für Strassen mit Belag. Toleranz ab Sollhöhe +/- mm 10. Ohne Verwendung von Material. Planiebreite über m 3,0. | D12: 3000 | E12: m2 | F12: 5.2403 | G12: 4.8083 | H12: 5.4844 | I12: 5.9767 | J12: 5.1783 | K12: 4.9156
A13: '223.441.313 | B13: 211.3 | C13: Tragschichten AC T Typ N maschinell einbauen und verdichten. AC T 22 N. Ausmass: Masse. d mm 80. | D13: 620 | E13: t | F13: 157.5923 | G13: 138.8275 | H13: 150.5889 | I13: 158.0278 | J13: 172.275 | K13: 162.5333
A14: '223.442.212 | B14: 211.3 | C14: Deckschichten AC Typ N maschinell einbauen und verdichten. AC 11 N. Ausmass: Masse. d mm 40. | D14: 310 | E14: t | F14: 201.0251 | G14: 172.3675 | H14: 190.98 | I14: 217.5856 | J14: 230.1475 | K14: 213.4411
A15: '237.231.101 | B15: 211.3 | C15: Aushub V-Gräben oder -Gruben. Normal baggerbares Material. Maschinell. t bis m 1,50. | D15: 180 | E15: m3 | F15: 19.6645 | G15: 15.8308 | H15: 18.88 | I15: 20.8889 | J15: 19.3625 | K15: 20.4722
A16: '237.451.112 | B16: 211.4 | C16: Polyethylenrohre PE-R liefern und verlegen.. PE-R mit STM, elastisch dichten. Nenn-Ringsteifigkeit SN 2, Rohrreihe S 16. DN/OD 160 | D16: 210 | E16: m | F16: 23.2062 | G16: 22.7042 | H16: 23.4411 | I16: 25.1589 | J16: 22.465 | K16: 24.935
A17: '237.611.123 | B17: 211.4 | C17: Kontrollschächte KS aus Betonfertigteilen liefern und erstellen. DN 800 mit Konus DN 800/600. Festigkeitsklasse 60. Schachttiefe m 1,01 bis 1,50 inkl. Durchlaufrinne und Schachtdeckel Guss 15 t Radlast | D17: 4 | E17: Stk | F17: 1832.7701 | G17: 1762.9758 | H17: 2362.1856 | I17: 2005.1 | J17: 1748.7333 | K17: 1830.6
A18: '237.821.201 | B18: 211.3 | C18: Material für Rohrumhüllungen einbringen und verdichten. Materiallieferungen in U'abschnitt 810. Ausmass: Volumen fest. Feine Gesteinskörnung und rezyklierte Gesteinskörnungsgemische. | D18: 65 | E18: m3 | F18: 21.8698 | G18: 20.7892 | H18: 20.67 | I18: 23.8167 | J18: 22.2125 | K18: 22.4611
A19: '237.851.212 | B19: 211.3 | C19: Einfüllen, inkl. leichtes Verdichten von seitlich gelagertem oder zugeführtem Material. Ausmass: Volumen fest. Maschinell. Natürliche Gesteinskörnung. | D19: 80 | E19: m3 | F19: 17.3703 | G19: 16.1825 | H19: 15.7333 | I19: 18.1244 | J19: 15.6308 | K19: 18.5744
A20: '241.216.112 | B20: 211.5 | C20: Schalungen für Bodenplatten. Typ 1. Konstante Höhe. Schalhöhe bis m 0,50 | D20: 30 | E20: m2 | F20: 61.218 | G20: 66.4009 | H20: 59.7975 | I20: 59.5717 | J20: 56.123 | K20: 57.6757
A21: '241.231.105 | B21: 211.5 | C21: Schalungen für Wände und Stützmauern, vertikal. Doppelhäuptig. Typ 2. Schalhöhe m 4,51 bis 5,00 | D21: 600 | E21: m2 | F21: 56.1436 | G21: 58.1055 | H21: 56.2188 | I21: 56.02 | J21: 48.677 | K21: 50.41
A22: '241.232.115 | B22: 211.5 | C22: Schalungen für Wände und Stützmauern geneigt. Doppelhäuptig, einseitig geneigt bis 1:5. Typ 2. Schalhöhe m 4,51 bis 5,00. | D22: 240 | E22: m2 | F22: 64.8037 | G22: 66.9227 | H22: 54.0229 | I22: 63.0617 | J22: 58.712 | K22: 65.81
A23: '241.261.301 | B23: 211.5 | C23: Schalungen für horizontale Deckenplatten-Untersichten. Typ 3-1 Plattendicke m 0.36 bis 0.45 Spriesshöhe m 3.51 - 5.50. Ohne Ueberhöhung. LE = m2 | D23: 300 | E23: m2 | F23: 74.5313 | G23: 69.5636 | H23: 75.5871 | I23: 81.475 | J23: 82.58 | K23: 70.0286
A24: '241.271.301 | B24: 211.5 | C24: Schalungen für gerade Ueberzüge und Brüstungen. Typ 3-1. Bauteildicke m 0.25. Schalhöhe m 1.01 bis 1.50. LE =m2 | D24: 50 | E24: m2 | F24: 102.1983 | G24: 97.9436 | H24: 109.3071 | I24: 92.6117 | J24: 106.972 | K24: 96.36
A25: '241.511.123 | B25: 211.5 | C25: Stabstähle. Stahl B500A, liefern und verlegen. BG 1 (1). d mm 16 bis 22. | D25: 15000 | E25: kg | F25: 2.0573 | G25: 1.9173 | H25: 2.0925 | I25: 2.0917 | J25: 1.979 | K25: 2.3357
A26: '241.613.112 | B26: 211.5 | C26: Beton für Bodenplatten. Beton Typ NPK A. Plattendicke m 0,21 bis 0,30. Dimension Bodenplatte m 10,00x50,00 | D26: 100 | E26: m3 | F26: 246.0705 | G26: 260.3882 | H26: 241.665 | I26: 226.195 | J26: 224.307 | K26: 239.8886
A27: '241.632.144 | B27: 211.5 | C27: Beton für Wände und Stützmauern ohne Anzug, liefern, einbauen und verdichten. Wand- oder Mauerhöhe über m 3,50. Beton Typ NPK A Wand- oder Mauerhöhe m 3.51 bis 4.50 Wanddicke m 0.31 bis 0.35 | D27: 150 | E27: m3 | F27: 265.4008 | G27: 288.6982 | H27: 254.5588 | I27: 244.7533 | J27: 248.332 | K27: 259.8171
A28: '241.661.113 | B28: 211.5 | C28: Beton für Deckenplatten, liefern, einbauen und verdichten. Beton Typ NPK A. Horizontal oder einseitig geneigt bis % 5,0. Plattendicke m 0,31 bis 0,40. | D28: 150 | E28: m3 | F28: 249.6355 | G28: 273.2936 | H28: 247.5075 | I28: 226.195 | J28: 228.837 | K28: 239.2743
A29: '241.671.132 | B29: 211.5 | C29: Beton für gerade Ueberzüge und Brüstungen, liefern, einbauen und verdichten. Ueberzugs- und Brüstungshöhe m 0,51 bis 1,50. Beton Typ NPK A. d m 0,21 bis 0,25. | D29: 10 | E29: m3 | F29: 307.9617 | G29: 339.9209 | H29: 306.1375 | I29: 270.0867 | J29: 286.637 | K29: 297.9243
A31: 3 Maurer- und Stahlbetonarbeiten
A32: '237.231.101.m | B32: 211.3 | C32: Aushub V-Gräben oder -Gruben. Normal baggerbares Material. Maschinell. t bis m 1,50. | D32: 150 | E32: m3 | F32: 23.0123 | G32: 19.7569 | H32: 22.242 | I32: 24.435 | J32: 23.34 | K32: 21.1644
A33: '237.472.101.m | B33: 211.4 | C33: Sickerrohre PVC-U-S liefern und verlegen. PVC-U-S mit STM. Nenn-Ringsteifigkeit SN 2, Rohrreihe SDR 51. DN/OD 125 | D33: 70 | E33: m | F33: 17.5141 | G33: 16.7708 | H33: 16.948 | I33: 19.4875 | J33: 15.82 | K33: 15.9111
A34: '237.611.123.m | B34: 211.4 | C34: Kontrollschächte KS aus Betonfertigteilen liefern und erstellen. DN 800 mit Konus DN 800/600. Festigkeitsklasse 60. Schachttiefe m 1,01 bis 1,50 inkl. Durchlaufrinne und Schachtdeckel Guss 15 t Radlast | D34: 5 | E34: Stk | F34: 1795.1977 | G34: 1952.1769 | H34: 1890.88 | I34: 2129.65 | J34: 1752.2 | K34: 1619.5556
A35: '237.831.301.m | B35: 211.3 | C35: Unterlags-, Sohlen- und Hüllbeton liefern, einbringen und verdichten. Ausmass: Volumen fest. Beton mit natürlicher Gesteinskörnung. CEM I 42,5 kg/m3 250. | D35: 45 | E35: m3 | F35: 214.4194 | G35: 245.1462 | H35: 186.146 | I35: 174.7475 | J35: 201.08 | K35: 201.56
A36: '237.851.211.m | B36: 211.3 | C36: Einfüllen, inkl. leichtes Verdichten von seitlich gelagertem oder zugeführtem Material. Ausmass: Volumen fest. Maschinell. Aushubmaterial. | D36: 255 | E36: m3 | F36: 17.7227 | G36: 17.4508 | H36: 16.804 | I36: 18.7588 | J36: 17.211 | K36: 15.8667
A37: '241.231.103 | B37: 211.5 | C37: Schalungen für Wände und Stützmauern, vertikal. Doppelhäuptig. Typ 2. Schalhöhe m 2,51 bis 3,50 | D37: 820 | E37: m2 | F37: 36.8436 | G37: 38.0492 | H37: 33.496 | I37: 31.6425 | J37: 35.42 | K37: 29.9056
A38: '241.261.113 | B38: 211.5 | C38: Schalungen für horizontale Deckenplatten-Untersichten. Typ 2. Plattendicke bis m 0,35 ohne Ueberhöhung. Spriesshöhe m 1,51 bis 3,50 | D38: 1100 | E38: m2 | F38: 36.9149 | G38: 36.5423 | H38: 36.99 | I38: 32.27 | J38: 36.73 | K38: 30.3578
A39: '241.511.112.m.g | B39: 211.5 | C39: Stabstähle. Stahl B500A, liefern und verlegen. Fixlängen (1). d mm 16 bis 22. | D39: 12000 | E39: kg | F39: 1.5775 | G39: 1.6077 | H39: 1.458 | I39: 1.54 | J39: 1.644 | K39: 1.3922
A40: '241.521.111 | B40: 211.5 | C40: Bewehrungsmatten. Stahl B500A, liefern und verlegen Lagermatten unverschnitten, für statische Verwendung. Alle Mattentypen. | D40: 21500 | E40: kg | F40: 2.0774 | G40: 2.3192 | H40: 2.192 | I40: 1.8488 | J40: 1.997 | K40: 1.9089
A41: '241.613.112.m | B41: 211.5 | C41: Beton für Bodenplatten mit konstanter Dicke, liefern, einbauen und verdichten. Oberfläche horizontal oder einseitig geneigt bis % 5,0. Beton Typ NPK A. Plattendicke m 0,21 bis 0,30 | D41: 66 | E41: m3 | F41: 214.8491 | G41: 236.7462 | H41: 186.17 | I41: 177.5388 | J41: 220.33 | K41: 192.9167
A42: '241.631.132.g | B42: 211.5 | C42: Beton für Wände und Stützmauern ohne Anzug liefern, einbauen und verdichten. Wand- oder Mauerhöhe m 2,51 bis 3,50. Beton Typ NPK A. Wanddicke m 0,21 bis 0,25 | D42: 85 | E42: m3 | F42: 235.7369 | G42: 262.8654 | H42: 202.654 | I42: 206.8538 | J42: 231.96 | K42: 219.6189
A43: '241.661.112 | B43: 211.5 | C43: Beton für Deckenplatten liefern, einbauen und verdichten. Beton Typ NPK A. Horizontal oder einseitig geneigt bis % 5,0. Plattendicke m 0,21 bis 0,30. | D43: 275 | E43: m3 | F43: 211.5529 | G43: 233.9808 | H43: 177.988 | I43: 175.2875 | J43: 216.38 | K43: 186.5633
A44: '314.111.132g | B44: 211.6 | C44: Einsteinmauerwerk aus Backstein ohne besondere Eigenschaften MB. Gleichzeitig mit Rohbau erstellen. Vollfugig vermauern. d mm 140 bis 160. h m 1,51 bis 3,00 | D44: 760 | E44: m2 | F44: 80.8384 | G44: 83.3508 | H44: 69.426 | I44: 71.8412 | J44: 74.97 | K44: 75.9011
A45: '314.131.122 | B45: 211.6 | C45: Einsteinmauerwerk aus Kalksandstein ohne besondere Eigenschaften MK. Gleichzeitig mit Rohbau erstellen. Vollfugig vermauern. d mm 115 bis 135. h m 1,51 bis 3,00. | D45: 40 | E45: m2 | F45: 102.1533 | G45: 104.6462 | H45: 76.246 | I45: 84.3212 | J45: 103.35 | K45: 85.0067
A46: '314.621.125 | B46: 211.6 | C46: Dämmplatten an Mauerwerk befestigen. Mineralwollplatten. Steinwolle, deklarierter Wert der Wärmeleitfähigkeit lambda_D max. W/mK 0,034, Rohdichte ca. kg/m3 60. d mm 180. | D46: 580 | E46: m2 | F46: 61.1494 | G46: 65.2154 | H46: 54.318 | I46: 63.1025 | J46: 60.45 | K46: 54.4111
A48: 4 Estriche
A49: '661.433.112 | B49: 281.0 | C49: Trittschall-Dämmplatten aus expandiertem Polystyrol gewalkt EPS-T. Einlagig mit Randstreifen. Platten unbelegt, d mm 22/20 | D49: 900 | E49: m2 | F49: 6.6446 | G49: 6.24 | H49: 6.5171 | I49: 6.7757 | J49: 6.5438 | K49: 6.325
A50: '661.511.101 | B50: 281.0 | C50: Trenn- und Gleitschichten aus Kunststofffolien verlegen und an Wänden mindestens bis OK fertiger Bodenbelag hochziehen. Bahnen min. mm 150 überlappen. Lose verlegen. Polyethylenfolien PE, d mm 0,2. | D50: 900 | E50: m2 | F50: 1.6348 | G50: 1.7471 | H50: 1.52 | I50: 1.3471 | J50: 1.62 | K50: 1.6375
A51: '661.611.113 | B51: 281.0 | C51: Zementestriche CT. Beanspruchskategorie A, Festigkeitsklasse C20 - F4, auf Trennschicht. d mm 60 | D51: 900 | E51: m2 | F51: 22.3174 | G51: 25.2933 | H51: 20.4914 | I51: 19.7243 | J51: 20.42 | K51: 20.8675
A52: '661.711.111 | B52: 281.0 | C52: Zementestrich CT. Mit Bodenheizung. Beanspruchungskategorie A, Festigkeitsklasse C20 - F4, auf Dämmschicht. d mm 75 | D52: 900 | E52: m2 | F52: 24.3014 | G52: 27.215 | H52: 22.9429 | I52: 22.1 | J52: 22.7162 | K52: 23.2425
A53: '661.741.132 | B53: 281.0 | C53: Variante: Calciumsulfat-Fliessestrich CAF. Beanspruchungskategorie A, Festigkeitsklasse C35 - F7, auf Dämmschicht. d mm 55 | D53: 900 | E53: m2 | F53: 29.686 | G53: 29.09 | H53: 27.0929 | I53: 27.5043 | J53: 28.8412 | K53: 29.0375
A55: 5 Plattenarbeiten
A56: '645.211.181 | B56: 282.4 | C56: Wandbeläge Gruppe A I. Keramikplatten stranggepresst, Wasseraufnahme E bis % 3. Farbton weiss, Abmessung mm 200x300, Einsatzort Küche. Nur verlegen. | D56: 30 | E56: m2 | F56: 57.1715 | G56: 63.4138 | H56: 63.0871 | I56: 59.1125 | J56: 53.162 | K56: 59.118
A57: '645.221.112 | B57: 28.4 | C57: Wandbeläge Gruppe B I a. Keramikplatten trockengepresst, Wasseraufnahme E bis % 0,5. Farbton pastellfarben, Abmessung mm bis 200x300, Einsatzort Sanitärräume. Nur verlegen | D57: 400 | E57: m2 | F57: 54.724 | G57: 61.3338 | H57: 58.8314 | I57: 56.345 | J57: 50.362 | K57: 58.338
A58: '645.311.212 | B58: 281.6 | C58: Bodenbeläge Gruppe A I. Keramikplatten stranggepresst, Wasseraufnahme E bis % 3. Unglasiert. Grösse bis mm 300x600. Einsatzort Wohnen. Nur verlegen. | D58: 500 | E58: m2 | F58: 52.7919 | G58: 57.4138 | H58: 54.4586 | I58: 54.7775 | J58: 49.362 | K58: 56.574
A59: '645.321.122 | B59: 281.6 | C59: Bodenbeläge Gruppe B I a. Keramikplatten trockengepresst, Wasseraufnahme E bis % 0,5. Glasiert. Abmessung mm bis 300 x 300. Einsatzort Bad / Küche. Nur verlegen. | D59: 160 | E59: m2 | F59: 52.9026 | G59: 58.5212 | H59: 56.1657 | I59: 54.8125 | J59: 51.162 | K59: 56.586
A61: 6 Gerüste
A62: '114.211.112 | B62: 211.1 | C62: Fassadengerüste, Lastklasse 3. Einrichten. Abstellbasis fester, tragfähiger Boden. Gerüsthöhe von m 8,01 bis m 16,00 | D62: 1000 | E62: m2 | F62: 8.5122 | G62: 8.6712 | H62: 7.3773 | I62: 7.7 | J62: 7.7875 | K62: 8.0889
A63: '114.221.112 | B63: 211.1 | C63: Fassadengerüste, Lastklasse 4. Einrichten. Abstellbasis fester, tragfähiger Boden. Gerüsthöhe m 8,01 bis 16,00. | D63: 1500 | E63: m2 | F63: 11.072 | G63: 10.4867 | H63: 9.2182 | I63: 11.064 | J63: 11.7158 | K63: 11.0938
A64: '114.311.114 | B64: 211.1 | C64: Spenglergänge für dynamische Beanspruchung. Einrichten. Unter Rinne oder Dachrand. Durchgangsbreite min. m 0,60. Abstand von Fassade bis Aussenkante Rinne oder Dachrand: m 0,91 bis 1,20. | D64: 80 | E64: m2 | F64: 25.3127 | G64: 23.2481 | H64: 21.1164 | I64: 22.8473 | J64: 22.545 | K64: 27.0878
A65: '114.341.111 | B65: 211.1 | C65: Gerüstbekleidungen. Einrichten. Ohne besondere Anforderungen. Aus Gerüstschutznetzen. | D65: 1000 | E65: m2 | F65: 3.3404 | G65: 3.0706 | H65: 2.7545 | I65: 3.306 | J65: 3.5142 | K65: 4.0567
A67: 9 Metallbauarbeiten
A68: '612.411.102 | B68: 272.2 | C68: Gerade Treppen mit Wangen. Treppenlauf b mm 901 bis 1'000. Mit Befestigungsplatten. Wangen Breitflachstahl mm 250x10. Trittstufen: b mm 300; Gitterrost mm 30. Maschenweite mm 33x33. Anzahl Trittstufen 15. | D68: 1 | E68: Stk | F68: 5917.3633 | G68: 5818.04 | H68: 5608.4217 | I68: 5847.54 | J68: 5989.7267 | K68: 5267.97
A69: '612.611.202 | B69: 272.2 | C69: Feste Stabgitter. Fenster oder Türen, nicht demontierbar. Zwischenräume unter mm 120. Vertik..Stäben und Traversen. Rahmen, Traversen Flachstahl mm 30x10. Stäbe Flachstahl mm 25x10. bxh mm 1400 x 1010. | D69: 49 | E69: Stk | F69: 811.8396 | G69: 738.2133 | H69: 809.5271 | I69: 749.8643 | J69: 817.7 | K69: 669.03
A70: '622.431.001 | B70: 272.0 | C70: Innentüren aus Stahl. Feuerwiderstandsklasse EI 30. Rahmen- und Flügelprofile; Eckverbindungen luftdicht. Türflügel mit Falzleisten für Verglasung. Mit Glasfüllung Schwellenwinkel Stahl DMBxDMH mm 900 x 2'000 | D70: 1 | E70: Stk | F70: 4328.384 | G70: 4368.3958 | H70: 4149.5 | I70: 3498.5629 | J70: 3755.835 | K70: 4919.03
A71: '622.431.003 | B71: 272.0 | C71: Innentüren aus Stahl. Rahmen und Flügelprofile; Eckverbindungen luftdicht. Türflügel mit Falzleisten für Verglasung oder Füllung. Mit Brandschutzglas EI 30 Schwellenwinkel aus Stahl DMBxDMH mm 900 x 2'000 | D71: 1 | E71: Stk | F71: 6470.5619 | G71: 6196.3658 | H71: 6508.0429 | I71: 6378.3343 | J71: 5615.3767 | K71: 7954.616
B72: 221.4 | C72: Alufenster. Fenstertyp. IV-Fenster. Fenstersystem. Aluprofil gedämmt. Blendrahmen. Abmessungen. Rahmendicke mm 60, Rahmen b mm 70. Falzdichtungen. An Ecken umlaufend dicht. Glasart. 3-fach IV. U_g-Wert nach Norm SN EN 673 W/m2K 0,6. Glasverbund "warme Kante". Schalldämmass R_w dB 32. Oberflächenbehandlung. Pulverbeschichtung. Vorbehandlung durch Entfetten, Beizen und Chromatieren. Super-durable-Polyester. Montage. Anschlag innen. Abdichten mit Dichtungsband. Rahmenkanten verdeckt. Befestigung verdeckt. Hohlräume gestopft
A73: 'al.371.211.102 | B73: 221.4 | C73: Fenstertyp. IV-Fenster. Fenstersystem. Aluprofil gedämmt. Blendrahmen. Abmessungen. Rahmendicke mm 60, Rahmen b mm 70. Falzdichtungen. An Ecken umlaufend dicht. Glasart. 3-fach IV. U_g-Wert nach Norm SN EN 673 W/m2K 0,6. Glasverbund "warme Kante". Schalldämmass R_w dB 32. Oberflächenbehandlung. Pulverbeschichtung. Vorbehandlung durch Entfetten, Beizen und Chromatieren. Super-durable-Polyester. Montage. Anschlag innen. Abdichten mit Dichtungsband. Rahmenkanten verdeckt. Befestigung verdeckt. Hohlräume gestopft. Alufenster 1-flüglig festverglast mm 1'200 x 1'500 | D73: 3 | E73: Stk | F73: 1797.0547 | G73: 1885.067 | H73: 1760.445 | I73: 1960.0129 | J73: 1886.7 | K73: 1450.342
A74: 'al.371.212.102 | B74: 221.4 | C74: Variante: Alufenster 1-flüglig mm 600 x 1'250 | D74: 19 | E74: Stk | F74: 1814.147 | G74: 1868.871 | H74: 1741.3067 | I74: 1768.3743 | J74: 1913.43 | K74: 2162.402
A75: 'al.371.213.102 | B75: 221.4 | C75: Variante: Alufenster 2-flüglig mm 1'400 x 1'250 | D75: 20 | E75: Stk | F75: 3013.1371 | G75: 2771.147 | H75: 3119.115 | I75: 3335.05 | J75: 3318.7217 | K75: 3296.566
A76: 'al.371.412.102 | B76: 221.6 | C76: Variante: Alufenstertüre 2-flüglig mm 1'400 x 2'000 | D76: 49 | E76: Stk | F76: 4455.1318 | G76: 4124.315 | H76: 4577.385 | I76: 4627.385 | J76: 4515.5167 | K76: 4665.436
A78: 10 Spenglerarbeiten
A79: '351.211.112 | B79: 222 | C79: Dachrinnen Halbrund vorgehängt. Standarddicke. Abwicklung mm 330. Werkstoff: CrNi Stahlblech | D79: 60 | E79: m | F79: 32.662 | G79: 35.1944 | H79: 30.565 | I79: 29.4787 | J79: 35.6611 | K79: 23.6045
A80: '351.211.312 | B80: 222 | C80: Rinnenhalter mit Schrauben befestigen. Flach oder profiliert. Zu Abwicklung mm 330. Werkstoff: CrNi Stahlblech | D80: 90 | E80: Stk | F80: 17.499 | G80: 20.3244 | H80: 17.4575 | I80: 15.428 | J80: 20.1389 | K80: 12.1464
A81: '351.251.112 | B81: 222 | C81: Ablaufrohre rund. Standarddicke. DN 100. Werkstoff: CrNi Stahlblech | D81: 60 | E81: m | F81: 32.9053 | G81: 36.5456 | H81: 29.595 | I81: 29.012 | J81: 34.9033 | K81: 24.6818
A82: '351.251.222 | B82: 222 | C82: Rohrschellen. Mit Schraube, l bis mm 120. DN 100. Werkstoff: CrNi Stahlblech | D82: 20 | E82: Stk | F82: 32.8203 | G82: 33.9433 | H82: 27.555 | I82: 26.3493 | J82: 37.5067 | K82: 27.1082
A83: '351.311.113 | B83: 222 | C83: Einlaufbleche für geneigte Dächer. Standarddicke. Bis 3x abgekantet. Abwicklung mm 250. Werkstoff: CrNi Stahlblech | D83: 60 | E83: m | F83: 29.0862 | G83: 33.1744 | H83: 22.0525 | I83: 25.9927 | J83: 35.9411 | K83: 22.3918
A84: '351.381.113 | B84: 222 | C84: Einfassung rund. Dachneigung bis Grad 40. Hintere Höhe bis mm 300. Oberer Abschluss horizontal. Einteilig, d bis mm 300. Werkstoff: CrNi Stahlblech | D84: 6 | E84: Stk | F84: 189.8091 | G84: 213.7344 | H84: 147.045 | I84: 157.542 | J84: 209.0044 | K84: 137.7845
A85: '351.382.117 | B85: 222 | C85: Eckige Einfassungen auf geneigten Dächern. Dachneigung bis Grad 40, oberer Abschluss parallel zur Dachfläche. Seitliche Höhe bis mm 200. Umfang m 3.01 bis 3.50. Werkstoff: CrNi Stahlblech | D85: 2 | E85: Stk | F85: 447.0883 | G85: 477.995 | H85: 405.5325 | I85: 383.4327 | J85: 426.8938 | K85: 343.2082
A86: '351.431.114 | B86: 222 | C86: Dachrandbleche mit Mauerabdeckung oder Kiesanschlag bei Flachdächern. Standarddicke. Bis 5x abgekantet, zugeschnitten. Abwicklung mm 500. | D86: 50 | E86: m | F86: 53.6884 | G86: 56.5589 | H86: 46.3075 | I86: 50.186 | J86: 60.1211 | K86: 41.1618
A87: '351.451.123 | B87: 222 | C87: Dachwassereinläufe auf Flachdächern. Dachwassereinläufe, mit Rollring oder Lippendichtung dicht anschliessen. Dachwassereinlauf mit Trichter. Abgang vertikal. DN 100. | D87: 5 | E87: Stk | F87: 126.6517 | G87: 130.69 | H87: 116.1775 | I87: 118.5843 | J87: 114.6012 | K87: 95.7018
A88: '351.471.124 | B88: 222 | C88: Deckstreifen bei Flachdächern. Standarddicke. Mit Dichtungsfalz, bis 6x abgekantet. Abwicklung mm 200. CrNi Stahlblech | D88: 50 | E88: m | F88: 44.0999 | G88: 45.9189 | H88: 35.9625 | I88: 40.0587 | J88: 51.1389 | K88: 34.5845
A89: '352.411.113 | B89: 222 | C89: Blechbahnen mit Falzen. Geformte Blechbahnen auf Dach verlegen. Falzbild vertikal. Falzhöhe mm 25. Neigung Grad 3 bis 25. Achsmass mm 500. Werkstoff CrNi Stahlblech | D89: 30 | E89: m2 | F89: 109.7307 | G89: 120.8411 | H89: 92.5675 | I89: 114.246 | J89: 83.53 | K89: 80.4855
A90: '352.413.211 | B90: 222 | C90: Falze ausbilden und schliessen, inkl. Befestigen der Blechbahnen. Winkelstehfalze. Falzhöhe mm 25, gerade. Werkstoff: Kupferblech | D90: 60 | E90: m | F90: 17.9946 | G90: 19.3011 | H90: 12.3625 | I90: 18.7713 | J90: 22.1733 | K90: 9.4527
A92: 11 Deckungen
A93: '363.421.111 | B93: 224.0 | C93: Unterdachplatten schuppenförmig überlappt. Faserzementplatten. Auf Sparren verlegen. Mit Montageklammern. Flächenbezogene Masse der Platten ca. kg/m2 10,4. d mm 6 bis 7. | D93: 350 | E93: m2 | F93: 26.6893 | G93: 25.3717 | H93: 22.48 | I93: 24.3 | J93: 29.05 | K93: 22.85
A94: '363.431.111 | B94: 224.0 | C94: Unterdächer aus Dichtungsbahnen, für erhöhte Beanspruchung. Kunststoff-Dichtungsbahnen, einschichtig. Auf Verlegeunterlage verlegen. Stösse überlappen und wasserdicht verkleben. Auf Verlegeunterlage. | D94: 350 | E94: m2 | F94: 19.3807 | G94: 18.2433 | H94: 20.8075 | I94: 19.765 | J94: 18.18 | K94: 19.245
A95: '363.441.111 | B95: 224.0 | C95: Konterlattungen Fichte/Tanne auf Holz nageln. Inkl. Abdichten der Nagellöcher. Lattenabstand mm 600 bis 700. Lattenquerschnitt. mm 45x50. | D95: 350 | E95: m2 | F95: 10.4283 | G95: 8.505 | H95: 9.06 | I95: 10.64 | J95: 10.8318 | K95: 9.385
A96: '363.512.113 | B96: 224.0 | C96: Lattungen Fichte/Tanne für Ton-Falz- oder -Pfannenziegel. Auf Holz nageln. Für Flach-, Mulden-, Herz-, Glatt- oder Pfannenziegel. Lattenquerschnitt mm 24x48. Lattenabstand mm 341 bis 370. | D96: 350 | E96: m2 | F96: 9.0195 | G96: 8.195 | H96: 7.322 | I96: 10.4886 | J96: 8.809 | K96: 7.43
A97: '363.522.132 | B97: 224.0 | C97: Ton-Falzziegel verlegen. Flach- oder Flach-Schiebeziegel in Linie verlegen. Lattenabstand mm 341 bis 370. Standardfarbton. | D97: 350 | E97: m2 | F97: 47.8079 | G97: 43.98 | H97: 44.382 | I97: 50.0043 | J97: 48.4455 | K97: 42.6975
A98: '363.562.122 | B98: 224.0 | C98: Ortausbildung mit Ortgangziegeln. Ton-Ortgangziegel liefern, verlegen und befestigen, als Mehrleistung. Zu Flachziegeln. Standardfarbton. | D98: 30 | E98: m | F98: 52.3277 | G98: 48.984 | H98: 51.415 | I98: 53.2757 | J98: 56.7191 | K98: 49.845
A99: '363.572.132 | B99: 224.0 | C99: Ton-First- und -Gratziegel. Halbrunde Firstziegel. Mit verzinkten Firstklammern und verzinkten Nägeln oder verzinkten Schrauben befestigen. Ziegellänge mm 400 bis 450. Standardfarbton. | D99: 25 | E99: m | F99: 54.7999 | G99: 46.4267 | H99: 53.2275 | I99: 60.5371 | J99: 61.0164 | K99: 52.295
A100: '363.611.114 | B100: 224.0 | C100: Lattungen Fichte/Tanne für Faserzementschiefer. Auf Holz nageln. Für Rechteckschiefer. Doppeldeckung. Lattenquerschnitt mm 24x48. Lattenabstand bis mm 250. Lattenabstand mm 240. | D100: 350 | E100: m2 | F100: 12.8833 | G100: 10.35 | H100: 11.2275 | I100: 14.075 | J100: 12.53 | K100: 11.4675
A102: 12 Dichtungsbeläge
A103: '364.321.224 | B103: 224.1 | C103: Wärmedämmung mit Platten aus expandiertem Polystyrol EPS. Zweischichtig, lose verlegen. Stösse versetzt. Lambda_D max. W/mK 0,036. Platten gefälzt, ohne Beschichtung, d über mm 160. d mm 240 (2x mm 120). | D103: 500 | E103: m2 | F103: 50.0788 | G103: 47.9733 | H103: 41.236 | I103: 49.22 | J103: 56.7925 | K103: 48.4875
A104: '364.421.114 | B104: 224.1 | C104: Abdichtungen aus Polymerbitumen-Dichtungsbahnen verlegen. Einschichtig. Ueberlappungen mm 100. Vollflächig aufschweissen. E-P-5,0-af-WF. | D104: 500 | E104: m2 | F104: 17.7795 | G104: 15.735 | H104: 15.8483 | I104: 16.719 | J104: 19.9575 | K104: 19.685
A105: '364.421.212 | B105: 224.1 | C105: Abdichtungen aus Polymerbitumen-Dichtungsbahnen verlegen. Zweischichtig. Ueberlappungen mm 100. 1. Schicht lose verlegen. 2. Schicht vollflächig aufschweissen.1. Schicht E-G-3,0-tt, 2. Schicht E-P-4,0-tf-WF. | D105: 500 | E105: m2 | F105: 26.5155 | G105: 23.4117 | H105: 24.9233 | I105: 26.251 | J105: 27.905 | K105: 27.5
A106: '364.531.112 | B106: 224.1 | C106: Kunststoffabdichtungen für Flachdach mit Begrünung. Lose verlegen. Einschichtig. Ueberlappungen thermisch verschweissen. Thermoplastische Polyolefine TPO, glasvliesbewehrt. d mm 1,6. | D106: 500 | E106: m2 | F106: 25.026 | G106: 23.8667 | H106: 24.484 | I106: 22.2844 | J106: 25.8275 | K106: 27.4762
A107: '364.911.124 | B107: 224.1 | C107: Zwischenschichten lose auf Abdichtung verlegen. Trennschicht. Ueberlappungen mm 100. Kunstfaservlies. Flächenbezogene Masse g/m2 400. | D107: 500 | E107: m2 | F107: 4.7001 | G107: 3.8083 | H107: 4.938 | I107: 4.894 | J107: 4.455 | K107: 5.7388
A108: '364.912.111 | B108: 224.1 | C108: Schutzbahnen. Lose auf Abdichtung verlegen. Schutzbahnen aus Kunststoff. Ueberlappungen mm 100, thermisch verschweissen. Kunststoff. d ca. mm 1,3. | D108: 500 | E108: m2 | F108: 13.6486 | G108: 11.815 | H108: 13.044 | I108: 13.0311 | J108: 13.5725 | K108: 14.425
A109: '364.921.111 | B109: 224.1 | C109: Beschwerungs- und Schutzschichten. Lose aufbringen. Rundkies gewaschen (Betonkies ungebrochen, gewaschen), Korngruppe 8/16. d mm 50. | D109: 500 | E109: m2 | F109: 12.0793 | G109: 11.1767 | H109: 10.796 | I109: 12.688 | J109: 12.425 | K109: 13.2175
A110: '364.932.111 | B110: 224.1 | C110: Variante: Gehbelag aus Betonplatten. Platten mm 30, unbewährt, gestossen. In Splitt, Rundkies oder auf Stelzlager verlegen. Oberfläche glatt, zementgrau. lxb mm 400 x 400 | D110: 100 | E110: m2 | F110: 73.3586 | G110: 67.1683 | H110: 71.174 | I110: 68.5889 | J110: 68.64 | K110: 65.525
A111: '364.944.312 | B111: 224.1 | C111: Variante: Vegetationsschichten. Mineralisches Substrat aus gebrochenem Blähschiefer. Lose aufbringen. Dicke verdichtet mm 90 | D111: 500 | E111: m2 | F111: 21.2559 | G111: 20.575 | H111: 17.824 | I111: 18.7022 | J111: 17.275 | K111: 21.1225
A112: '364.948.212 | B112: 224.1 | C112: Variante: Extensive Dachbegrünung. Nasssaat. Sedum und Kräuter. Saatgutklasse 1 | D112: 500 | E112: m2 | F112: 5.5793 | G112: 4.6633 | H112: 3.616 | I112: 5.0967 | J112: 5.8825 | K112: 5.815
A114: 13 Gipserarbeiten
A115: '342.451.131.p | B115: 271.1 | C115: Leibungen oder Stürze mit Wärmedämmung aus Mineralwollplatten, rechtwinklig. Deckputz abgerieben, Korngrösse mm 2, weiss. Grundputz mit Bewehrungsgewebe. 1 Kante, mit stumpfem Anschluss an Fensterrahmen und auf Fensterbank. Trennschnitt in allen Putzschichten. Rohdichte ca. kg/m3 90. Mit Klebemörtel auf tragfähigen Untergrund kleben. t mm 260 bis 300. Dämmdicke mm 80. | D115: 150 | E115: m | F115: 50.5532 | G115: 46.4778 | H115: 43.0638 | I115: 63.9429 | J115: 48.1025 | K115: 45.5089
A116: '643.213.211 | B116: 271.1 | C116: Einfaches Ständerwerk aus Metall, Beplankung aus je 2 Lagen Gipskartonplatten 1 Lage Dämmstoff, Dicke mm 75 Gipskarton-Bauplatten mm 12,5 Feuerwiderstandklasse EI 90 Höhe m 1,51 bis 3,00 | D116: 150 | E116: m2 | F116: 106.479 | G116: 100.9645 | H116: 101.343 | I116: 113.97 | J116: 118.224 | K116: 105.2373
A117: '643.217.111 | B117: 271.1 | C117: Installationswände, doppeltes Ständerwerk aus Metall. Beplankung beidseitig je 2 Lagen Gipsplatten. 1 Lage Mineralwolle. Gipsplatten Typ H2, d mm 12,5. Ständerwand d mm 330. R_w dB 54. EI 90. h m 1,51 bis 3,00. | D117: 70 | E117: m2 | F117: 143.5084 | G117: 132.912 | H117: 148.009 | I117: 147.636 | J117: 156.298 | K117: 143.7064
A118: '651.212.311 | B118: 283.2 | C118: Deckenbekleidung aus Gipskartonplatten abgehängt mit Unterkonstruktion. Ohne Brandschutz Abhängehöhe mm 150 bis 500. Konstruktionshöhe mm 67. 1 Lage Gipskartonplatten mm 12,5 | D118: 125 | E118: m2 | F118: 92.5367 | G118: 76.9291 | H118: 89.64 | I118: 98.778 | J118: 109.882 | K118: 91.5382
A119: '651.911.111 | B119: 271.1 | C119: Oberfläche zur Aufnahme von Deckputz über mm 1,0, mit zusätzlicher Verspachtelung, lichte Raumhöhe bis m 3,00 | D119: 125 | E119: m2 | F119: 14.9262 | G119: 13.6227 | H119: 13.4078 | I119: 15.8578 | J119: 19.9522 | K119: 14.559
A120: '671.311.111 | B120: 271.1 | C120: Wände mit Gips-, Gipskalk-, Gipszement- oder Kalkgips-Einschichtputz. Putzdicke mm 10,0. Ebene Wandflächen. Zur Aufnahme von mittel bis grob strukturierten Wandbekleidungen. Q2 - geglättet. | D120: 2000 | E120: m2 | F120: 18.9287 | G120: 14.374 | H120: 21.7478 | I120: 21.0644 | J120: 22.729 | K120: 18.336
A121: '671.314.112 | B121: 283.2 | C121: Weissputz auf Decken mit Gips- oder Gipskalk-Einschichtputz. Putzdicke mm 5,0. Ebene Flächen, hor. oder bis % 25 geneigt. Zur Aufnahme von matten Beschicht. oder fein struktur. Wandbekleidungen.Q3 - geglättet. | D121: 900 | E121: m2 | F121: 22.9738 | G121: 21.566 | H121: 23.1056 | I121: 25.1711 | J121: 25.025 | K121: 23.61
A123: 14 Malerarbeiten
A124: 675.312.801 | B124: 285.1 | C124: Beschichtungen auf Decken mit Deckputz mineralisch mit Altbeschichtung. Innen. Dispersionsfarbe. Beschichtung deckend, matt. 1x Zwischenbeschichtung. 1x Schlussbeschichtung. Rollen. Korngrösse bis mm 2,0. | D124: 900 | E124: m2 | F124: 10.6054 | G124: 10.8442 | H124: 8.296 | I124: 7.79 | J124: 8.46 | K124: 6.0809
A125: 675.212.115 | B125: 285.1 | C125: Beschichtungen auf Wänden mit Deckputz mineralisch mit Altbeschichtung. Innen. Dispersionsfarbe. Beschichtung deckend, matt. 1x Zwischenbeschichtung. 1x Schlussbeschichtung. Rollen. Korngrösse bis mm 2,0. | D125: 2000 | E125: m2 | F125: 9.3938 | G125: 9.8442 | H125: 6.9211 | I125: 6.5006 | J125: 7.7236 | K125: 5.6245
A126: 675.231.115 | B126: 285.1 | C126: Beschichtungen auf Wänden aus Holz und Holzwerkstoffen, deckender Altbeschichtung. Innen. Alkydharz-Decklack lv, innen. 1x Zwischenbeschichtung. 1x Schlussbeschichtung. Applikationsart: Streichen. Flächen glatt. | D126: 100 | E126: m2 | F126: 28.3427 | G126: 27.8883 | H126: 26.059 | I126: 26.0065 | J126: 30.8829 | K126: 31.1482
A127: 675.241.001 | B127: 285.1 | C127: Beschichtungen auf Wänden aus Stahl, Stahl verzinkt, Alu. Innen. Alkydharz-Decklack lv, innen. Beschichtung deckend, mittlerer Glanz. 1x Zwischenbeschichtung. 1x Schlussbeschichtung. Streichen. Flächen glatt. | D127: 90 | E127: m2 | F127: 29.7289 | G127: 29.4042 | H127: 25.381 | I127: 25.3059 | J127: 31.9614 | K127: 32.3691
A128: 675.712.111 | B128: 282.1 | C128: Raufaser-Wandbekleidungen. Mit feiner Struktur. Applikation inkl. Lieferung. Untergrund Weissputz Q2. Applikationsart: ansatzfrei. Auf plane Wände. | D128: 900 | E128: m2 | F128: 14.6928 | G128: 15.655 | H128: 11.037 | I128: 9.9475 | J128: 13.9323 | K128: 11.7891
A130: 15 Storen
A131: '347.211.301 | B131: 228.2 | C131: Rollläden aus Alu, selbsttragendes System mit Welle auf den Führungsschienen montiert. Manueller Antrieb. Mit Führungsschienenkeder.Gelenkkurbel. Einzelrollläden. (bk)x(hl) mm 1'400x1'250 | D131: 5 | E131: Stk | F131: 590.6099 | G131: 718.2638 | H131: 627.806 | I131: 613.2109 | J131: 506.77 | K131: 468.266
A132: '347.211.302 | B132: 228.2 | C132: Variante: Rollläden aus Alu (bk)x(hl) mm 1'400x2'000 | D132: 5 | E132: Stk | F132: 705.0768 | G132: 841.7162 | H132: 751.914 | I132: 763.0827 | J132: 597.5667 | K132: 568.46
A133: '347.311.301 | B133: 228.2 | C133: Variante: Lamellenstoren (Verbundlamellenstoren) aus Alu (bk)x(hl) mm 1'400x1'250 | D133: 20 | E133: Stk | F133: 416.8681 | G133: 448.4888 | H133: 453.396 | I133: 410.7564 | J133: 378.6633 | K133: 371.408
A134: '347.311.302 | B134: 228.2 | C134: Lamellenstoren (Verbundlamellenstoren) aus Alu, Lamellenbreite ca. mm 90. Manueller Antrieb. Mit Endanschlag, Gelenkkurbel. Einzelstoren. (bk)x(hl) mm 1'400 x 2'000 | D134: 29 | E134: Stk | F134: 479.8272 | G134: 511.375 | H134: 518.292 | I134: 477.7027 | J134: 434.0833 | K134: 439.162
A135: '347.311.303 | B135: 228.2 | C135: Lamellenstoren (Verbundlamellenstoren) aus Alu (bk)x(hl) mm 2'800 x 2'000. | D135: 8 | E135: Stk | F135: 693.5954 | G135: 720.975 | H135: 729.338 | I135: 722.4173 | J135: 630.0467 | K135: 668.638
A136: '347.512.301 | B136: 228.3 | C136: Gelenkarmmarkisen ohne Tragrohr auf Fassade oder Deckenuntersicht auf tragfähigen Untergrund montieren. Manueller Antrieb. Armlänge mm 2'000. bk mm 4'000. | D136: 8 | E136: Stk | F136: 1250.8577 | G136: 1360.455 | H136: 1343.804 | I136: 1382.5945 | J136: 985.0133 | K136: 1024.75
A137: '347.512.501 | B137: 228.3 | C137: Gelenkarmmarkisen ohne Tragrohr. Armlänge mm 2'500. bk mm 5'500. | D137: 1 | E137: Stk | F137: 1766.3726 | G137: 1991.31 | H137: 1847.002 | I137: 1814.1936 | J137: 1411.12 | K137: 1651.502
A139: 22 Aufzüge
A140: '742.911.002 | B140: 261 | C140: Aufzugsanlage mit Aufzugtyp N3, Nenntragfähigkeit kg 630, Personenzahl 8, Einzelaufzug, Haltestellen 4, Zugänge gleichseitig Antrieb Motor, Frequenzumrichter, Nenngeschwindigkeit m/s 1.0, Fahrtenzahl/h 90 bis 120. Ohne Maschinenraum, Motor: Drehstrom V 380/220, Hz 50 Einzelfahrtsteuerung ohne Speicherung der Stockwerkrufe Kabine mit Beleuchtung, Handlauf, Sockelleisten uns Spiegel, vollautomatischen Teleskopschiebetüre | D140: 1 | E140: Stk | F140: 38497.2637 | G140: 39961.9286 | H140: 37955.5833 | I140: 37955.5833 | J140: 37955.5833 | K140: 39378.7857
A142: 23 Bodenbeläge
A143: '663.111.101 | B143: 281.1 | C143: Demontagen. Textiler Bodenbelag, vollflächig geklebt, mit Sockel. Keine Wiederverwendung. Abtransport in Lager Unternehmer, inkl. Gebühren. LE = m2. | D143: 300 | E143: LE | F143: 12.4725 | G143: 12.0744 | H143: 12.4208 | I143: 11.7891 | J143: 10.772 | K143: 12.864
A144: '663.142.107 | B144: 281.1 | C144: Untergrund vorbereiten. Ausebnen, Spachteln und dgl. Zement- oder anhydritgebundener Untergrund. Vollflächiges Ueberziehen von ebenem Untergrund mit Spachtelmasse. d mm 2. | D144: 300 | E144: m2 | F144: 12.9238 | G144: 11.8619 | H144: 11.2546 | I144: 10.6473 | J144: 10.593 | K144: 11.306
A145: '663.181.116 | B145: 281.1 | C145: Arbeiten nach Aufwand. Nach Aufwand. Personal. Nach Regieansatz. Berufskategorie Bodenleger. | D145: 10 | E145: Std | F145: 96.8433 | G145: 96.8894 | H145: 97.7577 | I145: 102.7891 | J145: 96.896 | K145: 100.84
A146: '663.211.114 | B146: 281.2 | C146: Elastische Bodenbeläge aus Linoleum liefern und verlegen auf gereinigten, vorbereiteten Untergrund d mm 2,5. Bahnen, Bahnenbreite m 2,00. Vollflächig kleben, Dessin marmoriert. In rechtwinkligen Räumen. | D146: 300 | E146: m2 | F146: 54.1528 | G146: 48.2475 | H146: 48.7577 | I146: 51.5773 | J146: 49.914 | K146: 49.508
A147: '663.611.121 | B147: 281.9 | C147: Variante: Sockel liefern und montieren auf vorbereiteten Untergrund. Sockel aus Holz oder Holzwerkstoffen auf gerade Wände schrauben. Profil keilförmig, klarlackiert, h mm 60, d mm 8/12. Eiche. Massiv. | D147: 100 | E147: m | F147: 16.2523 | G147: 15.175 | H147: 15.7015 | I147: 16.1709 | J147: 15.396 | K147: 15.768
A148: '663.621.001 | B148: 281.9 | C148: Sockel liefern und montieren auf vorbereiteten Untergrund. Sockel aus Weichkunststoff. Sockel auf gerade Wände mit feinem Abrieb kleben. h mm 60. | D148: 360 | E148: m | F148: 13.0068 | G148: 12.0662 | H148: 12.0654 | I148: 11.6664 | J148: 11.243 | K148: 13.782
A149: '664.181.113 | B149: 281.7 | C149: Arbeiten nach Aufwand. Arbeitszeit. Personal, inkl. Hand- und Kleinmaschinen. Parkettleger. | D149: 10 | E149: Std | F149: 96.8164 | G149: 96.0153 | H149: 97.7577 | I149: 102.7891 | J149: 96.896 | K149: 100.84
A150: '664.321.121 | B150: 281.7 | C150: Klebeparkett auf zementgebundene Unterlagsböden geklebt. d mm 8. Paralelldessin, Lamellen mm 120x24, Eiche Standart | D150: 300 | E150: m2 | F150: 69.4132 | G150: 63.2713 | H150: 68.3169 | I150: 70.3964 | J150: 64.071 | K150: 70.458
A151: '664.822.111 | B151: 281.7 | C151: Oberflächenbehandlungen: Schleifen und Spachteln. Spachtelung als Verfeinerung der Oberfläche. Grundieren und Versiegeln, inkl. Zwischenschliff, mit Wasserlack | D151: 300 | E151: m2 | F151: 32.262 | G151: 32.9779 | H151: 32.1492 | I151: 32.0227 | J151: 28.506 | K151: 35.998
A152: '664.951.111 | B152: 281.7 | C152: Sockelleisten montieren. Massivholz behandelt. An ebene Wände schrauben. Keilförmig. h mm 60, d mm 8/12. Eiche. Inkl. Lieferung. | D152: 360 | E152: m | F152: 16.3973 | G152: 15.186 | H152: 15.7985 | I152: 16.5582 | J152: 15.744 | K152: 16.76
A154: 24 Baureinigung
A155: '682.214.201 | B155: 287 | C155: 4 bis 4 1/2-Zimmer-Wohnungen reinigen; Hauptnutzfläche bis m2 120. Einbauschrank bis vierteilig. Bodenbeläge aus Teppich, Keramikplatten, Kunststoff, Linoleum, versiegeltem Parkett. Ausmass: Anzahl Wohnungen. | D155: 1 | E155: Stk | F155: 1038.0955 | G155: 1088.1525 | H155: 987.0482 | I155: 1015.85 | J155: 988.539 | K155: 945.6922
A157: 25 Gärtnerarbeiten
A158: '181.251.002 | B158: 400 | C158: Geländegestaltung und Rohplaniearbeiten nach Aufwand. LE = h. Regiestunden. Gärtner mit Fähigkeitsausweis. | D158: 10 | E158: LE | F158: 83.2702 | G158: 85.493 | H158: 84.04 | I158: 86.6114 | J158: 86.5262 | K158: 82.196
A159: '181.422.313 | B159: 400 | C159: Beton- und Kunststeine für Abschlüsse liefern. Stellplatten Typ SB, Frost-Tausalz-beständig. Ohne Vorsatz, grau. Gerade Platten, l m 1,00. SB 8, mm 80x250. | D159: 90 | E159: m | F159: 20.4119 | G159: 18.0389 | H159: 17.0067 | I159: 21.82 | J159: 22.7286 | K159: 17.558
A160: '181.425.112 | B160: 400 | C160: Stellplatten versetzen. In Geraden und Kurven mit r über m 30,00. In Beton, auf Fundationsschicht aus ungebundenem Gemisch. Exkl. Ausfugen. Nach Schemazeichnung Typ 07 oder 18. In Splitt- oder Rundkornbeton 8/16, CEM 42,5 kg/m3 200, w/z-Wert 0,37, Betonbedarf m3/m 0,079 bis 0,091. SN oder SB 8, mm 80x min. mm 250. | D160: 90 | E160: m | F160: 39.7884 | G160: 39.129 | H160: 39.8944 | I160: 35.12 | J160: 36.3962 | K160: 29.07
A161: '181.441.111 | B161: 400 | C161: Verbund- und Formsteine aus Beton liefern. Verbundsteine. Mit Seiten-, Anfangs- und Endsteinen. Frost-Tausalz-beständig. Nicht wasserdurchlässig. Steindicke mm 60, grau, Kanten gefast. | D161: 200 | E161: m2 | F161: 26.64 | G161: 27.165 | H161: 22.9933 | I161: 24.2957 | J161: 27.155 | K161: 22.912
A162: '181.445.111 | B162: 400 | C162: Beläge aus Verbund- oder Formsteinen erstellen. Ungebundene Bauweise. Inkl. Bettung in Sand oder Splitt. Ausfugen mit bindigem Sand. Inkl. Lieferung Bettungs- und Fugenmaterial. Verkehrslastklasse ZP. Steindicke mm 60. | D162: 200 | E162: m2 | F162: 32.3503 | G162: 31.339 | H162: 28.475 | I162: 27.1386 | J162: 27.795 | K162: 22.998
A163: '181.451.202 | B163: 400 | C163: Mergelbeläge einbauen, verdichten und Wässern. Mergel gebrochen, wasserdurchlässig. Verdichtete Schicht mm 60. Planiergenauigkeit +/- mm 10. | D163: 100 | E163: m2 | F163: 17.8074 | G163: 17.544 | H163: 18.9311 | I163: 16.0886 | J163: 19.135 | K163: 9.744
A164: '181.551.111 | B164: 400 | C164: Blockstufen liefern und versetzen. Aus Beton. Versetzen in Beton. Zementgrau. Oberfläche abgerieben. In Splitt- oder Rundkornbeton 8/16, CEM 42,5 kg/m3 200, w/z-Wert 0,37. Betonbedarf m3/m 0,1. Stufenhöhe mm 150. Elementlänge m 1,0. | D164: 30 | E164: m | F164: 153.1678 | G164: 136.519 | H164: 146.4267 | I164: 133.66 | J164: 127.5262 | K164: 119.308
A165: '181.726.102 | B165: 400 | C165: Grobplanie erstellen. Flächen mit Neigung bis 1:3. Bodenbearbeitung. Auflockern von gewachsenen oder hergerichteten Flächen, die durch Dritte verdichtet worden sind. Bearbeitungstiefe cm 15 bis 20. | D165: 500 | E165: m2 | F165: 1.4433 | G165: 1.0967 | H165: 0.8943 | I165: 1.17 | J165: 1.0929 | K165: 0.672
A166: '181.727.212 | B166: 400 | C166: Bodenflächen fräsen. Flächen mit Neigung bis 1:3. Bearbeitungstiefe m 0,08 bis 0,10. 2 Durchgänge. Ausmass: bearbeitete Fläche. | D166: 500 | E166: m2 | F166: 1.4206 | G166: 1.1111 | H166: 1.33 | I166: 0.9957 | J166: 0.7567 | K166: 0.672
A167: '181.738.102 | B167: 400 | C167: Reinplanie auf gelockerter Bodenfläche erstellen. Pflanzflächen. Flächen mit Neigung bis 1:3. Planiergenauigkeit +/- mm 20. | D167: 500 | E167: m2 | F167: 2.1432 | G167: 1.647 | H167: 2.1522 | I167: 1.6286 | J167: 1.6562 | K167: 1.36
A168: '181.834.111 | B168: 400 | C168: Rollrasen liefern. Gartenrasen. | D168: 500 | E168: m2 | F168: 14.2776 | G168: 13.573 | H168: 15.3311 | I168: 12.7071 | J168: 12.7157 | K168: 12.666
A169: '181.834.121 | B169: 400 | C169: Verlegen Rollrasen. Auf Oberboden, inkl. Ausbilden der Ränder. Konz. Pos. 834.111 | D169: 500 | E169: m2 | F169: 12.7623 | G169: 12.551 | H169: 11.0756 | I169: 14.1286 | J169: 11.7575 | K169: 13.26
A170: '181.852.211 | B170: 400 | C170: Mähen maschinell oder von Hand. 1. Schnitt der Ansaat. Bei Rasenflächen. Zu Pos. 834. | D170: 500 | E170: m2 | F170: 0.9672 | G170: 0.8156 | H170: 0.7944 | I170: 0.95 | J170: 0.735 | K170: 0.918
A171: '181.853.003 | B171: 400 | C171: Mähen maschinell oder von Hand. 1. Schnitt der Ansaat. Düngen nach 1. Schnitt. Zu Pos. 834. | D171: 25 | E171: kg | F171: 5.98 | G171: 5.628 | H171: 6.3025 | I171: 7.9629 | J171: 5.265 | K171: 5.184
A173: 87 Zimmerarbeiten
A174: '335.721.141 | B174: 214.1 | C174: Sparrenlage aus Vollholz. Sattel oder Pultdach. Auf bauseitiges, genaues Auflager. Gehobelt. Querschnitte: Sparren mm 80x140 bis 100x180, Schwellen, Pfetten mm 100x120 bis 160x260. | D174: 22 | E174: m3 | F174: 1358.0433 | G174: 1281.2714 | H174: 1203.298 | I174: 1333.3475 | J174: 1282.4938 | K174: 1298.8138
A175: '335.721.262 | B175: 214.1 | C175: Pfetten aus Brettschichtholz. Sattel oder Pultdach. Auf bauseitiges, genaues Auflager. Erscheinungsklasse I. Breite mm 140. | D175: 5 | E175: m3 | F175: 1573.2279 | G175: 1475.6821 | H175: 1288.245 | I175: 1483.7312 | J175: 1492.1188 | K175: 1373.8308
A176: '335.311.111 | B176: 214.1 | C176: Aussenwande mit verdeckten Standern, Konstruktion, Leimholz, Duo- oder Triobalken, mm 60x200 | D176: 1035 | E176: m2 | F176: 60.4925 | G176: 61.4557 | H176: 51.509 | I176: 56.07 | J176: 52.4588 | K176: 51.6392
A177: '335.311.422 | B177: 214.1 | C177: Innere Beplankung, Kronoply OSB 3, Stärke mm 15. | D177: 1035 | E177: m2 | F177: 32.1141 | G177: 28.8086 | H177: 30.808 | I177: 31.3775 | J177: 33.575 | K177: 28.2
A178: '335.771.442 | B178: 214.1 | C178: Verlegeunterlage aus Brettern mit Nut und Kamm mm 20 gehobel | D178: 560 | E178: m2 | F178: 59.4857 | G178: 50.2179 | H178: 49.109 | I178: 54.9975 | J178: 66.845 | K178: 46.7262
A179: '335.531.114 | B179: 214.1 | C179: Geschossdecke aus Brettstapeln, Konstruktion, sagerohen Lamellen, h mm 240 | D179: 1065 | E179: m2 | F179: 251.2615 | G179: 258.9936 | H179: 224.103 | I179: 232.2525 | J179: 245.2825 | K179: 216.2069
A180: '335.361.415 | B180: 215.2 | C180: Fassadenbekleidung aus besäumten Brettern. Auf Holz sichtbar befestigen. Fichte/Tanne. Erscheinungsklasse N1, d ca. mm 20, Breite einheitlich mm 120 bis 200. Gehobelt. | D180: 450 | E180: m2 | F180: 91.6704 | G180: 89.3593 | H180: 87.768 | I180: 89.8425 | J180: 94.7175 | K180: 79.8638
A181: '335.721.323 | B181: 215.2 | C181: Mineralwollplatten, selbstklemmend, nicht belastbar, Rohdichte kg/m3 18 bis 33, Wärmeleitfähigkeit ca. W/mK 0,040. Zwischen Konstrukt. einpassen. Boden- oder Dachflächen, hor. oder geneigt bis Grad 35. d mm 200. | D181: 560 | E181: m2 | F181: 37.5854 | G181: 37.5029 | H181: 31.307 | I181: 34.015 | J181: 36.7812 | K181: 35.2362
A182: '335.451.481 | B182: 215.2 | C182: Innentäfer aus Brettern mit Nut und Kamm. Auf Holz verdeckt befestigen. Wände. Erscheinungsklasse N1, d ca. mm 14, Breite einheitlich mm 90 bis 115. | D182: 560 | E182: m2 | F182: 81.0015 | G182: 77.9286 | H182: 76.403 | I182: 81.2462 | J182: 84.3838 | K182: 69.9846
A184: 88 Fenster
B185: 221.0 | C185: Holzfenster. Fenstertyp. IV-Fenster. Ausführungsvarianten, Flügel durch Rahmen abgedeckt. Blendrahmen. Rahmenwetterschenkel, Alu farblos anodisiert. Falzdichtungen, an Ecken umlaufend dicht. Beschläge. Verschlüsse, einseitig bedienbar. Drehflügelverschluss mit Drehgriff. Glasart. 3-fach IV. U_g-Wert nach Norm SN EN 673 W/m2K 0,6. Glasverbund Alu. Schalldämmass R_w dB 32. Oberflächenbehandlung, deckende Beschichtung. Farbton weiss. Montage, Anschlag innen. Abdichten mit Dichtungsband. Rahmenkanten verdeckt. Befestigung verdeckt. Hohlräume gestopft.
A186: 'b.371.211.102 | B186: 221.0 | C186: Variante: Holzfenster 1-flüglig festverglast mm 1'200 x 1'500 | D186: 3 | E186: Stk | F186: 1191.2933 | G186: 1099.5254 | H186: 1140.6987 | I186: 1166.2083 | J186: 1338.8856 | K186: 1134.5845
A187: 'b.371.212.102 | B187: 221.0 | C187: Fenstertyp. IV-Fenster. Ausführungsvarianten, Flügel durch Rahmen abgedeckt. Blendrahmen. Rahmenwetterschenkel, Alu farblos anodisiert. Falzdichtungen, an Ecken umlaufend dicht. Beschläge. Verschlüsse, einseitig bedienbar. Drehflügelverschluss mit Drehgriff. Glasart. 3-fach IV. U_g-Wert nach Norm SN EN 673 W/m2K 0,6. Glasverbund Alu. Schalldämmass R_w dB 32. Oberflächenbehandlung, deckende Beschichtung. Farbton weiss. Montage, Anschlag innen. Abdichten mit Dichtungsband. Rahmenkanten verdeckt. Befestigung verdeckt. Hohlräume gestopft. Holzfenster 1-flüglig mm 600 x 1'250 | D187: 19 | E187: Stk | F187: 888.8576 | G187: 828.1185 | H187: 871.3967 | I187: 887.7433 | J187: 996.5244 | K187: 842.1464
A188: 'b.371.213.102 | B188: 221.0 | C188: Variante: Holzfenster 2-flüglig mm 1'400 x 1'250 | D188: 20 | E188: Stk | F188: 1490.3779 | G188: 1413.2408 | H188: 1465.976 | I188: 1473.1017 | J188: 1634.18 | K188: 1446.8382
A189: 'b.371.213.103 | B189: 221.0 | C189: Variante: Holzfenster 2-flüglig Renovation mm 1'400 x 1'250 | D189: 20 | E189: Stk | F189: 1797.9041 | G189: 1729.2508 | H189: 1764.3553 | I189: 1781.75 | J189: 1929.4567 | K189: 1751.9327
A190: 'b.371.412.102 | B190: 221.0 | C190: Variante: Holzfenstertüre 2-flüglig mm 1'400 x 2'000 | D190: 49 | E190: Stk | F190: 2112.6961 | G190: 1956.9723 | H190: 2058.222 | I190: 2135.1367 | J190: 2327.2211 | K190: 2099.5909
A191: 'b.371.641.101 | B191: 221.0 | C191: Variante: Holzhebeschiebetüre mm 4'000 x 2'000 | D191: 8 | E191: Stk | F191: 7093.4912 | G191: 6912.4492 | H191: 7252.7853 | I191: 7152.3167 | J191: 7921.4178 | K191: 6912.1745
B192: 221.2 | C192: Kunststofffenster. Fenstertyp. IV-Fenster. Blendrahmen, Typ Vollrahmen. Rahmenwetterschenkel. Alu farblos anodisiert. Falzdichtungen. An Ecken umlaufend dicht. Beschläge. Verschlüsse einseitig bedienbar. Drehkippflügel: Erstöffender Flügel mit Drehkippverschlus und Drehgriff. Zweitöffnender Flügel mit 1 Schnäpper. Glasart. 3-fach IV. U_g-Wert nach Norm SN EN 673 W/m2K 0,6. Glasverbund "warme Kante". Schalldämmass R_w dB 32. Oberflächen von Kunststofffenstern. Weiss. Montage. Anschlag innen. Abdichten mit Dichtungsband. Rahmenkanten verdeckt. Befestigung verdeckt. Hohlräume gestopft.
A193: 'p.371.211.102 | B193: 221.2 | C193: Variante: Kunststofffenster 1-flüglig festverglast mm 1'200 x 1'500 | D193: 3 | E193: Stk | F193: 848.4968 | G193: 852.4786 | H193: 872.1829 | I193: 882.0386 | J193: 854.776 | K193: 714.955
A194: 'p.371.212.102 | B194: 221.2 | C194: Variante: Kunststofffenster 1-flüglig mm 600 x 1'250 | D194: 19 | E194: Stk | F194: 674.8547 | G194: 652.2757 | H194: 697.0086 | I194: 704.1443 | J194: 718.122 | K194: 552.6675
A195: 'p.371.213.102 | B195: 221.2 | C195: Variante: Kunststofffenster 2-flüglig mm 1'400 x 1'250 | D195: 20 | E195: Stk | F195: 1126.2314 | G195: 1129.4986 | H195: 1149.7114 | I195: 1168.0529 | J195: 1179.362 | K195: 960.58
A196: 'p.371.213.103 | B196: 221.2 | C196: Fenstertyp. IV-Fenster. Blendrahmen, Typ Vollrahmen. Rahmenwetterschenkel. Alu farblos anodisiert. Falzdichtungen. An Ecken umlaufend dicht. Beschläge. Verschlüsse einseitig bedienbar. Drehkippflügel: Erstöffender Flügel mit Drehkippverschlus und Drehgriff. Zweitöffnender Flügel mit 1 Schnäpper. Glasart. 3-fach IV. U_g-Wert nach Norm SN EN 673 W/m2K 0,6. Glasverbund "warme Kante". Schalldämmass R_w dB 32. Oberflächen von Kunststofffenstern. Weiss. Montage. Anschlag innen. Abdichten mit Dichtungsband. Rahmenkanten verdeckt. Befestigung verdeckt. Hohlräume gestopft. Kunststofffenster 2-flüglig Renovation mm 1'400 x 1'250 | D196: 20 | E196: Stk | F196: 1395.8038 | G196: 1361.1229 | H196: 1440.3986 | I196: 1427.9829 | J196: 1476.99 | K196: 1245.5275
A197: 'p.371.412.102 | B197: 221.2 | C197: Fenstertyp. IV-Fenster. Blendrahmen, Typ Vollrahmen. Rahmenwetterschenkel, Alu farblos anodisiert. Falzdichtungen, an Ecken umlaufend dicht. Beschläge. Verschlüsse, einseitig bedienbar. Erstöffnender Flügel mit Drehkippverschluss und Drehgriff. Glasart. 3-fach IV. U_g-Wert nach Norm SN EN 673 W/m2K 0,6. Glasverbund Alu. Schalldämmass R_w dB 32. Oberflächen von Kunststofffenstern, Weiss. Montage, Anschlag innen. Abdichten mit Dichtungsband. Rahmenkanten verdeckt. Befestigung verdeckt. Hohlräume gestopft. Kunststofffenstertüre 2-flüglig mm 1'400 x 2'000 | D197: 49 | E197: Stk | F197: 1629.462 | G197: 1648.7229 | H197: 1661.0986 | I197: 1682.5743 | J197: 1665.286 | K197: 1412.075
A198: 'p.371.641.101 | B198: 221.2 | C198: Variante: Kunststoff-Hebeschiebetüre mm 4'000 x 2'000 | D198: 8 | E198: Stk | F198: 6199.5581 | G198: 6614.0014 | H198: 6216.4771 | I198: 6338.5329 | J198: 6454.95 | K198: 5259.7475
A200: 91 Kücheneinrichtungen
A201: '625.211.001 | B201: 258 | C201: 5 x 1/1 Elemente mit Unter- und Oberbau mit Eckausnutzung 2 x 1/2 Elemente mit Unter- und Oberbau 1 x 1/1 Schrankelement (Kühlschrank). 1 x 1/1 Schrankelement (Backofen). 1 x 1/2 Schrankelement mit Auszug Spültisch mit Batterie, Einbauherd, Glaskeramikkochfeld, Dampfabzug, Kühlschrank, Geschirrspüler, Wettergittereinheit und Lüftungsgitter | D201: 8 | E201: Stk | F201: 22480.8968 | G201: 23031.9833 | H201: 20630.6383 | I201: 20910.4738 | J201: 20520.2843 | K201: 23010.778
A203: 98 Deckenbekleidungen
A204: '653.211.112 | B204: 283.1 | C204: Deckenverkleidung aus rechteckigen Metallplatten, aus Stahlblech verzinkt, pulverbeschichtet. Blech d mm 0,6 bis 0,7 Mit Fugenband schwarz. Platten b mm 400, l mm 2'001 bis 2'50 | D204: 500 | E204: m2 | F204: 91.6742 | G204: 94.024 | H204: 85.372 | I204: 87.088 | J204: 101.5067 | K204: 85.3067
A205: '653.311.121 | B205: 283.1 | C205: Metallpaneelen, Alu beschichtet, Fugen geschlossen mit angeformter Fugenabdeckung Blech d mm 0,4 bis 0,5, Paneele h bis mm 20. Abhängehöhe mm 201 bis 500 Achsmass mm 100. Paneele b mm 80 bis 85 | D205: 500 | E205: m2 | F205: 134.6222 | G205: 141.2167 | H205: 112.396 | I205: 118.9 | J205: 152.3833 | K205: 128.625
A206: '653.611.121 | B206: 283.1 | C206: Lochung rund parallel Abhängehöhe mm 201 bis 500 | D206: 500 | E206: m2 | F206: 5.0802 | G206: 7.0117 | H206: 4.658 | I206: 4.054 | J206: 3.7833 | K206: 3.8917
A207: '653.612.101 | B207: 283.1 | C207: Perforationen in Paneelen, als Mehrpreis. Lochung rund, Anordnung diagonal. Lochdurchmesser mm 1,0. Lochflächenanteil ca. % 23. | D207: 500 | E207: m2 | F207: 5.7458 | G207: 7.3 | H207: 5.2133 | I207: 5.76 | J207: ... | K207: 5.405
A208: '653.621.121 | B208: 283.3 | C208: Akustikhinterlagen zu Deckenbekleidungen mit Platten. Vollflächig in Deckenplatten. Mineralwollplatten, Rohdichte kg/m3 12 bis 25, unten schwarzes Vlies. In Platten einlegen. d mm 20. | D208: 500 | E208: m2 | F208: 15.674 | G208: 15.05 | H208: 11.995 | I208: 13.945 | J208: ... | K208: 14.686
A209: '653.622.111 | B209: 283.3 | C209: Akustikhinterlagen zu Deckenbekleidungen mit Paneelen. Vollflächig zwischen Tragprofilen. Mineralwollplatten, Rohdichte kg/m3 12 bis 25, unten schwarzes Vlies. Lose verlegen. d mm 20. | D209: 500 | E209: m2 | F209: 18.3806 | G209: 19.6417 | H209: 15.65 | I209: 17.216 | J209: 21.8833 | K209: 17.6383
A211: 99 Allgemeine Schreinerarbeiten
A212: '621.215.001 | B212: 273.1 | C212: Tablarschränke, 5 verstellbaren Tablaren, Zweiflüglig. Aussenflächen Kanten mit Schichtpressstoffplatte mm 0,7 bis 1,0 Innenflächern Kunstharz mm 0,15. H mm 1'950 bis 2'200, T mm 560 bis 600, B mm 901 bis 1'040 | D212: 8 | E212: Stk | F212: 1580.5322 | G212: 1627.1 | H212: 1506.8067 | I212: 1443.654 | J212: 1300.404 | K212: 1209.8533
A213: '621.215.002 | B213: 273.1 | C213: Variante: Garderobenschränke ohne Türen, mit Huttablar und Kleiderstange. Grundelemente. b mm 901 bis 1'040. | D213: 8 | E213: Stk | F213: 1344.6881 | G213: 1425.05 | H213: 1362.605 | I213: 1375.5383 | J213: 1170.75 | K213: 1294.5957
A214: '622.211.311 | B214: 273.0 | C214: Schlagregendichtigkeit, Klasse 4A. Klimaklasse 3d. Wärmeschutz U-d-Wert W/m2K 1,2. Luftdurchlässigkeit, Klasse 1. Grundiert. Türflügel glatt mit Schwellenprofil DMBxDMH mm 900 x 2'000 | D214: 1 | E214: Stk | F214: 3964.7642 | G214: 3622.26 | H214: 3578.8114 | I214: 4135.2957 | J214: 4195.11 | K214: 4240.6957
A215: '622.211.211 | B215: 273.0 | C215: Witterungsgeschützt. Klimaklasse 3d. Wärmeschutz U-d-Wert W/m2K 1,2. Luftdurchlässigkeit, Klasse 1. Grundiert für deckende Oberflächenbehandlung. Türflügel glatt mit Schwellenprofil DMBxDMH mm 900x2'000 | D215: 8 | E215: Stk | F215: 3745.8868 | G215: 3426.52 | H215: 3861.1686 | I215: 4261.2286 | J215: 3733.458 | K215: 3887.8571
A216: '652.312.121.b | B216: 283.4 | C216: Deckenbekleidungen aus Tafer | D216: 500 | E216: m2 | F216: 194.9346 | G216: 190.675 | H216: 226.528 | I216: 164.932 | J216: 238.735 | K216: 159.248
A217: '622.411.312 | B217: 273.0 | C217: Innentüren aus Holz und Holzwerkstoffe Rahmentür. Brandschutztür. Feuerwiderstandsklasse EI 30. Grundiert für deckende Oberflächenbehandlung. Türflügel glatt. Ohne Schwelle DMBxDMH mm 900x2'000 | D217: 2 | E217: Stk | F217: 1964.7133 | G217: 1853.42 | H217: 1865.1129 | I217: 1835.7257 | J217: 1835.074 | K217: 2147.2257
A218: '622.413.112 | B218: 273.0 | C218: Innentüren aus Holz und Holzwerkstoffe. Futter, Verkleidung und Türflügel grundiert für deckende Oberflächenbehandlung. Türflügel glatt. Ohne Schwelle DMBxDMH mm 900x2'000 | D218: 36 | E218: Stk | F218: 1092.0384 | G218: 934.5 | H218: 1246.8057 | I218: 1039.72 | J218: 1028.64 | K218: 942.0614
A219: '622.412.112 | B219: 273.0 | C219: Innentüren aus Holz und Holzwerkstoffe. Futter, Verkleidung und Türflügel grundiert für deckende Oberflächenbehandlung. Türflügel glatt. Ohne Schwelle DMBxDMH mm 900x2'000 | D219: 6 | E219: Stk | F219: 1250.9252 | G219: 1255.72 | H219: 1196.2714 | I219: 1079.25 | J219: 1039.675 | K219: 1135.5667
A220: '622.412.212 | B220: 273.0 | C220: Variante: Schallschutztür. Bauschalldämmass R'_w+C dB 39. Grundiert. Eingiesszarge aus korrosiongeschütztem Stahlblech. Türflügel glatt. Ohne Schwelle mit Absenkdichtung. DMBxDMH mm 900 x 2'000 | D220: 10 | E220: Stk | F220: 1880.5348 | G220: 1990.2 | H220: 1558.7371 | I220: 1650.9543 | J220: 1725.4975 | K220: 1624.1786
A222: Drei Punkte (…) bedeuten, dass der Wert nicht vorhanden, nicht genügend repräsentativ oder unter Datenschutz ist.
... 3 more rows

Sheet MS1_B
Z2: Nur dort wo rot "manipulieren"
Z4: GSF | AA4: BUF | AB4: GF Total | AC4: Whg | AD4: GU / TU | AE4: DB 2 | AF4: Reserven
Z5: 1000 | AA5: 5600 | AB5: 15000 | AC5: 30 | AD5: 0.05 | AE5: 0.04 | AF5: 0.02
A10: eBKP-H | B10: Element | C10: EL2 | D10: EL1 | E10: TO | F10: EL3 TO | G10: EL2 TO | H10: EL1 TO | I10: TE | J10: EL2 TO TE | K10: BKP | L10: TO BKP | M10: BKP(3st) | N10: TO BKP 3 | O10: BKP(2st) | P10: TO BKP 2 | Q10: BKP(1st) | R10: TO BKP 1 | S10: TO Menge | T10: Menge Element | U10: Beschreibung | V10: EH | W10: Menge | X10: Preis | Y10: Total
AA11: Sehr Tief | AB11: Tief | AC11: Mittel | AD11: Hoch | AE11: Sehr Hoch | AF11: Sehr Tief | AG11: Tief | AH11: Mittel | AI11: Hoch | AJ11: Sehr Hoch
A12: Total Kosten exkl. MwSt. nach eBKP-H | F12: =B12&" "&E12 ->  | G12: =B12&" "&E12 ->  | H12: =C12&" "&F12 ->  | J12: =G12&" "&LEFT(I12,1) ->  | M12: =LEFT($K12,3) ->  | O12: =LEFT($K12,2) ->  | Q12: =LEFT($K12,1) ->  | S12: =E12&V12 -> GF | T12: =F12&W12 -> 15000 | V12: GF | W12: =$AB$5 -> 15000 | X12: =IF(W12=0,0,Y12/W12) -> 2513.333333 | Y12: =ROUND(SUM(Y15:Y28),-5) -> 37700000
A14: =CONCATENATE(" ",B14) -> A | B14: A | C14: =LEFT(B14,3) -> A | D14: =LEFT(C14,1) -> A | F14: =B14&" "&E14 -> A | G14: =B14&" "&E14 -> A | H14: A A | J14: =G14&" "&LEFT(I14,1) -> A | K14: 0 | M14: =LEFT($K14,3) -> 0 | O14: =LEFT($K14,2) -> 0 | Q14: =LEFT($K14,1) -> 0 | S14: =E14&V14 -> GSF | T14: =F14 -> A | U14: Grundstück | V14: GSF | W14: =$Z$5 -> 1000 | X14: 0 | Y14: =W14*X14 -> 0 | Z14: Tief | AA14: =MS1_Basisdaten!E3 -> 170 | AB14: =MS1_Basisdaten!F3 -> 260 | AC14: =MS1_Basisdaten!G3 -> 380 | AD14: =MS1_Basisdaten!H3 -> 520 | AE14: =MS1_Basisdaten!I3 -> 750 | AF14: Kein Provisorium, kein Baugrubenaushub, kein Abbruch, keine Baugrundverbesserung. | AG14: Kein Provisorium, normaler Baugrubenaushub, kein Abbruch, keine Baugrunverbesserung. | AH14: Baugrubenaushub mit einfache Baugrubenabschluss, einfacher Abbruch, Materialersatz | AI14: Baugrubenaushub mit aufwendige Baugrubenabschluss, Abbruch, Materialersatz, Pfähle | AJ14: Monitoring, sehr komplizierte Baugrubenabschluss, Pfähle und Materialersatz, Abbruch und kontaminierte Abbruch, Provirorium
A15: B | B15: B | C15: B | D15: =LEFT(C15,1) -> B | F15: B | G15: B | H15: B B | J15: B | K15: 1 | M15: 1 | O15: 1 | Q15: 1 | S15: GSF | T15: B | U15: Vorbereitung | V15: GSF | W15: =$Z$5 -> 1000 | X15: =HLOOKUP($Z14,$AA$11:AE24,4,0) -> 260 | Y15: =ROUND(W15*X15,-4) -> 260000 | Z15: Mittel | AA15: =MS1_Basisdaten!E4 -> 350 | AB15: =MS1_Basisdaten!F4 -> 390 | AC15: =MS1_Basisdaten!G4 -> 420 | AD15: =MS1_Basisdaten!H4 -> 550 | AE15: =MS1_Basisdaten!I4 -> 700 | AF15: Bodenplatte flachfundiert, sehr niedrige Anteile Betonwände, Sichtbeton, Stützen und Armierungsgehalt, keine Kragplatten. | AG15: Bodenplatte flachfundiert, niedrige Anteile Betonwände, Sichtbeton, Stützen und Armierungsgehalt. | AH15: Bodenplatte mit Einzelfundamenten, normaler Anteil Betonwände, Sichtbeton, Stützen und Armierungsgehalt. | AI15: Komplexe Kanaliation mit Hebeanlage unter Bodenplatte mit Einzelfundamenten, wasserdichter Beton UG, hohe Anteile Betonwände, Sichtbeton, Stützen und Armierungsgehalt. | AJ15: Komplexe Kanaliation mit Hebeanlage, spez. Fundamente, wasserdichte Beton, Sichtbeton, Spannbeton, spez. Gebäudeform, Auskrakungen
A16: C | B16: C | C16: C | D16: C | F16: C | G16: C | H16: C C | J16: C | K16: 2 | M16: 2 | O16: 2 | Q16: 2 | S16: GF | T16: C | U16: Konstruktion Gebäude | V16: GF | W16: =$AB$5 -> 15000 | X16: =HLOOKUP($Z15,$AA$11:AE24,5,0) -> 420 | Y16: 6300000 | Z16: Mittel | AA16: =MS1_Basisdaten!E5 -> 300 | AB16: =MS1_Basisdaten!F5 -> 340 | AC16: =MS1_Basisdaten!G5 -> 400 | AD16: =MS1_Basisdaten!H5 -> 500 | AE16: =MS1_Basisdaten!I5 -> 600 | AF16: Tiefer Standard Elektro, Fernwärme, nur Abluft Küchen, Tiefer Standard Sanitär, Niedrige Anzahl Nasszellen. | AG16: Tiefer Standard Elektro, Fernwärme, nur Abluft Küchen und Nasszellen, Tiefer Standard Sanitär, Niedrige Anzahl Nasszellen | AH16: Mittlere Standard Elektro, Wärmepumpe Luft, kontrollierte Lüftung, Mittlere Standard Sanitärapparate, WM/TU pro WHG | AI16: Höhe Standard Elektro, PV-Anlage, Wärmepumpe Grundwasser, kontrollierte Lüftung und UG belüftet,höhe Standard Sanitärapparate | AJ16: Höhe Standard Elektro, PV-Anlage, Wärmepumpe Grundwasser, kontrollierte Lüftung und UG belüftet und entlüftet,sehr höhe Standard Sanitärapparate
A17: D | B17: D | C17: D | D17: D | F17: D | G17: D | H17: D D | J17: D | K17: 2 | M17: 2 | O17: 2 | Q17: 2 | S17: GF | T17: D | U17: Technik Gebäude | V17: GF | W17: =$AB$5 -> 15000 | X17: =HLOOKUP($Z16,$AA$11:AE26,6,0) -> 400 | Y17: 6000000 | Z17: Sehr Hoch | AA17: =MS1_Basisdaten!E6 -> 230 | AB17: =MS1_Basisdaten!F6 -> 300 | AC17: =MS1_Basisdaten!G6 -> 400 | AD17: =MS1_Basisdaten!H6 -> 600 | AE17: =MS1_Basisdaten!I6 -> 850 | AF17: Sehr hoher Anteil Fassade unterirdisch, nur Schwarzanstrich, WDVS, Kunststofffenster, VRAF und Markise mit Kurbel. | AG17: Höhe Anteil Fassade unterirdisch, nur Schwarzanstrich, Verputze Aussendämmung, Kunststofffenster, Sonneschutz mit Kürbel | AH17: Fassade unterirdisch teilweise gedämmt, Fassade oberirdisch hinterlüftet, Fenster Kunststoffmetall, Sonnenschutz elektrisch | AI17: Fassade unterirdisch komplett gedämmt, Fassade oberirdisch hinterlüftet, höhe Anteil Holzfenster, Hebeschieber, Sonnenschutz elektrisch | AJ17: Höhe Dichtigkeit unterirdisch, Fassade oberirdisch hochwertig, sehr höhe Anteil Holzfenster, Hebeschieber, Sonnenschutz elektrisch
A18: E | B18: E | C18: E | D18: E | F18: E | G18: E | H18: E E | J18: E | K18: 2 | M18: 2 | O18: 2 | Q18: 2 | S18: FAW | T18: E | U18: Äussere Wandbekleidung Gebäude | V18: FAW | W18: =$AB$5*0.7 -> 10500 | X18: =HLOOKUP($Z17,$AA$11:AE26,7,0) -> 850 | Y18: 8930000 | Z18: Sehr Hoch | AA18: =MS1_Basisdaten!E7 -> 60 | AB18: =MS1_Basisdaten!F7 -> 90 | AC18: =MS1_Basisdaten!G7 -> 130 | AD18: =MS1_Basisdaten!H7 -> 160 | AE18: =MS1_Basisdaten!I7 -> 220 | AF18: Sehr hoher Anteil Dach unterirdisch, keine Dacheinbauten, keine PV. | AG18: Höhe Anteil Dach unterirdisch, Balkone nur mit Abdichtung, keine Dacheinbauten | AH18: Balkone mit Zementplatten, Begrünte Dach, kleine Einbauten | AI18: Balkone mit Holzrost, Retentiondach, viele Einbauten. | AJ18: Balkone und Dachterrasse mit Holzrost, Retentiondach, unterkonstrk. PV-Anlage, viele Einbauten aus Glas.
A19: F | B19: F | C19: F | D19: F | F19: F | G19: F | H19: F F | J19: F | K19: 2 | M19: 2 | O19: 2 | Q19: 2 | S19: FB | T19: F | U19: Bedachung Gebäude | V19: FB | W19: =$AB$5*0.4 -> 6000 | X19: =HLOOKUP($Z18,$AA$11:AE26,8,0) -> 220 | Y19: 1320000 | Z19: Sehr Hoch | AA19: =MS1_Basisdaten!E8 -> 220 | AB19: =MS1_Basisdaten!F8 -> 260 | AC19: =MS1_Basisdaten!G8 -> 350 | AD19: =MS1_Basisdaten!H8 -> 480 | AE19: =MS1_Basisdaten!I8 -> 560 | AF19: Keine Trennwände in Gips, Stahlzargentüren in Holz, sehr tiefer Standard Ausbau, Decken roh. | AG19: Sehr wenig Trennwände, Innentüren aus Holz mit Zargen, tiefe Standard Ausbau, Decken gestrichen | AH19: Trennwände aus Gips, Innentüren aus Holz mit Zargen, mittlere Standard Ausbau, Decken mit Gipsglattstrich | AI19: Trennwände aus Gips und Glas, Holzrahmentüren, höhe Standard Ausbau, abgehängte Decken, Schutzraumausstattung | AJ19: Trennwände aus Gips und Glas, Glastüren, sehr höhe Standard Ausbau, abgehängte Decken, Schutzraumausstattung, erhörte Schallschutz
A20: G | B20: G | C20: G | D20: G | F20: G | G20: G | H20: G G | J20: G | K20: 2 | M20: 2 | O20: 2 | Q20: 2 | S20: GF | T20: G | U20: Ausbau Gebäude | V20: GF | W20: =$AB$5 -> 15000 | X20: =HLOOKUP($Z19,$AA$11:AE28,9,0) -> 560 | Y20: 8400000 | Z20: Sehr Hoch | AA20: =MS1_Basisdaten!E9 -> 80 | AB20: =MS1_Basisdaten!F9 -> 110 | AC20: =MS1_Basisdaten!G9 -> 150 | AD20: =MS1_Basisdaten!H9 -> 190 | AE20: =MS1_Basisdaten!I9 -> 280 | AF20: Sehr höhe Anteil Grünfläche, kein Bauwerke, keine Bäume, Hartfläche in Kies oder Mergel, keine Schutzeinrichtung oder Ausstattung | AG20: Höhe Anteil Grünfläche, wenig Bauwerke, wenig Bäume, Hartfläche in Kies oder Asphaltl, keine Schutzeinrichtung oder Ausstattung | AH20: Grünfläche ca 60%, Bauwerke wie Stützmauern und Treppen, Hartfläche Asphalt, Absturzsicherung und mittlerer Ausstattung | AI20: Anteil Hartfläche über 50 %, viele Stütz- und Freiwände, Hartfläche in Asphalt und Beton, viele Absturzsicherung und Ausstattungen | AJ20: Anteil Hartfläche ca 80%,viele Stütz- und Freiwände, Hartfläche in Beton, sehr viele Absturzsicherung und Ausstattungen
A21: I | B21: I | C21: I | D21: I | F21: I | G21: I | H21: I I | J21: I | K21: 4 | M21: 4 | O21: 4 | Q21: 4 | S21: BUF | T21: I | U21: Umgebung Gebäude | V21: BUF | W21: =$AA$5 -> 5600 | X21: =HLOOKUP($Z20,$AA$11:AE32,10,0) -> 280 | Y21: 1570000 | AF21: Nur TU-Honorare, DB2 und keine Planungshonorare. | AG21: TU-Honorar inkl. Nebenkosten | AH21: Planerhonorare Phase 41-51, TU-Honorar inkl. Nebenkosten | AI21: Planerhonorare Phase 31-51, TU-Honorar inkl. Nebenkosten | AJ21: Honorare Entwicklung, Planerhonorare Phase 31-51, TU-Honorar inkl. Nebenkosten
A22: V | B22: V | C22: V | D22: V | F22: V | G22: V | H22: V V | J22: V | K22: 6 | M22: 6 | O22: 6 | Q22: 6 | S22: BBJ | T22: V | U22: Planungskosten | V22: BBJ | W22: =SUM($Y$15:$Y$21) -> 32780000 | Z22: Sehr Tief | AA22: =MS1_Basisdaten!E11 -> 0 | AB22: =MS1_Basisdaten!F11 -> 0.05 | AC22: =MS1_Basisdaten!G11 -> 0.08 | AD22: =MS1_Basisdaten!H11 -> 0.1 | AE22: =MS1_Basisdaten!I11 -> 0.12
B23: V | C23: V | D23: V | F23: V | G23: V | H23: V V | J23: V | S23: BBJ | T23: V | U23: Honorare Planer | V23: BBJ | W23: =SUM($Y$15:$Y$21) -> 32780000 | X23: =HLOOKUP(Z22,AA11:AE28,12,0) -> 0 | Y23: =ROUND(W23*X23,-4) -> 0
B24: V | C24: V | D24: V | F24: V | G24: V | H24: V V | J24: V | S24: BBJ | T24: V | U24: Honorare GU/TU | V24: BBJ | W24: =SUM($Y$15:$Y$23) -> 32780000 | X24: =$AD$5 -> 0.05 | Y24: =ROUND(W24*X24,-4) -> 1640000
B25: V | C25: V | D25: V | F25: V | G25: V | H25: V V | J25: V | S25: BBJ | T25: V | U25: DB 2 GU/TU | V25: BBJ | W25: =SUM($Y$15:$Y$23) -> 32780000 | X25: =$AE$5 -> 0.04 | Y25: =ROUND(W25*X25,-4) -> 1310000 | Z25: Mittel | AA25: =MS1_Basisdaten!E14 -> 10 | AB25: =MS1_Basisdaten!F14 -> 35 | AC25: =MS1_Basisdaten!G14 -> 80 | AD25: =MS1_Basisdaten!H14 -> 140 | AE25: =MS1_Basisdaten!I14 -> 180 | AF25: Garantie, Baureklame, Aufrichte, Muster, Modelle, keine Baubewilligungs- und Anschlussgebühren. | AG25: Bewilligeungen, Versicherungen, Garantie, Baureklame, Aufrichte, Muster, Modelle, keine Gebühren | AH25: Bewilligeungen, Anschlussgebühren, Versicherungen, Garantie, Baureklame, Aufrichte, Muster, Modelle | AI25: Bewilligeungen, Anschlussgebühren, Ersatzbeitrag Zivilschutz, Versicherungen, Garantie, Baureklame, Aufrichte, Muster, Modelle, Bewachung, | AJ25: Bewillig., Anschlussgeb., Ersatzbeitrag Zivilschutz, Versicherungen, Garantie, Baureklame, Aufrichte, Muster, Modelle, Bewachung, Entschädigung
A26: W | B26: W | C26: W | D26: W | F26: W | G26: =B26&" "&E26 -> W | H26: =C26&" "&F26 -> W W | J26: W | K26: 5 | M26: 5 | O26: 5 | Q26: 5 | S26: GF | T26: W | U26: ="Nebenkosten "&Z26*100&"%" -> Nebenkosten 3.4% | V26: GF | W26: =$AB$5 -> 15000 | X26: =HLOOKUP($Z25,$AA$11:AE37,15,0) -> 80 | Y26: =ROUND(W26*X26,-4) -> 1200000 | Z26: =IF(W22=0,0,ROUND(Y26/(W22+Y23+Y24+Y25),3)) -> 0.034
A27: Y | B27: Y | C27: Y | D27: Y | F27: =B27&" "&E27 -> Y | G27: =B27&" "&E27 -> Y | H27: =C27&" "&F27 -> Y Y | J27: Y | K27: 7 | M27: 7 | O27: 7 | Q27: 7 | S27: BBW | T27: Y | U27: Reserve, Teuerung | V27: BBW | W27: =SUM($Y$15:$Y$26) -> 36930000 | X27: =$AF$5 -> 0.02 | Y27: =ROUND(W27*X27,-4) -> 740000
AG28: Kennwert | AH28: Sehr Tief | AI28: Sehr Hoch
A30: Total Kosten exkl. MwSt. nach BKP | X30: =SUM(X34:X43) -> 0.9913157895 | Y30: =ROUND(SUM(Y31:Y43),-6) -> 38000000 | AF30: B | AG30: =$X$15 -> 260 | AH30: =$AA$14 -> 170 | AI30: =$AE$14 -> 750
AF31: C | AG31: =$X$16 -> 420 | AH31: =$AA$15 -> 350 | AI31: =$AE$15 -> 700
U32: Rundung | X32: 0 | Y32: 0 | AF32: D | AG32: =$X$17 -> 400 | AH32: =$AA$16 -> 300 | AI32: =$AE$16 -> 600
U33: BKP | X33: Anteil | Y33: Total | AF33: E | AG33: =$X$18 -> 850 | AH33: =$AA$17 -> 230 | AI33: =$AE$17 -> 850
K34: 0 | U34: Grundstück | X34: =IF(Y34=0,0,Y34/$Y$30) -> 0 | Y34: =MS1_B!$Y$14 -> 0 | AF34: F | AG34: =$X$19 -> 220 | AH34: =$AA$18 -> 60 | AI34: =$AE$18 -> 220
K35: 1 | U35: Vorbereitungsarbeiten | X35: =IF(Y35=0,0,Y35/$Y$30) -> 0.006842105263 | Y35: =MS1_B!$Y$15 -> 260000 | AF35: G | AG35: =$X$20 -> 560 | AH35: =$AA$19 -> 220 | AI35: =$AE$19 -> 560
K36: 2 | U36: Gebäude | X36: 0.8144736842 | Y36: =SUM(MS1_B!$Y$16:$Y$20) -> 30950000 | AF36: I | AG36: =$X$21 -> 280 | AH36: =$AA$20 -> 80 | AI36: =$AE$20 -> 280
K37: 3 | U37: Betriebseinrichtungen | X37: 0 | Y37: 0
K38: 4 | U38: Umgebung | X38: 0.04131578947 | Y38: =MS1_B!$Y$21 -> 1570000
K39: 5 | U39: Baunebenkosten | X39: 0.03157894737 | Y39: =MS1_B!$Y$26 -> 1200000
K40: 6 | U40: Honorare Planer | X40: 0 | Y40: =MS1_B!$Y$23 -> 0
K41: 7 | U41: Reserven | X41: 0.01947368421 | Y41: =MS1_B!$Y$27 -> 740000
K42: 8 | U42: GU/TU Honorare, Nebenkosten und DB 2 | X42: 0.07763157895 | Y42: =MS1_B!$Y$24+MS1_B!$Y$25 -> 2950000
K43: 9 | U43: Ausstattung | X43: 0 | Y43: 0
V45: =V12 -> GF | W45: =W12 -> 15000 | X45: 2513.333333 | Y45: 37700000
A46: Kostenkennwerte BKP exkl. MwSt.
V48: GF / Whg | W48: GF | X48: GV | Y48: Whg
U49: Mengen nach SIA 416 | V49: =IF(W49=0,0,MS1_B!$AB$5/MS1_B!$AC$5) -> 500 | W49: =MS1_B!$AB$5 -> 15000 | X49: =MS1_B!$AB$5*3.2 -> 48000 | Y49: =MS1_B!$AC$5 -> 30
K51: 0-9 | U51: Gesamtkosten inkl. Honorare | W51: =ROUND(IF(W49=0,0,$Y$30/W49),-1) -> 2530 | X51: =ROUND(IF(X49=0,0,$Y$30/X49),-1) -> 790 | Y51: =ROUND(IF(Y49=0,0,$Y$30/Y49),-4) -> 1270000
K52: 2 | U52: Gebäude exkl. Honorare | W52: =ROUND(IF(W49=0,0,$Y$36/W49),-1) -> 2060 | X52: =ROUND(IF(X49=0,0,$Y$36/X49),-1) -> 640 | Y52: =ROUND(IF(Y49=0,0,$Y$36/Y49),-4) -> 1030000

Sheet MS1_Basisdaten
A1: =MS1_B!A10 -> eBKP-H | B1: =MS1_B!K10 -> BKP | C1: =MS1_B!U10 -> Beschreibung | D1: =MS1_B!V10 -> EH | E1: =MS1_B!AA11 -> Sehr Tief | F1: =MS1_B!AB11 -> Tief | G1: =MS1_B!AC11 -> Mittel | H1: =MS1_B!AD11 -> Hoch | I1: =MS1_B!AE11 -> Sehr Hoch
A2: =MS1_B!A14 -> A | B2: =MS1_B!K14 -> 0 | C2: =MS1_B!U14 -> Grundstück | D2: =MS1_B!V14 -> GSF | E2: =E10 -> 0 | F2: =F10 -> 0 | G2: 0 | H2: 0 | I2: 0
A3: =MS1_B!A15 -> B | B3: =MS1_B!K15 -> 1 | C3: =MS1_B!U15 -> Vorbereitung | D3: =MS1_B!V15 -> GSF | E3: 170 | F3: 260 | G3: 380 | H3: 520 | I3: 750
A4: =MS1_B!A16 -> C | B4: =MS1_B!K16 -> 2 | C4: =MS1_B!U16 -> Konstruktion Gebäude | D4: =MS1_B!V16 -> GF | E4: 350 | F4: 390 | G4: 420 | H4: 550 | I4: 700
A5: =MS1_B!A17 -> D | B5: =MS1_B!K17 -> 2 | C5: =MS1_B!U17 -> Technik Gebäude | D5: =MS1_B!V17 -> GF | E5: 300 | F5: 340 | G5: 400 | H5: 500 | I5: 600
A6: =MS1_B!A18 -> E | B6: =MS1_B!K18 -> 2 | C6: =MS1_B!U18 -> Äussere Wandbekleidung Gebäude | D6: =MS1_B!V18 -> FAW | E6: 230 | F6: 300 | G6: 400 | H6: 600 | I6: 850
A7: =MS1_B!A19 -> F | B7: =MS1_B!K19 -> 2 | C7: =MS1_B!U19 -> Bedachung Gebäude | D7: =MS1_B!V19 -> FB | E7: 60 | F7: 90 | G7: 130 | H7: 160 | I7: 220
A8: =MS1_B!A20 -> G | B8: =MS1_B!K20 -> 2 | C8: =MS1_B!U20 -> Ausbau Gebäude | D8: =MS1_B!V20 -> GF | E8: 220 | F8: 260 | G8: 350 | H8: 480 | I8: 560
A9: =MS1_B!A21 -> I | B9: =MS1_B!K21 -> 4 | C9: =MS1_B!U21 -> Umgebung Gebäude | D9: =MS1_B!V21 -> BUF | E9: 80 | F9: 110 | G9: 150 | H9: 190 | I9: 280
A10: =MS1_B!A22 -> V | B10: =MS1_B!K22 -> 6 | C10: =MS1_B!U22 -> Planungskosten | D10: =MS1_B!V22 -> BBJ | E10: =E12 -> 0 | F10: =F12 -> 0 | G10: 0 | H10: 0 | I10: 0
A11: =MS1_B!A23 -> 0 | B11: =MS1_B!K23 -> 0 | C11: =MS1_B!U23 -> Honorare Planer | D11: =MS1_B!V23 -> BBJ | E11: 0 | F11: 0.05 | G11: 0.08 | H11: 0.1 | I11: 0.12
A12: =MS1_B!A24 -> 0 | B12: =MS1_B!K24 -> 0 | C12: =MS1_B!U24 -> Honorare GU/TU | D12: =MS1_B!V24 -> BBJ | E12: =MS1_B!AA24 -> 0 | F12: =MS1_B!AB24 -> 0 | G12: =MS1_B!AC24 -> 0 | H12: =MS1_B!AD24 -> 0 | I12: =MS1_B!AE24 -> 0
A13: =MS1_B!A25 -> 0 | B13: =MS1_B!K25 -> 0 | C13: =MS1_B!U25 -> DB 2 GU/TU | D13: =MS1_B!V25 -> BBJ | E13: =E12 -> 0 | F13: =F12 -> 0 | G13: 0 | H13: 0 | I13: 0
A14: =MS1_B!A26 -> W | B14: =MS1_B!K26 -> 5 | C14: =MS1_B!U26 -> Nebenkosten 3.4% | D14: =MS1_B!V26 -> GF | E14: 10 | F14: 35 | G14: 80 | H14: 140 | I14: 180
A15: =MS1_B!A27 -> Y | B15: =MS1_B!K27 -> 7 | C15: =MS1_B!U27 -> Reserve, Teuerung | D15: =MS1_B!V27 -> BBW | E15: =MS1_B!AA27 -> 0 | F15: =MS1_B!AB27 -> 0 | G15: =MS1_B!AC27 -> 0 | H15: =MS1_B!AD27 -> 0 | I15: =MS1_B!AE27 -> 0

Sheet BKPListe
A1: 0 Grundstück | B1: BKP-Nr. | C1: Bezeichnung
B2: 0 | C2: Grundstück
A3: 0 Grundstück | B3: 00 | C3: Vorstudien
A4: 0 Grundstück | B4: 000 | C4: Übergangsposition
A5: 0 Grundstück | B5: 001 | C5: Studien zur Grundstückbeurteilung, Machbarkeitsstudie
A6: 0 Grundstück | B6: 002 | C6: Vermessung, Vermarchung
A7: 0 Grundstück | B7: 003 | C7: Geotechnische Gutachten
A8: 0 Grundstück | B8: 004 | C8: Quartierplankosten, Richtplankosten
A9: 0 Grundstück | B9: 005 | C9: Provisorische Baugespanne
A10: 0 Grundstück | B10: 006 | C10: Umweltverträglichkeitsprüfung
B11: 007
B12: 008
A13: 0 Grundstück | B13: 009 | C13: Übriges
A14: 0 Grundstück
A15: 0 Grundstück | B15: 01 | C15: Grundstück- bzw. Baurechterwerb
A16: 0 Grundstück | B16: 010 | C16: Übergangsposition
A17: 0 Grundstück | B17: 011 | C17: Grundstückerwerb
A18: 0 Grundstück | B18: 012 | C18: Baurechterwerb
A19: 0 Grundstück | B19: 013 | C19: Brandmauereinkauf
B20: 014
B21: 015
B22: 016
B23: 017
A24: 0 Grundstück | B24: 018 | C24: Sanierung Altlasten
A25: 0 Grundstück | B25: 019 | C25: Übriges
A26: 0 Grundstück
A27: 0 Grundstück | B27: 02 | C27: Nebenkosten zu Grundstück- resp. Baurechterwerb
A28: 0 Grundstück | B28: 020 | C28: Übergangsposition
A29: 0 Grundstück | B29: 021 | C29: Handänderungssteuer
A30: 0 Grundstück | B30: 022 | C30: Notariatskosten
A31: 0 Grundstück | B31: 023 | C31: Grundbuchgebühren
A32: 0 Grundstück | B32: 024 | C32: Anwaltskosten, Gerichtskosten
A33: 0 Grundstück | B33: 025 | C33: Vermittlungsprovisionen
B34: 026
B35: 027
B36: 028
A37: 0 Grundstück | B37: 029 | C37: Übriges
A38: 0 Grundstück
A39: 0 Grundstück | B39: 03 | C39: Abfindungen, Servitute, Beiträge
A40: 0 Grundstück | B40: 030 | C40: Übergangsposition
A41: 0 Grundstück | B41: 031 | C41: Inkonvenienzentschädigungen
A42: 0 Grundstück | B42: 032 | C42: Abfindungen an Mieter und Pächter
A43: 0 Grundstück | B43: 033 | C43: Errichtung von Servituten
A44: 0 Grundstück | B44: 034 | C44: Ablösung von Servituten
A45: 0 Grundstück | B45: 035 | C45: Wirtschaftspatente
A46: 0 Grundstück | B46: 036 | C46: Beiträge Melioration
A47: 0 Grundstück | B47: 037 | C47: Beiträge Güterzusammenlegung
A48: 0 Grundstück | B48: 038 | C48: Perimeterbeiträge
A49: 0 Grundstück | B49: 039 | C49: Übriges
A50: 0 Grundstück
A51: 0 Grundstück | B51: 04 | C51: Finanzierung vor Baubeginn
A52: 0 Grundstück | B52: 040 | C52: Übergangsposition
A53: 0 Grundstück | B53: 041 | C53: Errichten von Hypotheken auf Grundstück
A54: 0 Grundstück | B54: 042 | C54: Hypothekarzinsen
A55: 0 Grundstück | B55: 043 | C55: Baurechtszinsen
A56: 0 Grundstück | B56: 044 | C56: Bankzinsen
A57: 0 Grundstück | B57: 045 | C57: Eigenkapitalzinsen
A58: 0 Grundstück | B58: 046 | C58: Grundstücksteuern
B59: 047
A60: 0 Grundstück | B60: 048 | C60: Versicherungen bis Baubeginn
A61: 0 Grundstück | B61: 049 | C61: Übriges
A62: 0 Grundstück
A63: 0 Grundstück | B63: 05 | C63: Erschliessung durch Leitungen (ausserhalb Grundstück)
A64: 0 Grundstück | B64: 050 | C64: Übergangsposition
A65: 0 Grundstück | B65: 051 | C65: Erdarbeiten
A66: 0 Grundstück | B66: 052 | C66: Kanalisationsleitungen
A67: 0 Grundstück | B67: 053 | C67: Elektroleitungen
A68: 0 Grundstück | B68: 054 | C68: Heizungs-, Lüftungs-, Klima-, Kälteleitungen
A69: 0 Grundstück | B69: 055 | C69: Sanitärleitungen
A70: 0 Grundstück | B70: 056 | C70: Nebenarbeiten
B71: 057
B72: 058
A73: 0 Grundstück | B73: 059 | C73: Übriges
A74: 0 Grundstück
A75: 0 Grundstück | B75: 06 | C75: Erschliessung durch Verkehrsanlagen ausserhalb Grundstück
A76: 0 Grundstück | B76: 060 | C76: Übergangsposition
A77: 0 Grundstück | B77: 061 | C77: Strassen
A78: 0 Grundstück | B78: 062 | C78: Bahn
A79: 0 Grundstück | B79: 063 | C79: Schiff
B80: 064
B81: 065
B82: 066
B83: 067
B84: 068
A85: 0 Grundstück | B85: 069 | C85: Übriges
A86: 0 Grundstück
A87: 0 Grundstück | B87: 07 | C87: Reserve
B88: 070
B89: 071
B90: 072
B91: 073
B92: 074
B93: 075
B94: 076
B95: 077
B96: 078
B97: 079
A98: 0 Grundstück
A99: 0 Grundstück | B99: 08 | C99: Reserve
B100: 080
B101: 081
B102: 082
B103: 083
B104: 084
B105: 085
B106: 086
B107: 087
B108: 088
B109: 089
A110: 0 Grundstück
A111: 0 Grundstück | B111: 09 | C111: Honorare
A112: 0 Grundstück | B112: 090 | C112: Übergangsposition
A113: 0 Grundstück | B113: 091 | C113: Architekt
A114: 0 Grundstück | B114: 092 | C114: Bauingenieur
A115: 0 Grundstück | B115: 093 | C115: Elektroingenieur
A116: 0 Grundstück | B116: 094 | C116: HLK-Ingenieur
A117: 0 Grundstück | B117: 095 | C117: Sanitäringenieur
A118: 0 Grundstück | B118: 096 | C118: Spezialisten
A119: 0 Grundstück | B119: 096.0 | C119: Geometer
A120: 0 Grundstück | B120: 096.1 | C120: Geologe, Geotechniker
B121: 096.2
B122: 096.3
B123: 096.4
B124: 096.5
A125: 0 Grundstück | B125: 096.6 | C125: Bauökonom
B126: 096.7
A127: 0 Grundstück | B127: 096.8 | C127: Makler
B128: 096.9
B129: 097
B130: 098
A131: 0 Grundstück | B131: 099 | C131: Übriges
A132: 0 Grundstück
A133: 0 Grundstück
A134: 0 Grundstück
A136: 1 Vorbereitungsarbeiten
B137: 1 | C137: Vorbereitungsarbeiten
A138: 1 Vorbereitungsarbeiten | B138: 10 | C138: Bestandesaufnahmen, Baugrunduntersuchungen
A139: 1 Vorbereitungsarbeiten | B139: 100 | C139: Übergangsposition
A140: 1 Vorbereitungsarbeiten | B140: 101 | C140: Bestandesaufnahmen
A141: 1 Vorbereitungsarbeiten | B141: 102 | C141: Baugrunduntersuchungen
A142: 1 Vorbereitungsarbeiten | B142: 103 | C142: Grundwassererhebungen
B143: 104
B144: 105
B145: 106
B146: 107
B147: 108
A148: 1 Vorbereitungsarbeiten | B148: 109 | C148: Übriges
A149: 1 Vorbereitungsarbeiten
A150: 1 Vorbereitungsarbeiten | B150: 11 | C150: Räumungen, Terrainvorbereitungen
A151: 1 Vorbereitungsarbeiten | B151: 110 | C151: Übergangsposition
A152: 1 Vorbereitungsarbeiten | B152: 111 | C152: Rodungen
A153: 1 Vorbereitungsarbeiten | B153: 112 | C153: Abbrüche
A154: 1 Vorbereitungsarbeiten | B154: 113 | C154: Demontagen
A155: 1 Vorbereitungsarbeiten | B155: 114 | C155: Erdbewegungen
A156: 1 Vorbereitungsarbeiten | B156: 115 | C156: Bohr- und Schneidarbeiten
A157: 1 Vorbereitungsarbeiten | B157: 115.0 | C157: Baustelleneinrichtung
A158: 1 Vorbereitungsarbeiten | B158: 115.1 | C158: Erdarbeiten
B159: 115.2
B160: 115.3
B161: 115.4
B162: 115.5
B163: 115.6
B164: 115.7
B165: 115.8
B166: 115.9
B167: 116
B168: 117
B169: 118
A170: 1 Vorbereitungsarbeiten | B170: 119 | C170: Übriges
A171: 1 Vorbereitungsarbeiten
A172: 1 Vorbereitungsarbeiten | B172: 12 | C172: Sicherungen, Provisorien
A173: 1 Vorbereitungsarbeiten | B173: 120 | C173: Übergangsposition
A174: 1 Vorbereitungsarbeiten | B174: 121 | C174: Sicherung vorhandener Anlagen
A175: 1 Vorbereitungsarbeiten | B175: 122 | C175: Provisorien
A176: 1 Vorbereitungsarbeiten | B176: 123 | C176: Unterfangungen
A177: 1 Vorbereitungsarbeiten | B177: 123.0 | C177: Baustelleneinrichtung
A178: 1 Vorbereitungsarbeiten | B178: 123.1 | C178: Gerüste
A179: 1 Vorbereitungsarbeiten | B179: 123.2 | C179: Spezielle Unterfangungsarbeiten
A180: 1 Vorbereitungsarbeiten | B180: 123.3 | C180: Erdarbeiten
A181: 1 Vorbereitungsarbeiten | B181: 123.4 | C181: Kanalisationen
A182: 1 Vorbereitungsarbeiten | B182: 123.5 | C182: Beton- und Stahlbetonarbeiten
A183: 1 Vorbereitungsarbeiten | B183: 123.6 | C183: Maurerarbeiten
B184: 123.7
B185: 123.8
B186: 123.9
A187: 1 Vorbereitungsarbeiten | B187: 124 | C187: Instandsetzungsarbeiten
B188: 125
B189: 126
B190: 127
B191: 128
A192: 1 Vorbereitungsarbeiten | B192: 129 | C192: Übriges
A193: 1 Vorbereitungsarbeiten
A194: 1 Vorbereitungsarbeiten | B194: 13 | C194: Gemeinsame Baustelleneinrichtung
A195: 1 Vorbereitungsarbeiten | B195: 130 | C195: Übergangsposition
A196: 1 Vorbereitungsarbeiten | B196: 131 | C196: Abschrankungen
A197: 1 Vorbereitungsarbeiten | B197: 132 | C197: Zufahrten, Plätze
A198: 1 Vorbereitungsarbeiten | B198: 133 | C198: Büro Bauleitung
A199: 1 Vorbereitungsarbeiten | B199: 134 | C199: Unterkünfte, Verpflegungseinrichtungen
A200: 1 Vorbereitungsarbeiten | B200: 135 | C200: Provisorische Installationen
A201: 1 Vorbereitungsarbeiten | B201: 135.0 | C201: Kanalisationen
... 1177 more rows

Sheet eBKP-H
B1: eBKP-H | C1: Bez. eBKP-H
A2: Spalte1 | B2: Spalte2 | C2: Spalte3
A3: A | B3: A | C3: Grundstück
A4: A | B4: A0
A5: A | B5: A1 | C5: Grundstück Baurecht
A6: A | B6: A1.1 | C6: Grundstückserwerb
A7: A | B7: A1.2 | C7: Baurechtserwerb
A8: A | B8: A1.3 | C8: Bauwerkserwerb
A9: A | B9: A1.4 | C9: Perimeterbeitrag
A10: A | B10: A2 | C10: Nebenkosten zu Grundstück Baurecht
A11: A | B11: A2.1 | C11: Handänderungssteuer, Gewinnsteuer
A12: A | B12: A2.2 | C12: Notariatskosten
A13: A | B13: A2.3 | C13: Grundbuchgebühren
A14: A | B14: A2.4 | C14: Anwaltskosten, Gerichtskosten
A15: A | B15: A2.5 | C15: Vermittlungsprovision
A16: A | B16: A2.6 | C16: Abfindung, Servitut
A17: A | B17: A2.7 | C17: Vermessung, Vermarkung
A18: B | B18: B | C18: Vorbereitung
A19: B | B19: B0
A20: B | B20: B1 | C20: Untersuchung, Aufnahme, Messung
A21: B | B21: B1.1 | C21: Baugrunduntersuchung
A22: B | B22: B1.2 | C22: Bestandsaufnahme
A23: B | B23: B1.3 | C23: Umweltmessung
A24: B | B24: B1.4 | C24: Überwachung
A25: B | B25: B2 | C25: Baustelleneinrichtung
A26: B | B26: B2.1 | C26: Baustellenerschliessung
A27: B | B27: B2.2 | C27: Versorgung, Entsorgung
A28: B | B28: B2.3 | C28: Arbeitsraum, Aufenthaltsraum
A29: B | B29: B2.4 | C29: Hebe-, Verlade-, Transport-, Lagereinrichtung
A30: B | B30: B2.5 | C30: Einrichtung für Materialaufbereitung
A31: B | B31: B2.6 | C31: Winterbaumassnahme
A32: B | B32: B3 | C32: Provisorium
A33: B | B33: B3.1 | C33: Provisorisches Rückhaltesystem
A34: B | B34: B3.2 | C34: Provisorische Werkleitung
A35: B | B35: B3.3 | C35: Provisorisches Gebäude
A36: B | B36: B3.4 | C36: Provisorisches Verkehrsanlage
A37: B | B37: B3.5 | C37: Provisorische Ausstattung
A38: B | B38: B4 | C38: Erschliessung durch Werkleitungen
A39: B | B39: B4.1 | C39: Kanalisationsleitung
A40: B | B40: B4.2 | C40: Elektroleitung
A41: B | B41: B4.3 | C41: Telekomunikationsleitung
A42: B | B42: B4.4 | C42: Heizleitung, Kälteleitung
A43: B | B43: B4.5 | C43: Wasserleitung
A44: B | B44: B4.6 | C44: Gasleitung
A45: B | B45: B5 | C45: Rückbau Entsorgung Bauwerk
A46: B | B46: B5.1 | C46: Rückbau nicht kontaminiertes Bauwerk
A47: B | B47: B5.2 | C47: Rückbau kontaminiertes Bauwerk
A48: B | B48: B6 | C48: Baugrube
A49: B | B49: B6.1 | C49: Abholzung, Rodung
A50: B | B50: B6.2 | C50: Nicht kontaminierter Aushub
A51: B | B51: B6.3 | C51: Kontaminierter Aushub
A52: B | B52: B6.4 | C52: Böschungssicherung
A53: B | B53: B6.5 | C53: Baugrubenabschluss
A54: B | B54: B6.6 | C54: Materialeinbau
A55: B | B55: B6.7 | C55: Wasserhaltung
A56: B | B56: B7 | C56: Baugrundverbesserung, Bauwerkssicherung
A57: B | B57: B7.1 | C57: Verbesserung von Baugründen
A58: B | B58: B7.2 | C58: Pfählung
A59: B | B59: B7.3 | C59: Unterfangung Bauwerk
A60: B | B60: B7.4 | C60: Sicherung Bauwerk
A61: B | B61: B8 | C61: Gerüst
A62: B | B62: B8.1 | C62: Fassadengerüst
A63: B | B63: B8.2 | C63: Arbeitsgerüst
A64: C | B64: C | C64: Konstruktion Gebäude
A65: C | B65: C0
A66: C | B66: C1 | C66: Bodenplatte, Fundament
A67: C | B67: C1.1 | C67: Kanalisation Gebäude
A68: C | B68: C1.2 | C68: Abdichtung, Dämmung Bodenplatte
A69: C | B69: C1.3 | C69: Einzel-, Streifenfundament
A70: C | B70: C1.4 | C70: Nicht tragende Bodenplatte
A71: C | B71: C1.5 | C71: Tragende Bodenplatte
A72: C | B72: C2 | C72: Wandkonstruktion
A73: C | B73: C2.1 | C73: Aussenwandkonstruktion
A74: C | B74: C2.2 | C74: Innenwandkonstruktion
A75: C | B75: C3 | C75: Stützenkonstruktion
A76: C | B76: C3.1 | C76: Aussenstütze
A77: C | B77: C3.2 | C77: innenstütze
A78: C | B78: C4 | C78: Decken-, Dachkonstruktion
A79: C | B79: C4.1 | C79: Decke
A80: C | B80: C4.2 | C80: Treppe, Rampe
A81: C | B81: C4.3 | C81: Balkon
A82: C | B82: C4.4 | C82: Dachkonstruktion
A83: C | B83: C5 | C83: Ergänzende Leistungen zu Konstruktion
A84: C | B84: C5.1 | C84: Durchbruch, Schlitz zu Konstruktion
A85: C | B85: C5.2 | C85: Maschinensockel, Einlage
A86: D | B86: D | C86: Technik Gebäude
A87: D | B87: D0
A88: D | B88: D1 | C88: Elektroanlage
A89: D | B89: D1.1 | C89: Apparat, Anlage Starkstrom
A90: D | B90: D1.2 | C90: Installation Starkstrom
A91: D | B91: D1.3 | C91: Leuchte
A92: D | B92: D1.4 | C92: Elektrogerät
A93: D | B93: D1.5 | C93: Apparat, Anlage Schwachstrom
A94: D | B94: D1.6 | C94: Installation Schwachstrom
A95: D | B95: D2 | C95: Automations-, Leit-, Komunikationssystem
A96: D | B96: D2.1 | C96: Managementebene
A97: D | B97: D2.2 | C97: Automationsebene
A98: D | B98: D2.3 | C98: Feldebene
A99: D | B99: D2.4 | C99: Raumautomation
A100: D | B100: D2.5 | C100: Automationsnetzwerk
A101: D | B101: D2.6 | C101: Schaltgerätekompination
A102: D | B102: D2.7 | C102: Integration
A103: D | B103: D3 | C103: Sicherheitssystem
A104: D | B104: D3.1 | C104: Einbruch-, Überfallmeldeanlage
A105: D | B105: D3.2 | C105: Zutrittskontrollanlage
A106: D | B106: D3.3 | C106: Videoüberwachungsanlage
A107: D | B107: D3.4 | C107: Perimeterschutz, Umgebungsschutz
A108: D | B108: D4 | C108: Brandschutz
A109: D | B109: D4.1 | C109: Brandmeldeanlage
A110: D | B110: D4.2 | C110: Gasmeldeanlage
A111: D | B111: D4.3 | C111: Nasslöschanlage
A112: D | B112: D4.4 | C112: Trockenlöschanlage
A113: D | B113: D4.5 | C113: Löschgerät
A114: D | B114: D4.6 | C114: Rauch- und Wärmeabzugsanlage
A115: D | B115: D5 | C115: Wärmeanlage
A116: D | B116: D5.1 | C116: Lagerung zu Wärmeanlage
A117: D | B117: D5.2 | C117: Wärmeerzeugung
A118: D | B118: D5.3 | C118: Wärmehauptverteilung
A119: D | B119: D5.4 | C119: Wärmeabgabe
A120: D | B120: D6 | C120: Kälteanlage
A121: D | B121: D6.1 | C121: Lagerung zu Kälteanlage
A122: D | B122: D6.2 | C122: Kälteerzeugung
A123: D | B123: D6.3 | C123: Kältehauptverteilung
A124: D | B124: D6.4 | C124: Kälteabgabe
A125: D | B125: D7 | C125: Lufttechnische Anlage
A126: D | B126: D7.1 | C126: Aussenluftführung, Fortluftführung
A127: D | B127: D7.2 | C127: Luftaufbereitung
A128: D | B128: D7.3 | C128: Lufthauptverteilung
A129: D | B129: D7.4 | C129: Luftabgabe
A130: D | B130: D7.5 | C130: Kleinanlage für Zuluft, Abluft
A131: D | B131: D8 | C131: Wasser,- Gas,- Druckluftanlage
A132: D | B132: D8.1 | C132: Armatur, Apparat
A133: D | B133: D8.2 | C133: Installationselement
A134: D | B134: D8.3 | C134: Wasseraufbereitungsanlage, Abwasseraufbereitungsanlage
A135: D | B135: D8.4 | C135: Versorgungsleitungen
A136: D | B136: D8.5 | C136: Entsorgungsleitungen
A137: D | B137: D8.6 | C137: Gasleitungen
A138: D | B138: D8.7 | C138: Druckluftanlage, Vakuumanlage
A139: D | B139: D9 | C139: Transportanlage
A140: D | B140: D9.1 | C140: Personenaufzug
A141: D | B141: D9.2 | C141: Lastenaufzug
A142: D | B142: D9.3 | C142: Bettenaufzug
A143: D | B143: D9.4 | C143: Fahrtreppe, Fahrsteig
A144: D | B144: D9.5 | C144: Hubtisch, Verladestation, Spezialaufzug
A145: D | B145: D9.6 | C145: Parkieranlage
A146: D | B146: D9.7 | C146: Weitere Transportanlagen
A147: E | B147: E | C147: Äussere Wandbekleidung Gebäude
A148: E | B148: E0
A149: E | B149: E1 | C149: Äussere Wandbekleidung unter Terrain
A150: E | B150: E1.1 | C150: Wandabdichtung unter Terrain
A151: E | B151: E1.2 | C151: Aussenwärmedämmung unter Terrain
A152: E | B152: E1.3 | C152: Schutzschicht unter Terrain
A153: E | B153: E2 | C153: Äussere Wandbekleidung über Terrain
A154: E | B154: E2.1 | C154: Äussere Beschichtung
A155: E | B155: E2.2 | C155: Aussenwärmedämmung
A156: E | B156: E2.3 | C156: Fassadenbekleidung
A157: E | B157: E2.4 | C157: Fassadensystem
A158: E | B158: E2.5 | C158: Bekleidung Untersicht
A159: E | B159: E2.6 | C159: Absturzsicherung
A160: E | B160: E3 | C160: Einbauten, Absturzsicherung zu Aussenwand
A161: E | B161: E3.1 | C161: Fenster
A162: E | B162: E3.2 | C162: Tür, Tor
A163: E | B163: E3.3 | C163: Sonnenschutz
A164: F | B164: F | C164: Bedachung Gebäude
A165: F | B165: F0
A166: F | B166: F1 | C166: Dachhaut
A167: F | B167: F1.1 | C167: Dachabdichtung unter Terrain
A168: F | B168: F1.2 | C168: Flachdach
A169: F | B169: F1.3 | C169: Geneites Dach
A170: F | B170: F1.4 | C170: Blitzschutz
A171: F | B171: F2 | C171: Einbauten, Absturzsicherung zu Dach
A172: F | B172: F2.1 | C172: Einbauten zu Flachdach
A173: F | B173: F2.2 | C173: Einbauten zu geneigtem Dach
A174: G | B174: G | C174: Ausbau Gebäude
A175: G | B175: G0
A176: G | B176: G1 | C176: Trennwand, Tür, Tor, Fenster
A177: G | B177: G1.1 | C177: Feststehende Trennwand
A178: G | B178: G1.2 | C178: Bewegliche Trennwand
A179: G | B179: G1.3 | C179: Innenfenster
A180: G | B180: G1.4 | C180: Innentür, innentor
A181: G | B181: G1.5 | C181: Verdunklung
A182: G | B182: G2 | C182: Bodenbelag
A183: G | B183: G2.1 | C183: Unterkonstruktion zu Bodenbelag
A184: G | B184: G2.2 | C184: Fertiger Bodenbelag
A185: G | B185: G3 | C185: Wand- und Stützenbekleidung
A186: G | B186: G3.1 | C186: Unterkonstruktion zu Wandbekleidung
A187: G | B187: G3.2 | C187: Fertige Wandbekleidung
A188: G | B188: G4 | C188: Decken- und Dachbekleidung
A189: G | B189: G4.1 | C189: Unterkonstruktion zu Deckenbekleidung
A190: G | B190: G4.2 | C190: Fertige Deckenbekleidung
A191: G | B191: G5 | C191: Einbauten, Absturzsicherung zu Ausbau
A192: G | B192: G5.1 | C192: Einbauschrank, Regal
A193: G | B193: G5.2 | C193: Einbauküche
A194: G | B194: G5.3 | C194: Innerer Fensterausbau
A195: G | B195: G5.4 | C195: Schutzeinrichtung Umgebung
A196: G | B196: G5.5 | C196: Ofen, Cheminèe
A197: G | B197: G5.6 | C197: Kleinbauteil
A198: G | B198: G5.7 | C198: Begrünung im Gebäude
A199: G | B199: G6 | C199: Ergänzende Leistungen zu Ausbau
A200: G | B200: G6.1 | C200: Durchbruch, Schlitz zu Ausbau
... 161 more rows

Sheet BKPListe_A (hidden)
A1: 0 Grundstück | B1: BKP-Nr. | C1: Bezeichnung
B2: 0 | C2: Grundstück
A3: 0 Grundstück | B3: 00 | C3: Vorstudien
A4: 0 Grundstück | B4: 000 | C4: Übergangsposition
A5: 0 Grundstück | B5: 001 | C5: Studien zur Grundstückbeurteilung, Machbarkeitsstudie
A6: 0 Grundstück | B6: 002 | C6: Vermessung, Vermarchung
A7: 0 Grundstück | B7: 003 | C7: Geotechnische Gutachten
A8: 0 Grundstück | B8: 004 | C8: Quartierplankosten, Richtplankosten
A9: 0 Grundstück | B9: 005 | C9: Provisorische Baugespanne
A10: 0 Grundstück | B10: 006 | C10: Umweltverträglichkeitsprüfung
B11: 007
B12: 008
A13: 0 Grundstück | B13: 009 | C13: Übriges
A14: 0 Grundstück
A15: 0 Grundstück | B15: 01 | C15: Grundstück- bzw. Baurechterwerb
A16: 0 Grundstück | B16: 010 | C16: Übergangsposition
A17: 0 Grundstück | B17: 011 | C17: Grundstückerwerb
A18: 0 Grundstück | B18: 012 | C18: Baurechterwerb
A19: 0 Grundstück | B19: 013 | C19: Brandmauereinkauf
B20: 014
B21: 015
B22: 016
B23: 017
A24: 0 Grundstück | B24: 018 | C24: Sanierung Altlasten
A25: 0 Grundstück | B25: 019 | C25: Übriges
A26: 0 Grundstück
A27: 0 Grundstück | B27: 02 | C27: Nebenkosten zu Grundstück- resp. Baurechterwerb
A28: 0 Grundstück | B28: 020 | C28: Übergangsposition
A29: 0 Grundstück | B29: 021 | C29: Handänderungssteuer
A30: 0 Grundstück | B30: 022 | C30: Notariatskosten
A31: 0 Grundstück | B31: 023 | C31: Grundbuchgebühren
A32: 0 Grundstück | B32: 024 | C32: Anwaltskosten, Gerichtskosten
A33: 0 Grundstück | B33: 025 | C33: Vermittlungsprovisionen
B34: 026
B35: 027
B36: 028
A37: 0 Grundstück | B37: 029 | C37: Übriges
A38: 0 Grundstück
A39: 0 Grundstück | B39: 03 | C39: Abfindungen, Servitute, Beiträge
A40: 0 Grundstück | B40: 030 | C40: Übergangsposition
A41: 0 Grundstück | B41: 031 | C41: Inkonvenienzentschädigungen
A42: 0 Grundstück | B42: 032 | C42: Abfindungen an Mieter und Pächter
A43: 0 Grundstück | B43: 033 | C43: Errichtung von Servituten
A44: 0 Grundstück | B44: 034 | C44: Ablösung von Servituten
A45: 0 Grundstück | B45: 035 | C45: Wirtschaftspatente
A46: 0 Grundstück | B46: 036 | C46: Beiträge Melioration
A47: 0 Grundstück | B47: 037 | C47: Beiträge Güterzusammenlegung
A48: 0 Grundstück | B48: 038 | C48: Perimeterbeiträge
A49: 0 Grundstück | B49: 039 | C49: Übriges
A50: 0 Grundstück
A51: 0 Grundstück | B51: 04 | C51: Finanzierung vor Baubeginn
A52: 0 Grundstück | B52: 040 | C52: Übergangsposition
A53: 0 Grundstück | B53: 041 | C53: Errichten von Hypotheken auf Grundstück
A54: 0 Grundstück | B54: 042 | C54: Hypothekarzinsen
A55: 0 Grundstück | B55: 043 | C55: Baurechtszinsen
A56: 0 Grundstück | B56: 044 | C56: Bankzinsen
A57: 0 Grundstück | B57: 045 | C57: Eigenkapitalzinsen
A58: 0 Grundstück | B58: 046 | C58: Grundstücksteuern
B59: 047
A60: 0 Grundstück | B60: 048 | C60: Versicherungen bis Baubeginn
A61: 0 Grundstück | B61: 049 | C61: Übriges
A62: 0 Grundstück
A63: 0 Grundstück | B63: 05 | C63: Erschliessung durch Leitungen (ausserhalb Grundstück)
A64: 0 Grundstück | B64: 050 | C64: Übergangsposition
A65: 0 Grundstück | B65: 051 | C65: Erdarbeiten
A66: 0 Grundstück | B66: 052 | C66: Kanalisationsleitungen
A67: 0 Grundstück | B67: 053 | C67: Elektroleitungen
A68: 0 Grundstück | B68: 054 | C68: Heizungs-, Lüftungs-, Klima-, Kälteleitungen
A69: 0 Grundstück | B69: 055 | C69: Sanitärleitungen
A70: 0 Grundstück | B70: 056 | C70: Nebenarbeiten
B71: 057
B72: 058
A73: 0 Grundstück | B73: 059 | C73: Übriges
A74: 0 Grundstück
A75: 0 Grundstück | B75: 06 | C75: Erschliessung durch Verkehrsanlagen ausserhalb Grundstück
A76: 0 Grundstück | B76: 060 | C76: Übergangsposition
A77: 0 Grundstück | B77: 061 | C77: Strassen
A78: 0 Grundstück | B78: 062 | C78: Bahn
A79: 0 Grundstück | B79: 063 | C79: Schiff
B80: 064
B81: 065
B82: 066
B83: 067
B84: 068
A85: 0 Grundstück | B85: 069 | C85: Übriges
A86: 0 Grundstück
A87: 0 Grundstück | B87: 07 | C87: Reserve
B88: 070
B89: 071
B90: 072
B91: 073
B92: 074
B93: 075
B94: 076
B95: 077
B96: 078
B97: 079
A98: 0 Grundstück
A99: 0 Grundstück | B99: 08 | C99: Reserve
B100: 080
B101: 081
B102: 082
B103: 083
B104: 084
B105: 085
B106: 086
B107: 087
B108: 088
B109: 089
A110: 0 Grundstück
A111: 0 Grundstück | B111: 09 | C111: Honorare
A112: 0 Grundstück | B112: 090 | C112: Übergangsposition
A113: 0 Grundstück | B113: 091 | C113: Architekt
A114: 0 Grundstück | B114: 092 | C114: Bauingenieur
A115: 0 Grundstück | B115: 093 | C115: Elektroingenieur
A116: 0 Grundstück | B116: 094 | C116: HLK-Ingenieur
A117: 0 Grundstück | B117: 095 | C117: Sanitäringenieur
A118: 0 Grundstück | B118: 096 | C118: Spezialisten
A119: 0 Grundstück | B119: 096.0 | C119: Geometer
A120: 0 Grundstück | B120: 096.1 | C120: Geologe, Geotechniker
B121: 096.2
B122: 096.3
B123: 096.4
B124: 096.5
A125: 0 Grundstück | B125: 096.6 | C125: Bauökonom
B126: 096.7
A127: 0 Grundstück | B127: 096.8 | C127: Makler
B128: 096.9
B129: 097
B130: 098
A131: 0 Grundstück | B131: 099 | C131: Übriges
A132: 0 Grundstück
A133: 0 Grundstück
A134: 0 Grundstück
A136: 1 Vorbereitungsarbeiten
B137: 1 | C137: Vorbereitungsarbeiten
A138: 1 Vorbereitungsarbeiten | B138: 10 | C138: Bestandesaufnahmen, Baugrunduntersuchungen
A139: 1 Vorbereitungsarbeiten | B139: 100 | C139: Übergangsposition
A140: 1 Vorbereitungsarbeiten | B140: 101 | C140: Bestandesaufnahmen
A141: 1 Vorbereitungsarbeiten | B141: 102 | C141: Baugrunduntersuchungen
A142: 1 Vorbereitungsarbeiten | B142: 103 | C142: Grundwassererhebungen
B143: 104
B144: 105
B145: 106
B146: 107
B147: 108
A148: 1 Vorbereitungsarbeiten | B148: 109 | C148: Übriges
A149: 1 Vorbereitungsarbeiten
A150: 1 Vorbereitungsarbeiten | B150: 11 | C150: Räumungen, Terrainvorbereitungen
A151: 1 Vorbereitungsarbeiten | B151: 110 | C151: Übergangsposition
A152: 1 Vorbereitungsarbeiten | B152: 111 | C152: Rodungen
A153: 1 Vorbereitungsarbeiten | B153: 112 | C153: Abbrüche
A154: 1 Vorbereitungsarbeiten | B154: 113 | C154: Demontagen
A155: 1 Vorbereitungsarbeiten | B155: 114 | C155: Erdbewegungen
A156: 1 Vorbereitungsarbeiten | B156: 115 | C156: Bohr- und Schneidarbeiten
A157: 1 Vorbereitungsarbeiten | B157: 115.0 | C157: Baustelleneinrichtung
A158: 1 Vorbereitungsarbeiten | B158: 115.1 | C158: Erdarbeiten
B159: 115.2
B160: 115.3
B161: 115.4
B162: 115.5
B163: 115.6
B164: 115.7
B165: 115.8
B166: 115.9
B167: 116
B168: 117
B169: 118
A170: 1 Vorbereitungsarbeiten | B170: 119 | C170: Übriges
A171: 1 Vorbereitungsarbeiten
A172: 1 Vorbereitungsarbeiten | B172: 12 | C172: Sicherungen, Provisorien
A173: 1 Vorbereitungsarbeiten | B173: 120 | C173: Übergangsposition
A174: 1 Vorbereitungsarbeiten | B174: 121 | C174: Sicherung vorhandener Anlagen
A175: 1 Vorbereitungsarbeiten | B175: 122 | C175: Provisorien
A176: 1 Vorbereitungsarbeiten | B176: 123 | C176: Unterfangungen
A177: 1 Vorbereitungsarbeiten | B177: 123.0 | C177: Baustelleneinrichtung
A178: 1 Vorbereitungsarbeiten | B178: 123.1 | C178: Gerüste
A179: 1 Vorbereitungsarbeiten | B179: 123.2 | C179: Spezielle Unterfangungsarbeiten
A180: 1 Vorbereitungsarbeiten | B180: 123.3 | C180: Erdarbeiten
A181: 1 Vorbereitungsarbeiten | B181: 123.4 | C181: Kanalisationen
A182: 1 Vorbereitungsarbeiten | B182: 123.5 | C182: Beton- und Stahlbetonarbeiten
A183: 1 Vorbereitungsarbeiten | B183: 123.6 | C183: Maurerarbeiten
B184: 123.7
B185: 123.8
B186: 123.9
A187: 1 Vorbereitungsarbeiten | B187: 124 | C187: Instandsetzungsarbeiten
B188: 125
B189: 126
B190: 127
B191: 128
A192: 1 Vorbereitungsarbeiten | B192: 129 | C192: Übriges
A193: 1 Vorbereitungsarbeiten
A194: 1 Vorbereitungsarbeiten | B194: 13 | C194: Gemeinsame Baustelleneinrichtung
A195: 1 Vorbereitungsarbeiten | B195: 130 | C195: Übergangsposition
A196: 1 Vorbereitungsarbeiten | B196: 131 | C196: Abschrankungen
A197: 1 Vorbereitungsarbeiten | B197: 132 | C197: Zufahrten, Plätze
A198: 1 Vorbereitungsarbeiten | B198: 133 | C198: Büro Bauleitung
A199: 1 Vorbereitungsarbeiten | B199: 134 | C199: Unterkünfte, Verpflegungseinrichtungen
A200: 1 Vorbereitungsarbeiten | B200: 135 | C200: Provisorische Installationen
A201: 1 Vorbereitungsarbeiten | B201: 135.0 | C201: Kanalisationen
... 1177 more rows

Sheet eBKP-H_A (hidden)
B1: eBKP-H | C1: Bez. eBKP-H
A3: A | B3: A | C3: Grundstück
A4: A | B4: A0
A5: A | B5: A1 | C5: Grundstück Baurecht
A6: A | B6: A1.1 | C6: Grundstückserwerb
A7: A | B7: A1.2 | C7: Baurechtserwerb
A8: A | B8: A1.3 | C8: Bauwerkserwerb
A9: A | B9: A1.4 | C9: Perimeterbeitrag
A10: A | B10: A2 | C10: Nebenkosten zu Grundstück Baurecht
A11: A | B11: A2.1 | C11: Handänderungssteuer, Gewinnsteuer
A12: A | B12: A2.2 | C12: Notariatskosten
A13: A | B13: A2.3 | C13: Grundbuchgebühren
A14: A | B14: A2.4 | C14: Anwaltskosten, Gerichtskosten
A15: A | B15: A2.5 | C15: Vermittlungsprovision
A16: A | B16: A2.6 | C16: Abfindung, Servitut
A17: A | B17: A2.7 | C17: Vermessung, Vermarkung
A18: B | B18: B | C18: Vorbereitung
A19: B | B19: B0
A20: B | B20: B1 | C20: Untersuchung, Aufnahme, Messung
A21: B | B21: B1.1 | C21: Baugrunduntersuchung
A22: B | B22: B1.2 | C22: Bestandsaufnahme
A23: B | B23: B1.3 | C23: Umweltmessung
A24: B | B24: B1.4 | C24: Überwachung
A25: B | B25: B2 | C25: Baustelleneinrichtung
A26: B | B26: B2.1 | C26: Baustellenerschliessung
A27: B | B27: B2.2 | C27: Versorgung, Entsorgung
A28: B | B28: B2.3 | C28: Arbeitsraum, Aufenthaltsraum
A29: B | B29: B2.4 | C29: Hebe-, Verlade-, Transport-, Lagereinrichtung
A30: B | B30: B2.5 | C30: Einrichtung für Materialaufbereitung
A31: B | B31: B2.6 | C31: Winterbaumassnahme
A32: B | B32: B3 | C32: Provisorium
A33: B | B33: B3.1 | C33: Provisorisches Rückhaltesystem
A34: B | B34: B3.2 | C34: Provisorische Werkleitung
A35: B | B35: B3.3 | C35: Provisorisches Gebäude
A36: B | B36: B3.4 | C36: Provisorisches Verkehrsanlage
A37: B | B37: B3.5 | C37: Provisorische Ausstattung
A38: B | B38: B4 | C38: Erschliessung durch Werkleitungen
A39: B | B39: B4.1 | C39: Kanalisationsleitung
A40: B | B40: B4.2 | C40: Elektroleitung
A41: B | B41: B4.3 | C41: Telekomunikationsleitung
A42: B | B42: B4.4 | C42: Heizleitung, Kälteleitung
A43: B | B43: B4.5 | C43: Wasserleitung
A44: B | B44: B4.6 | C44: Gasleitung
A45: B | B45: B5 | C45: Rückbau Entsorgung Bauwerk
A46: B | B46: B5.1 | C46: Rückbau nicht kontaminiertes Bauwerk
A47: B | B47: B5.2 | C47: Rückbau kontaminiertes Bauwerk
A48: B | B48: B6 | C48: Baugrube
A49: B | B49: B6.1 | C49: Abholzung, Rodung
A50: B | B50: B6.2 | C50: Nicht kontaminierter Aushub
A51: B | B51: B6.3 | C51: Kontaminierter Aushub
A52: B | B52: B6.4 | C52: Böschungssicherung
A53: B | B53: B6.5 | C53: Baugrubenabschluss
A54: B | B54: B6.6 | C54: Materialeinbau
A55: B | B55: B6.7 | C55: Wasserhaltung
A56: B | B56: B7 | C56: Baugrundverbesserung, Bauwerkssicherung
A57: B | B57: B7.1 | C57: Verbesserung von Baugründen
A58: B | B58: B7.2 | C58: Pfählung
A59: B | B59: B7.3 | C59: Unterfangung Bauwerk
A60: B | B60: B7.4 | C60: Sicherung Bauwerk
A61: B | B61: B8 | C61: Gerüst
A62: B | B62: B8.1 | C62: Fassadengerüst
A63: B | B63: B8.2 | C63: Arbeitsgerüst
A64: C | B64: C | C64: Konstruktion Gebäude
A65: C | B65: C0
A66: C | B66: C1 | C66: Bodenplatte, Fundament
A67: C | B67: C1.1 | C67: Kanalisation Gebäude
A68: C | B68: C1.2 | C68: Abdichtung, Dämmung Bodenplatte
A69: C | B69: C1.3 | C69: Einzel-, Streifenfundament
A70: C | B70: C1.4 | C70: Nicht tragende Bodenplatte
A71: C | B71: C1.5 | C71: Tragende Bodenplatte
A72: C | B72: C2 | C72: Wandkonstruktion
A73: C | B73: C2.1 | C73: Aussenwandkonstruktion
A74: C | B74: C2.2 | C74: Innenwandkonstruktion
A75: C | B75: C3 | C75: Stützenkonstruktion
A76: C | B76: C3.1 | C76: Aussenstütze
A77: C | B77: C3.2 | C77: innenstütze
A78: C | B78: C4 | C78: Decken-, Dachkonstruktion
A79: C | B79: C4.1 | C79: Decke
A80: C | B80: C4.2 | C80: Treppe, Rampe
A81: C | B81: C4.3 | C81: Balkon
A82: C | B82: C4.4 | C82: Dachkonstruktion
A83: C | B83: C5 | C83: Ergänzende Leistungen zu Konstruktion
A84: C | B84: C5.1 | C84: Durchbruch, Schlitz zu Konstruktion
A85: C | B85: C5.2 | C85: Maschinensockel, Einlage
A86: D | B86: D | C86: Technik Gebäude
A87: D | B87: D0
A88: D | B88: D1 | C88: Elektroanlage
A89: D | B89: D1.1 | C89: Apparat, Anlage Starkstrom
A90: D | B90: D1.2 | C90: Installation Starkstrom
A91: D | B91: D1.3 | C91: Leuchte
A92: D | B92: D1.4 | C92: Elektrogerät
A93: D | B93: D1.5 | C93: Apparat, Anlage Schwachstrom
A94: D | B94: D1.6 | C94: Installation Schwachstrom
A95: D | B95: D2 | C95: Automations-, Leit-, Komunikationssystem
A96: D | B96: D2.1 | C96: Managementebene
A97: D | B97: D2.2 | C97: Automationsebene
A98: D | B98: D2.3 | C98: Feldebene
A99: D | B99: D2.4 | C99: Raumautomation
A100: D | B100: D2.5 | C100: Automationsnetzwerk
A101: D | B101: D2.6 | C101: Schaltgerätekompination
A102: D | B102: D2.7 | C102: Integration
A103: D | B103: D3 | C103: Sicherheitssystem
A104: D | B104: D3.1 | C104: Einbruch-, Überfallmeldeanlage
A105: D | B105: D3.2 | C105: Zutrittskontrollanlage
A106: D | B106: D3.3 | C106: Videoüberwachungsanlage
A107: D | B107: D3.4 | C107: Perimeterschutz, Umgebungsschutz
A108: D | B108: D4 | C108: Brandschutz
A109: D | B109: D4.1 | C109: Brandmeldeanlage
A110: D | B110: D4.2 | C110: Gasmeldeanlage
A111: D | B111: D4.3 | C111: Nasslöschanlage
A112: D | B112: D4.4 | C112: Trockenlöschanlage
A113: D | B113: D4.5 | C113: Löschgerät
A114: D | B114: D4.6 | C114: Rauch- und Wärmeabzugsanlage
A115: D | B115: D5 | C115: Wärmeanlage
A116: D | B116: D5.1 | C116: Lagerung zu Wärmeanlage
A117: D | B117: D5.2 | C117: Wärmeerzeugung
A118: D | B118: D5.3 | C118: Wärmehauptverteilung
A119: D | B119: D5.4 | C119: Wärmeabgabe
A120: D | B120: D6 | C120: Kälteanlage
A121: D | B121: D6.1 | C121: Lagerung zu Kälteanlage
A122: D | B122: D6.2 | C122: Kälteerzeugung
A123: D | B123: D6.3 | C123: Kältehauptverteilung
A124: D | B124: D6.4 | C124: Kälteabgabe
A125: D | B125: D7 | C125: Lufttechnische Anlage
A126: D | B126: D7.1 | C126: Aussenluftführung, Fortluftführung
A127: D | B127: D7.2 | C127: Luftaufbereitung
A128: D | B128: D7.3 | C128: Lufthauptverteilung
A129: D | B129: D7.4 | C129: Luftabgabe
A130: D | B130: D7.5 | C130: Kleinanlage für Zuluft, Abluft
A131: D | B131: D8 | C131: Wasser,- Gas,- Druckluftanlage
A132: D | B132: D8.1 | C132: Armatur, Apparat
A133: D | B133: D8.2 | C133: Installationselement
A134: D | B134: D8.3 | C134: Wasseraufbereitungsanlage, Abwasseraufbereitungsanlage
A135: D | B135: D8.4 | C135: Versorgungsleitungen
A136: D | B136: D8.5 | C136: Entsorgungsleitungen
A137: D | B137: D8.6 | C137: Gasleitungen
A138: D | B138: D8.7 | C138: Druckluftanlage, Vakuumanlage
A139: D | B139: D9 | C139: Transportanlage
A140: D | B140: D9.1 | C140: Personenaufzug
A141: D | B141: D9.2 | C141: Lastenaufzug
A142: D | B142: D9.3 | C142: Bettenaufzug
A143: D | B143: D9.4 | C143: Fahrtreppe, Fahrsteig
A144: D | B144: D9.5 | C144: Hubtisch, Verladestation, Spezialaufzug
A145: D | B145: D9.6 | C145: Parkieranlage
A146: D | B146: D9.7 | C146: Weitere Transportanlagen
A147: E | B147: E | C147: Äussere Wandbekleidung Gebäude
A148: E | B148: E0
A149: E | B149: E1 | C149: Äussere Wandbekleidung unter Terrain
A150: E | B150: E1.1 | C150: Wandabdichtung unter Terrain
A151: E | B151: E1.2 | C151: Aussenwärmedämmung unter Terrain
A152: E | B152: E1.3 | C152: Schutzschicht unter Terrain
A153: E | B153: E2 | C153: Äussere Wandbekleidung über Terrain
A154: E | B154: E2.1 | C154: Äussere Beschichtung
A155: E | B155: E2.2 | C155: Aussenwärmedämmung
A156: E | B156: E2.3 | C156: Fassadenbekleidung
A157: E | B157: E2.4 | C157: Fassadensystem
A158: E | B158: E2.5 | C158: Bekleidung Untersicht
A159: E | B159: E2.6 | C159: Absturzsicherung
A160: E | B160: E3 | C160: Einbauten, Absturzsicherung zu Aussenwand
A161: E | B161: E3.1 | C161: Fenster
A162: E | B162: E3.2 | C162: Tür, Tor
A163: E | B163: E3.3 | C163: Sonnenschutz
A164: F | B164: F | C164: Bedachung Gebäude
A165: F | B165: F0
A166: F | B166: F1 | C166: Dachhaut
A167: F | B167: F1.1 | C167: Dachabdichtung unter Terrain
A168: F | B168: F1.2 | C168: Flachdach
A169: F | B169: F1.3 | C169: Geneites Dach
A170: F | B170: F1.4 | C170: Blitzschutz
A171: F | B171: F2 | C171: Einbauten, Absturzsicherung zu Dach
A172: F | B172: F2.1 | C172: Einbauten zu Flachdach
A173: F | B173: F2.2 | C173: Einbauten zu geneigtem Dach
A174: G | B174: G | C174: Ausbau Gebäude
A175: G | B175: G0
A176: G | B176: G1 | C176: Trennwand, Tür, Tor, Fenster
A177: G | B177: G1.1 | C177: Feststehende Trennwand
A178: G | B178: G1.2 | C178: Bewegliche Trennwand
A179: G | B179: G1.3 | C179: Innenfenster
A180: G | B180: G1.4 | C180: Innentür, innentor
A181: G | B181: G1.5 | C181: Verdunklung
A182: G | B182: G2 | C182: Bodenbelag
A183: G | B183: G2.1 | C183: Unterkonstruktion zu Bodenbelag
A184: G | B184: G2.2 | C184: Fertiger Bodenbelag
A185: G | B185: G3 | C185: Wand- und Stützenbekleidung
A186: G | B186: G3.1 | C186: Unterkonstruktion zu Wandbekleidung
A187: G | B187: G3.2 | C187: Fertige Wandbekleidung
A188: G | B188: G4 | C188: Decken- und Dachbekleidung
A189: G | B189: G4.1 | C189: Unterkonstruktion zu Deckenbekleidung
A190: G | B190: G4.2 | C190: Fertige Deckenbekleidung
A191: G | B191: G5 | C191: Einbauten, Absturzsicherung zu Ausbau
A192: G | B192: G5.1 | C192: Einbauschrank, Regal
A193: G | B193: G5.2 | C193: Einbauküche
A194: G | B194: G5.3 | C194: Innerer Fensterausbau
A195: G | B195: G5.4 | C195: Schutzeinrichtung Umgebung
A196: G | B196: G5.5 | C196: Ofen, Cheminèe
A197: G | B197: G5.6 | C197: Kleinbauteil
A198: G | B198: G5.7 | C198: Begrünung im Gebäude
A199: G | B199: G6 | C199: Ergänzende Leistungen zu Ausbau
A200: G | B200: G6.1 | C200: Durchbruch, Schlitz zu Ausbau
A201: G | B201: G6.2 | C201: Abschottung
... 160 more rows

Sheet Sheet3 (hidden)
A2: =SUM($B$2:$I$2) -> 212 | B2: 25 | C2: 33 | D2: 55 | E2: 1 | F2: 66 | G2: 7 | H2: 13 | I2: 12
A3: =SUM($B2:$I2) -> 212
A4: =SUM($B4:$I4) -> 0
A5: =SUM($B5:$I5) -> 0
A6: =SUM($B6:$I6) -> 0
A7: =SUM($B7:$I7) -> 0
A8: 0

Sheet Baupreisindex
D1: <POND_02> | E1: <Date_Mois_Octobre> | F1: <Date_Mois_Avril>
A2: <cc-05.05.01_Titre> | C2: Schweizerischer Baupreisindex - Entwicklung der Baupreise
A3: <cc-05.05.01_Sous-tItre> | C3: Indexwerte pro Grossregion und pro Objekttyp
A4: <BASE_2020> | C4: Basis Oktober 2020 = 100
D5: Gewicht in % | E5: Oktober | F5: April | G5: Oktober | H5: April | I5: Oktober | J5: April | K5: Oktober | L5: April | M5: Oktober | N5: April | O5: Oktober | P5: April | Q5: Oktober | R5: April | S5: Oktober | T5: April | U5: Oktober | V5: April | W5: Oktober | X5: April | Y5: Oktober | Z5: April | AA5: Oktober | AB5: April | AC5: Oktober | AD5: April | AE5: Oktober | AF5: April | AG5: Oktober | AH5: April | AI5: Oktober | AJ5: April | AK5: Oktober | AL5: April | AM5: Oktober | AN5: April | AO5: Oktober | AP5: April | AQ5: Oktober | AR5: April | AS5: Oktober | AT5: April | AU5: Oktober | AV5: April | AW5: Oktober | AX5: April | AY5: Oktober | AZ5: April | BA5: Oktober | BB5: April | BC5: Oktober | BD5: April
E6: 1998 | F6: 1999 | G6: 1999 | H6: 2000 | I6: 2000 | J6: 2001 | K6: 2001 | L6: 2002 | M6: 2002 | N6: 2003 | O6: 2003 | P6: 2004 | Q6: 2004 | R6: 2005 | S6: 2005 | T6: 2006 | U6: 2006 | V6: 2007 | W6: 2007 | X6: 2008 | Y6: 2008 | Z6: 2009 | AA6: 2009 | AB6: 2010 | AC6: 2010 | AD6: 2011 | AE6: 2011 | AF6: 2012 | AG6: 2012 | AH6: 2013 | AI6: 2013 | AJ6: 2014 | AK6: 2014 | AL6: 2015 | AM6: 2015 | AN6: 2016 | AO6: 2016 | AP6: 2017 | AQ6: 2017 | AR6: 2018 | AS6: 2018 | AT6: 2019 | AU6: 2019 | AV6: 2020 | AW6: 2020 | AX6: 2021 | AY6: 2021 | AZ6: 2022 | BA6: 2022 | BB6: 2023 | BC6: 2023 | BD6: 2024
A8: <REG_01> | B8: Schweiz | C8: Schweiz
A9: <OBJ_02> | B9: Schweiz | C9: Baugewerbe : Total | D9: 100 | E9: 78.7 | F9: 79.5 | G9: 81.6 | H9: 83.1 | I9: 85 | J9: 87 | K9: 86.9 | L9: 86.3 | M9: 85.5 | N9: 84.6 | O9: 84.9 | P9: 85.2 | Q9: 86.9 | R9: 87.4 | S9: 88.6 | T9: 89.6 | U9: 91.9 | V9: 93.5 | W9: 95.3 | X9: 97 | Y9: 98.7 | Z9: 96.8 | AA9: 96.9 | AB9: 96.9 | AC9: 97.6 | AD9: 99.1 | AE9: 99.7 | AF9: 99.7 | AG9: 99.9 | AH9: 100.1 | AI9: 100.7 | AJ9: 100.5 | AK9: 100.4 | AL9: 99.8 | AM9: 100.3 | AN9: 99.7 | AO9: 99.3 | AP9: 98.9 | AQ9: 98.9 | AR9: 99.3 | AS9: 99.6 | AT9: 100 | AU9: 100 | AV9: 100.2 | AW9: 100 | AX9: 101.4 | AY9: 104.1 | AZ9: 109.2 | BA9: 112.7 | BB9: 113.9 | BC9: 114.5 | BD9: 115
A10: <OBJ_03> | B10: Schweiz | C10: Hochbau | D10: 77.67 | E10: 80.4 | F10: 80.9 | G10: 82.8 | H10: 84.2 | I10: 86 | J10: 87.6 | K10: 87.8 | L10: 87.5 | M10: 86.8 | N10: 85.7 | O10: 85.8 | P10: 85.8 | Q10: 87.3 | R10: 88.1 | S10: 88.9 | T10: 90 | U10: 92.2 | V10: 93.9 | W10: 95.6 | X10: 97.6 | Y10: 99.2 | Z10: 97.9 | AA10: 97.8 | AB10: 97.5 | AC10: 98.6 | AD10: 99.9 | AE10: 100.4 | AF10: 100.3 | AG10: 100.4 | AH10: 100.6 | AI10: 101.1 | AJ10: 101.1 | AK10: 100.8 | AL10: 100.2 | AM10: 100.7 | AN10: 100.1 | AO10: 99.4 | AP10: 99 | AQ10: 99.1 | AR10: 99.5 | AS10: 99.7 | AT10: 100.3 | AU10: 100.1 | AV10: 100.3 | AW10: 100 | AX10: 101.5 | AY10: 104.6 | AZ10: 109.7 | BA10: 113.2 | BB10: 114.3 | BC10: 114.8 | BD10: 115.2
A11: <OBJ_04> | B11: Schweiz | C11: Neubau | D11: 45.11 | E11: 80.4 | F11: 81.1 | G11: 83 | H11: 84.7 | I11: 86.5 | J11: 88.3 | K11: 88.3 | L11: 87.8 | M11: 86.9 | N11: 85.6 | O11: 85.7 | P11: 85.6 | Q11: 87.4 | R11: 88.1 | S11: 88.9 | T11: 90 | U11: 92.3 | V11: 93.8 | W11: 95.6 | X11: 97.6 | Y11: 99.4 | Z11: 97.4 | AA11: 97.1 | AB11: 96.9 | AC11: 98.1 | AD11: 99.6 | AE11: 99.8 | AF11: 99.6 | AG11: 99.7 | AH11: 99.9 | AI11: 100.3 | AJ11: 100.3 | AK11: 99.9 | AL11: 99.2 | AM11: 99.7 | AN11: 99.3 | AO11: 98.7 | AP11: 98.5 | AQ11: 98.9 | AR11: 99.4 | AS11: 99.6 | AT11: 100 | AU11: 100 | AV11: 100.1 | AW11: 100 | AX11: 101.6 | AY11: 104.8 | AZ11: 110.2 | BA11: 113.8 | BB11: 115.1 | BC11: 115.5 | BD11: 115.9
A12: <OBJ_05> | B12: Schweiz | C12: Neubau Mehrfamilienhaus | D12: 25.7 | E12: 81.2 | F12: 82 | G12: 83.8 | H12: 85.7 | I12: 87.6 | J12: 89.2 | K12: 89 | L12: 88.3 | M12: 87.4 | N12: 86 | O12: 86.1 | P12: 86 | Q12: 87.9 | R12: 88.5 | S12: 89.4 | T12: 90.4 | U12: 92.7 | V12: 94.1 | W12: 95.7 | X12: 97.7 | Y12: 99.6 | Z12: 97.3 | AA12: 97.1 | AB12: 96.8 | AC12: 98.1 | AD12: 99.4 | AE12: 99.6 | AF12: 99.4 | AG12: 99.4 | AH12: 99.5 | AI12: 99.9 | AJ12: 100.1 | AK12: 99.6 | AL12: 99 | AM12: 99.5 | AN12: 99.2 | AO12: 98.7 | AP12: 98.5 | AQ12: 99.1 | AR12: 99.5 | AS12: 99.7 | AT12: 100.1 | AU12: 100 | AV12: 100.2 | AW12: 100 | AX12: 101.4 | AY12: 104.5 | AZ12: 109.7 | BA12: 113.6 | BB12: 114.9 | BC12: 115.5 | BD12: 115.7
A13: <OBJ_06> | B13: Schweiz | C13: Neubau Mehrfamilienhaus aus Holz | D13: 5.17 | E13: … | F13: … | G13: … | H13: … | I13: … | J13: … | K13: … | L13: … | M13: … | N13: 85.7 | O13: 85.8 | P13: 85.6 | Q13: 87 | R13: 87.6 | S13: 88.3 | T13: 89.4 | U13: 91.5 | V13: 93.3 | W13: 94.7 | X13: 96.8 | Y13: 98.4 | Z13: 96.3 | AA13: 96.3 | AB13: 96 | AC13: 97.4 | AD13: 99 | AE13: 99.7 | AF13: 99.1 | AG13: 99.1 | AH13: 99 | AI13: 99.4 | AJ13: 99.4 | AK13: 99.1 | AL13: 98.7 | AM13: 99.2 | AN13: 99.1 | AO13: 98.4 | AP13: 98.5 | AQ13: 98.5 | AR13: 99.3 | AS13: 99.7 | AT13: 99.8 | AU13: 99.3 | AV13: 99.6 | AW13: 100 | AX13: 102.6 | AY13: 106.8 | AZ13: 112.2 | BA13: 115.1 | BB13: 116.5 | BC13: 115.9 | BD13: 116.6
A14: <OBJ_07> | B14: Schweiz | C14: Neubau Einfamilienhaus | D14: 5.38 | E14: … | F14: … | G14: … | H14: … | I14: … | J14: … | K14: … | L14: … | M14: … | N14: … | O14: … | P14: … | Q14: … | R14: … | S14: … | T14: … | U14: … | V14: … | W14: … | X14: … | Y14: … | Z14: … | AA14: … | AB14: … | AC14: 97.4 | AD14: 98.8 | AE14: 99 | AF14: 98.9 | AG14: 99.1 | AH14: 98.9 | AI14: 99.6 | AJ14: 100.2 | AK14: 99.8 | AL14: 98.8 | AM14: 99.4 | AN14: 99.1 | AO14: 98.4 | AP14: 97.9 | AQ14: 98.3 | AR14: 99.4 | AS14: 99.3 | AT14: 99.9 | AU14: 99.8 | AV14: 100 | AW14: 100 | AX14: 100.9 | AY14: 103.8 | AZ14: 108.9 | BA14: 111.9 | BB14: 113.6 | BC14: 114.1 | BD14: 114.6
A15: <OBJ_08> | B15: Schweiz | C15: Neubau Bürogebäude | D15: 5.39 | E15: 79.2 | F15: 79.8 | G15: 82.3 | H15: 83.3 | I15: 85 | J15: 87.1 | K15: 88.1 | L15: 88.1 | M15: 87.3 | N15: 86.4 | O15: 86.3 | P15: 86.2 | Q15: 87.5 | R15: 88.6 | S15: 89.1 | T15: 90.6 | U15: 93.1 | V15: 95 | W15: 97.1 | X15: 99.2 | Y15: 100.8 | Z15: 99.8 | AA15: 99.5 | AB15: 99.2 | AC15: 100.3 | AD15: 102.3 | AE15: 102.7 | AF15: 102 | AG15: 102.5 | AH15: 103.4 | AI15: 103.7 | AJ15: 102.6 | AK15: 102.6 | AL15: 101.4 | AM15: 102 | AN15: 100.9 | AO15: 100.3 | AP15: 99.6 | AQ15: 99 | AR15: 99.3 | AS15: 99.3 | AT15: 99.7 | AU15: 100.4 | AV15: 100.4 | AW15: 100 | AX15: 101.9 | AY15: 104.8 | AZ15: 110.7 | BA15: 114.8 | BB15: 116.1 | BC15: 116.5 | BD15: 117.6
A16: <OBJ_09> | B16: Schweiz | C16: Neubau Lagerhalle | D16: 3.47 | E16: … | F16: … | G16: … | H16: … | I16: … | J16: … | K16: … | L16: … | M16: … | N16: … | O16: … | P16: … | Q16: … | R16: … | S16: … | T16: … | U16: … | V16: … | W16: … | X16: … | Y16: … | Z16: … | AA16: … | AB16: … | AC16: 97.4 | AD16: 99 | AE16: 99.5 | AF16: 99.8 | AG16: 99.8 | AH16: 100 | AI16: 100.5 | AJ16: 100 | AK16: 99.6 | AL16: 98.7 | AM16: 99.1 | AN16: 98.2 | AO16: 97.9 | AP16: 98.1 | AQ16: 99.2 | AR16: 99.4 | AS16: 99.5 | AT16: 99.9 | AU16: 100.2 | AV16: 100.1 | AW16: 100 | AX16: 102.3 | AY16: 106.1 | AZ16: 111.9 | BA16: 114.8 | BB16: 115.3 | BC16: 115.1 | BD16: 115.9
A17: <OBJ_10> | B17: Schweiz | C17: Renovation, Umbau | D17: 32.56 | E17: … | F17: … | G17: … | H17: … | I17: … | J17: … | K17: … | L17: … | M17: … | N17: … | O17: … | P17: … | Q17: … | R17: … | S17: … | T17: … | U17: … | V17: … | W17: … | X17: … | Y17: … | Z17: … | AA17: … | AB17: … | AC17: 99.3 | AD17: 100.5 | AE17: 101.2 | AF17: 101.1 | AG17: 101.4 | AH17: 101.6 | AI17: 102.1 | AJ17: 102.1 | AK17: 101.9 | AL17: 101.5 | AM17: 102 | AN17: 101 | AO17: 100.3 | AP17: 99.6 | AQ17: 99.2 | AR17: 99.7 | AS17: 99.8 | AT17: 100.6 | AU17: 100.3 | AV17: 100.5 | AW17: 100 | AX17: 101.4 | AY17: 104.3 | AZ17: 109.1 | BA17: 112.4 | BB17: 113.2 | BC17: 113.9 | BD17: 114.2
A18: <OBJ_11> | B18: Schweiz | C18: Renovation Mehrfamilienhaus | D18: 21.06 | E18: 77.1 | F18: 77.3 | G18: 79.1 | H18: 80 | I18: 81.5 | J18: 82.9 | K18: 83.3 | L18: 83.5 | M18: 83.2 | N18: 82.3 | O18: 82.5 | P18: 82.5 | Q18: 83.6 | R18: 84.5 | S18: 85.3 | T18: 86.5 | U18: 88.2 | V18: 90.2 | W18: 91.8 | X18: 93.8 | Y18: 95 | Z18: 94.9 | AA18: 95.1 | AB18: 94.8 | AC18: 95.4 | AD18: 96.5 | AE18: 97.1 | AF18: 96.8 | AG18: 96.9 | AH18: 96.9 | AI18: 97.3 | AJ18: 97.5 | AK18: 97.3 | AL18: 96.9 | AM18: 97.1 | AN18: 95.8 | AO18: 95.7 | AP18: 96.2 | AQ18: 97.1 | AR18: 97.9 | AS18: 97.8 | AT18: 98.8 | AU18: 99.8 | AV18: 100.3 | AW18: 100 | AX18: 101.2 | AY18: 104.2 | AZ18: 109.2 | BA18: 112.4 | BB18: 113.2 | BC18: 114 | BD18: 114.2
A19: <OBJ_12> | B19: Schweiz | C19: Renovation Bürogebäude | D19: 11.5 | E19: … | F19: … | G19: … | H19: … | I19: … | J19: … | K19: … | L19: … | M19: … | N19: … | O19: … | P19: … | Q19: … | R19: … | S19: … | T19: … | U19: … | V19: … | W19: … | X19: … | Y19: … | Z19: … | AA19: … | AB19: … | AC19: 96.3 | AD19: 97.5 | AE19: 98.5 | AF19: 98.6 | AG19: 99.1 | AH19: 99.6 | AI19: 100.2 | AJ19: 99.9 | AK19: 99.8 | AL19: 99.4 | AM19: 100.2 | AN19: 99.6 | AO19: 99.2 | AP19: 98.5 | AQ19: 98.1 | AR19: 98.5 | AS19: 98.7 | AT19: 99.5 | AU19: 100 | AV19: 100.1 | AW19: 100 | AX19: 101.8 | AY19: 104.4 | AZ19: 108.9 | BA19: 112.4 | BB19: 113.2 | BC19: 113.8 | BD19: 114.4
A20: <OBJ_13> | B20: Schweiz | C20: Tiefbau | D20: 22.33 | E20: 73 | F20: 74.4 | G20: 77.2 | H20: 78.9 | I20: 81.3 | J20: 84.3 | K20: 83.3 | L20: 81.8 | M20: 80.8 | N20: 80.4 | O20: 81.1 | P20: 82.7 | Q20: 84.9 | R20: 84.5 | S20: 86.6 | T20: 87.4 | U20: 90 | V20: 91.5 | W20: 93.1 | X20: 94.2 | Y20: 96.1 | Z20: 92.4 | AA20: 92.9 | AB20: 93.8 | AC20: 93.8 | AD20: 95.7 | AE20: 96.7 | AF20: 97.3 | AG20: 97.9 | AH20: 98.3 | AI20: 99.2 | AJ20: 98.2 | AK20: 98.8 | AL20: 98.2 | AM20: 98.5 | AN20: 98.3 | AO20: 98.6 | AP20: 98.6 | AQ20: 98.5 | AR20: 98.3 | AS20: 99.1 | AT20: 99.1 | AU20: 99.7 | AV20: 99.9 | AW20: 100 | AX20: 101.1 | AY20: 102.4 | AZ20: 107.5 | BA20: 111.1 | BB20: 112.4 | BC20: 113.6 | BD20: 114.3
A21: <OBJ_14> | B21: Schweiz | C21: Neubau Strasse | D21: 3.44 | E21: 74.5 | F21: 76 | G21: 78.8 | H21: 80.5 | I21: 83 | J21: 86 | K21: 84.7 | L21: 83.2 | M21: 82.1 | N21: 81.6 | O21: 82.3 | P21: 83.3 | Q21: 84.5 | R21: 84.4 | S21: 86.3 | T21: 87.4 | U21: 90.5 | V21: 91.5 | W21: 93.5 | X21: 94 | Y21: 95 | Z21: 91.7 | AA21: 92.4 | AB21: 93.5 | AC21: 93 | AD21: 94.8 | AE21: 95.9 | AF21: 96.5 | AG21: 97.2 | AH21: 97.8 | AI21: 98.7 | AJ21: 97.9 | AK21: 98.5 | AL21: 97.9 | AM21: 98.4 | AN21: 98.3 | AO21: 98.5 | AP21: 98.7 | AQ21: 98.4 | AR21: 98.2 | AS21: 99 | AT21: 98.9 | AU21: 99.5 | AV21: 99.8 | AW21: 100 | AX21: 101.5 | AY21: 103.2 | AZ21: 107.1 | BA21: 110.3 | BB21: 111.8 | BC21: 113 | BD21: 114
A22: <OBJ_15> | B22: Schweiz | C22: Neubau Unterführung | D22: 1.71 | E22: … | F22: … | G22: … | H22: … | I22: … | J22: 85.6 | K22: 84.9 | L22: 83.2 | M22: 82.4 | N22: 82 | O22: 82.8 | P22: 85.2 | Q22: 88.3 | R22: 87.6 | S22: 90.1 | T22: 90.6 | U22: 92.8 | V22: 94.7 | W22: 96.1 | X22: 97.8 | Y22: 100.7 | Z22: 96.4 | AA22: 96.8 | AB22: 97.4 | AC22: 97.9 | AD22: 100.8 | AE22: 101.5 | AF22: 101.9 | AG22: 101.8 | AH22: 101.3 | AI22: 102 | AJ22: 100.2 | AK22: 101 | AL22: 100.1 | AM22: 99.2 | AN22: 98.6 | AO22: 99.1 | AP22: 98.4 | AQ22: 98.7 | AR22: 98.8 | AS22: 99.7 | AT22: 99.9 | AU22: 100.9 | AV22: 100.7 | AW22: 100 | AX22: 102.4 | AY22: 104.7 | AZ22: 112 | BA22: 115.2 | BB22: 115.2 | BC22: 114.1 | BD22: 114.3
A23: <OBJ_16> | B23: Schweiz | C23: Neubau Lärmschutzwand | D23: 0.07 | E23: … | F23: … | G23: … | H23: … | I23: … | J23: … | K23: … | L23: … | M23: … | N23: … | O23: … | P23: … | Q23: … | R23: … | S23: … | T23: … | U23: … | V23: … | W23: … | X23: … | Y23: … | Z23: … | AA23: … | AB23: … | AC23: 92.2 | AD23: 92.7 | AE23: 93.6 | AF23: 93.9 | AG23: 95.2 | AH23: 95.5 | AI23: 95.6 | AJ23: 95.5 | AK23: 95.9 | AL23: 94.2 | AM23: 96 | AN23: 96.1 | AO23: 95.9 | AP23: 96.8 | AQ23: 98.6 | AR23: 97.7 | AS23: 98.8 | AT23: 99.3 | AU23: 99 | AV23: 99.8 | AW23: 100 | AX23: 101.2 | AY23: 102.7 | AZ23: 107.7 | BA23: 111.5 | BB23: 112.4 | BC23: 112.9 | BD23: 111.4
A24: <OBJ_17> | B24: Schweiz | C24: Strassensanierung | D24: 17.11 | E24: … | F24: … | G24: … | H24: … | I24: … | J24: … | K24: … | L24: … | M24: … | N24: … | O24: … | P24: … | Q24: … | R24: … | S24: … | T24: … | U24: … | V24: … | W24: … | X24: … | Y24: … | Z24: … | AA24: … | AB24: … | AC24: … | AD24: … | AE24: … | AF24: … | AG24: … | AH24: … | AI24: … | AJ24: … | AK24: … | AL24: … | AM24: … | AN24: … | AO24: … | AP24: … | AQ24: … | AR24: … | AS24: … | AT24: … | AU24: … | AV24: … | AW24: 100 | AX24: 100.8 | AY24: 102 | AZ24: 107.1 | BA24: 110.8 | BB24: 112.2 | BC24: 113.6 | BD24: 114.3
A26: <REG_02> | B26: Genferseeregion | C26: Genferseeregion
A27: <OBJ_02> | B27: Genferseeregion | C27: Baugewerbe : Total | D27: 100 | E27: 74.9 | F27: 75.9 | G27: 78.3 | H27: 79.7 | I27: 81.7 | J27: 84.6 | K27: 84.7 | L27: 85.8 | M27: 84.5 | N27: 84.8 | O27: 84.6 | P27: 85.9 | Q27: 88 | R27: 89 | S27: 90.3 | T27: 91.9 | U27: 93.9 | V27: 95.6 | W27: 97.4 | X27: 99.1 | Y27: 100.4 | Z27: 98.4 | AA27: 98.3 | AB27: 98.4 | AC27: 98.4 | AD27: 100.2 | AE27: 100.7 | AF27: 100.4 | AG27: 100.4 | AH27: 100.6 | AI27: 101.3 | AJ27: 100.8 | AK27: 100.6 | AL27: 99.9 | AM27: 101.1 | AN27: 99.9 | AO27: 99.1 | AP27: 99.3 | AQ27: 99.4 | AR27: 99.5 | AS27: 99.5 | AT27: 99.8 | AU27: 100.3 | AV27: 100.3 | AW27: 100 | AX27: 101.2 | AY27: 103.7 | AZ27: 108.5 | BA27: 111.2 | BB27: 113.4 | BC27: 113.9 | BD27: 114
A28: <OBJ_03> | B28: Genferseeregion | C28: Hochbau | D28: 77.33 | E28: 75 | F28: 75.9 | G28: 78.1 | H28: 79.9 | I28: 81.7 | J28: 83.7 | K28: 83.6 | L28: 84.9 | M28: 84.4 | N28: 84.4 | O28: 83.9 | P28: 84.7 | Q28: 86.3 | R28: 87.8 | S28: 89 | T28: 91 | U28: 92.8 | V28: 94.5 | W28: 96.5 | X28: 98.2 | Y28: 99.6 | Z28: 98.1 | AA28: 98.1 | AB28: 98 | AC28: 98.5 | AD28: 100.3 | AE28: 100.8 | AF28: 100.1 | AG28: 100.3 | AH28: 100.6 | AI28: 101.3 | AJ28: 101.1 | AK28: 100.6 | AL28: 99.9 | AM28: 100.9 | AN28: 99.7 | AO28: 99.1 | AP28: 99.3 | AQ28: 99.4 | AR28: 99.6 | AS28: 99.7 | AT28: 99.8 | AU28: 100.2 | AV28: 100.3 | AW28: 100 | AX28: 101 | AY28: 103.7 | AZ28: 108.5 | BA28: 111.4 | BB28: 113.4 | BC28: 113.7 | BD28: 113.6
A29: <OBJ_04> | B29: Genferseeregion | C29: Neubau | D29: 46.34 | E29: 75.4 | F29: 76.4 | G29: 78.8 | H29: 80.6 | I29: 82.4 | J29: 84.9 | K29: 84.6 | L29: 85.9 | M29: 85.2 | N29: 84.9 | O29: 84.4 | P29: 85.3 | Q29: 87.1 | R29: 88.3 | S29: 89.6 | T29: 91.5 | U29: 93.6 | V29: 95 | W29: 96.9 | X29: 98.3 | Y29: 99.9 | Z29: 98.1 | AA29: 97.8 | AB29: 97.7 | AC29: 98.4 | AD29: 100.3 | AE29: 100.9 | AF29: 100.1 | AG29: 100.3 | AH29: 100.5 | AI29: 101 | AJ29: 101.2 | AK29: 100.5 | AL29: 99.8 | AM29: 100.8 | AN29: 99.9 | AO29: 99.2 | AP29: 99.4 | AQ29: 99.4 | AR29: 99.6 | AS29: 99.7 | AT29: 99.8 | AU29: 100.4 | AV29: 100.4 | AW29: 100 | AX29: 101.4 | AY29: 104.1 | AZ29: 108.9 | BA29: 112.2 | BB29: 114 | BC29: 114.4 | BD29: 114.3
A30: <OBJ_05> | B30: Genferseeregion | C30: Neubau Mehrfamilienhaus | D30: 26.47 | E30: 75.6 | F30: 76.7 | G30: 78.7 | H30: 80.8 | I30: 82.6 | J30: 85.1 | K30: 84.5 | L30: 85.5 | M30: 84.9 | N30: 84.5 | O30: 84 | P30: 85 | Q30: 86.9 | R30: 88.1 | S30: 89.5 | T30: 91.4 | U30: 93.5 | V30: 94.7 | W30: 96.3 | X30: 97.7 | Y30: 99.5 | Z30: 97.4 | AA30: 97.3 | AB30: 97.1 | AC30: 97.7 | AD30: 99.6 | AE30: 100.1 | AF30: 99.4 | AG30: 99.8 | AH30: 99.8 | AI30: 100.2 | AJ30: 100.5 | AK30: 99.8 | AL30: 99.2 | AM30: 100.4 | AN30: 99.5 | AO30: 98.9 | AP30: 99.2 | AQ30: 99.4 | AR30: 99.9 | AS30: 99.9 | AT30: 100 | AU30: 100.4 | AV30: 100.6 | AW30: 100 | AX30: 101.4 | AY30: 104 | AZ30: 108.6 | BA30: 112.1 | BB30: 114 | BC30: 114.4 | BD30: 114.2
A31: <OBJ_06> | B31: Genferseeregion | C31: Neubau Mehrfamilienhaus aus Holz | D31: 0.95 | E31: … | F31: … | G31: … | H31: … | I31: … | J31: … | K31: … | L31: … | M31: … | N31: 84.5 | O31: 84.5 | P31: 85.6 | Q31: 87.4 | R31: 88.5 | S31: 90.3 | T31: 92.2 | U31: 93.7 | V31: 95.3 | W31: 97.3 | X31: 99.4 | Y31: 100.8 | Z31: 98.5 | AA31: 98.6 | AB31: 98.6 | AC31: 98.8 | AD31: 101.1 | AE31: 102.5 | AF31: 101.4 | AG31: 101.3 | AH31: 102.1 | AI31: 102.4 | AJ31: 102.6 | AK31: 102 | AL31: 101.3 | AM31: 102.1 | AN31: 100.8 | AO31: 100.1 | AP31: 100.2 | AQ31: 100.4 | AR31: 100.3 | AS31: 100 | AT31: 100.6 | AU31: 100 | AV31: 99.8 | AW31: 100 | AX31: 101.9 | AY31: 104.6 | AZ31: 109.2 | BA31: 112.3 | BB31: 114.8 | BC31: 115 | BD31: 115.1
A32: <OBJ_07> | B32: Genferseeregion | C32: Neubau Einfamilienhaus | D32: 7.58 | E32: … | F32: … | G32: … | H32: … | I32: … | J32: … | K32: … | L32: … | M32: … | N32: … | O32: … | P32: … | Q32: … | R32: … | S32: … | T32: … | U32: … | V32: … | W32: … | X32: … | Y32: … | Z32: … | AA32: … | AB32: … | AC32: 98.7 | AD32: 100.5 | AE32: 101 | AF32: 100 | AG32: 100.1 | AH32: 100.1 | AI32: 101.1 | AJ32: 102.2 | AK32: 101.3 | AL32: 100.8 | AM32: 102.2 | AN32: 100.9 | AO32: 100.5 | AP32: 100.1 | AQ32: 100.4 | AR32: 100.7 | AS32: 100.3 | AT32: 100.5 | AU32: 100.4 | AV32: 100.2 | AW32: 100 | AX32: 100.3 | AY32: 102.6 | AZ32: 107.1 | BA32: 109.9 | BB32: 111.8 | BC32: 112.4 | BD32: 112.3
A33: <OBJ_08> | B33: Genferseeregion | C33: Neubau Bürogebäude | D33: 6.79 | E33: 74.9 | F33: 75.9 | G33: 79.5 | H33: 80.5 | I33: 82.2 | J33: 84.5 | K33: 85.1 | L33: 87.6 | M33: 86.9 | N33: 86.7 | O33: 86.1 | P33: 86.9 | Q33: 88.2 | R33: 89.5 | S33: 90.4 | T33: 92.3 | U33: 94.4 | V33: 96.4 | W33: 99.3 | X33: 100.9 | Y33: 101.8 | Z33: 100.6 | AA33: 100.2 | AB33: 100.1 | AC33: 101.2 | AD33: 103.4 | AE33: 103.7 | AF33: 102.6 | AG33: 102.7 | AH33: 103 | AI33: 103.2 | AJ33: 101.9 | AK33: 101.9 | AL33: 100.5 | AM33: 100.9 | AN33: 100.4 | AO33: 99.3 | AP33: 99.4 | AQ33: 98.4 | AR33: 98 | AS33: 98.8 | AT33: 98.4 | AU33: 100.4 | AV33: 100.2 | AW33: 100 | AX33: 102.1 | AY33: 105.2 | AZ33: 111.1 | BA33: 114.4 | BB33: 116 | BC33: 116.4 | BD33: 116.8
A34: <OBJ_09> | B34: Genferseeregion | C34: Neubau Lagerhalle | D34: 4.55 | E34: … | F34: … | G34: … | H34: … | I34: … | J34: … | K34: … | L34: … | M34: … | N34: … | O34: … | P34: … | Q34: … | R34: … | S34: … | T34: … | U34: … | V34: … | W34: … | X34: … | Y34: … | Z34: … | AA34: … | AB34: … | AC34: 97.7 | AD34: 99.6 | AE34: 100 | AF34: 100.2 | AG34: 100.2 | AH34: 100.9 | AI34: 101.7 | AJ34: 101.2 | AK34: 100.5 | AL34: 99.6 | AM34: 100.4 | AN34: 98.9 | AO34: 98.5 | AP34: 98.6 | AQ34: 99.1 | AR34: 99.4 | AS34: 99.3 | AT34: 99.5 | AU34: 100.5 | AV34: 100 | AW34: 100 | AX34: 102.2 | AY34: 105.2 | AZ34: 111 | BA34: 113.5 | BB34: 114.4 | BC34: 114.2 | BD34: 114.8
A35: <OBJ_10> | B35: Genferseeregion | C35: Renovation, Umbau | D35: 30.99 | E35: … | F35: … | G35: … | H35: … | I35: … | J35: … | K35: … | L35: … | M35: … | N35: … | O35: … | P35: … | Q35: … | R35: … | S35: … | T35: … | U35: … | V35: … | W35: … | X35: … | Y35: … | Z35: … | AA35: … | AB35: … | AC35: 99.5 | AD35: 101.1 | AE35: 101.6 | AF35: 101 | AG35: 101.2 | AH35: 101.6 | AI35: 102.4 | AJ35: 101.9 | AK35: 101.6 | AL35: 101 | AM35: 101.9 | AN35: 100.4 | AO35: 99.9 | AP35: 99.9 | AQ35: 99.9 | AR35: 100.1 | AS35: 100.1 | AT35: 100.2 | AU35: 100.1 | AV35: 100.2 | AW35: 100 | AX35: 100.5 | AY35: 103.1 | AZ35: 107.8 | BA35: 110.2 | BB35: 112.5 | BC35: 112.6 | BD35: 112.4
A36: <OBJ_11> | B36: Genferseeregion | C36: Renovation Mehrfamilienhaus | D36: 21.69 | E36: 69.7 | F36: 70.3 | G36: 72 | H36: 73.8 | I36: 75.3 | J36: 76.5 | K36: 76.8 | L36: 77.9 | M36: 77.7 | N36: 78.3 | O36: 78 | P36: 78.5 | Q36: 79.5 | R36: 81.5 | S36: 82.5 | T36: 84.4 | U36: 85.7 | V36: 87.8 | W36: 89.8 | X36: 91.9 | Y36: 92.8 | Z36: 92 | AA36: 92.4 | AB36: 92.3 | AC36: 92.6 | AD36: 94.1 | AE36: 94.5 | AF36: 93.8 | AG36: 94 | AH36: 94.3 | AI36: 94.9 | AJ36: 94.9 | AK36: 94.5 | AL36: 94.1 | AM36: 95 | AN36: 93.1 | AO36: 93 | AP36: 94.4 | AQ36: 95.7 | AR36: 96.5 | AS36: 96.4 | AT36: 97.2 | AU36: 99.4 | AV36: 100 | AW36: 100 | AX36: 100.3 | AY36: 102.9 | AZ36: 107.4 | BA36: 109.5 | BB36: 112 | BC36: 112.2 | BD36: 111.8
A37: <OBJ_12> | B37: Genferseeregion | C37: Renovation Bürogebäude | D37: 9.3 | E37: … | F37: … | G37: … | H37: … | I37: … | J37: … | K37: … | L37: … | M37: … | N37: … | O37: … | P37: … | Q37: … | R37: … | S37: … | T37: … | U37: … | V37: … | W37: … | X37: … | Y37: … | Z37: … | AA37: … | AB37: … | AC37: 97.2 | AD37: 98.5 | AE37: 99.4 | AF37: 98.9 | AG37: 99.1 | AH37: 99.8 | AI37: 100.7 | AJ37: 99.3 | AK37: 99.2 | AL37: 98.4 | AM37: 99.3 | AN37: 98.5 | AO37: 97.5 | AP37: 98.1 | AQ37: 97.5 | AR37: 96.8 | AS37: 97.3 | AT37: 97.7 | AU37: 99.1 | AV37: 99.6 | AW37: 100 | AX37: 100.8 | AY37: 103.5 | AZ37: 108.7 | BA37: 111.7 | BB37: 113.8 | BC37: 113.7 | BD37: 113.7
A38: <OBJ_13> | B38: Genferseeregion | C38: Tiefbau | D38: 22.67 | E38: 74.4 | F38: 75.6 | G38: 78.8 | H38: 78.9 | I38: 81.6 | J38: 87.2 | K38: 87.9 | L38: 88.5 | M38: 84.5 | N38: 85.9 | O38: 86.6 | P38: 89.3 | Q38: 93 | R38: 92.5 | S38: 94 | T38: 94.6 | U38: 97.2 | V38: 99 | W38: 100.1 | X38: 101.5 | Y38: 102.7 | Z38: 99.1 | AA38: 98.6 | AB38: 99.6 | AC38: 97.7 | AD38: 99.9 | AE38: 100 | AF38: 101.5 | AG38: 100.6 | AH38: 100.7 | AI38: 101.6 | AJ38: 99.3 | AK38: 100.3 | AL38: 99.5 | AM38: 101.6 | AN38: 100.5 | AO38: 99 | AP38: 99.4 | AQ38: 99.7 | AR38: 99.2 | AS38: 98.9 | AT38: 99.7 | AU38: 100.8 | AV38: 100.6 | AW38: 100 | AX38: 101.6 | AY38: 103.6 | AZ38: 108.6 | BA38: 110.6 | BB38: 113.3 | BC38: 114.6 | BD38: 115.5
A39: <OBJ_14> | B39: Genferseeregion | C39: Neubau Strasse | D39: 4.75 | E39: 77.5 | F39: 78.8 | G39: 82.1 | H39: 82.2 | I39: 85 | J39: 90.8 | K39: 91 | L39: 92.3 | M39: 87.4 | N39: 88.1 | O39: 88.1 | P39: 90.7 | Q39: 93 | R39: 92.8 | S39: 93.2 | T39: 94.6 | U39: 98.7 | V39: 100.2 | W39: 101.3 | X39: 102 | Y39: 103 | Z39: 100 | AA39: 99 | AB39: 100.7 | AC39: 97.6 | AD39: 99.6 | AE39: 99.6 | AF39: 101.2 | AG39: 100.2 | AH39: 100.5 | AI39: 101.6 | AJ39: 99.3 | AK39: 100.4 | AL39: 99.7 | AM39: 101.9 | AN39: 100.9 | AO39: 99.4 | AP39: 100.1 | AQ39: 100.4 | AR39: 99.4 | AS39: 99.1 | AT39: 99.8 | AU39: 100.8 | AV39: 100.6 | AW39: 100 | AX39: 101.6 | AY39: 103.9 | AZ39: 107.8 | BA39: 109.8 | BB39: 112.4 | BC39: 113.7 | BD39: 115.1
A40: <OBJ_15> | B40: Genferseeregion | C40: Neubau Unterführung | D40: 1.85 | E40: … | F40: … | G40: … | H40: … | I40: … | J40: 84.8 | K40: 86.1 | L40: 86.1 | M40: 82.8 | N40: 84.9 | O40: 86.3 | P40: 89.1 | Q40: 94.2 | R40: 93.3 | S40: 95.9 | T40: 95.8 | U40: 97 | V40: 99.1 | W40: 100.2 | X40: 102.2 | Y40: 103.6 | Z40: 99.4 | AA40: 99.4 | AB40: 99.7 | AC40: 99 | AD40: 102.1 | AE40: 102.8 | AF40: 103.6 | AG40: 103 | AH40: 102.3 | AI40: 102.1 | AJ40: 99.6 | AK40: 100.2 | AL40: 99.3 | AM40: 100.4 | AN40: 98.6 | AO40: 97.5 | AP40: 96.5 | AQ40: 97.1 | AR40: 98.1 | AS40: 98.1 | AT40: 99.5 | AU40: 100.9 | AV40: 100.8 | AW40: 100 | AX40: 103.1 | AY40: 105.8 | AZ40: 114.1 | BA40: 115.9 | BB40: 116.4 | BC40: 115.2 | BD40: 115.4
A41: <OBJ_16> | B41: Genferseeregion | C41: Neubau Lärmschutzwand | D41: 0.07 | E41: … | F41: … | G41: … | H41: … | I41: … | J41: … | K41: … | L41: … | M41: … | N41: … | O41: … | P41: … | Q41: … | R41: … | S41: … | T41: … | U41: … | V41: … | W41: … | X41: … | Y41: … | Z41: … | AA41: … | AB41: … | AC41: 94.2 | AD41: 94.8 | AE41: 95.6 | AF41: 97 | AG41: 98 | AH41: 98.6 | AI41: 98 | AJ41: 97.3 | AK41: 97.8 | AL41: 96.1 | AM41: 98.5 | AN41: 98.4 | AO41: 97.6 | AP41: 98.3 | AQ41: 100.2 | AR41: 99.2 | AS41: 99.5 | AT41: 100.1 | AU41: 99.9 | AV41: 100.2 | AW41: 100 | AX41: 101.4 | AY41: 102.8 | AZ41: 107.6 | BA41: 110.9 | BB41: 112 | BC41: 112.3 | BD41: 110.7
A42: <OBJ_17> | B42: Genferseeregion | C42: Strassensanierung | D42: 16 | E42: … | F42: … | G42: … | H42: … | I42: … | J42: … | K42: … | L42: … | M42: … | N42: … | O42: … | P42: … | Q42: … | R42: … | S42: … | T42: … | U42: … | V42: … | W42: … | X42: … | Y42: … | Z42: … | AA42: … | AB42: … | AC42: … | AD42: … | AE42: … | AF42: … | AG42: … | AH42: … | AI42: … | AJ42: … | AK42: … | AL42: … | AM42: … | AN42: … | AO42: … | AP42: … | AQ42: … | AR42: … | AS42: … | AT42: … | AU42: … | AV42: … | AW42: 100 | AX42: 101.4 | AY42: 103.2 | AZ42: 108.2 | BA42: 110.2 | BB42: 113.2 | BC42: 114.8 | BD42: 115.7
A44: <REG_03> | B44: Espace Mittelland | C44: Espace Mittelland
A45: <OBJ_02> | B45: Espace Mittelland | C45: Baugewerbe : Total | D45: 100 | E45: 77.5 | F45: 79.2 | G45: 80.6 | H45: 81.9 | I45: 83.6 | J45: 86.5 | K45: 87.2 | L45: 86.6 | M45: 85.4 | N45: 84.5 | O45: 84.8 | P45: 85.6 | Q45: 87.4 | R45: 87.5 | S45: 88.7 | T45: 90.3 | U45: 92.9 | V45: 93.4 | W45: 95.1 | X45: 97 | Y45: 99.2 | Z45: 96.5 | AA45: 96.7 | AB45: 96.8 | AC45: 97.8 | AD45: 98.8 | AE45: 99.5 | AF45: 99.7 | AG45: 99.9 | AH45: 99.5 | AI45: 99.9 | AJ45: 99.3 | AK45: 99.8 | AL45: 99 | AM45: 99.4 | AN45: 99.1 | AO45: 98.5 | AP45: 97.9 | AQ45: 98.3 | AR45: 98.5 | AS45: 99.4 | AT45: 99.8 | AU45: 99.8 | AV45: 100.3 | AW45: 100 | AX45: 101.4 | AY45: 104.6 | AZ45: 109.6 | BA45: 112.7 | BB45: 112.9 | BC45: 113.2 | BD45: 114.4
A46: <OBJ_03> | B46: Espace Mittelland | C46: Hochbau | D46: 77.4 | E46: 80.3 | F46: 81.8 | G46: 82.8 | H46: 84 | I46: 85.8 | J46: 87.9 | K46: 88.9 | L46: 89.1 | M46: 87.7 | N46: 86.7 | O46: 86.8 | P46: 87.1 | Q46: 88.8 | R46: 89.1 | S46: 89.8 | T46: 91.5 | U46: 93.8 | V46: 94.4 | W46: 96 | X46: 98 | Y46: 99.9 | Z46: 98.1 | AA46: 98 | AB46: 97.6 | AC46: 98.8 | AD46: 100 | AE46: 100.7 | AF46: 100.6 | AG46: 100.7 | AH46: 100 | AI46: 100.1 | AJ46: 99.7 | AK46: 99.8 | AL46: 99.3 | AM46: 99.7 | AN46: 99.6 | AO46: 98.8 | AP46: 98.2 | AQ46: 98.6 | AR46: 99.2 | AS46: 99.7 | AT46: 100.4 | AU46: 100.1 | AV46: 100.5 | AW46: 100 | AX46: 101.5 | AY46: 104.9 | AZ46: 110.3 | BA46: 113.3 | BB46: 113.7 | BC46: 113.7 | BD46: 114.9
A47: <OBJ_04> | B47: Espace Mittelland | C47: Neubau | D47: 41.8 | E47: 79.4 | F47: 81.1 | G47: 82.1 | H47: 83.6 | I47: 85.3 | J47: 87.6 | K47: 88.4 | L47: 88.8 | M47: 87.1 | N47: 86.2 | O47: 86.3 | P47: 86.8 | Q47: 88.5 | R47: 88.5 | S47: 89.3 | T47: 90.8 | U47: 93.4 | V47: 93.8 | W47: 95.2 | X47: 97.6 | Y47: 100 | Z47: 97.2 | AA47: 96.8 | AB47: 96.2 | AC47: 97.8 | AD47: 99 | AE47: 99.5 | AF47: 99.5 | AG47: 99.5 | AH47: 99 | AI47: 99.3 | AJ47: 99.1 | AK47: 99.3 | AL47: 98.7 | AM47: 98.9 | AN47: 98.8 | AO47: 98 | AP47: 97.7 | AQ47: 98.5 | AR47: 99 | AS47: 99.4 | AT47: 100 | AU47: 100 | AV47: 100.2 | AW47: 100 | AX47: 101.3 | AY47: 105.1 | AZ47: 110.5 | BA47: 113.6 | BB47: 114.5 | BC47: 114.3 | BD47: 115.4
A48: <OBJ_05> | B48: Espace Mittelland | C48: Neubau Mehrfamilienhaus | D48: 22.41 | E48: 79.5 | F48: 81.2 | G48: 82.1 | H48: 83.9 | I48: 85.5 | J48: 87.6 | K48: 88.4 | L48: 88.7 | M48: 86.9 | N48: 86 | O48: 86.1 | P48: 86.6 | Q48: 88.3 | R48: 88.3 | S48: 89.1 | T48: 90.5 | U48: 93.1 | V48: 93.4 | W48: 94.8 | X48: 97.2 | Y48: 99.6 | Z48: 96.8 | AA48: 96.4 | AB48: 95.8 | AC48: 97.5 | AD48: 98.4 | AE48: 98.8 | AF48: 98.7 | AG48: 98.6 | AH48: 98.2 | AI48: 98.5 | AJ48: 98.4 | AK48: 98.6 | AL48: 98.3 | AM48: 98.6 | AN48: 98.7 | AO48: 97.8 | AP48: 97.4 | AQ48: 98.5 | AR48: 99 | AS48: 99.5 | AT48: 100.1 | AU48: 100.3 | AV48: 100.4 | AW48: 100 | AX48: 101.1 | AY48: 104.7 | AZ48: 109.6 | BA48: 112.9 | BB48: 113.9 | BC48: 113.9 | BD48: 114.9
A49: <OBJ_06> | B49: Espace Mittelland | C49: Neubau Mehrfamilienhaus aus Holz | D49: 6.02 | E49: … | F49: … | G49: … | H49: … | I49: … | J49: … | K49: … | L49: … | M49: … | N49: 87.1 | O49: 86.9 | P49: 87.6 | Q49: 89.1 | R49: 89.5 | S49: 90 | T49: 91.4 | U49: 93.9 | V49: 94.8 | W49: 96.3 | X49: 98.5 | Y49: 100.2 | Z49: 97.9 | AA49: 98.2 | AB49: 96.6 | AC49: 98.3 | AD49: 99.8 | AE49: 100.4 | AF49: 99.7 | AG49: 99.9 | AH49: 98.8 | AI49: 99.3 | AJ49: 99.6 | AK49: 99.4 | AL49: 99 | AM49: 99.1 | AN49: 99.5 | AO49: 98.4 | AP49: 98.6 | AQ49: 98.8 | AR49: 99.4 | AS49: 99.6 | AT49: 100 | AU49: 98.9 | AV49: 99.2 | AW49: 100 | AX49: 102 | AY49: 106.6 | AZ49: 112.1 | BA49: 114.7 | BB49: 115.7 | BC49: 114.8 | BD49: 115.5
A50: <OBJ_07> | B50: Espace Mittelland | C50: Neubau Einfamilienhaus | D50: 5.84 | E50: … | F50: … | G50: … | H50: … | I50: … | J50: … | K50: … | L50: … | M50: … | N50: … | O50: … | P50: … | Q50: … | R50: … | S50: … | T50: … | U50: … | V50: … | W50: … | X50: … | Y50: … | Z50: … | AA50: … | AB50: … | AC50: 96.6 | AD50: 97.8 | AE50: 98.3 | AF50: 98.7 | AG50: 98.6 | AH50: 97.7 | AI50: 98.1 | AJ50: 98.6 | AK50: 98.8 | AL50: 98.4 | AM50: 98.3 | AN50: 98.2 | AO50: 97.4 | AP50: 97 | AQ50: 97.6 | AR50: 98.8 | AS50: 98.8 | AT50: 99.7 | AU50: 99.6 | AV50: 100.1 | AW50: 100 | AX50: 101.1 | AY50: 104.2 | AZ50: 109.8 | BA50: 112.8 | BB50: 114.3 | BC50: 113.9 | BD50: 115.3
A51: <OBJ_08> | B51: Espace Mittelland | C51: Neubau Bürogebäude | D51: 3.57 | E51: 80.4 | F51: 82.5 | G51: 83.7 | H51: 84.4 | I51: 86.3 | J51: 89 | K51: 90 | L51: 90.8 | M51: 89.3 | N51: 88.7 | O51: 88.5 | P51: 89.1 | Q51: 90.8 | R51: 90.9 | S51: 91.6 | T51: 93.5 | U51: 96 | V51: 97 | W51: 98.3 | X51: 100.7 | Y51: 103.1 | Z51: 100.7 | AA51: 99.9 | AB51: 99.3 | AC51: 100.7 | AD51: 102.9 | AE51: 103.8 | AF51: 103.9 | AG51: 104.3 | AH51: 104.2 | AI51: 104 | AJ51: 102.4 | AK51: 102.7 | AL51: 100.7 | AM51: 101.2 | AN51: 100 | AO51: 100.1 | AP51: 98.7 | AQ51: 98.8 | AR51: 98.8 | AS51: 99.5 | AT51: 100.4 | AU51: 100.6 | AV51: 101 | AW51: 100 | AX51: 101.3 | AY51: 104.9 | AZ51: 112 | BA51: 115.6 | BB51: 115.9 | BC51: 116.4 | BD51: 118.8
A52: <OBJ_09> | B52: Espace Mittelland | C52: Neubau Lagerhalle | D52: 3.96 | E52: … | F52: … | G52: … | H52: … | I52: … | J52: … | K52: … | L52: … | M52: … | N52: … | O52: … | P52: … | Q52: … | R52: … | S52: … | T52: … | U52: … | V52: … | W52: … | X52: … | Y52: … | Z52: … | AA52: … | AB52: … | AC52: 97.4 | AD52: 98.7 | AE52: 99.2 | AF52: 99.8 | AG52: 99.7 | AH52: 99.3 | AI52: 99.5 | AJ52: 99 | AK52: 99.2 | AL52: 98.2 | AM52: 98.5 | AN52: 97.7 | AO52: 97.2 | AP52: 97.3 | AQ52: 98.9 | AR52: 98.9 | AS52: 99.4 | AT52: 99.8 | AU52: 100.1 | AV52: 100 | AW52: 100 | AX52: 101.8 | AY52: 106.1 | AZ52: 112.5 | BA52: 115 | BB52: 115 | BC52: 114 | BD52: 115.6
A53: <OBJ_10> | B53: Espace Mittelland | C53: Renovation, Umbau | D53: 35.6 | E53: … | F53: … | G53: … | H53: … | I53: … | J53: … | K53: … | L53: … | M53: … | N53: … | O53: … | P53: … | Q53: … | R53: … | S53: … | T53: … | U53: … | V53: … | W53: … | X53: … | Y53: … | Z53: … | AA53: … | AB53: … | AC53: 100.1 | AD53: 101.1 | AE53: 102.2 | AF53: 101.9 | AG53: 102.2 | AH53: 101.2 | AI53: 101.2 | AJ53: 100.4 | AK53: 100.5 | AL53: 100.1 | AM53: 100.7 | AN53: 100.7 | AO53: 99.9 | AP53: 99 | AQ53: 98.8 | AR53: 99.4 | AS53: 100.1 | AT53: 100.8 | AU53: 100.3 | AV53: 100.9 | AW53: 100 | AX53: 101.6 | AY53: 104.7 | AZ53: 110.2 | BA53: 112.9 | BB53: 112.8 | BC53: 113 | BD53: 114.2
A54: <OBJ_11> | B54: Espace Mittelland | C54: Renovation Mehrfamilienhaus | D54: 26.12 | E54: 80.5 | F54: 81.5 | G54: 82.6 | H54: 83.2 | I54: 85.2 | J54: 86.9 | K54: 88.2 | L54: 87.9 | M54: 87.1 | N54: 85.9 | O54: 86 | P54: 86 | Q54: 87.7 | R54: 88.3 | S54: 89.1 | T54: 90.9 | U54: 92.7 | V54: 93.6 | W54: 95.6 | X54: 96.9 | Y54: 97.8 | Z54: 97.8 | AA54: 98.2 | AB54: 98.4 | AC54: 98.8 | AD54: 99.7 | AE54: 100.8 | AF54: 100.3 | AG54: 100.4 | AH54: 99.3 | AI54: 99.4 | AJ54: 99.3 | AK54: 99.2 | AL54: 99.2 | AM54: 99.2 | AN54: 98.9 | AO54: 98.2 | AP54: 97.4 | AQ54: 98.1 | AR54: 99.2 | AS54: 99.5 | AT54: 100.2 | AU54: 100.1 | AV54: 100.8 | AW54: 100 | AX54: 101.7 | AY54: 105 | AZ54: 110.8 | BA54: 113.5 | BB54: 113.3 | BC54: 113.4 | BD54: 114.5
A55: <OBJ_12> | B55: Espace Mittelland | C55: Renovation Bürogebäude | D55: 9.48 | E55: … | F55: … | G55: … | H55: … | I55: … | J55: … | K55: … | L55: … | M55: … | N55: … | O55: … | P55: … | Q55: … | R55: … | S55: … | T55: … | U55: … | V55: … | W55: … | X55: … | Y55: … | Z55: … | AA55: … | AB55: … | AC55: 98.7 | AD55: 100 | AE55: 101 | AF55: 101 | AG55: 101.5 | AH55: 100.6 | AI55: 100.5 | AJ55: 98.9 | AK55: 99.3 | AL55: 98.2 | AM55: 99.6 | AN55: 99.2 | AO55: 99 | AP55: 97.7 | AQ55: 97.9 | AR55: 98.3 | AS55: 99.1 | AT55: 99.7 | AU55: 99.9 | AV55: 99.6 | AW55: 100 | AX55: 101.5 | AY55: 104 | AZ55: 108.6 | BA55: 111.4 | BB55: 111.3 | BC55: 112 | BD55: 113.2
A56: <OBJ_13> | B56: Espace Mittelland | C56: Tiefbau | D56: 22.6 | E56: 69.2 | F56: 71 | G56: 73.6 | H56: 75.2 | I56: 76.6 | J56: 81.7 | K56: 81.5 | L56: 78.7 | M56: 78.3 | N56: 77.8 | O56: 78.4 | P56: 80.8 | Q56: 82.6 | R56: 82.4 | S56: 84.6 | T56: 86.4 | U56: 89.7 | V56: 89.7 | W56: 91.7 | X56: 93.4 | Y56: 96.4 | Z56: 91 | AA56: 92.3 | AB56: 93.7 | AC56: 94.1 | AD56: 94.3 | AE56: 95.1 | AF56: 96.4 | AG56: 96.6 | AH56: 97.9 | AI56: 98.9 | AJ56: 97.7 | AK56: 99.5 | AL56: 98.1 | AM56: 98.3 | AN56: 97.1 | AO56: 97.4 | AP56: 96.7 | AQ56: 97.1 | AR56: 96.3 | AS56: 98.2 | AT56: 97.8 | AU56: 98.3 | AV56: 99.4 | AW56: 100 | AX56: 101.1 | AY56: 103.3 | AZ56: 106.9 | BA56: 110.6 | BB56: 110.2 | BC56: 111.7 | BD56: 113.1
A57: <OBJ_14> | B57: Espace Mittelland | C57: Neubau Strasse | D57: 4.28 | E57: 69.6 | F57: 71.4 | G57: 74 | H57: 75.6 | I57: 77.1 | J57: 82.2 | K57: 82.5 | L57: 80.2 | M57: 79.4 | N57: 79.3 | O57: 79.8 | P57: 81.3 | Q57: 82.9 | R57: 82.4 | S57: 84.6 | T57: 87 | U57: 90.6 | V57: 89.7 | W57: 92.8 | X57: 94.4 | Y57: 95 | Z57: 89.8 | AA57: 90.9 | AB57: 93.7 | AC57: 93.5 | AD57: 93.5 | AE57: 94.3 | AF57: 95.6 | AG57: 95.9 | AH57: 97.5 | AI57: 98.6 | AJ57: 97.5 | AK57: 99.4 | AL57: 97.9 | AM57: 98.3 | AN57: 97.2 | AO57: 97.5 | AP57: 96.9 | AQ57: 97.2 | AR57: 96 | AS57: 98.1 | AT57: 97.4 | AU57: 98 | AV57: 99.4 | AW57: 100 | AX57: 101.2 | AY57: 103.7 | AZ57: 107.5 | BA57: 111.3 | BB57: 110.9 | BC57: 112.3 | BD57: 113.8
A58: <OBJ_15> | B58: Espace Mittelland | C58: Neubau Unterführung | D58: 1.94 | E58: … | F58: … | G58: … | H58: … | I58: … | J58: 83.6 | K58: 82.9 | L58: 79.7 | M58: 79.5 | N58: 78.6 | O58: 79.4 | P58: 82.6 | Q58: 84.8 | R58: 85 | S58: 87.1 | T58: 88.3 | U58: 91.5 | V58: 92.4 | W58: 93.4 | X58: 95.2 | Y58: 100.6 | Z58: 94.9 | AA58: 96.5 | AB58: 96.5 | AC58: 97.5 | AD58: 99.2 | AE58: 99.9 | AF58: 101.3 | AG58: 100.6 | AH58: 100.4 | AI58: 101.2 | AJ58: 98.9 | AK58: 101 | AL58: 100 | AM58: 98.3 | AN58: 96.6 | AO58: 97.2 | AP58: 95.7 | AQ58: 97.1 | AR58: 97.6 | AS58: 98.9 | AT58: 99.4 | AU58: 99.5 | AV58: 99.4 | AW58: 100 | AX58: 102.1 | AY58: 105.1 | AZ58: 110.3 | BA58: 114.6 | BB58: 114.5 | BC58: 114 | BD58: 114.6
A59: <OBJ_16> | B59: Espace Mittelland | C59: Neubau Lärmschutzwand | D59: 0.08 | E59: … | F59: … | G59: … | H59: … | I59: … | J59: … | K59: … | L59: … | M59: … | N59: … | O59: … | P59: … | Q59: … | R59: … | S59: … | T59: … | U59: … | V59: … | W59: … | X59: … | Y59: … | Z59: … | AA59: … | AB59: … | AC59: 91.9 | AD59: 91.8 | AE59: 92.8 | AF59: 93.4 | AG59: 94.7 | AH59: 95.4 | AI59: 95.7 | AJ59: 95.4 | AK59: 96.4 | AL59: 94.3 | AM59: 96 | AN59: 95.8 | AO59: 95.5 | AP59: 96.1 | AQ59: 98 | AR59: 96.9 | AS59: 98.2 | AT59: 98.9 | AU59: 98.5 | AV59: 99.6 | AW59: 100 | AX59: 101 | AY59: 102.5 | AZ59: 107.2 | BA59: 111.3 | BB59: 112.5 | BC59: 113.2 | BD59: 111.9
A60: <OBJ_17> | B60: Espace Mittelland | C60: Strassensanierung | D60: 16.3 | E60: … | F60: … | G60: … | H60: … | I60: … | J60: … | K60: … | L60: … | M60: … | N60: … | O60: … | P60: … | Q60: … | R60: … | S60: … | T60: … | U60: … | V60: … | W60: … | X60: … | Y60: … | Z60: … | AA60: … | AB60: … | AC60: … | AD60: … | AE60: … | AF60: … | AG60: … | AH60: … | AI60: … | AJ60: … | AK60: … | AL60: … | AM60: … | AN60: … | AO60: … | AP60: … | AQ60: … | AR60: … | AS60: … | AT60: … | AU60: … | AV60: … | AW60: 100 | AX60: 101 | AY60: 103 | AZ60: 106.3 | BA60: 110 | BB60: 109.5 | BC60: 111.2 | BD60: 112.7
A62: <REG_04> | B62: Nordwestschweiz | C62: Nordwestschweiz
A63: <OBJ_02> | B63: Nordwestschweiz | C63: Baugewerbe : Total | D63: 100 | E63: 84 | F63: 83.7 | G63: 86 | H63: 88.1 | I63: 90.7 | J63: 90.3 | K63: 89.1 | L63: 87.1 | M63: 87.2 | N63: 84.9 | O63: 85.6 | P63: 84.5 | Q63: 87.5 | R63: 88.8 | S63: 90 | T63: 90.7 | U63: 92.8 | V63: 94.5 | W63: 96.7 | X63: 97.7 | Y63: 99 | Z63: 96.8 | AA63: 95.8 | AB63: 96 | AC63: 97.3 | AD63: 97.9 | AE63: 98 | AF63: 98.4 | AG63: 99 | AH63: 100.4 | AI63: 101 | AJ63: 102.3 | AK63: 101.8 | AL63: 101.4 | AM63: 101.9 | AN63: 101.6 | AO63: 100.8 | AP63: 99.8 | AQ63: 100.4 | AR63: 99.9 | AS63: 99.8 | AT63: 100.7 | AU63: 100.5 | AV63: 100.5 | AW63: 100 | AX63: 102.5 | AY63: 105 | AZ63: 111.9 | BA63: 115.3 | BB63: 116.8 | BC63: 117.7 | BD63: 117.4
A64: <OBJ_03> | B64: Nordwestschweiz | C64: Hochbau | D64: 78.2 | E64: 82.7 | F64: 82.4 | G64: 84.9 | H64: 87 | I64: 88.8 | J64: 88.9 | K64: 88.9 | L64: 87.9 | M64: 88 | N64: 86.1 | O64: 85.8 | P64: 84.9 | Q64: 87.4 | R64: 89.4 | S64: 89.6 | T64: 90.3 | U64: 92.1 | V64: 93.3 | W64: 96.2 | X64: 97.9 | Y64: 99.3 | Z64: 97.8 | AA64: 97 | AB64: 97.2 | AC64: 98 | AD64: 98.9 | AE64: 99 | AF64: 99.3 | AG64: 99.7 | AH64: 101.2 | AI64: 101.6 | AJ64: 102.8 | AK64: 102.2 | AL64: 101.5 | AM64: 101.8 | AN64: 101.6 | AO64: 100.7 | AP64: 99.8 | AQ64: 100.3 | AR64: 99.9 | AS64: 99.7 | AT64: 100.7 | AU64: 100.7 | AV64: 100.7 | AW64: 100 | AX64: 102.2 | AY64: 105.4 | AZ64: 112.5 | BA64: 115.4 | BB64: 117.1 | BC64: 117.8 | BD64: 117.6
A65: <OBJ_04> | B65: Nordwestschweiz | C65: Neubau | D65: 46.5 | E65: 83.7 | F65: 83.7 | G65: 86.3 | H65: 88.2 | I65: 90.4 | J65: 90.2 | K65: 90 | L65: 88.9 | M65: 88.6 | N65: 86.2 | O65: 86 | P65: 84.8 | Q65: 88 | R65: 89.9 | S65: 90 | T65: 90.6 | U65: 92.6 | V65: 93.5 | W65: 96.9 | X65: 98.5 | Y65: 99.7 | Z65: 97.5 | AA65: 96.3 | AB65: 96.6 | AC65: 97.5 | AD65: 98.3 | AE65: 98.3 | AF65: 98.8 | AG65: 99.1 | AH65: 100.4 | AI65: 100.7 | AJ65: 101.5 | AK65: 100.9 | AL65: 100.1 | AM65: 100.5 | AN65: 100.7 | AO65: 100.2 | AP65: 99.2 | AQ65: 100 | AR65: 99.8 | AS65: 99.8 | AT65: 100.3 | AU65: 100.6 | AV65: 100.6 | AW65: 100 | AX65: 102.2 | AY65: 105.4 | AZ65: 112.7 | BA65: 115.9 | BB65: 117.7 | BC65: 118.1 | BD65: 117.9
A66: <OBJ_05> | B66: Nordwestschweiz | C66: Neubau Mehrfamilienhaus | D66: 26.46 | E66: 83.7 | F66: 83.6 | G66: 86.1 | H66: 87.9 | I66: 90.3 | J66: 90.1 | K66: 89.5 | L66: 88.4 | M66: 88.2 | N66: 85.6 | O66: 85.4 | P66: 84.1 | Q66: 87.8 | R66: 89.8 | S66: 89.9 | T66: 90.4 | U66: 92.4 | V66: 93.3 | W66: 96.6 | X66: 98.1 | Y66: 99.3 | Z66: 96.8 | AA66: 95.4 | AB66: 95.8 | AC66: 96.6 | AD66: 97.5 | AE66: 97.1 | AF66: 97.8 | AG66: 98.1 | AH66: 99.6 | AI66: 99.8 | AJ66: 101 | AK66: 99.9 | AL66: 99.1 | AM66: 99.4 | AN66: 99.9 | AO66: 99.4 | AP66: 98.4 | AQ66: 99.5 | AR66: 99.2 | AS66: 99.5 | AT66: 100.1 | AU66: 100.6 | AV66: 100.7 | AW66: 100 | AX66: 102.2 | AY66: 105.4 | AZ66: 112.7 | BA66: 116.3 | BB66: 118.1 | BC66: 118.7 | BD66: 118.1
A67: <OBJ_06> | B67: Nordwestschweiz | C67: Neubau Mehrfamilienhaus aus Holz | D67: 4.42 | E67: … | F67: … | G67: … | H67: … | I67: … | J67: … | K67: … | L67: … | M67: … | N67: 88.3 | O67: 87.4 | P67: 86.1 | Q67: 88.3 | R67: 90.5 | S67: 91 | T67: 91.2 | U67: 93.2 | V67: 94.3 | W67: 95.9 | X67: 97.7 | Y67: 100 | Z67: 97.2 | AA67: 95.9 | AB67: 96.9 | AC67: 98.4 | AD67: 98.8 | AE67: 99 | AF67: 99.6 | AG67: 99.3 | AH67: 100.3 | AI67: 100.2 | AJ67: 100.9 | AK67: 100.1 | AL67: 99.9 | AM67: 100.9 | AN67: 100.9 | AO67: 100 | AP67: 99.6 | AQ67: 99.5 | AR67: 100.2 | AS67: 100.3 | AT67: 100.4 | AU67: 100.1 | AV67: 100.4 | AW67: 100 | AX67: 102.9 | AY67: 106.8 | AZ67: 113.7 | BA67: 116.3 | BB67: 117.9 | BC67: 116.7 | BD67: 116.9
A68: <OBJ_07> | B68: Nordwestschweiz | C68: Neubau Einfamilienhaus | D68: 5.65 | E68: … | F68: … | G68: … | H68: … | I68: … | J68: … | K68: … | L68: … | M68: … | N68: … | O68: … | P68: … | Q68: … | R68: … | S68: … | T68: … | U68: … | V68: … | W68: … | X68: … | Y68: … | Z68: … | AA68: … | AB68: … | AC68: 96.9 | AD68: 97.7 | AE68: 97.8 | AF68: 98.6 | AG68: 98.5 | AH68: 99.5 | AI68: 99.8 | AJ68: 101.2 | AK68: 100.8 | AL68: 99.4 | AM68: 99.9 | AN68: 100.4 | AO68: 99.8 | AP68: 98.3 | AQ68: 99 | AR68: 99.6 | AS68: 99.3 | AT68: 100.5 | AU68: 100.4 | AV68: 100.7 | AW68: 100 | AX68: 101.5 | AY68: 104.5 | AZ68: 111.5 | BA68: 114.6 | BB68: 116.9 | BC68: 117.4 | BD68: 117.1
A69: <OBJ_08> | B69: Nordwestschweiz | C69: Neubau Bürogebäude | D69: 6.31 | E69: 84.2 | F69: 84.4 | G69: 87.6 | H69: 89.5 | I69: 91.1 | J69: 91 | K69: 92.1 | L69: 90.8 | M69: 90.7 | N69: 88.8 | O69: 88.6 | P69: 87.5 | Q69: 89.1 | R69: 91 | S69: 90.9 | T69: 91.7 | U69: 94 | V69: 94.9 | W69: 98.6 | X69: 100.5 | Y69: 101.7 | Z69: 100.6 | AA69: 100 | AB69: 100.1 | AC69: 101 | AD69: 102.3 | AE69: 102.4 | AF69: 102.1 | AG69: 102.5 | AH69: 104.1 | AI69: 104.6 | AJ69: 104.2 | AK69: 104.7 | AL69: 104.3 | AM69: 104.9 | AN69: 103.9 | AO69: 103.4 | AP69: 102.4 | AQ69: 102.6 | AR69: 101.6 | AS69: 100.5 | AT69: 100.6 | AU69: 100.8 | AV69: 100.6 | AW69: 100 | AX69: 102.1 | AY69: 104.8 | AZ69: 112.3 | BA69: 115 | BB69: 117.1 | BC69: 117.9 | BD69: 118.8
A70: <OBJ_09> | B70: Nordwestschweiz | C70: Neubau Lagerhalle | D70: 3.66 | E70: … | F70: … | G70: … | H70: … | I70: … | J70: … | K70: … | L70: … | M70: … | N70: … | O70: … | P70: … | Q70: … | R70: … | S70: … | T70: … | U70: … | V70: … | W70: … | X70: … | Y70: … | Z70: … | AA70: … | AB70: … | AC70: 96.8 | AD70: 97.6 | AE70: 97.7 | AF70: 98.6 | AG70: 99.2 | AH70: 100.1 | AI70: 100.6 | AJ70: 101 | AK70: 100.4 | AL70: 99.4 | AM70: 99.8 | AN70: 99.8 | AO70: 99.6 | AP70: 99 | AQ70: 100.4 | AR70: 100 | AS70: 99.9 | AT70: 100.6 | AU70: 100.6 | AV70: 100.5 | AW70: 100 | AX70: 102.7 | AY70: 106.8 | AZ70: 113.6 | BA70: 115.9 | BB70: 116.7 | BC70: 117 | BD70: 117.3
A71: <OBJ_10> | B71: Nordwestschweiz | C71: Renovation, Umbau | D71: 31.7 | E71: … | F71: … | G71: … | H71: … | I71: … | J71: … | K71: … | L71: … | M71: … | N71: … | O71: … | P71: … | Q71: … | R71: … | S71: … | T71: … | U71: … | V71: … | W71: … | X71: … | Y71: … | Z71: … | AA71: … | AB71: … | AC71: 99 | AD71: 99.9 | AE71: 100.2 | AF71: 100.2 | AG71: 100.8 | AH71: 102.6 | AI71: 103.1 | AJ71: 104.9 | AK71: 104.1 | AL71: 103.7 | AM71: 103.8 | AN71: 102.9 | AO71: 101.4 | AP71: 100.7 | AQ71: 100.7 | AR71: 100 | AS71: 99.5 | AT71: 101.4 | AU71: 100.8 | AV71: 100.9 | AW71: 100 | AX71: 102.2 | AY71: 105.2 | AZ71: 112.2 | BA71: 114.8 | BB71: 116.3 | BC71: 117.3 | BD71: 117.1
A72: <OBJ_11> | B72: Nordwestschweiz | C72: Renovation Mehrfamilienhaus | D72: 17.87 | E72: 78.3 | F72: 77.4 | G72: 79.5 | H72: 82.1 | I72: 83 | J72: 83.8 | K72: 84 | L72: 83.4 | M72: 83.9 | N72: 82.9 | O72: 82.6 | P72: 82.2 | Q72: 83.5 | R72: 85.4 | S72: 86 | T72: 86.7 | U72: 88 | V72: 89.8 | W72: 91.8 | X72: 93.4 | Y72: 95.1 | Z72: 95.1 | AA72: 94.9 | AB72: 94.8 | AC72: 95.6 | AD72: 96.6 | AE72: 96.5 | AF72: 97.1 | AG72: 97.6 | AH72: 99 | AI72: 99.2 | AJ72: 101.1 | AK72: 100.5 | AL72: 99.6 | AM72: 99.3 | AN72: 99.6 | AO72: 98.7 | AP72: 97.2 | AQ72: 98.3 | AR72: 98.2 | AS72: 98.3 | AT72: 100.1 | AU72: 100.2 | AV72: 101.1 | AW72: 100 | AX72: 101.8 | AY72: 105 | AZ72: 113 | BA72: 116 | BB72: 117.6 | BC72: 118.8 | BD72: 118.6
A73: <OBJ_12> | B73: Nordwestschweiz | C73: Renovation Bürogebäude | D73: 13.83 | E73: … | F73: … | G73: … | H73: … | I73: … | J73: … | K73: … | L73: … | M73: … | N73: … | O73: … | P73: … | Q73: … | R73: … | S73: … | T73: … | U73: … | V73: … | W73: … | X73: … | Y73: … | Z73: … | AA73: … | AB73: … | AC73: 96.4 | AD73: 97.2 | AE73: 97.9 | AF73: 97 | AG73: 97.9 | AH73: 100.1 | AI73: 100.9 | AJ73: 102.5 | AK73: 101.4 | AL73: 101.6 | AM73: 102.4 | AN73: 101.7 | AO73: 99.9 | AP73: 98.9 | AQ73: 100.2 | AR73: 98.9 | AS73: 99 | AT73: 101 | AU73: 100.6 | AV73: 101.2 | AW73: 100 | AX73: 102.7 | AY73: 105.5 | AZ73: 111.1 | BA73: 113.2 | BB73: 114.6 | BC73: 115.3 | BD73: 115.2
A74: <OBJ_13> | B74: Nordwestschweiz | C74: Tiefbau | D74: 21.8 | E74: 87 | F74: 86.9 | G74: 88.3 | H74: 90.2 | I74: 95.7 | J74: 93.3 | K74: 88.5 | L74: 82.6 | M74: 82.9 | N74: 79.7 | O74: 83.4 | P74: 81.6 | Q74: 86.3 | R74: 85.2 | S74: 89.7 | T74: 90.6 | U74: 93.8 | V74: 96.9 | W74: 96.8 | X74: 95.4 | Y74: 96.4 | Z74: 91.9 | AA74: 90.4 | AB74: 90.3 | AC74: 93.2 | AD74: 92.5 | AE74: 92.3 | AF74: 93.2 | AG74: 95.1 | AH74: 95.9 | AI74: 97.2 | AJ74: 99.1 | AK74: 100.1 | AL74: 100.9 | AM74: 102 | AN74: 101.9 | AO74: 101.4 | AP74: 99.8 | AQ74: 100.9 | AR74: 99.8 | AS74: 100.7 | AT74: 100.4 | AU74: 99.5 | AV74: 98.8 | AW74: 100 | AX74: 103.5 | AY74: 103.7 | AZ74: 109.8 | BA74: 114.9 | BB74: 115.5 | BC74: 117.3 | BD74: 116.7
A75: <OBJ_14> | B75: Nordwestschweiz | C75: Neubau Strasse | D75: 1.59 | E75: 90.1 | F75: 90 | G75: 91.5 | H75: 93.5 | I75: 99.1 | J75: 96.7 | K75: 90.1 | L75: 83.2 | M75: 83.6 | N75: 80.1 | O75: 84.2 | P75: 80.6 | Q75: 85 | R75: 83.5 | S75: 89 | T75: 89.6 | U75: 95.4 | V75: 97.6 | W75: 97.7 | X75: 93.3 | Y75: 95.2 | Z75: 90.3 | AA75: 89.5 | AB75: 88.6 | AC75: 92.4 | AD75: 91.5 | AE75: 91.4 | AF75: 92.5 | AG75: 94.6 | AH75: 95.6 | AI75: 97.1 | AJ75: 99 | AK75: 100.1 | AL75: 101.3 | AM75: 102.8 | AN75: 102.6 | AO75: 102.2 | AP75: 100.5 | AQ75: 101.8 | AR75: 100.4 | AS75: 101.2 | AT75: 100.7 | AU75: 99.4 | AV75: 98.5 | AW75: 100 | AX75: 102.4 | AY75: 103.4 | AZ75: 109.3 | BA75: 113.4 | BB75: 113.9 | BC75: 114.8 | BD75: 113.9
A76: <OBJ_15> | B76: Nordwestschweiz | C76: Neubau Unterführung | D76: 0.99 | E76: … | F76: … | G76: … | H76: … | I76: … | J76: 93.9 | K76: 90.6 | L76: 85.4 | M76: 85.7 | N76: 82.6 | O76: 86.1 | P76: 85.9 | Q76: 91.1 | R76: 90.4 | S76: 94.1 | T76: 95.1 | U76: 96.1 | V76: 100.2 | W76: 99.9 | X76: 101.3 | Y76: 101.5 | Z76: 97.2 | AA76: 94.9 | AB76: 95.8 | AC76: 97.8 | AD76: 98.3 | AE76: 96.9 | AF76: 97.5 | AG76: 98.5 | AH76: 97.8 | AI76: 98.7 | AJ76: 100.3 | AK76: 101.5 | AL76: 100.2 | AM76: 99.1 | AN76: 99.1 | AO76: 98.4 | AP76: 97.1 | AQ76: 96.9 | AR76: 97.2 | AS76: 98.4 | AT76: 99.2 | AU76: 100 | AV76: 99.9 | AW76: 100 | AX76: 102.5 | AY76: 104.9 | AZ76: 112.3 | BA76: 114.6 | BB76: 112.8 | BC76: 112.5 | BD76: 111.7
A77: <OBJ_16> | B77: Nordwestschweiz | C77: Neubau Lärmschutzwand | D77: 0.04 | E77: … | F77: … | G77: … | H77: … | I77: … | J77: … | K77: … | L77: … | M77: … | N77: … | O77: … | P77: … | Q77: … | R77: … | S77: … | T77: … | U77: … | V77: … | W77: … | X77: … | Y77: … | Z77: … | AA77: … | AB77: … | AC77: 91.8 | AD77: 91.2 | AE77: 91.9 | AF77: 91.6 | AG77: 93.1 | AH77: 93.7 | AI77: 94.1 | AJ77: 94.7 | AK77: 95.3 | AL77: 93.7 | AM77: 95.9 | AN77: 96.5 | AO77: 95.9 | AP77: 96.6 | AQ77: 98.3 | AR77: 97.3 | AS77: 98.5 | AT77: 99 | AU77: 98.6 | AV77: 99.5 | AW77: 100 | AX77: 101.9 | AY77: 103.3 | AZ77: 108.6 | BA77: 112.9 | BB77: 113.5 | BC77: 114.2 | BD77: 112.2
A78: <OBJ_17> | B78: Nordwestschweiz | C78: Strassensanierung | D78: 19.18 | E78: … | F78: … | G78: … | H78: … | I78: … | J78: … | K78: … | L78: … | M78: … | N78: … | O78: … | P78: … | Q78: … | R78: … | S78: … | T78: … | U78: … | V78: … | W78: … | X78: … | Y78: … | Z78: … | AA78: … | AB78: … | AC78: … | AD78: … | AE78: … | AF78: … | AG78: … | AH78: … | AI78: … | AJ78: … | AK78: … | AL78: … | AM78: … | AN78: … | AO78: … | AP78: … | AQ78: … | AR78: … | AS78: … | AT78: … | AU78: … | AV78: … | AW78: 100 | AX78: 103.7 | AY78: 103.7 | AZ78: 109.7 | BA78: 115.1 | BB78: 115.8 | BC78: 117.7 | BD78: 117.2
A80: <REG_05> | B80: Zürich | C80: Zürich
A81: <OBJ_02> | B81: Zürich | C81: Baugewerbe : Total | D81: 100 | E81: 80.5 | F81: 81.5 | G81: 83.9 | H81: 86.4 | I81: 87.7 | J81: 89.3 | K81: 88.6 | L81: 86.8 | M81: 85.4 | N81: 83.5 | O81: 83.2 | P81: 83.3 | Q81: 83.6 | R81: 84.5 | S81: 85.4 | T81: 86.5 | U81: 89.1 | V81: 91.6 | W81: 92.5 | X81: 93.8 | Y81: 95.7 | Z81: 94.2 | AA81: 94.9 | AB81: 94.4 | AC81: 95.6 | AD81: 97.3 | AE81: 98.2 | AF81: 98.8 | AG81: 99.3 | AH81: 99.6 | AI81: 100.3 | AJ81: 100.3 | AK81: 100 | AL81: 99.6 | AM81: 99.9 | AN81: 99.4 | AO81: 99.7 | AP81: 99.3 | AQ81: 99.1 | AR81: 99.6 | AS81: 99.7 | AT81: 100.5 | AU81: 100.2 | AV81: 100.2 | AW81: 100 | AX81: 101.2 | AY81: 104.1 | AZ81: 108.1 | BA81: 113.1 | BB81: 114 | BC81: 114.5 | BD81: 115.3
A82: <OBJ_03> | B82: Zürich | C82: Hochbau | D82: 80.06 | E82: 81.7 | F82: 82.2 | G82: 84.2 | H82: 85.3 | I82: 87.4 | J82: 88.9 | K82: 89 | L82: 87.7 | M82: 86.4 | N82: 85.1 | O82: 85.3 | P82: 85 | Q82: 85.3 | R82: 86.2 | S82: 86.6 | T82: 87.6 | U82: 90.3 | V82: 92.7 | W82: 93.9 | X82: 95.4 | Y82: 97.4 | Z82: 96.2 | AA82: 96.2 | AB82: 95.8 | AC82: 97.1 | AD82: 98.4 | AE82: 99 | AF82: 99.8 | AG82: 100.2 | AH82: 100.5 | AI82: 101 | AJ82: 101.5 | AK82: 101.2 | AL82: 100.8 | AM82: 101.2 | AN82: 100.4 | AO82: 100.4 | AP82: 100 | AQ82: 99.7 | AR82: 100.2 | AS82: 100.1 | AT82: 100.9 | AU82: 100.5 | AV82: 100.5 | AW82: 100 | AX82: 101.6 | AY82: 104.8 | AZ82: 108.7 | BA82: 113.7 | BB82: 114.8 | BC82: 115.4 | BD82: 116
A83: <OBJ_04> | B83: Zürich | C83: Neubau | D83: 45.97 | E83: 82.6 | F83: 83.4 | G83: 85.5 | H83: 87.2 | I83: 89.6 | J83: 91 | K83: 91.1 | L83: 89.3 | M83: 87.5 | N83: 86.1 | O83: 86.3 | P83: 85.9 | Q83: 86.3 | R83: 87.3 | S83: 88 | T83: 89 | U83: 92 | V83: 94.1 | W83: 95.3 | X83: 96.7 | Y83: 99 | Z83: 97.3 | AA83: 97.1 | AB83: 96.8 | AC83: 98.3 | AD83: 99.7 | AE83: 100 | AF83: 100.1 | AG83: 100.4 | AH83: 100.5 | AI83: 100.9 | AJ83: 101 | AK83: 100.5 | AL83: 100 | AM83: 100.5 | AN83: 99.7 | AO83: 99.7 | AP83: 99.5 | AQ83: 99.6 | AR83: 100.1 | AS83: 100 | AT83: 100.6 | AU83: 100.1 | AV83: 100 | AW83: 100 | AX83: 101.6 | AY83: 104.6 | AZ83: 109 | BA83: 114.2 | BB83: 115.6 | BC83: 116 | BD83: 116.6
A84: <OBJ_05> | B84: Zürich | C84: Neubau Mehrfamilienhaus | D84: 27.85 | E84: 83.9 | F84: 84.8 | G84: 87 | H84: 89 | I84: 91.4 | J84: 92.7 | K84: 92.6 | L84: 90.5 | M84: 88.7 | N84: 87.1 | O84: 87.3 | P84: 87 | Q84: 87.5 | R84: 88.4 | S84: 89.2 | T84: 90.1 | U84: 93 | V84: 95 | W84: 96.1 | X84: 97.4 | Y84: 99.8 | Z84: 97.6 | AA84: 97.4 | AB84: 97.1 | AC84: 98.8 | AD84: 100.1 | AE84: 100.5 | AF84: 100.5 | AG84: 100.6 | AH84: 100.6 | AI84: 100.9 | AJ84: 101.1 | AK84: 100.6 | AL84: 100.2 | AM84: 100.5 | AN84: 99.8 | AO84: 99.9 | AP84: 99.7 | AQ84: 100 | AR84: 100.3 | AS84: 100.2 | AT84: 100.9 | AU84: 100.2 | AV84: 100.1 | AW84: 100 | AX84: 101.3 | AY84: 104.3 | AZ84: 108.6 | BA84: 113.9 | BB84: 115.2 | BC84: 115.8 | BD84: 116.1
A85: <OBJ_06> | B85: Zürich | C85: Neubau Mehrfamilienhaus aus Holz | D85: 5.7 | E85: … | F85: … | G85: … | H85: … | I85: … | J85: … | K85: … | L85: … | M85: … | N85: 85 | O85: 85.1 | P85: 84.6 | Q85: 85 | R85: 85.5 | S85: 85.8 | T85: 86.2 | U85: 89 | V85: 91.6 | W85: 93.1 | X85: 94.3 | Y85: 95.8 | Z85: 94 | AA85: 94.1 | AB85: 94.3 | AC85: 96.1 | AD85: 97.2 | AE85: 98.2 | AF85: 98.1 | AG85: 98 | AH85: 97.5 | AI85: 98.1 | AJ85: 98.1 | AK85: 98.1 | AL85: 97.8 | AM85: 98.4 | AN85: 98.3 | AO85: 98.4 | AP85: 98.9 | AQ85: 98.7 | AR85: 99.3 | AS85: 100.2 | AT85: 100.2 | AU85: 99.8 | AV85: 99.7 | AW85: 100 | AX85: 103 | AY85: 106.7 | AZ85: 111.5 | BA85: 115.7 | BB85: 117.1 | BC85: 116.9 | BD85: 117.4
A86: <OBJ_07> | B86: Zürich | C86: Neubau Einfamilienhaus | D86: 2.98 | E86: … | F86: … | G86: … | H86: … | I86: … | J86: … | K86: … | L86: … | M86: … | N86: … | O86: … | P86: … | Q86: … | R86: … | S86: … | T86: … | U86: … | V86: … | W86: … | X86: … | Y86: … | Z86: … | AA86: … | AB86: … | AC86: 96.6 | AD86: 97.8 | AE86: 98.1 | AF86: 98.4 | AG86: 98.9 | AH86: 98.9 | AI86: 99.5 | AJ86: 99.9 | AK86: 99.4 | AL86: 98.3 | AM86: 99 | AN86: 98.6 | AO86: 98.5 | AP86: 98.4 | AQ86: 98.6 | AR86: 99.6 | AS86: 99.8 | AT86: 100.6 | AU86: 99.9 | AV86: 100 | AW86: 100 | AX86: 101.1 | AY86: 104.2 | AZ86: 108.7 | BA86: 112.7 | BB86: 114.8 | BC86: 115.6 | BD86: 116
A87: <OBJ_08> | B87: Zürich | C87: Neubau Bürogebäude | D87: 7.97 | E87: 78.8 | F87: 79.3 | G87: 80.9 | H87: 81.6 | I87: 83.8 | J87: 86.1 | K87: 87 | L87: 86 | M87: 84.3 | N87: 83.1 | O87: 83.3 | P87: 82.8 | Q87: 83 | R87: 84 | S87: 84.4 | T87: 85.9 | U87: 89.1 | V87: 91.6 | W87: 93 | X87: 94.9 | Y87: 97.1 | Z87: 96.6 | AA87: 96.6 | AB87: 96.4 | AC87: 96.9 | AD87: 99 | AE87: 99.3 | AF87: 99.1 | AG87: 100.7 | AH87: 102.2 | AI87: 102.3 | AJ87: 101.9 | AK87: 101.2 | AL87: 100.4 | AM87: 101.9 | AN87: 100.6 | AO87: 99.9 | AP87: 99.2 | AQ87: 98.2 | AR87: 99.5 | AS87: 99.3 | AT87: 99.9 | AU87: 100.2 | AV87: 100 | AW87: 100 | AX87: 101.7 | AY87: 104.1 | AZ87: 108.6 | BA87: 114.4 | BB87: 116 | BC87: 115.9 | BD87: 117.6
A88: <OBJ_09> | B88: Zürich | C88: Neubau Lagerhalle | D88: 1.47 | E88: … | F88: … | G88: … | H88: … | I88: … | J88: … | K88: … | L88: … | M88: … | N88: … | O88: … | P88: … | Q88: … | R88: … | S88: … | T88: … | U88: … | V88: … | W88: … | X88: … | Y88: … | Z88: … | AA88: … | AB88: … | AC88: 96.4 | AD88: 98.5 | AE88: 99 | AF88: 99.5 | AG88: 99.9 | AH88: 100.3 | AI88: 100.5 | AJ88: 100.2 | AK88: 99.8 | AL88: 99.2 | AM88: 99.7 | AN88: 98.6 | AO88: 99.2 | AP88: 99.3 | AQ88: 100.5 | AR88: 100.6 | AS88: 100.2 | AT88: 100.6 | AU88: 100.2 | AV88: 100 | AW88: 100 | AX88: 102.4 | AY88: 106.3 | AZ88: 110.3 | BA88: 115.7 | BB88: 116.5 | BC88: 116.6 | BD88: 117.4
A89: <OBJ_10> | B89: Zürich | C89: Renovation, Umbau | D89: 34.09 | E89: … | F89: … | G89: … | H89: … | I89: … | J89: … | K89: … | L89: … | M89: … | N89: … | O89: … | P89: … | Q89: … | R89: … | S89: … | T89: … | U89: … | V89: … | W89: … | X89: … | Y89: … | Z89: … | AA89: … | AB89: … | AC89: 96.2 | AD89: 97.4 | AE89: 98.3 | AF89: 99.8 | AG89: 100.2 | AH89: 100.6 | AI89: 101.3 | AJ89: 102.2 | AK89: 102 | AL89: 101.8 | AM89: 102.1 | AN89: 101.3 | AO89: 101.3 | AP89: 100.7 | AQ89: 99.8 | AR89: 100.5 | AS89: 100.3 | AT89: 101.2 | AU89: 101 | AV89: 101 | AW89: 100 | AX89: 101.6 | AY89: 105.1 | AZ89: 108.3 | BA89: 113.2 | BB89: 113.7 | BC89: 114.6 | BD89: 115.3
A90: <OBJ_11> | B90: Zürich | C90: Renovation Mehrfamilienhaus | D90: 16.69 | E90: 81.3 | F90: 81.3 | G90: 83 | H90: 83.2 | I90: 84.8 | J90: 86.3 | K90: 86.5 | L90: 86.1 | M90: 85.6 | N90: 84.4 | O90: 84.8 | P90: 84.4 | Q90: 84.6 | R90: 85.4 | S90: 85.3 | T90: 86.4 | U90: 88.5 | V90: 91.6 | W90: 92.7 | X90: 94.2 | Y90: 95.8 | Z90: 95.7 | AA90: 95.8 | AB90: 95.2 | AC90: 96.2 | AD90: 97.4 | AE90: 98.2 | AF90: 98.7 | AG90: 98.8 | AH90: 98.8 | AI90: 99.4 | AJ90: 100.1 | AK90: 100 | AL90: 99.7 | AM90: 99.9 | AN90: 98.7 | AO90: 99.1 | AP90: 99.1 | AQ90: 99.4 | AR90: 100.2 | AS90: 100 | AT90: 101.2 | AU90: 100.6 | AV90: 100.5 | AW90: 100 | AX90: 100.9 | AY90: 104.4 | AZ90: 108.1 | BA90: 112.8 | BB90: 113.5 | BC90: 114.6 | BD90: 114.9
A91: <OBJ_12> | B91: Zürich | C91: Renovation Bürogebäude | D91: 17.4 | E91: … | F91: … | G91: … | H91: … | I91: … | J91: … | K91: … | L91: … | M91: … | N91: … | O91: … | P91: … | Q91: … | R91: … | S91: … | T91: … | U91: … | V91: … | W91: … | X91: … | Y91: … | Z91: … | AA91: … | AB91: … | AC91: 93 | AD91: 94.3 | AE91: 95.3 | AF91: 97.5 | AG91: 98.3 | AH91: 99 | AI91: 99.7 | AJ91: 100.8 | AK91: 100.6 | AL91: 100.4 | AM91: 100.7 | AN91: 100.5 | AO91: 101.4 | AP91: 99.8 | AQ91: 98.9 | AR91: 99.7 | AS91: 99.1 | AT91: 100 | AU91: 100.2 | AV91: 100.5 | AW91: 100 | AX91: 102.4 | AY91: 105.7 | AZ91: 108.5 | BA91: 113.5 | BB91: 114 | BC91: 114.6 | BD91: 115.8
A92: <OBJ_13> | B92: Zürich | C92: Tiefbau | D92: 19.94 | E92: 74.5 | F92: 76.9 | G92: 80.4 | H92: 86.9 | I92: 85.9 | J92: 87.7 | K92: 84.5 | L92: 81.6 | M92: 79.7 | N92: 76.3 | O92: 74.5 | P92: 75.7 | Q92: 76.1 | R92: 77.2 | S92: 79.5 | T92: 80.4 | U92: 83 | V92: 85.6 | W92: 85.7 | X92: 86.5 | Y92: 87.8 | Z92: 85.5 | AA92: 88.4 | AB92: 87.4 | AC92: 88.4 | AD92: 91.4 | AE92: 93.8 | AF92: 93.5 | AG92: 94.7 | AH92: 95.1 | AI92: 96.6 | AJ92: 94.1 | AK92: 93.8 | AL92: 93.7 | AM92: 93.5 | AN92: 94.4 | AO92: 95.8 | AP92: 95.8 | AQ92: 96.3 | AR92: 96.5 | AS92: 97.8 | AT92: 98.2 | AU92: 98.8 | AV92: 98.9 | AW92: 100 | AX92: 99.3 | AY92: 101.3 | AZ92: 105.4 | BA92: 110.6 | BB92: 110.8 | BC92: 111.2 | BD92: 112.4
A93: <OBJ_14> | B93: Zürich | C93: Neubau Strasse | D93: 1.88 | E93: 76.2 | F93: 78.6 | G93: 82.2 | H93: 88.9 | I93: 87.8 | J93: 89.7 | K93: 87.2 | L93: 83.1 | M93: 81.5 | N93: 78.6 | O93: 77.4 | P93: 78.5 | Q93: 77 | R93: 77.7 | S93: 80.7 | T93: 80.8 | U93: 83.5 | V93: 85.9 | W93: 85.5 | X93: 85.5 | Y93: 85.7 | Z93: 83.5 | AA93: 87.8 | AB93: 85.6 | AC93: 86.4 | AD93: 89.5 | AE93: 92.1 | AF93: 92 | AG93: 93.3 | AH93: 94 | AI93: 95.6 | AJ93: 93 | AK93: 92.5 | AL93: 92.5 | AM93: 92.6 | AN93: 93.5 | AO93: 95.4 | AP93: 95.7 | AQ93: 95.8 | AR93: 96.1 | AS93: 97.4 | AT93: 97.9 | AU93: 98.2 | AV93: 98.7 | AW93: 100 | AX93: 100.2 | AY93: 102.2 | AZ93: 104.7 | BA93: 109.9 | BB93: 109.7 | BC93: 109.4 | BD93: 110.4
A94: <OBJ_15> | B94: Zürich | C94: Neubau Unterführung | D94: 1 | E94: … | F94: … | G94: … | H94: … | I94: … | J94: 93.1 | K94: 88.9 | L94: 86.9 | M94: 84.6 | N94: 80.4 | O94: 77.7 | P94: 79.2 | Q94: 81.6 | R94: 83.2 | S94: 84.9 | T94: 86.8 | U94: 89.4 | V94: 92.5 | W94: 93.2 | X94: 94.7 | Y94: 97.5 | Z94: 94.7 | AA94: 96.5 | AB94: 96.6 | AC94: 97.8 | AD94: 101 | AE94: 102.3 | AF94: 101.5 | AG94: 101.9 | AH94: 101 | AI94: 102.1 | AJ94: 99.8 | AK94: 100 | AL94: 99.9 | AM94: 97.9 | AN94: 98.2 | AO94: 97.4 | AP94: 96.2 | AQ94: 98.6 | AR94: 98.4 | AS94: 99.6 | AT94: 99.7 | AU94: 101.4 | AV94: 100.1 | AW94: 100 | AX94: 101.3 | AY94: 102.7 | AZ94: 108.4 | BA94: 112.1 | BB94: 111.9 | BC94: 110.1 | BD94: 111.7
A95: <OBJ_16> | B95: Zürich | C95: Neubau Lärmschutzwand | D95: 0.04 | E95: … | F95: … | G95: … | H95: … | I95: … | J95: … | K95: … | L95: … | M95: … | N95: … | O95: … | P95: … | Q95: … | R95: … | S95: … | T95: … | U95: … | V95: … | W95: … | X95: … | Y95: … | Z95: … | AA95: … | AB95: … | AC95: 92.1 | AD95: 93.3 | AE95: 94.1 | AF95: 93.8 | AG95: 94.9 | AH95: 94.9 | AI95: 95.2 | AJ95: 94.8 | AK95: 94.8 | AL95: 93.1 | AM95: 94.9 | AN95: 95.8 | AO95: 95.5 | AP95: 96.2 | AQ95: 98.3 | AR95: 97.3 | AS95: 98.4 | AT95: 99 | AU95: 98.7 | AV95: 99.4 | AW95: 100 | AX95: 100.9 | AY95: 102.3 | AZ95: 106.7 | BA95: 111.2 | BB95: 111.7 | BC95: 112.2 | BD95: 110.8
A96: <OBJ_17> | B96: Zürich | C96: Strassensanierung | D96: 17.02 | E96: … | F96: … | G96: … | H96: … | I96: … | J96: … | K96: … | L96: … | M96: … | N96: … | O96: … | P96: … | Q96: … | R96: … | S96: … | T96: … | U96: … | V96: … | W96: … | X96: … | Y96: … | Z96: … | AA96: … | AB96: … | AC96: … | AD96: … | AE96: … | AF96: … | AG96: … | AH96: … | AI96: … | AJ96: … | AK96: … | AL96: … | AM96: … | AN96: … | AO96: … | AP96: … | AQ96: … | AR96: … | AS96: … | AT96: … | AU96: … | AV96: … | AW96: 100 | AX96: 99.1 | AY96: 101.1 | AZ96: 105.4 | BA96: 110.6 | BB96: 110.8 | BC96: 111.4 | BD96: 112.7
A98: <REG_06> | B98: Ostschweiz | C98: Ostschweiz
A99: <OBJ_02> | B99: Ostschweiz | C99: Baugewerbe : Total | D99: 100 | E99: 79 | F99: 79.2 | G99: 81.9 | H99: 82.9 | I99: 84.6 | J99: 86.1 | K99: 86 | L99: 85.5 | M99: 85 | N99: 84.1 | O99: 85.1 | P99: 85.1 | Q99: 86.2 | R99: 86.5 | S99: 87.9 | T99: 88.3 | U99: 90.3 | V99: 92.2 | W99: 94.2 | X99: 96.6 | Y99: 98.5 | Z99: 96.7 | AA99: 97.1 | AB99: 96 | AC99: 96.9 | AD99: 99 | AE99: 100.3 | AF99: 98.8 | AG99: 98.7 | AH99: 98.8 | AI99: 99.9 | AJ99: 99.3 | AK99: 99.1 | AL99: 97.9 | AM99: 98.2 | AN99: 97.8 | AO99: 97.3 | AP99: 97.8 | AQ99: 96.8 | AR99: 98.5 | AS99: 98.9 | AT99: 98.9 | AU99: 99.6 | AV99: 100 | AW99: 100 | AX99: 101 | AY99: 103.3 | AZ99: 109.3 | BA99: 113.1 | BB99: 113.8 | BC99: 114.8 | BD99: 115.9
A100: <OBJ_03> | B100: Ostschweiz | C100: Hochbau | D100: 75.06 | E100: 80.3 | F100: 80.4 | G100: 82.7 | H100: 83.8 | I100: 84.4 | J100: 86.7 | K100: 86.9 | L100: 86.6 | M100: 85.8 | N100: 84.7 | O100: 85.8 | P100: 85.5 | Q100: 86.9 | R100: 87.4 | S100: 88.5 | T100: 89 | U100: 90.7 | V100: 92.6 | W100: 94 | X100: 96.6 | Y100: 98.3 | Z100: 97 | AA100: 97.5 | AB100: 95.9 | AC100: 97.5 | AD100: 98.9 | AE100: 99.9 | AF100: 98.4 | AG100: 98.2 | AH100: 98.5 | AI100: 99.6 | AJ100: 98.9 | AK100: 98.8 | AL100: 97.9 | AM100: 98.4 | AN100: 97.4 | AO100: 96.2 | AP100: 96.5 | AQ100: 95.8 | AR100: 97.8 | AS100: 98 | AT100: 98.2 | AU100: 98.9 | AV100: 99.6 | AW100: 100 | AX100: 101.4 | AY100: 104.5 | AZ100: 109.3 | BA100: 113 | BB100: 113.6 | BC100: 114.7 | BD100: 115.7
A101: <OBJ_04> | B101: Ostschweiz | C101: Neubau | D101: 42.28 | E101: 80.1 | F101: 80.2 | G101: 82.2 | H101: 83.6 | I101: 83.9 | J101: 86.4 | K101: 86.7 | L101: 85.7 | M101: 85 | N101: 83.9 | O101: 84.9 | P101: 84.3 | Q101: 85.8 | R101: 86.4 | S101: 87.4 | T101: 87.7 | U101: 89.7 | V101: 91.6 | W101: 93 | X101: 95.9 | Y101: 97.8 | Z101: 95.7 | AA101: 96.5 | AB101: 94.6 | AC101: 96.4 | AD101: 98 | AE101: 98.8 | AF101: 97.5 | AG101: 97.4 | AH101: 97.6 | AI101: 98.7 | AJ101: 97.9 | AK101: 97.5 | AL101: 96.2 | AM101: 96.8 | AN101: 96.5 | AO101: 95.4 | AP101: 96.1 | AQ101: 95.9 | AR101: 98 | AS101: 98.1 | AT101: 98.2 | AU101: 98.9 | AV101: 99.7 | AW101: 100 | AX101: 101.6 | AY101: 105 | AZ101: 110.2 | BA101: 113.6 | BB101: 114.8 | BC101: 115.2 | BD101: 116.8
A102: <OBJ_05> | B102: Ostschweiz | C102: Neubau Mehrfamilienhaus | D102: 22.79 | E102: 80.8 | F102: 81.1 | G102: 82.9 | H102: 84.5 | I102: 84.9 | J102: 87.2 | K102: 87 | L102: 85.9 | M102: 85.3 | N102: 84 | O102: 85 | P102: 84.4 | Q102: 86 | R102: 86.6 | S102: 87.5 | T102: 87.8 | U102: 89.6 | V102: 91.5 | W102: 92.9 | X102: 95.9 | Y102: 97.7 | Z102: 95.4 | AA102: 96.3 | AB102: 94.5 | AC102: 96.1 | AD102: 97.6 | AE102: 98.1 | AF102: 96.9 | AG102: 96.6 | AH102: 96.8 | AI102: 98 | AJ102: 97.4 | AK102: 97 | AL102: 95.9 | AM102: 96.5 | AN102: 96.6 | AO102: 95.4 | AP102: 96.4 | AQ102: 96.2 | AR102: 98 | AS102: 98.2 | AT102: 98.2 | AU102: 98.8 | AV102: 99.8 | AW102: 100 | AX102: 101.3 | AY102: 104.5 | AZ102: 109.7 | BA102: 113.3 | BB102: 114.6 | BC102: 115.3 | BD102: 117
A103: <OBJ_06> | B103: Ostschweiz | C103: Neubau Mehrfamilienhaus aus Holz | D103: 5.81 | E103: … | F103: … | G103: … | H103: … | I103: … | J103: … | K103: … | L103: … | M103: … | N103: 82.5 | O103: 83.7 | P103: 83.2 | Q103: 84.3 | R103: 84.2 | S103: 84.9 | T103: 85.8 | U103: 87.2 | V103: 89.5 | W103: 90.1 | X103: 93.4 | Y103: 94.9 | Z103: 93.5 | AA103: 93.7 | AB103: 92 | AC103: 94 | AD103: 96 | AE103: 96.4 | AF103: 95.3 | AG103: 95 | AH103: 95.4 | AI103: 95.9 | AJ103: 95.4 | AK103: 94.7 | AL103: 94.2 | AM103: 95.2 | AN103: 94.9 | AO103: 94.1 | AP103: 94.5 | AQ103: 94.7 | AR103: 97.2 | AS103: 97.9 | AT103: 97.7 | AU103: 98.5 | AV103: 99.1 | AW103: 100 | AX103: 102.9 | AY103: 107.8 | AZ103: 112.3 | BA103: 115.2 | BB103: 116.5 | BC103: 115.9 | BD103: 118
A104: <OBJ_07> | B104: Ostschweiz | C104: Neubau Einfamilienhaus | D104: 6.4 | E104: … | F104: … | G104: … | H104: … | I104: … | J104: … | K104: … | L104: … | M104: … | N104: … | O104: … | P104: … | Q104: … | R104: … | S104: … | T104: … | U104: … | V104: … | W104: … | X104: … | Y104: … | Z104: … | AA104: … | AB104: … | AC104: 95.4 | AD104: 97.5 | AE104: 97.9 | AF104: 96.9 | AG104: 97.3 | AH104: 97 | AI104: 98.5 | AJ104: 98 | AK104: 97.7 | AL104: 96.1 | AM104: 96.5 | AN104: 96.4 | AO104: 94.9 | AP104: 95.5 | AQ104: 95.3 | AR104: 98.1 | AS104: 97.9 | AT104: 98.1 | AU104: 98.6 | AV104: 99.3 | AW104: 100 | AX104: 100.7 | AY104: 104.2 | AZ104: 108.7 | BA104: 111.5 | BB104: 112.9 | BC104: 113.7 | BD104: 115
A105: <OBJ_08> | B105: Ostschweiz | C105: Neubau Bürogebäude | D105: 4.01 | E105: 82.1 | F105: 81.6 | G105: 84.1 | H105: 84.6 | I105: 85.1 | J105: 88.3 | K105: 90.4 | L105: 89.5 | M105: 88.8 | N105: 88.2 | O105: 89.1 | P105: 88.5 | Q105: 89.9 | R105: 90.7 | S105: 91.6 | T105: 92.3 | U105: 94.9 | V105: 97 | W105: 98.8 | X105: 101 | Y105: 103.2 | Z105: 102.1 | AA105: 102.3 | AB105: 100.3 | AC105: 102.6 | AD105: 103.9 | AE105: 106.5 | AF105: 103.1 | AG105: 103.1 | AH105: 104.7 | AI105: 105.4 | AJ105: 103 | AK105: 102.6 | AL105: 100.2 | AM105: 100.6 | AN105: 98.8 | AO105: 98.5 | AP105: 97.2 | AQ105: 95.9 | AR105: 98.2 | AS105: 97.8 | AT105: 98.7 | AU105: 99.9 | AV105: 100.1 | AW105: 100 | AX105: 102 | AY105: 104.5 | AZ105: 110.6 | BA105: 115.3 | BB105: 115.3 | BC105: 115.8 | BD105: 116.8
A106: <OBJ_09> | B106: Ostschweiz | C106: Neubau Lagerhalle | D106: 3.27 | E106: … | F106: … | G106: … | H106: … | I106: … | J106: … | K106: … | L106: … | M106: … | N106: … | O106: … | P106: … | Q106: … | R106: … | S106: … | T106: … | U106: … | V106: … | W106: … | X106: … | Y106: … | Z106: … | AA106: … | AB106: … | AC106: 96.8 | AD106: 98.7 | AE106: 99.5 | AF106: 98.7 | AG106: 98.3 | AH106: 98.5 | AI106: 99.5 | AJ106: 98.4 | AK106: 97.5 | AL106: 96.2 | AM106: 96.8 | AN106: 95.7 | AO106: 95.2 | AP106: 96.3 | AQ106: 97.1 | AR106: 98.7 | AS106: 98.6 | AT106: 98.6 | AU106: 99.7 | AV106: 99.9 | AW106: 100 | AX106: 102.6 | AY106: 106.4 | AZ106: 112.1 | BA106: 115.1 | BB106: 115.6 | BC106: 115.5 | BD106: 117.2
A107: <OBJ_10> | B107: Ostschweiz | C107: Renovation, Umbau | D107: 32.78 | E107: … | F107: … | G107: … | H107: … | I107: … | J107: … | K107: … | L107: … | M107: … | N107: … | O107: … | P107: … | Q107: … | R107: … | S107: … | T107: … | U107: … | V107: … | W107: … | X107: … | Y107: … | Z107: … | AA107: … | AB107: … | AC107: 99.3 | AD107: 100.5 | AE107: 101.6 | AF107: 99.8 | AG107: 99.7 | AH107: 99.9 | AI107: 101 | AJ107: 100.5 | AK107: 100.9 | AL107: 100.5 | AM107: 100.8 | AN107: 98.8 | AO107: 97.3 | AP107: 97.1 | AQ107: 95.5 | AR107: 97.4 | AS107: 97.8 | AT107: 98.3 | AU107: 98.8 | AV107: 99.6 | AW107: 100 | AX107: 101.2 | AY107: 103.8 | AZ107: 108.1 | BA107: 112.1 | BB107: 112.1 | BC107: 113.9 | BD107: 114.4
A108: <OBJ_11> | B108: Ostschweiz | C108: Renovation Mehrfamilienhaus | D108: 23.28 | E108: 77.6 | F108: 77.7 | G108: 80.4 | H108: 81 | I108: 81.8 | J108: 83.7 | K108: 83.8 | L108: 85 | M108: 83.9 | N108: 82.8 | O108: 84.1 | P108: 84.2 | Q108: 85.4 | R108: 85.7 | S108: 87.1 | T108: 87.7 | U108: 88.9 | V108: 90.6 | W108: 91.9 | X108: 94.2 | Y108: 95.6 | Z108: 95.6 | AA108: 95.4 | AB108: 94.5 | AC108: 95.7 | AD108: 96.9 | AE108: 97.8 | AF108: 96.3 | AG108: 96.1 | AH108: 95.8 | AI108: 96.8 | AJ108: 96.6 | AK108: 96.9 | AL108: 96.1 | AM108: 96.3 | AN108: 95.3 | AO108: 93.9 | AP108: 95.3 | AQ108: 94.7 | AR108: 97.2 | AS108: 97.5 | AT108: 97.7 | AU108: 98.6 | AV108: 99.6 | AW108: 100 | AX108: 101.1 | AY108: 104.2 | AZ108: 108.2 | BA108: 112.4 | BB108: 112.6 | BC108: 114.4 | BD108: 114.8
A109: <OBJ_12> | B109: Ostschweiz | C109: Renovation Bürogebäude | D109: 9.5 | E109: … | F109: … | G109: … | H109: … | I109: … | J109: … | K109: … | L109: … | M109: … | N109: … | O109: … | P109: … | Q109: … | R109: … | S109: … | T109: … | U109: … | V109: … | W109: … | X109: … | Y109: … | Z109: … | AA109: … | AB109: … | AC109: 94.4 | AD109: 95.4 | AE109: 96.9 | AF109: 94.8 | AG109: 94.7 | AH109: 95.9 | AI109: 97 | AJ109: 96 | AK109: 96.5 | AL109: 96.7 | AM109: 97.4 | AN109: 96.5 | AO109: 95.9 | AP109: 95.9 | AQ109: 94.2 | AR109: 97.8 | AS109: 98.4 | AT109: 98.8 | AU109: 100.3 | AV109: 99.9 | AW109: 100 | AX109: 101.5 | AY109: 103.1 | AZ109: 107.7 | BA109: 111.4 | BB109: 110.7 | BC109: 112.7 | BD109: 113.4
A110: <OBJ_13> | B110: Ostschweiz | C110: Tiefbau | D110: 24.94 | E110: 74.7 | F110: 75.1 | G110: 79.1 | H110: 79.5 | I110: 84.9 | J110: 84 | K110: 83 | L110: 81.8 | M110: 82.2 | N110: 81.7 | O110: 82.5 | P110: 83.3 | Q110: 83.5 | R110: 83.4 | S110: 85.7 | T110: 85.8 | U110: 88.5 | V110: 90.6 | W110: 94.4 | X110: 95.9 | Y110: 98.5 | Z110: 95 | AA110: 95.4 | AB110: 95.7 | AC110: 94.7 | AD110: 99.5 | AE110: 101.7 | AF110: 100.2 | AG110: 100.4 | AH110: 100.2 | AI110: 101 | AJ110: 101 | AK110: 100.3 | AL110: 97.8 | AM110: 97.6 | AN110: 99.1 | AO110: 101.9 | AP110: 103 | AQ110: 100.8 | AR110: 101.4 | AS110: 102.3 | AT110: 101.3 | AU110: 102.6 | AV110: 101.7 | AW110: 100 | AX110: 99.9 | AY110: 99.5 | AZ110: 109.3 | BA110: 113.4 | BB110: 114.5 | BC110: 115 | BD110: 116.4
A111: <OBJ_14> | B111: Ostschweiz | C111: Neubau Strasse | D111: 3.15 | E111: 76.3 | F111: 76.8 | G111: 80.8 | H111: 81.3 | I111: 86.8 | J111: 85.8 | K111: 84 | L111: 81.9 | M111: 82.8 | N111: 81.9 | O111: 82.8 | P111: 82.4 | Q111: 81.3 | R111: 82.9 | S111: 85.2 | T111: 86 | U111: 87.8 | V111: 90.9 | W111: 94.1 | X111: 95.3 | Y111: 97.6 | Z111: 95.3 | AA111: 96.2 | AB111: 95.7 | AC111: 93.8 | AD111: 98.6 | AE111: 101 | AF111: 99.3 | AG111: 99.5 | AH111: 99.3 | AI111: 100.2 | AJ111: 100.4 | AK111: 99.8 | AL111: 97 | AM111: 96.7 | AN111: 98.4 | AO111: 100.6 | AP111: 101.9 | AQ111: 99.7 | AR111: 100.9 | AS111: 101.5 | AT111: 100.7 | AU111: 102 | AV111: 101.2 | AW111: 100 | AX111: 100.5 | AY111: 100.4 | AZ111: 107.8 | BA111: 111.9 | BB111: 113.2 | BC111: 114.1 | BD111: 115.6
A112: <OBJ_15> | B112: Ostschweiz | C112: Neubau Unterführung | D112: 2.45 | E112: … | F112: … | G112: … | H112: … | I112: … | J112: 85.6 | K112: 85.4 | L112: 85 | M112: 85 | N112: 84.9 | O112: 85.5 | P112: 87.7 | Q112: 89.2 | R112: 87.3 | S112: 89.7 | T112: 89.2 | U112: 92.7 | V112: 94 | W112: 98.6 | X112: 100.3 | Y112: 103.4 | Z112: 98.6 | AA112: 98.5 | AB112: 99.7 | AC112: 99.4 | AD112: 105 | AE112: 107 | AF112: 105.9 | AG112: 105.7 | AH112: 104.9 | AI112: 105.9 | AJ112: 104.3 | AK112: 103.7 | AL112: 102.1 | AM112: 101.7 | AN112: 102.5 | AO112: 108.6 | AP112: 108.8 | AQ112: 106 | AR112: 104 | AS112: 106.4 | AT112: 104.3 | AU112: 105.4 | AV112: 103.7 | AW112: 100 | AX112: 102.6 | AY112: 103.3 | AZ112: 114 | BA112: 118 | BB112: 117 | BC112: 115.1 | BD112: 115.8
A113: <OBJ_16> | B113: Ostschweiz | C113: Neubau Lärmschutzwand | D113: 0.1 | E113: … | F113: … | G113: … | H113: … | I113: … | J113: … | K113: … | L113: … | M113: … | N113: … | O113: … | P113: … | Q113: … | R113: … | S113: … | T113: … | U113: … | V113: … | W113: … | X113: … | Y113: … | Z113: … | AA113: … | AB113: … | AC113: 91.2 | AD113: 92.3 | AE113: 93.7 | AF113: 93.6 | AG113: 95.1 | AH113: 95.1 | AI113: 95.4 | AJ113: 96 | AK113: 95.7 | AL113: 93.9 | AM113: 95.8 | AN113: 96.5 | AO113: 97.1 | AP113: 97.9 | AQ113: 99.4 | AR113: 98.4 | AS113: 99.9 | AT113: 100 | AU113: 99.7 | AV113: 100.3 | AW113: 100 | AX113: 100.9 | AY113: 102.2 | AZ113: 108.4 | BA113: 112.2 | BB113: 113 | BC113: 113 | BD113: 111.4
A114: <OBJ_17> | B114: Ostschweiz | C114: Strassensanierung | D114: 19.24 | E114: … | F114: … | G114: … | H114: … | I114: … | J114: … | K114: … | L114: … | M114: … | N114: … | O114: … | P114: … | Q114: … | R114: … | S114: … | T114: … | U114: … | V114: … | W114: … | X114: … | Y114: … | Z114: … | AA114: … | AB114: … | AC114: … | AD114: … | AE114: … | AF114: … | AG114: … | AH114: … | AI114: … | AJ114: … | AK114: … | AL114: … | AM114: … | AN114: … | AO114: … | AP114: … | AQ114: … | AR114: … | AS114: … | AT114: … | AU114: … | AV114: … | AW114: 100 | AX114: 99.4 | AY114: 98.9 | AZ114: 108.9 | BA114: 113.1 | BB114: 114.4 | BC114: 115.2 | BD114: 116.7
A116: <REG_07> | B116: Zentralschweiz | C116: Zentralschweiz
A117: <OBJ_02> | B117: Zentralschweiz | C117: Baugewerbe : Total | D117: 100 | E117: 82.1 | F117: 82.9 | G117: 84.8 | H117: 86.5 | I117: 88.6 | J117: 90 | K117: 89.3 | L117: 89 | M117: 89 | N117: 87.7 | O117: 87.1 | P117: 87.2 | Q117: 88.5 | R117: 87.7 | S117: 89.5 | T117: 90.5 | U117: 92.4 | V117: 94.3 | W117: 96.3 | X117: 98.7 | Y117: 100.1 | Z117: 98.9 | AA117: 99 | AB117: 99.7 | AC117: 100.4 | AD117: 101.9 | AE117: 102.1 | AF117: 102.4 | AG117: 102.9 | AH117: 102.6 | AI117: 102.9 | AJ117: 102.4 | AK117: 102.4 | AL117: 102.5 | AM117: 102.4 | AN117: 101.7 | AO117: 101.5 | AP117: 100.4 | AQ117: 100.5 | AR117: 100.4 | AS117: 100.9 | AT117: 101.5 | AU117: 99.7 | AV117: 99.9 | AW117: 100 | AX117: 101.1 | AY117: 104.4 | AZ117: 109.9 | BA117: 113.1 | BB117: 114.4 | BC117: 115.3 | BD117: 114.5
A118: <OBJ_03> | B118: Zentralschweiz | C118: Hochbau | D118: 84.56 | E118: 83.9 | F118: 84.2 | G118: 86.2 | H118: 87.2 | I118: 89.9 | J118: 91.1 | K118: 90.7 | L118: 90.1 | M118: 90.4 | N118: 88.5 | O118: 88.2 | P118: 87.9 | Q118: 89.7 | R118: 89.1 | S118: 90.7 | T118: 91.9 | U118: 94.2 | V118: 96.4 | W118: 98.3 | X118: 101.1 | Y118: 102.4 | Z118: 101.2 | AA118: 101.3 | AB118: 101.3 | AC118: 102.2 | AD118: 103.6 | AE118: 103.5 | AF118: 104 | AG118: 104.1 | AH118: 103.5 | AI118: 103.7 | AJ118: 103 | AK118: 102.7 | AL118: 102.6 | AM118: 102.7 | AN118: 102 | AO118: 101.9 | AP118: 100.4 | AQ118: 100.7 | AR118: 100.7 | AS118: 101.1 | AT118: 101.7 | AU118: 99.7 | AV118: 99.6 | AW118: 100 | AX118: 101.5 | AY118: 104.7 | AZ118: 110.5 | BA118: 113.9 | BB118: 114.9 | BC118: 115.6 | BD118: 114.9
A119: <OBJ_04> | B119: Zentralschweiz | C119: Neubau | D119: 52.21 | E119: 83.5 | F119: 84.1 | G119: 85.9 | H119: 87.5 | I119: 90.4 | J119: 91.7 | K119: 91 | L119: 90 | M119: 90 | N119: 87.9 | O119: 87.5 | P119: 87 | Q119: 89.2 | R119: 88.5 | S119: 89.9 | T119: 91.2 | U119: 93.5 | V119: 95.3 | W119: 97.2 | X119: 99.6 | Y119: 101.2 | Z119: 99.2 | AA119: 99.1 | AB119: 99.5 | AC119: 100.7 | AD119: 102.3 | AE119: 101.9 | AF119: 102.3 | AG119: 102.4 | AH119: 101.8 | AI119: 102.3 | AJ119: 101.8 | AK119: 101.7 | AL119: 101.5 | AM119: 101.5 | AN119: 101.1 | AO119: 100.9 | AP119: 99.9 | AQ119: 100.8 | AR119: 100.7 | AS119: 101.1 | AT119: 101.4 | AU119: 99.7 | AV119: 99.7 | AW119: 100 | AX119: 101.4 | AY119: 105.2 | AZ119: 111.3 | BA119: 114.6 | BB119: 115.7 | BC119: 116.5 | BD119: 115.7
A120: <OBJ_05> | B120: Zentralschweiz | C120: Neubau Mehrfamilienhaus | D120: 33.38 | E120: 85.8 | F120: 86.5 | G120: 88 | H120: 89.9 | I120: 92.8 | J120: 94 | K120: 92.8 | L120: 91.8 | M120: 91.6 | N120: 89.4 | O120: 89 | P120: 88.6 | Q120: 91.1 | R120: 90.2 | S120: 91.5 | T120: 92.8 | U120: 95 | V120: 96.5 | W120: 98.5 | X120: 100.8 | Y120: 102.4 | Z120: 100 | AA120: 99.8 | AB120: 100.4 | AC120: 101.7 | AD120: 102.8 | AE120: 102.4 | AF120: 102.7 | AG120: 102.7 | AH120: 101.9 | AI120: 102.2 | AJ120: 101.8 | AK120: 101.6 | AL120: 101.4 | AM120: 101.5 | AN120: 101.1 | AO120: 100.9 | AP120: 99.9 | AQ120: 101 | AR120: 100.6 | AS120: 101.2 | AT120: 101.4 | AU120: 99.7 | AV120: 99.6 | AW120: 100 | AX120: 101 | AY120: 104.6 | AZ120: 110.8 | BA120: 114.4 | BB120: 115.5 | BC120: 116.7 | BD120: 115.8
A121: <OBJ_06> | B121: Zentralschweiz | C121: Neubau Mehrfamilienhaus aus Holz | D121: 8.63 | E121: … | F121: … | G121: … | H121: … | I121: … | J121: … | K121: … | L121: … | M121: … | N121: 88.3 | O121: 88.2 | P121: 87.4 | Q121: 89.3 | R121: 88.8 | S121: 89.7 | T121: 91.5 | U121: 93.9 | V121: 95.4 | W121: 97.1 | X121: 99.1 | Y121: 100.4 | Z121: 98.2 | AA121: 98.2 | AB121: 98.6 | AC121: 99.9 | AD121: 101.6 | AE121: 101.7 | AF121: 101.3 | AG121: 101.6 | AH121: 100.8 | AI121: 101 | AJ121: 100.7 | AK121: 101.3 | AL121: 101.3 | AM121: 101.5 | AN121: 101.4 | AO121: 101.5 | AP121: 100 | AQ121: 99.9 | AR121: 100.5 | AS121: 100.8 | AT121: 100.7 | AU121: 99.2 | AV121: 99.6 | AW121: 100 | AX121: 102.9 | AY121: 107.1 | AZ121: 113.2 | BA121: 115.3 | BB121: 116.3 | BC121: 116 | BD121: 115.5
A122: <OBJ_07> | B122: Zentralschweiz | C122: Neubau Einfamilienhaus | D122: 3.55 | E122: … | F122: … | G122: … | H122: … | I122: … | J122: … | K122: … | L122: … | M122: … | N122: … | O122: … | P122: … | Q122: … | R122: … | S122: … | T122: … | U122: … | V122: … | W122: … | X122: … | Y122: … | Z122: … | AA122: … | AB122: … | AC122: 100.3 | AD122: 101.5 | AE122: 101.1 | AF122: 101.5 | AG122: 101.8 | AH122: 100.7 | AI122: 101.4 | AJ122: 101.3 | AK122: 101.3 | AL122: 101 | AM122: 101.2 | AN122: 101 | AO122: 101.2 | AP122: 99.4 | AQ122: 99.9 | AR122: 100.6 | AS122: 101.1 | AT122: 101.6 | AU122: 99.7 | AV122: 99.6 | AW122: 100 | AX122: 101.1 | AY122: 104.4 | AZ122: 110.4 | BA122: 113.1 | BB122: 114.4 | BC122: 115.4 | BD122: 114.8
A123: <OBJ_08> | B123: Zentralschweiz | C123: Neubau Bürogebäude | D123: 2.35 | E123: 78.1 | F123: 78.3 | G123: 81.3 | H123: 82 | I123: 84.8 | J123: 86.6 | K123: 87.2 | L123: 86.3 | M123: 87 | N123: 85.2 | O123: 84.6 | P123: 83.8 | Q123: 85.3 | R123: 85.1 | S123: 86.8 | T123: 88.3 | U123: 90.6 | V123: 93.3 | W123: 95.2 | X123: 97.9 | Y123: 99.8 | Z123: 99 | AA123: 99.1 | AB123: 98.8 | AC123: 99.7 | AD123: 103.1 | AE123: 102.3 | AF123: 102.7 | AG123: 103.6 | AH123: 104.4 | AI123: 105.4 | AJ123: 103.8 | AK123: 103.8 | AL123: 103.6 | AM123: 102.9 | AN123: 102.2 | AO123: 100.8 | AP123: 100.3 | AQ123: 100.2 | AR123: 101.1 | AS123: 100.7 | AT123: 101.5 | AU123: 99.9 | AV123: 100 | AW123: 100 | AX123: 101.9 | AY123: 104.8 | AZ123: 111.8 | BA123: 115.8 | BB123: 117.5 | BC123: 117.9 | BD123: 117
A124: <OBJ_09> | B124: Zentralschweiz | C124: Neubau Lagerhalle | D124: 4.3 | E124: … | F124: … | G124: … | H124: … | I124: … | J124: … | K124: … | L124: … | M124: … | N124: … | O124: … | P124: … | Q124: … | R124: … | S124: … | T124: … | U124: … | V124: … | W124: … | X124: … | Y124: … | Z124: … | AA124: … | AB124: … | AC124: 97.6 | AD124: 99.9 | AE124: 100.2 | AF124: 101.3 | AG124: 101.2 | AH124: 100.9 | AI124: 101.4 | AJ124: 100.7 | AK124: 100.9 | AL124: 100.9 | AM124: 100.7 | AN124: 99.6 | AO124: 99.4 | AP124: 99.6 | AQ124: 101.6 | AR124: 101 | AS124: 101 | AT124: 101.7 | AU124: 99.9 | AV124: 100 | AW124: 100 | AX124: 102.3 | AY124: 106.3 | AZ124: 112.4 | BA124: 115.5 | BB124: 116.2 | BC124: 116.1 | BD124: 115.8
A125: <OBJ_10> | B125: Zentralschweiz | C125: Renovation, Umbau | D125: 32.35 | E125: … | F125: … | G125: … | H125: … | I125: … | J125: … | K125: … | L125: … | M125: … | N125: … | O125: … | P125: … | Q125: … | R125: … | S125: … | T125: … | U125: … | V125: … | W125: … | X125: … | Y125: … | Z125: … | AA125: … | AB125: … | AC125: 104.8 | AD125: 105.9 | AE125: 106.3 | AF125: 106.8 | AG125: 107 | AH125: 106.3 | AI125: 106.2 | AJ125: 105.1 | AK125: 104.5 | AL125: 104.6 | AM125: 104.7 | AN125: 103.7 | AO125: 103.8 | AP125: 101.2 | AQ125: 100.5 | AR125: 100.7 | AS125: 101.1 | AT125: 102.2 | AU125: 99.8 | AV125: 99.6 | AW125: 100 | AX125: 101.5 | AY125: 103.9 | AZ125: 109.2 | BA125: 112.8 | BB125: 113.7 | BC125: 114.2 | BD125: 113.6
A126: <OBJ_11> | B126: Zentralschweiz | C126: Renovation Mehrfamilienhaus | D126: 19.43 | E126: 82.7 | F126: 82.7 | G126: 84.9 | H126: 84.6 | I126: 87 | J126: 88 | K126: 88.3 | L126: 88.5 | M126: 89.2 | N126: 87.6 | O126: 87.5 | P126: 87.5 | Q126: 88.6 | R126: 88.3 | S126: 90.1 | T126: 91 | U126: 93.5 | V126: 96.3 | W126: 98.1 | X126: 101.4 | Y126: 102.4 | Z126: 102.4 | AA126: 102.8 | AB126: 102.3 | AC126: 102.6 | AD126: 103.5 | AE126: 103.7 | AF126: 104 | AG126: 104 | AH126: 103.3 | AI126: 103.3 | AJ126: 102.5 | AK126: 101.7 | AL126: 102.2 | AM126: 102 | AN126: 100.7 | AO126: 101.1 | AP126: 98.9 | AQ126: 99.9 | AR126: 100 | AS126: 100.6 | AT126: 100.9 | AU126: 99.5 | AV126: 99.6 | AW126: 100 | AX126: 101.3 | AY126: 104.1 | AZ126: 109.4 | BA126: 112.7 | BB126: 113.1 | BC126: 114.2 | BD126: 113.3
A127: <OBJ_12> | B127: Zentralschweiz | C127: Renovation Bürogebäude | D127: 12.92 | E127: … | F127: … | G127: … | H127: … | I127: … | J127: … | K127: … | L127: … | M127: … | N127: … | O127: … | P127: … | Q127: … | R127: … | S127: … | T127: … | U127: … | V127: … | W127: … | X127: … | Y127: … | Z127: … | AA127: … | AB127: … | AC127: 102.6 | AD127: 104.1 | AE127: 104.9 | AF127: 106.2 | AG127: 106.6 | AH127: 106.1 | AI127: 105.7 | AJ127: 104.1 | AK127: 103.7 | AL127: 103.3 | AM127: 103.8 | AN127: 102.3 | AO127: 100.8 | AP127: 100.9 | AQ127: 99.8 | AR127: 100.2 | AS127: 100.6 | AT127: 100.9 | AU127: 99.7 | AV127: 100.1 | AW127: 100 | AX127: 101.8 | AY127: 103.6 | AZ127: 109 | BA127: 113 | BB127: 114.6 | BC127: 114.3 | BD127: 114.1
A128: <OBJ_13> | B128: Zentralschweiz | C128: Tiefbau | D128: 15.44 | E128: 76.3 | F128: 78.4 | G128: 80.3 | H128: 83.9 | I128: 84.4 | J128: 86.3 | K128: 84.6 | L128: 85.2 | M128: 84.1 | N128: 84.9 | O128: 83.3 | P128: 84.6 | Q128: 84.5 | R128: 82.9 | S128: 85.4 | T128: 86.1 | U128: 86.6 | V128: 87.6 | W128: 89.9 | X128: 91.3 | Y128: 92.7 | Z128: 91.8 | AA128: 91.9 | AB128: 94.5 | AC128: 94.6 | AD128: 96.5 | AE128: 97.4 | AF128: 97.3 | AG128: 98.7 | AH128: 99.4 | AI128: 99.9 | AJ128: 99.8 | AK128: 100.7 | AL128: 101.2 | AM128: 100.8 | AN128: 100 | AO128: 99.1 | AP128: 100.7 | AQ128: 99.5 | AR128: 98.9 | AS128: 99.7 | AT128: 100.4 | AU128: 99.7 | AV128: 101.5 | AW128: 100 | AX128: 99.4 | AY128: 102.8 | AZ128: 106.3 | BA128: 108.7 | BB128: 111.3 | BC128: 113.2 | BD128: 112.1
A129: <OBJ_14> | B129: Zentralschweiz | C129: Neubau Strasse | D129: 1.15 | E129: 75.6 | F129: 77.6 | G129: 79.5 | H129: 83.1 | I129: 83.6 | J129: 85.4 | K129: 82.7 | L129: 84 | M129: 83.4 | N129: 84.6 | O129: 82.8 | P129: 84.1 | Q129: 83 | R129: 82.2 | S129: 83.9 | T129: 84.7 | U129: 84.4 | V129: 85.2 | W129: 88.3 | X129: 90.1 | Y129: 90.7 | Z129: 90.2 | AA129: 90.9 | AB129: 94.2 | AC129: 94.1 | AD129: 95.8 | AE129: 96.8 | AF129: 96.8 | AG129: 98.2 | AH129: 99 | AI129: 99.5 | AJ129: 99.6 | AK129: 100.5 | AL129: 101.3 | AM129: 100.9 | AN129: 100 | AO129: 99.1 | AP129: 100.5 | AQ129: 99.4 | AR129: 99 | AS129: 99.9 | AT129: 100.6 | AU129: 99.7 | AV129: 101.7 | AW129: 100 | AX129: 101.3 | AY129: 103.9 | AZ129: 107.4 | BA129: 110.1 | BB129: 111.8 | BC129: 113 | BD129: 111.3
A130: <OBJ_15> | B130: Zentralschweiz | C130: Neubau Unterführung | D130: 1.09 | E130: … | F130: … | G130: … | H130: … | I130: … | J130: 89.2 | K130: 88.6 | L130: 88.6 | M130: 86.8 | N130: 87.2 | O130: 85.8 | P130: 87.2 | Q130: 88.1 | R130: 85.6 | S130: 88.9 | T130: 89.7 | U130: 90.9 | V130: 92.2 | W130: 93.6 | X130: 94.8 | Y130: 96.9 | Z130: 95.6 | AA130: 95.1 | AB130: 97.1 | AC130: 97.5 | AD130: 100.1 | AE130: 100.7 | AF130: 100.5 | AG130: 101.8 | AH130: 101.8 | AI130: 102.9 | AJ130: 101.3 | AK130: 102.2 | AL130: 101.7 | AM130: 100.7 | AN130: 100.5 | AO130: 99.3 | AP130: 101.6 | AQ130: 100.1 | AR130: 98.9 | AS130: 99.3 | AT130: 99.5 | AU130: 99.7 | AV130: 101.1 | AW130: 100 | AX130: 101.2 | AY130: 103.6 | AZ130: 111.5 | BA130: 114.6 | BB130: 114.9 | BC130: 114.4 | BD130: 113.4
A131: <OBJ_16> | B131: Zentralschweiz | C131: Neubau Lärmschutzwand | D131: 0.04 | E131: … | F131: … | G131: … | H131: … | I131: … | J131: … | K131: … | L131: … | M131: … | N131: … | O131: … | P131: … | Q131: … | R131: … | S131: … | T131: … | U131: … | V131: … | W131: … | X131: … | Y131: … | Z131: … | AA131: … | AB131: … | AC131: 91.1 | AD131: 91.7 | AE131: 92.2 | AF131: 91.6 | AG131: 93.1 | AH131: 93.7 | AI131: 93.6 | AJ131: 93.6 | AK131: 94.2 | AL131: 92.8 | AM131: 94 | AN131: 92.1 | AO131: 93.3 | AP131: 95.3 | AQ131: 96.7 | AR131: 96.1 | AS131: 97.5 | AT131: 98.6 | AU131: 98.3 | AV131: 99.6 | AW131: 100 | AX131: 100.9 | AY131: 103.4 | AZ131: 108 | BA131: 112 | BB131: 112.9 | BC131: 113.2 | BD131: 111.8
A132: <OBJ_17> | B132: Zentralschweiz | C132: Strassensanierung | D132: 13.16 | E132: … | F132: … | G132: … | H132: … | I132: … | J132: … | K132: … | L132: … | M132: … | N132: … | O132: … | P132: … | Q132: … | R132: … | S132: … | T132: … | U132: … | V132: … | W132: … | X132: … | Y132: … | Z132: … | AA132: … | AB132: … | AC132: … | AD132: … | AE132: … | AF132: … | AG132: … | AH132: … | AI132: … | AJ132: … | AK132: … | AL132: … | AM132: … | AN132: … | AO132: … | AP132: … | AQ132: … | AR132: … | AS132: … | AT132: … | AU132: … | AV132: … | AW132: 100 | AX132: 99.1 | AY132: 102.7 | AZ132: 105.7 | BA132: 108 | BB132: 111 | BC132: 113.1 | BD132: 112.1
A134: <REG_08> | B134: Tessin | C134: Tessin
A135: <OBJ_02> | B135: Tessin | C135: Baugewerbe : Total | D135: 100 | E135: 73.1 | F135: 74.4 | G135: 75.7 | H135: 78 | I135: 79 | J135: 82.4 | K135: 82.2 | L135: 82.3 | M135: 83.1 | N135: 82.7 | O135: 83.8 | P135: 85.1 | Q135: 87.5 | R135: 89 | S135: 89.1 | T135: 88.9 | U135: 90.8 | V135: 93.1 | W135: 94 | X135: 95.7 | Y135: 96.9 | Z135: 96.6 | AA135: 97 | AB135: 98.4 | AC135: 99.2 | AD135: 100.2 | AE135: 100.1 | AF135: 100.7 | AG135: 101.2 | AH135: 101.1 | AI135: 100.3 | AJ135: 100.3 | AK135: 99.5 | AL135: 99.1 | AM135: 99.4 | AN135: 99.3 | AO135: 98.4 | AP135: 97.5 | AQ135: 98.2 | AR135: 98.3 | AS135: 98.4 | AT135: 98.6 | AU135: 99.4 | AV135: 99.8 | AW135: 100 | AX135: 102.3 | AY135: 104 | AZ135: 106.9 | BA135: 109.8 | BB135: 111.5 | BC135: 112.6 | BD135: 112.8
A136: <OBJ_03> | B136: Tessin | C136: Hochbau | D136: 64.24 | E136: 77.5 | F136: 78.1 | G136: 79 | H136: 81.1 | I136: 82.2 | J136: 85.3 | K136: 85.5 | L136: 85.2 | M136: 85 | N136: 84.4 | O136: 85.3 | P136: 86 | Q136: 88.2 | R136: 90.4 | S136: 90.5 | T136: 90.8 | U136: 93 | V136: 95.5 | W136: 96.3 | X136: 98.3 | Y136: 99.2 | Z136: 99.6 | AA136: 99.4 | AB136: 101.1 | AC136: 101.8 | AD136: 102.6 | AE136: 102.3 | AF136: 101.9 | AG136: 102 | AH136: 102.1 | AI136: 101.4 | AJ136: 101.8 | AK136: 100.7 | AL136: 100 | AM136: 100.7 | AN136: 100.3 | AO136: 99.6 | AP136: 98.5 | AQ136: 99.6 | AR136: 99.3 | AS136: 99.5 | AT136: 99.8 | AU136: 100.1 | AV136: 100.6 | AW136: 100 | AX136: 102 | AY136: 104.8 | AZ136: 108.6 | BA136: 112 | BB136: 112.4 | BC136: 113.3 | BD136: 113.7
A137: <OBJ_04> | B137: Tessin | C137: Neubau | D137: 39.93 | E137: 75.7 | F137: 76.2 | G137: 77 | H137: 79.6 | I137: 80.8 | J137: 84.3 | K137: 84.4 | L137: 83.7 | M137: 83.4 | N137: 82.8 | O137: 83.7 | P137: 84.9 | Q137: 87.2 | R137: 89.7 | S137: 89.5 | T137: 89.9 | U137: 92 | V137: 94.6 | W137: 95.5 | X137: 97 | Y137: 98.1 | Z137: 98.1 | AA137: 97.9 | AB137: 99.9 | AC137: 100.6 | AD137: 101.6 | AE137: 100.8 | AF137: 100.5 | AG137: 100.8 | AH137: 101 | AI137: 100.2 | AJ137: 100.8 | AK137: 99.5 | AL137: 98.5 | AM137: 99.1 | AN137: 99 | AO137: 98.4 | AP137: 98.1 | AQ137: 98.8 | AR137: 98.7 | AS137: 98.9 | AT137: 99.2 | AU137: 99.7 | AV137: 100.3 | AW137: 100 | AX137: 102 | AY137: 105.4 | AZ137: 109.5 | BA137: 113 | BB137: 113.8 | BC137: 114.5 | BD137: 115.1
A138: <OBJ_05> | B138: Tessin | C138: Neubau Mehrfamilienhaus | D138: 18.77 | E138: 76.5 | F138: 77 | G138: 77.5 | H138: 80.3 | I138: 81.7 | J138: 85.1 | K138: 85.1 | L138: 84.4 | M138: 84.1 | N138: 83.4 | O138: 84.3 | P138: 85.4 | Q138: 87.7 | R138: 90.1 | S138: 89.9 | T138: 90.1 | U138: 92.1 | V138: 94.4 | W138: 95.3 | X138: 96.7 | Y138: 97.9 | Z138: 97.5 | AA138: 97.3 | AB138: 99.3 | AC138: 100 | AD138: 100.7 | AE138: 100.1 | AF138: 100 | AG138: 100.3 | AH138: 100.6 | AI138: 99.7 | AJ138: 100.5 | AK138: 99.2 | AL138: 98.4 | AM138: 98.9 | AN138: 98.9 | AO138: 98.2 | AP138: 97.9 | AQ138: 98.7 | AR138: 98.4 | AS138: 98.8 | AT138: 99 | AU138: 99.6 | AV138: 100.2 | AW138: 100 | AX138: 101.8 | AY138: 104.6 | AZ138: 108.2 | BA138: 111.9 | BB138: 111.8 | BC138: 113.1 | BD138: 112.9
A139: <OBJ_06> | B139: Tessin | C139: Neubau Mehrfamilienhaus aus Holz | D139: 11.76 | E139: … | F139: … | G139: … | H139: … | I139: … | J139: … | K139: … | L139: … | M139: … | N139: 82.5 | O139: 83.1 | P139: 83.5 | Q139: 85.6 | R139: 87.4 | S139: 87 | T139: 87.7 | U139: 89.9 | V139: 92.3 | W139: 93.2 | X139: 95.1 | Y139: 96.4 | Z139: 95.3 | AA139: 95.1 | AB139: 96.5 | AC139: 97.4 | AD139: 98.8 | AE139: 98 | AF139: 98.1 | AG139: 97.8 | AH139: 98.1 | AI139: 97.6 | AJ139: 98.5 | AK139: 97.5 | AL139: 97.6 | AM139: 97.8 | AN139: 97.7 | AO139: 96.8 | AP139: 97.6 | AQ139: 98.2 | AR139: 99.2 | AS139: 99.1 | AT139: 98.6 | AU139: 98.7 | AV139: 99.9 | AW139: 100 | AX139: 102.5 | AY139: 106.5 | AZ139: 111.3 | BA139: 114.2 | BB139: 116.7 | BC139: 116 | BD139: 117.7
A140: <OBJ_07> | B140: Tessin | C140: Neubau Einfamilienhaus | D140: 2.13 | E140: … | F140: … | G140: … | H140: … | I140: … | J140: … | K140: … | L140: … | M140: … | N140: … | O140: … | P140: … | Q140: … | R140: … | S140: … | T140: … | U140: … | V140: … | W140: … | X140: … | Y140: … | Z140: … | AA140: … | AB140: … | AC140: 101.5 | AD140: 102.2 | AE140: 101.1 | AF140: 100.6 | AG140: 101 | AH140: 101.4 | AI140: 100.4 | AJ140: 101.4 | AK140: 99.7 | AL140: 98.8 | AM140: 99.5 | AN140: 99.5 | AO140: 99.2 | AP140: 98.3 | AQ140: 99.2 | AR140: 99.6 | AS140: 99.3 | AT140: 100 | AU140: 100.3 | AV140: 100.7 | AW140: 100 | AX140: 101.8 | AY140: 104.4 | AZ140: 108 | BA140: 110.8 | BB140: 112 | BC140: 113 | BD140: 113.3
A141: <OBJ_08> | B141: Tessin | C141: Neubau Bürogebäude | D141: 5.13 | E141: 73 | F141: 73.5 | G141: 75.2 | H141: 77.5 | I141: 78.1 | J141: 81.9 | K141: 82.3 | L141: 81.5 | M141: 81.4 | N141: 81.2 | O141: 82.2 | P141: 83.2 | Q141: 85.7 | R141: 88.2 | S141: 88.3 | T141: 89.2 | U141: 91.8 | V141: 95.4 | W141: 96 | X141: 98.1 | Y141: 98.9 | Z141: 100.4 | AA141: 100.2 | AB141: 102.2 | AC141: 102.9 | AD141: 104.6 | AE141: 104.1 | AF141: 102.8 | AG141: 103 | AH141: 103 | AI141: 102.8 | AJ141: 102.1 | AK141: 101.1 | AL141: 99.6 | AM141: 100.3 | AN141: 99.6 | AO141: 99.3 | AP141: 98.6 | AQ141: 99.2 | AR141: 98.8 | AS141: 99 | AT141: 99.3 | AU141: 99.9 | AV141: 100.2 | AW141: 100 | AX141: 101.9 | AY141: 105.8 | AZ141: 110.3 | BA141: 114.5 | BB141: 115 | BC141: 116.8 | BD141: 117.7
A142: <OBJ_09> | B142: Tessin | C142: Neubau Lagerhalle | D142: 2.14 | E142: … | F142: … | G142: … | H142: … | I142: … | J142: … | K142: … | L142: … | M142: … | N142: … | O142: … | P142: … | Q142: … | R142: … | S142: … | T142: … | U142: … | V142: … | W142: … | X142: … | Y142: … | Z142: … | AA142: … | AB142: … | AC142: 100.9 | AD142: 102.3 | AE142: 102 | AF142: 102.9 | AG142: 102.6 | AH142: 102.6 | AI142: 101.7 | AJ142: 101.1 | AK142: 99.8 | AL142: 98.9 | AM142: 99 | AN142: 98.2 | AO142: 98.1 | AP142: 98.5 | AQ142: 98.3 | AR142: 98.4 | AS142: 98.6 | AT142: 99.1 | AU142: 99.7 | AV142: 100 | AW142: 100 | AX142: 102.5 | AY142: 106.7 | AZ142: 111.3 | BA142: 113.9 | BB142: 113.7 | BC142: 114.4 | BD142: 115.3
A143: <OBJ_10> | B143: Tessin | C143: Renovation, Umbau | D143: 24.31 | E143: … | F143: … | G143: … | H143: … | I143: … | J143: … | K143: … | L143: … | M143: … | N143: … | O143: … | P143: … | Q143: … | R143: … | S143: … | T143: … | U143: … | V143: … | W143: … | X143: … | Y143: … | Z143: … | AA143: … | AB143: … | AC143: 104.2 | AD143: 104.8 | AE143: 105.1 | AF143: 104.5 | AG143: 104.5 | AH143: 104.4 | AI143: 103.8 | AJ143: 104 | AK143: 103.1 | AL143: 102.8 | AM143: 103.6 | AN143: 102.6 | AO143: 101.9 | AP143: 99.1 | AQ143: 101.1 | AR143: 100.4 | AS143: 100.7 | AT143: 100.8 | AU143: 100.7 | AV143: 101.1 | AW143: 100 | AX143: 101.8 | AY143: 103.8 | AZ143: 107.2 | BA143: 110.3 | BB143: 110.1 | BC143: 111.3 | BD143: 111.5
A144: <OBJ_11> | B144: Tessin | C144: Renovation Mehrfamilienhaus | D144: 18.44 | E144: 76.7 | F144: 77.4 | G144: 78.6 | H144: 79.6 | I144: 80.4 | J144: 82.4 | K144: 82.9 | L144: 83.4 | M144: 83.4 | N144: 82.8 | O144: 83.4 | P144: 83.3 | Q144: 85.3 | R144: 87 | S144: 87.6 | T144: 87.5 | U144: 89.8 | V144: 91.9 | W144: 92.5 | X144: 95.3 | Y144: 95.9 | Z144: 97.1 | AA144: 96.7 | AB144: 97.8 | AC144: 98.5 | AD144: 99.1 | AE144: 99.1 | AF144: 98.7 | AG144: 98.7 | AH144: 98.9 | AI144: 98 | AJ144: 98.7 | AK144: 97.6 | AL144: 97.3 | AM144: 97.6 | AN144: 97.3 | AO144: 96.7 | AP144: 96.4 | AQ144: 97.5 | AR144: 97.9 | AS144: 97.6 | AT144: 97.9 | AU144: 99 | AV144: 100.3 | AW144: 100 | AX144: 101.7 | AY144: 103.9 | AZ144: 107 | BA144: 110 | BB144: 109.9 | BC144: 111.3 | BD144: 111.1
A145: <OBJ_12> | B145: Tessin | C145: Renovation Bürogebäude | D145: 5.87 | E145: … | F145: … | G145: … | H145: … | I145: … | J145: … | K145: … | L145: … | M145: … | N145: … | O145: … | P145: … | Q145: … | R145: … | S145: … | T145: … | U145: … | V145: … | W145: … | X145: … | Y145: … | Z145: … | AA145: … | AB145: … | AC145: 100.4 | AD145: 101 | AE145: 101.5 | AF145: 100.7 | AG145: 100.8 | AH145: 100.3 | AI145: 100.4 | AJ145: 99.7 | AK145: 99.2 | AL145: 99 | AM145: 100.4 | AN145: 99.7 | AO145: 99.9 | AP145: 99.1 | AQ145: 98.6 | AR145: 97.7 | AS145: 98.5 | AT145: 98.4 | AU145: 100 | AV145: 100 | AW145: 100 | AX145: 102.1 | AY145: 103.3 | AZ145: 107.6 | BA145: 111.3 | BB145: 110.4 | BC145: 111.3 | BD145: 112.8
A146: <OBJ_13> | B146: Tessin | C146: Tiefbau | D146: 35.76 | E146: 62.9 | F146: 66.1 | G146: 68.5 | H146: 71.1 | I146: 72.1 | J146: 76.4 | K146: 75.2 | L146: 76.1 | M146: 79.5 | N146: 79.5 | O146: 81.3 | P146: 84.2 | Q146: 87.2 | R146: 86.6 | S146: 86.8 | T146: 85.7 | U146: 86.6 | V146: 88.6 | W146: 89.8 | X146: 90.5 | Y146: 92.3 | Z146: 90.3 | AA146: 92.5 | AB146: 93 | AC146: 93.9 | AD146: 96.1 | AE146: 96 | AF146: 98.6 | AG146: 99.8 | AH146: 99.1 | AI146: 98.1 | AJ146: 97.3 | AK146: 97.2 | AL146: 97.3 | AM146: 97 | AN146: 97.3 | AO146: 95.9 | AP146: 95.7 | AQ146: 95.5 | AR146: 96.5 | AS146: 96.2 | AT146: 96.2 | AU146: 98 | AV146: 98.4 | AW146: 100 | AX146: 102.8 | AY146: 102.5 | AZ146: 103.7 | BA146: 105.8 | BB146: 110 | BC146: 111.4 | BD146: 111.1
A147: <OBJ_14> | B147: Tessin | C147: Neubau Strasse | D147: 9.86 | E147: 66.1 | F147: 69.5 | G147: 72 | H147: 74.8 | I147: 75.8 | J147: 80.3 | K147: 79.3 | L147: 79.9 | M147: 83.6 | N147: 83.4 | O147: 86.3 | P147: 88.5 | Q147: 91.1 | R147: 90.8 | S147: 89.1 | T147: 88.2 | U147: 88.5 | V147: 89.4 | W147: 90.9 | X147: 91.4 | Y147: 92 | Z147: 91.2 | AA147: 93.3 | AB147: 93 | AC147: 93.6 | AD147: 95.8 | AE147: 95.7 | AF147: 98.2 | AG147: 99.9 | AH147: 99 | AI147: 97.9 | AJ147: 97.4 | AK147: 97.1 | AL147: 97.6 | AM147: 97.3 | AN147: 97.7 | AO147: 96.2 | AP147: 96.1 | AQ147: 95.6 | AR147: 96.4 | AS147: 96.1 | AT147: 96.2 | AU147: 97.9 | AV147: 98 | AW147: 100 | AX147: 103.3 | AY147: 103.7 | AZ147: 105 | BA147: 107.3 | BB147: 111.4 | BC147: 113.2 | BD147: 113.2
A148: <OBJ_15> | B148: Tessin | C148: Neubau Unterführung | D148: 3.65 | E148: … | F148: … | G148: … | H148: … | I148: … | J148: 74.1 | K148: 72.8 | L148: 73.9 | M148: 77.2 | N148: 77.3 | O148: 78.2 | P148: 81.8 | Q148: 85.2 | R148: 84.2 | S148: 86.3 | T148: 84.9 | U148: 86.3 | V148: 89.5 | W148: 90.4 | X148: 91.4 | Y148: 94.3 | Z148: 91.1 | AA148: 93.4 | AB148: 94.8 | AC148: 95.8 | AD148: 98.9 | AE148: 98.4 | AF148: 101.8 | AG148: 100.3 | AH148: 100.3 | AI148: 99.7 | AJ148: 97 | AK148: 97.9 | AL148: 96.9 | AM148: 95.9 | AN148: 96 | AO148: 94.9 | AP148: 94.3 | AQ148: 95.1 | AR148: 96.9 | AS148: 96.5 | AT148: 96.3 | AU148: 98.5 | AV148: 99.9 | AW148: 100 | AX148: 103 | AY148: 106.2 | AZ148: 110.6 | BA148: 113.1 | BB148: 115 | BC148: 114.2 | BD148: 112.9
A149: <OBJ_16> | B149: Tessin | C149: Neubau Lärmschutzwand | D149: 0.15 | E149: … | F149: … | G149: … | H149: … | I149: … | J149: … | K149: … | L149: … | M149: … | N149: … | O149: … | P149: … | Q149: … | R149: … | S149: … | T149: … | U149: … | V149: … | W149: … | X149: … | Y149: … | Z149: … | AA149: … | AB149: … | AC149: 91.5 | AD149: 91.5 | AE149: 92.5 | AF149: 94 | AG149: 95.2 | AH149: 94.9 | AI149: 94.4 | AJ149: 94.4 | AK149: 94.5 | AL149: 92.9 | AM149: 94.7 | AN149: 95 | AO149: 94.7 | AP149: 95.8 | AQ149: 97.6 | AR149: 97.3 | AS149: 98.4 | AT149: 98.9 | AU149: 98.6 | AV149: 99.5 | AW149: 100 | AX149: 102 | AY149: 103.3 | AZ149: 107.3 | BA149: 110.6 | BB149: 111.9 | BC149: 112.9 | BD149: 111.6
A150: <OBJ_17> | B150: Tessin | C150: Strassensanierung | D150: 22.1 | E150: … | F150: … | G150: … | H150: … | I150: … | J150: … | K150: … | L150: … | M150: … | N150: … | O150: … | P150: … | Q150: … | R150: … | S150: … | T150: … | U150: … | V150: … | W150: … | X150: … | Y150: … | Z150: … | AA150: … | AB150: … | AC150: … | AD150: … | AE150: … | AF150: … | AG150: … | AH150: … | AI150: … | AJ150: … | AK150: … | AL150: … | AM150: … | AN150: … | AO150: … | AP150: … | AQ150: … | AR150: … | AS150: … | AT150: … | AU150: … | AV150: … | AW150: 100 | AX150: 102.5 | AY150: 101.3 | AZ150: 102 | BA150: 104 | BB150: 108.5 | BC150: 110.2 | BD150: 109.9
A152: <Pieds_tableau_1> | C152: Drei Punkte (…) bedeuten, dass der Wert nicht vorhanden, nicht genügend repräsentativ oder unter Datenschutz ist.
A153: <Pieds_tableau_2> | C153: Bundesamt für Statistik, Baupreisindex
A154: <Pieds_tableau_3> | C154: Auskunft: Hotline BAP, 058 463 63 06, bap@bfs.admin.ch
A155: <Pieds_tableau_4> | C155: © BFS

Sheet Listenfelder_T
A1: Region | B1: Objektart | C1: Jahr | D1: Monat
A2: Schweiz | B2: Baugewerbe : Total | C2: 1998 | D2: April
A3: Genferseeregion | B3: Hochbau | C3: 1999 | D3: Oktober
A4: Espace Mittelland | B4: Neubau | C4: 2000
A5: Nordwestschweiz | B5: Neubau Mehrfamilienhaus | C5: 2001
A6: Zürich | B6: Neubau Mehrfamilienhaus aus Holz | C6: 2002
A7: Ostschweiz | B7: Neubau Einfamilienhaus | C7: 2003
A8: Zentralschweiz | B8: Neubau Bürogebäude | C8: 2004
A9: Tessin | B9: Neubau Lagerhalle | C9: 2005
B10: Renovation, Umbau | C10: 2006
B11: Renovation Mehrfamilienhaus | C11: 2007
B12: Renovation Bürogebäude | C12: 2008
B13: Tiefbau | C13: 2009
B14: Neubau Strasse | C14: 2010
B15: Neubau Unterführung | C15: 2011
B16: Neubau Lärmschutzwand | C16: 2012
B17: Strassensanierung | C17: 2013
C18: 2014
C19: 2015
C20: 2016
C21: 2017
C22: 2018
C23: 2019
C24: 2020
C25: 2021
C26: 2022
C27: 2023
C28: 2024

Sheet Listenfelder
A1: Schätzung
A2: Sehr Tief
A3: Tief
A4: Mittel
A5: Hoch
A6: Sehr Hoch

Sheet Listenfelder_211
A1: Bauteil | B1: Schalungsfläche | C1: Zuschläge (B) | D1: Schalung | E1: Schalung CHF/m2 | F1: Höhe | G1: Beton | H1: Beton CHF/m2 | I1: Stein | J1: Mauerwerk CHF/m2 | K1: Zuschläge (M)
A2: 1.Einzelfundament | B2: =IF('211'!C9="",(4*1)*'211'!C8,'211'!C9*'211'!C8) -> 0 | C2: 0.05 | D2: 1.Stirn- und Abschalung | E2: 167 | G2: 1.Unterlagsbeton | H2: 15 | I2: 1.Backstein / Aussenwand, 17.5cm | J2: 105 | K2: 0.15
A3: 2.Streifenfundament | B3: =2*'211'!C8 -> 0.9 | C3: 0.05 | D3: 2.Typ 2, Schalung direkt. Abstellm. Schalhöhe bis 280cm | E3: 40 | G3: 2.Sauberkeitsschicht | H3: 12.5 | I3: 2.Backstein / Innenwand, 12.5cm | J3: 90 | K3: 0.15
A4: 3.Bodenplatte | B4: =IF('211'!C9="",(4*1)*'211'!C8,'211'!C9*'211'!C8) -> 0 | C4: 0.05 | D4: 3.Typ 4.1 | G4: 3.PC kg/m3 300 | H4: 200 | I4: 3.Backstein / Innenwand, 15cm | J4: 95 | K4: 0.15
A5: 4.Geschossdecke | B5: 1 | C5: 0.15 | I5: 4.Dämmbackstein / Aussenwand
A6: 5.Dachdecke | B6: 1 | C6: 0.1 | I6: 5.Kalksandstein / Aussenwand
A7: 6.Aussenwand | B7: 2 | C7: 0.2 | I7: 6.Kalksandstein / Innenwand, 15cm | J7: 105 | K7: 0.15
A8: 7.Innenwand | B8: 2 | C8: 0.2

Sheet Nutzer
A1: Bearbeiter | B1: Datum / Uhrzeit
A2: LindeA | B2: 2024-10-29T17:23:56
A3: LindeA | B3: 2024-10-30T08:12:11
A4: LindeA | B4: 2024-10-31T14:33:43
A5: LindeA | B5: 2024-10-31T14:58:03
A6: LindeA | B6: 2024-11-06T13:03:34
A7: LindeA | B7: 2024-11-25T15:20:56
A8: LindeA | B8: 2024-11-26T08:21:12
A9: LindeA | B9: 2024-11-26T08:26:14
A10: LindeA | B10: 2024-11-26T12:19:02
A11: LindeA | B11: 2024-12-16T17:02:42
A12: LindeA | B12: 2025-02-07T10:57:13
A13: LindeA | B13: 2025-02-07T12:26:28
A14: LindeA | B14: 2025-02-10T14:43:43
A15: LindeA | B15: 2025-02-10T15:08:35
A16: LindeA | B16: 2025-02-11T10:51:15
A17: LindeA | B17: 2025-02-11T11:42:02
A18: LindeA | B18: 2025-02-11T13:18:58
A19: LindeA | B19: 2025-02-12T09:21:30
A20: LindeA | B20: 2025-02-12T13:47:38
A21: LindeA | B21: 2025-02-12T15:49:09
A22: LindeA | B22: 2025-02-12T16:53:17
A23: LindeA | B23: 2025-02-13T12:46:22
A24: LindeA | B24: 2025-02-13T14:01:01
A25: LindeA | B25: 2025-02-18T14:35:24
A26: LindeA | B26: 2025-02-19T14:38:11
A27: LindeA | B27: 2025-02-19T16:07:55
A28: LindeA | B28: 2025-02-19T16:40:57
A29: Uwe | B29: 2025-02-19T18:06:02

Sheet Bauteile (2) (hidden)
A1: Lfd.-Nr. | B1: eBKP-H | C1: BKP | D1: Beschreibung | E1: Untertitel | F1: Bauteil | G1: Einheit | H1: EP | M1: Bauteildicke | N1: Unterlagsbeton. | O1: Sauberkeitsschicht | P1: Schalung | Q1: Schalung direkt. Abstellm. Typ 2 Schalhöhe bis 280cm. | R1: PC kg/m3 300. | S1: Bewehrungsanteil KG/m3 | T1: Bewehrung kg | U1: Anschlussbewehrung / Durchstanzarmierung und dgl. | V1: Stein | W1: Gleitlager | X1: Sturz | Y1: Zuschläge. | AA1: Gelb muss geprüft werden
H2: INTERN | I2: 2024-01-01
A4: 1 | B4: B 01.02 | C4: 101 | D4: =IF(C4=0,"",LOOKUP(C4,BKP,Baukostenplan)) -> Bestandesaufnahmen | F4: Gebäudeaufnahme Rissprotokolle | G4: gl
A5: =IF(C5=0,"",A4+1) -> 2 | B5: B 01.01 | C5: 102 | D5: Baugrunduntersuchungen | F5: Untersuchung | G5: gl
A6: 3 | B6: B 01.03 | C6: 102 | D6: Baugrunduntersuchungen | E6: Umweltmessungen | F6: Materialanalysen (falls Schadstoffe). | G6: gl
A7: 4 | B7: B 01.04 | C7: 102 | D7: Baugrunduntersuchungen | E7: Überwachungen | F7: Regelmässige Kontrollen (z.B. Gleis und dgl.). | G7: h | H7: 120
A8: 5 | B8: B 05.01 | C8: 111 | D8: Rodungen | F8: Roden bestehender Sträucher und Bäume. | G8: m2 | H8: 3.5
A9: 6 | C9: 112 | D9: Abbrüche | E9: Rückbau nicht kontaminiertes Bauwerk | F9: Budgetbetrag für Entrümpelung. Verrechung nach effektivem Aufwand. | G9: gl
A10: 7 | B10: B 05.02 | C10: 112 | D10: Abbrüche | E10: Rückbau nicht kontaminiertes Bauwerk | F10: Abbrüche / Demontagen | G10: m3 | H10: 40
A11: 8 | B11: B 05.03 | C11: 119 | D11: Übriges | E11: Rückbau kontaminiertes Bauwerk | F11: Abbruch | G11: m3 | H11: 42
A12: 9 | B12: B 05.03 | C12: 119 | D12: Übriges | E12: Rückbau kontaminiertes Bauwerk | F12: Zusätzliche Entsorgungsgebühren. | G12: m3 | H12: 32
A13: 10 | C13: 119 | D13: Übriges | E13: Rückbau kontaminiertes Bauwerk | F13: Schadstoffsanierung. Verrechung nach effektivem Aufwand. | G13: gl
A14: 11 | B14: B 03 | C14: 120 | D14: Übergangsposition | F14: Sicherung und Provisorien. | G14: gl
A15: 12 | B15: B 02.01 | C15: 13 | D15: Gemeinsame Baustelleneinrichtung | F15: Prozentsatz von BKP 2-4 | G15: %
A16: 13 | B16: B 02.01 | C16: 131 | D16: Abschrankungen | F16: Signalisation u.d.gl. | G16: gl
A17: 14 | B17: B 02.01 | C17: 132 | D17: Zufahrten, Plätze | F17: Zufahrten und Plätze | G17: m2
A18: 15 | B18: B 02.01 | C18: 132 | D18: Zufahrten, Plätze | F18: Provisorische Parkplätze | G18: Stk. | H18: 150
A19: 16 | B19: B 02.03 | C19: 133 | D19: Büro Bauleitung | F19: Einr. + Vorh. Bauleitungscontainer (LE=St x Mt). | G19: LE | H19: 650
A20: 17 | B20: B 02.02 | C20: 135.0 | D20: Kanalisationen | E20: Provisorische Installationen | G20: gl
A21: 18 | B21: B 02.02 | C21: 135.1 | D21: Elektro | E21: Provisorische Installationen | F21: Einr. + Vorh. Baustromverteiler 2 Stk | G21: Mnt. | H21: 535
A22: 19 | B22: B 02.02 | C22: 135.1 | D22: Elektro | E22: Provisorische Installationen | F22: Längeres Vorh. Baustromv. 2 Stk | G22: Mnt. | H22: 344
A23: 20 | B23: B 02.02 | C23: 135.3 | D23: Wasser | E23: Provisorische Installationen | G23: gl
A24: 21 | B24: B 02.02 | C24: 136 | D24: Kosten für Energie, Wasser und dgl . | F24: Verbr.+Ents. Baustrom, -wasser, -heizung | G24: Mnt. | H24: 3750
A25: 22 | B25: B 02.06 | C25: 139 | D25: Übriges | F25: Winterbaumassnahmen. | G25: m2
A26: 23 | C26: 150 | D26: Übergangsposition | E26: Telekommunikationsleitung | F26: Nur Kabel. | G26: m
A27: 24 | C27: 150 | D27: Übergangsposition | E27: Wasserleitung | G27: m
A28: 25 | B28: B 04 | C28: 151 | D28: Erdarbeiten | E28: Aushub und Hinterfüllung | F28: Für sämtliche Werkleitungen (Wasser, Elektro, Medien). | G28: m3 | H28: 50
A29: 26 | C29: 152 | D29: Kanalisationsleitungen | F29: Kanalisation inkl. Schächte, Grabarbeiten und Spülung. | G29: pl
A30: 27 | C30: 153 | D30: Elektroleitungen | F30: Hüllrohre inkl. Schächte. | G30: m
A31: 28 | C31: 153 | D31: Elektroleitungen | F31: Stark.- Schwachstrom | G31: m | H31: 95
A32: 29 | C32: 153 | D32: Elektroleitungen | F32: Bestehende Leitungen umlegen inkl. Grabarbeiten. | G32: m
A33: 30 | B33: B 04 | C33: 154 | D33: Heizungs-, Lüftungs-, Klima-, Kälteleitungen | E33: Fernwärme, Fernbkälte | F33: Heizungs- und Kälteleitung. | G33: m | H33: 500
A34: 31 | B34: B 04.08 | C34: 154 | D34: Heizungs-, Lüftungs-, Klima-, Kälteleitungen | E34: Gasleitung | G34: m | H34: 80
A35: 32 | B35: B 06.03 | C35: 172 | D35: Baugrubenabschlüsse | E35: Böschungssicherung | F35: Spritzbeton. | G35: m2 | H35: 180
A36: 33 | B36: B 06.03 | C36: 172 | D36: Baugrubenabschlüsse | E36: Böschungssicherung | F36: Nagelwände. | G36: m2 | H36: 360
A37: 34 | B37: B 06.04 | C37: 172 | D37: Baugrubenabschlüsse | F37: Spundwand. | G37: m2 | H37: 470
A38: 35 | B38: B 06.04 | C38: 172 | D38: Baugrubenabschlüsse | F38: Rühlwand. | G38: m2 | H38: 560
A39: 36 | B39: B 06.04 | C39: 172 | D39: Baugrubenabschlüsse | F39: Bohrpfahlwand. | G39: m2 | H39: 920
A40: 37 | B40: C 01.01 | C40: 175 | D40: Grundwasserabdichtungen | F40: Feuchtigkeitsabdichtung DK 2. | G40: GGF | H40: 35
A41: 38 | B41: C 01.01 | C41: 175 | D41: Grundwasserabdichtungen | F41: Feuchtigkeitsabdichtung DK 1. | G41: GGF | H41: 60
A42: 39 | B42: E 01.01 | C42: 175 | D42: Grundwasserabdichtungen | E42: Abdichtung, Beschichtung unter Terrain | F42: Abdichtung DK 2 Wände UG. | G42: m2 | H42: 35
A43: 40 | B43: E 01.01 | C43: 175 | D43: Grundwasserabdichtungen | E43: Abdichtung, Beschichtung unter Terrain | F43: Abdichtung DK 1 Wände UG. | G43: m2 | H43: 75
A44: 41 | B44: B 06.06 | C44: 176 | D44: Wasserhaltung | F44: Wasserhaltung für Oberflächenwasser. | G44: gl
A45: 42 | B45: B 06.06 | C45: 176 | D45: Wasserhaltung | F45: Gebühren für Einleitung Meteorwasser in Kanalisation. | G45: m3 | H45: 0.65
A46: 43 | B46: B 06.06 | C46: 176 | D46: Wasserhaltung | F46: Grundwasserabsenkung | G46: m3
A47: 44 | B47: B 06.01 | C47: 201.1 | D47: Erdarbeiten | E47: Nicht kontaminierter Aushub | F47: Oberboden maschinell mit seitlicher Lagerung. | G47: m3 | H47: 3.05
A48: 45 | B48: B 06.01 | C48: 201.1 | D48: Erdarbeiten | E48: Nicht kontaminierter Aushub | F48: Aushub maschinell mit seitlicher Lagerung. | G48: m3 | H48: 3.65
A49: 46 | B49: B 06.01 | C49: 201.1 | D49: Erdarbeiten | E49: Nicht kontaminierter Aushub | F49: Sohlenaushub letzte 20cm. | G49: m3 | H49: 4
A50: 47 | B50: B 06.01 | C50: 201.1 | D50: Erdarbeiten | E50: Nicht kontaminierter Aushub | F50: Transport Oberboden auf Deponie Baustelle. | G50: m3 | H50: 4
A51: 48 | B51: B 06.01 | C51: 201.1 | D51: Erdarbeiten | E51: Nicht kontaminierter Aushub | F51: Transport Oberboden auf Deponie Unternehmer. | G51: m3 | H51: 6.7
A52: 49 | B52: B 06.01 | C52: 201.1 | D52: Erdarbeiten | E52: Nicht kontaminierter Aushub | F52: Transport Aushub auf Deponie Unternehmer. | G52: m3 | H52: 10.6
A53: 50 | B53: B 06.01 | C53: 201.1 | D53: Erdarbeiten | E53: Nicht kontaminierter Aushub | F53: Gebühren Oberboden (Lagerung oder Abgabe). | G53: m3 | H53: 0.55
A54: 51 | B54: B 06.01 | C54: 201.1 | D54: Erdarbeiten | E54: Nicht kontaminierter Aushub | F54: Gebühren Aushub (Lagerung oder Abgabe). | G54: m3 | H54: 5.6
A55: 52 | B55: B 06.02 | C55: 201.1 | D55: Erdarbeiten | E55: Kontaminierter Aushub | F55: Kontaminierter Aushub baggerfähig. | G55: m3 | H55: 36
A56: 53 | B56: B 06.02 | C56: 201.1 | D56: Erdarbeiten | E56: Kontaminierter Aushub | F56: Zusätzliche Gebühren. | G56: m3
A57: 54 | B57: B 06.03 | C57: 201.1 | D57: Erdarbeiten | E57: Böschungssicherung | F57: Einfache Baugrubensicherung mit PE-Folie. | G57: m2 | H57: 5.5
A58: 55 | B58: B 06.05 | C58: 201.1 | D58: Erdarbeiten | E58: Materialeinbau | F58: Einbringen Hinterfüllung von Deponie Baustelle. | G58: m3 | H58: 6.5
A59: 56 | B59: B 06.05 | C59: 201.1 | D59: Erdarbeiten | E59: Materialeinbau | F59: Hinderfüllung maschinell Verdichten. | G59: m3 | H59: 2.5
A60: 57 | B60: B 06.05 | C60: 201.1 | D60: Erdarbeiten | E60: Materialeinbau | F60: Liefern und Einbringen von Sickerkies 32-45mm. | G60: m3 | H60: 83
A61: 58 | B61: B 02.01 | C61: 211.0 | D61: Baustelleneinrichtung | E61: Allgemeine Baustelleneinrichtung | F61: Prozentsatz von BKP 2 | G61: % | H61: 6-8
A62: 59 | B62: B 02.03 | C62: 211.0 | D62: Baustelleneinrichtung | F62: Bau-WC (LE=St x Mt) | G62: LE | H62: 200
A63: 60 | B63: B 02.03 | C63: 211.0 | D63: Baustelleneinrichtung | F63: Längeres Vorh. Bau-WC (LE=St x Mt) | G63: LE | H63: 200
A64: 61 | B64: B 02.04 | C64: 211.0 | D64: Baustelleneinrichtung | F64: Baukran (LE=St x Mt) | G64: LE | H64: 5500
A65: 62 | B65: B 02.04 | C65: 211.0 | D65: Baustelleneinrichtung | F65: Kranbetrieb für dritte inkl. Bedinung | G65: h
A66: 63 | B66: B 02.04 | C66: 211.0 | D66: Baustelleneinrichtung | F66: Radwaschanlage (LE=St x Mt). | G66: LE | H66: 2640
A67: 64 | B67: B 08.01 | C67: 211.1 | D67: Gerüste | F67: Fassadengerüst. | G67: m2 | H67: 36
A68: 65 | B68: B 08.02 | C68: 211.1 | D68: =IF(C68=0,"",LOOKUP(C68,BKP,Baukostenplan)) -> Gerüste | F68: Innengerüst. | G68: GF | H68: 2
A69: =IF(C69=0,"",A68+1) -> 66 | B69: B 08.02 | C69: 211.1 | D69: Gerüste | F69: Liftschachtgerüste. | G69: Stk | H69: 410
A70: 67 | B70: D 09.04 | C70: 211.4 | D70: Kanalisationen im Gebäude | F70: Kanalisation unter/in Bodenplatte inkl. Aushub. | G70: GGF | H70: 65
A71: 68 | B71: D 09.04 | C71: 211.4 | D71: Kanalisationen im Gebäude | F71: Versickerungsanlage | G71: GGF | H71: 8
A72: 69 | B72: D 09.04 | C72: 211.4 | D72: Kanalisationen im Gebäude | E72: Abwassersammlung | F72: Kanalisation. | G72: GGF | H72: 40
A73: 70 | B73: C 01.02 | C73: 211.5 | D73: Beton- und Stahlbetonarbeiten | F73: Einzelfundament, Beton horizontal oder im Gefalle bis 3%, | G73: m2 | H73: =(N73+P73)+((1*M73)*R73)+(((1*M73)*S73)*T73)+(((N73+P73)+((1*M73)*R73)+(((1*M73)*S73)*T73))*Y73) -> 191.835 | M73: 0.3 | N73: 15 | P73: 48 | R73: 195 | S73: 120 | T73: 1.7 | Y73: 0.05
A74: 71 | B74: C 01.03 | C74: 211.5 | D74: Beton- und Stahlbetonarbeiten | F74: Bodenplatte, Beton horizontal oder im Gefalle bis 3%, | G74: m2 | H74: =(O74+((4*M74)*P74))+((1*M74)*R74)+(((1*M74)*S74)*T74)+(((O74+((4*M74)*P74))+((1*M74)*R74)+(((1*M74)*S74)*T74))*Y74) -> 194.565 | M74: 0.3 | O74: 12.5 | P74: 48 | R74: 180 | S74: 120 | T74: 1.7 | Y74: 0.05
A75: 72 | B75: C 02.01 | C75: 211.5 | D75: Beton- und Stahlbetonarbeiten | E75: Aussenwand | F75: Aussenwandkonstruktion Betonwände | G75: m2 | H75: =(Q75*2)+((1*M75)*R75)+(((1*M75)*S75)*T75)+(((Q75*2)+((1*M75)*R75)+(((1*M75)*S75)*T75))*Y75) -> 192.96 | M75: 0.2 | Q75: 36 | R75: 240 | S75: 120 | T75: 1.7 | Y75: 0.2
A76: 73 | B76: C 02.02 | C76: 211.5 | D76: Beton- und Stahlbetonarbeiten | E76: Innenwand | F76: Innenwandkonstruktion Betonwände | G76: m2 | H76: =(Q76*2)+((1*M76)*R76)+(((1*M76)*S76)*T76)+(((Q76*2)+((1*M76)*R76)+(((1*M76)*S76)*T76))*Y76) -> 188.88 | M76: 0.2 | Q76: 36 | R76: 240 | S76: 110 | T76: 1.7 | Y76: 0.2
A77: 74 | B77: C 04.01 | C77: 211.5 | D77: Beton- und Stahlbetonarbeiten | F77: Geschossdecke in Beton | G77: m2 | H77: =(Q77+(R77*M77))+((M77*S77)*T77)+((((M77*S77)*T77))*U77)+(((Q77+(R77*M77))+((M77*S77)*T77)+((((M77*S77)*T77))*U77))*Y77) -> 222.4928 | M77: 0.32 | Q77: 40 | R77: 230 | S77: 120 | T77: 1.6 | U77: 0.3 | Y77: 0.15
A78: 75 | B78: C 04.04 | C78: 211.5 | D78: Beton- und Stahlbetonarbeiten | F78: Flachdachkonstruktion in Beton | G78: m2 | H78: =(Q78+(R78*M78))+((M78*S78)*T78)+((((M78*S78)*T78))*U78)+(((Q78+(R78*M78))+((M78*S78)*T78)+((((M78*S78)*T78))*U78))*Y78) -> 178.64 | M78: 0.25 | Q78: 40 | R78: 240 | S78: 120 | T78: 1.6 | U78: 0.3 | Y78: 0.1
A79: 76 | B79: C 04.08 | C79: 211.5 | D79: Beton- und Stahlbetonarbeiten | E79: Aussen liegende Konstruktion, Vordach | F79: Kragplattenanschlüsse gedämmt. | G79: m | H79: 320
A80: 77 | B80: C 04.08 | C80: 211.5 | D80: Beton- und Stahlbetonarbeiten | E80: Aussen liegende Konstruktion, Vordach | F80: Balkone | G80: m2 | H80: 230
A81: 78 | B81: C 05.01 | C81: 211.5 | D81: Beton- und Stahlbetonarbeiten | E81: Durchbruch, Schlitz zu Konstruktion | F81: Regie Baumeister, Prozent von BKP 23, 24, 25, 26 | G81: % | H81: 2.3
A82: 79 | B82: C 05.01 | C82: 211.5 | D82: Beton- und Stahlbetonarbeiten | E82: Durchbruch, Schlitz zu Konstruktion | F82: Durchbruch, Schlitz zu Konstruktion, Prozent von BKP 23, 24, 25, 26 | G82: % | H82: 2.3
A83: 80 | B83: C 02.01 | C83: 211.6 | D83: Maurerarbeiten | E83: Backstein | F83: Aussenwandkonstruktion Backstein | G83: m2 | H83: =(1*V83)+(W83)+(((1*V83)+(W83))*Y83) -> 133.4 | M83: 0.175 | V83: 105 | W83: 11 | Y83: 0.15
A84: 81 | B84: C 02.01 | C84: 211.6 | D84: Maurerarbeiten | E84: Dämmbackstein | F84: Aussenwand Dämmbackstein Imbrex z7 inkl. Leibungen und Stürze | G84: m2 | H84: =(1*V84)+(W84)+(((1*V84)+(W84))*Y84) -> 272 | M84: 0.49 | V84: 272 | W84: 0 | Y84: 0
A85: 82 | B85: C 02.02 | C85: 211.6 | D85: Maurerarbeiten | F85: Innenwandkonstruktion Backstein | G85: m2 | H85: =(1*V85)+(W85)+(((1*V85)+(W85))*Y85) -> 116.15 | M85: 0.125 | V85: 90 | W85: 11 | Y85: 0.15
A86: 83 | B86: C 02.02 | C86: 211.6 | D86: Maurerarbeiten | F86: Innenwandkonstruktion Backstein | G86: m2 | H86: =(1*V86)+(W86)+(((1*V86)+(W86))*Y86) -> 121.9 | M86: 0.15 | V86: 95 | W86: 11 | Y86: 0.15
A87: 84 | B87: C 02.02 | C87: 211.6 | D87: Maurerarbeiten | F87: Innenwandkonstruktion Kalksandstein | G87: m2 | H87: =(1*V87)+(W87)+(((1*V87)+(W87))*Y87) -> 133.4 | M87: 0.15 | V87: 105 | W87: 11 | Y87: 0.15
A88: 85 | B88: C 02.02 | C88: 211.6 | D88: Maurerarbeiten | F88: Stürze zu Mauerwerke | G88: m | H88: =X88+(X88*Y88) -> 47.25 | X88: 45 | Y88: 0.05
A89: 86 | B89: C 05.02 | C89: 211.6 | D89: Maurerarbeiten | E89: Ergänzende Leistungen | F89: Zu Maurerarbeiten wie Mörtel Stahlzargen und dgl, Prozent von BKP 27+28 | G89: % | H89: 4.5
A90: 87 | B90: C 01.01 | C90: 211.9 | D90: 0 | E90: Abdichtung, Dämmung Bodenplatte | F90: Perimeterdämmung XPS 500, 160mm. | G90: m2 | H90: 75
A91: 88 | B91: E 01.02 | C91: 211.9 | D91: 0 | E91: Aussenwärmedämmung unter Terrain | F91: Perimeterdämmung. | G91: m2 | H91: 60
A92: 89 | B92: E 01.03 | C92: 211.9 | D92: 0 | F92: Schutzschicht unter Terrain. | G92: m2 | H92: 15
A93: 90 | B93: C 03.01 | C93: 212.2 | D93: Elemente aus Beton | E93: Aussenstütze vorfabriziert | F93: Vorfabrizierte Betonstützen 20x20cm. | G93: m | H93: 500
A94: 91 | B94: C 03.02 | C94: 212.2 | D94: Elemente aus Beton | E94: Innenstütze vorfabriziert | F94: Vorfabrizierte Betonstützen 20x20cm. | G94: m | H94: 500
A95: 92 | B95: C 04.02 | C95: 212.2 | D95: Elemente aus Beton | E95: Innen liegende Treppen, Rampe | F95: Vorfabrizierte innen Treppen in Beton. (Gemessene Aufsichtsfläche) | G95: m2 | H95: 650
A96: 93 | B96: C 04.03 | C96: 212.2 | D96: Elemente aus Beton | E96: Innen liegendes Podest | F96: Vorfabrizierte innen Podest in Beton. | G96: m2 | H96: 590
A97: 94 | B97: C 04.06 | C97: 212.2 | D97: Elemente aus Beton | E97: Aussen liegende Treppe, Rampe | F97: Vorfabrizierte aussen Treppen in Beton. | G97: m2 | H97: 650
A98: 95 | B98: C 04.07 | C98: 212.2 | D98: Elemente aus Beton | E98: Aussen liegendes Podest | F98: Vorfabrizierte aussen Podest in Beton. | G98: m2 | H98: 590
A99: 96 | B99: E 02.06 | C99: 212.2 | D99: Elemente aus Beton | E99: Aussen liegende Absturzsicherung | F99: Balkonbrüstungen Beton. | G99: m | H99: 250
A100: 97 | B100: C 01.04 | C100: 212.2 | D100: Elemente aus Beton | F100: Erdverbundene Treppe, Rampe | G100: m2 | H100: 500
A101: 98 | B101: C 01.05 | C101: 212.2 | D101: Elemente aus Beton | F101: Erdverbundenes Podest. | G101: m2 | H101: 300
A102: 99 | B102: C 04.05 | C102: 214.1 | D102: Traggerippe (Zimmermanns- konstruktionen) | E102: Konstruktion geneigtes Dach | F102: Konstruktion geneigtes Dach in Holz. | G102: m2 | H102: 160
A103: 100 | B103: E 02.03 | C103: 215.2 | D103: Fassadenbau | E103: Hinterlüftete Fassadensysteme | F103: Lattenrost ausgedämmt, hinterl. Faserzementplatten. | G103: m2 | H103: 450
A104: 101 | B104: C 05.02 | C104: 217 | D104: Schutzraumabschlüsse | E104: Schutzraumbauteile | F104: Panzertüre. | G104: Stk. | H104: 1200
A105: 102 | B105: C 05.02 | C105: 217 | D105: Schutzraumabschlüsse | E105: Schutzraumbauteile | F105: Fluchtröhre. | G105: m1
A106: 103 | B106: E 03.01 | C106: 221.1 | D106: Fenster aus Holz/Metall | E106: Fenster | F106: Fenster und Fenstertüren in Holz/Metall (mit SIGAB). | G106: m2 | H106: 650
A107: 104 | B107: E 03.01 | C107: 221.1 | D107: Fenster aus Holz/Metall | E107: Fenster | F107: Hebeschiebe in Holz/Metall (mit SIGAB). | G107: m2 | H107: 800
A108: 105 | B108: E 03.01 | C108: 221.2 | D108: Fenster aus Kunststoff | E108: Fenster | F108: Fenster und Fenstertüren in Kunststoff (mit SIGAB). | G108: m2 | H108: 500
A109: 106 | B109: E 03.01 | C109: 221.2 | D109: Fenster aus Kunststoff | E109: Fenster | F109: Hebeschiebe in Kunststoff (mit SIGAB). | G109: m2 | H109: 560
A110: 107 | B110: E 03.01 | C110: 221.3 | D110: Fenster aus Stahl | E110: Fenster | F110: Fenster und Fenstertüren in Kunststoff/Metall (mit SIGAB). | G110: m2 | H110: 560
A111: 108 | B111: E 03.01 | C111: 221.3 | D111: Fenster aus Stahl | E111: Fenster | F111: Hebeschiebe in Kunststoff/Metall (mit SIGAB). | G111: m2 | H111: 680
A112: 109 | B112: E 03.02 | C112: 221.6 | D112: Aussentüren, Tore aus Metall | E112: Aussentüre | F112: Aluminium Haustüre. | G112: m2 | H112: 1500
A113: 110 | B113: E 03.03 | C113: 221.6 | D113: Aussentüren, Tore aus Metall | E113: Aussentor | F113: Kipptor aus Metall. | G113: m2 | H113: 1200
A114: 111 | B114: E 03.03 | C114: 221.6 | D114: Aussentüren, Tore aus Metall | E114: Aussentor | F114: Handsender zu Tor | G114: Stk | H114: 90
A115: 112 | B115: E 02.04 | C115: 221.7 | D115: Schaufensteranlagen | E115: Systemfassade | F115: Pfosten-/Riegel ohne Konstruktion max. über 1 Gechoss. | G115: m2 | H115: 1050
A116: 113 | B116: F 01.01 | C116: 222 | D116: Spenglerarbeiten | E116: Dachabdichtung | F116: Spenglerarbeiten, pro m2 Dachfläche | G116: m2 | H116: 35
A117: 114 | B117: F 02.03 | C117: 223 | D117: Blitzschutz | E117: Schutzanlage zu Dach | F117: Blitzschutz.Pro m2 Dachfläche | G117: m2 | H117: 13
A118: 115 | B118: F 01.01 | C118: 224.1 | D118: Plastische und elastische Dichtungsbeläge (Flachdächer) | E118: Dachabdichtung unter Terrain | F118: Vorarbeiten und Arbeiten. | G118: m2 | H118: 2.5
A119: 116 | B119: F 01.01 | C119: 224.1 | D119: Plastische und elastische Dichtungsbeläge (Flachdächer) | E119: Dachabdichtung unter Terrain | F119: Bitumenvoranstrich. | G119: m2 | H119: 3
A120: 117 | B120: F 01.01 | C120: 224.1 | D120: Plastische und elastische Dichtungsbeläge (Flachdächer) | E120: Dachabdichtung unter Terrain | F120: 1cm Abdichtung bituminös 2-lagig. | G120: m2 | H120: 25
A121: 118 | B121: F 01.01 | C121: 224.1 | D121: Plastische und elastische Dichtungsbeläge (Flachdächer) | E121: Dachabdichtung unter Terrain | F121: Drain WS20. | G121: m2 | H121: 9
A122: 119 | B122: F 01.01 | C122: 224.1 | D122: Plastische und elastische Dichtungsbeläge (Flachdächer) | E122: Dachabdichtung unter Terrain | F122: Service pro Jahr. 5 x Kosten Dachabdichtung unter Terrain | G122: Stk | H122: 0.75
A123: 120 | B123: F 01.01 | C123: 224.1 | D123: Plastische und elastische Dichtungsbeläge (Flachdächer) | E123: Dachabdichtung | F123: Zuschläge, Prozentsatz auf Adichtungsarbeiten | G123: % | H123: 10
A124: 121 | B124: F 01.02 | C124: 224.1 | D124: Plastische und elastische Dichtungsbeläge (Flachdächer) | E124: Flachdach begrünt | F124: Dampfsperre. | G124: m2 | H124: 13
A125: 122 | B125: F 01.02 | C125: 224.1 | D125: Plastische und elastische Dichtungsbeläge (Flachdächer) | E125: Flachdach begrünt | F125: Wärmedämmung. | G125: m2 | H125: 60
A126: 123 | B126: F 01.02 | C126: 224.1 | D126: Plastische und elastische Dichtungsbeläge (Flachdächer) | E126: Flachdach begrünt | F126: Bitumendichtungsbahn 2-lagig. | G126: m2 | H126: 30
A127: 124 | B127: F 01.02 | C127: 224.1 | D127: Plastische und elastische Dichtungsbeläge (Flachdächer) | E127: Flachdach begrünt | F127: Schutz-/Entwässerungsschicht. | G127: m2 | H127: 15
A128: 125 | B128: F 01.02 | C128: 224.1 | D128: Plastische und elastische Dichtungsbeläge (Flachdächer) | E128: Flachdach begrünt | F128: Extensive Begrünung. | G128: m2 | H128: 30
A129: 126 | B129: F 01.02 | C129: 224.1 | D129: Plastische und elastische Dichtungsbeläge (Flachdächer) | E129: Flachdach Balkon ungedämmt | F129: Abdichtung. | G129: m2 | H129: 20
A130: 127 | B130: F 01.02 | C130: 224.1 | D130: Plastische und elastische Dichtungsbeläge (Flachdächer) | E130: Flachdach Balkon ungedämmt | F130: Zementüberzug. | G130: m2 | H130: 35
A131: 128 | B131: F 01.02 | C131: 224.1 | D131: Plastische und elastische Dichtungsbeläge (Flachdächer) | E131: Flachdach Balkon gedämmt | F131: Zementplatten inkl. Kiesschicht. | G131: m2 | H131: 65
A132: 129 | B132: F 01.02 | C132: 224.1 | D132: =IF(C132=0,"",LOOKUP(C132,BKP,Baukostenplan)) -> Plastische und elastische Dichtungsbeläge (Flachdächer) | E132: Absturzsicherung Flachdach | F132: Anschlagpunkte mit Grundplatten auf Beton. 5 Stück pro m | G132: m | H132: 240
A133: =IF(C133=0,"",A132+1) -> 130 | B133: F 01.02 | C133: 224.1 | D133: Plastische und elastische Dichtungsbeläge (Flachdächer) | E133: Absturzsicherung Flachdach | F133: Führungsseil. | G133: m | H133: 14
A134: 131 | B134: F 01.02 | C134: 224.1 | D134: Plastische und elastische Dichtungsbeläge (Flachdächer) | E134: Absturzsicherung Flachdach | F134: Eckverbindung. | G134: Stk | H134: 25
A135: 132 | B135: F 01.02 | C135: 224.1 | D135: Plastische und elastische Dichtungsbeläge (Flachdächer) | E135: Absturzsicherung Flachdach | F135: Sicherheitstest. | G135: Stk | H135: 375
A136: 133 | B136: F 01.02 | C136: 224.1 | D136: Plastische und elastische Dichtungsbeläge (Flachdächer) | E136: Absturzsicherung Flachdach | F136: Auffanggurt. | G136: Stk | H136: 170
A137: 134 | B137: F 01.02 | C137: 224.1 | D137: Plastische und elastische Dichtungsbeläge (Flachdächer) | E137: Absturzsicherung Flachdach | F137: Sicherungsseil. | G137: Stk | H137: 160
A138: 135 | B138: F 02.02 | C138: 224.2 | D138: Glaseinbauten in Steildächern | E138: Element zu geneigtem Dach | F138: Dachfenster z.B. Velux | G138: Stk | H138: 2000
A139: 136 | B139: F 02.01 | C139: 224.3 | D139: Glaseinbauten in Flachdächern | E139: Element zu Flachdach | F139: RWA 1.2x1.2m ohne Sonnenschutz. | G139: Stk | H139: 3500
A140: 137 | B140: F 02.01 | C140: 224.3 | D140: Glaseinbauten in Flachdächern | E140: Element zu Flachdach | F140: Dachausstieg 1.5x0.75m. | G140: Stk | H140: 2500
A141: 138 | B141: G 06.01 | C141: 225.1 | D141: .1 Fugendichtungen | E141: Durchbruch, Schlitz zu Ausbau | F141: Fugendichtungen. | G141: GF | H141: 5
A142: 139 | B142: G 03.01 | C142: 225.2 | D142: .2 Spezielle Dämmungen | E142: Unterkonstruktion zu Wandbekleidung | F142: Wanddämmung z.B. Unitex gestrichen UG. | G142: m2 | H142: 65
A143: 140 | B143: G 04.01 | C143: 225.2 | D143: .2 Spezielle Dämmungen | E143: Fertige Bekleidung Decke | F143: Deckendämmung z.B. Unitex gestrichen UG. | G143: m2 | H143: 65
A144: 141 | B144: G 06.02 | C144: 225.4 | D144: .4 Brandschutzbekleidungen und dgl . | E144: Abschottung | F144: Brandschutzbekleidungen. | G144: GF | H144: 6
A145: 142 | B145: G 06.02 | C145: 225.4 | D145: .4 Brandschutzbekleidungen und dgl . | E145: Abschottung | F145: Ausflocken von GIS-Elemente. | G145: m3 | H145: 210
A146: 143 | B146: E 02.01 | C146: 226.2 | D146: .2 Verputzte Aussenwärmedämmungen | E146: Äussere Beschichtung | F146: Kunststoffnetz-Armierung. | G146: m2 | H146: 9
A147: 144 | B147: E 02.01 | C147: 226.2 | D147: .2 Verputzte Aussenwärmedämmungen | E147: Äussere Beschichtung | F147: Grundputz. | G147: m2 | H147: 18
A148: 145 | B148: E 02.01 | C148: 226.2 | D148: .2 Verputzte Aussenwärmedämmungen | E148: Äussere Beschichtung | F148: Deckputz. | G148: m2 | H148: 30
A149: 146 | B149: E 02.01 | C149: 226.2 | D149: .2 Verputzte Aussenwärmedämmungen | E149: Äussere Beschichtung | F149: Zuschläge für Anschlüsse, Durchdringungen, etc., Prozentsatz auf Aussenwärmedämmung | G149: % | H149: 12
A150: 147 | B150: E 02.02 | C150: 226.2 | D150: .2 Verputzte Aussenwärmedämmungen | E150: Aussendämmung | F150: Klebemörtel 0.5cm. | G150: m2 | H150: 12
A151: 148 | B151: E 02.02 | C151: 226.2 | D151: .2 Verputzte Aussenwärmedämmungen | E151: Aussendämmung | F151: EPS-Dämmplatte 20.0cm. | G151: m2 | H151: 72
A152: 149 | B152: E 02.02 | C152: 226.2 | D152: .2 Verputzte Aussenwärmedämmungen | E152: Aussendämmung | F152: Sturzelemente. | G152: m | H152: 60
A153: 150 | B153: E 02.02 | C153: 226.2 | D153: .2 Verputzte Aussenwärmedämmungen | E153: Aussendämmung | F153: Alu-Fensterbänke inkl. Winkel. | G153: m | H153: 130
A154: 151 | B154: E 02.02 | C154: 226.2 | D154: .2 Verputzte Aussenwärmedämmungen | E154: Aussendämmung | F154: Zuschläge für Leibungen. Prozentsatz auf Aussenwärmedämmung | G154: % | H154: 3
A155: 152 | B155: E 02.02 | C155: 226.2 | D155: .2 Verputzte Aussenwärmedämmungen | E155: Aussendämmung | F155: Zuschläge für Trawik in Leibungen (zur Handlaufbef.). Prozentsatz auf Aussenwärmedämmung | G155: % | H155: 8
A156: 153 | B156: E 02.02 | C156: 226.2 | D156: .2 Verputzte Aussenwärmedämmungen | E156: Aussendämmung | F156: Zuschläge für Anschlüsse, Durchdringungen, etc. Prozentsatz auf Aussenwärmedämmung | G156: % | H156: 10
A157: 154 | B157: E 02.01 | C157: 227.1 | D157: .1 Äussere Malerarbeiten | E157: Äussere Beschichtung | F157: Anstrich auf Deckputz. | G157: m2 | H157: 12
A158: 155 | B158: E 02.05 | C158: 227.1 | D158: .1 Äussere Malerarbeiten | E158: Fassadenbekleidung Untersicht | F158: Anstrich auf Balkonuntersichten. | G158: m2 | H158: 10
A159: 156 | B159: E 03.04 | C159: 228.2 | D159: .2 Lamellenstoren | E159: Sonnenschutz | F159: Verbundraffstoren mit Handkurbel. | G159: m2 | H159: 110
A160: 157 | B160: E 03.04 | C160: 228.3 | D160: .3 Sonnenstoren | E160: Sonnenschutz | F160: Gelenkarmmarkisen mit Handkurbel. | G160: m2 | H160: 130
A161: 158 | B161: E 03.04 | C161: 228.3 | D161: .3 Sonnenstoren | E161: Sonnenschutz | F161: Balkon / Loggia Vertikalmarkise Seilführung. Elektrisch. | G161: m2 | H161: 190
A162: 159 | B162: E 03.04 | C162: 228.3 | D162: .3 Sonnenstoren | E162: Sonnenschutz | F162: Balkon / Loggia Vertikalmarkise Seilführung. Manuell | G162: m2 | H162: 170
A163: 160 | B163: D 01.01 | C163: 231 | D163: Apparate Starkstrom | E163: Anlage Erzeugung Starkstrom | F163: EG-OG. | G163: GF | H163: 90
A164: 161 | B164: D 01.01 | C164: 231 | D164: Apparate Starkstrom | E164: Anlage Erzeugung Starkstrom | F164: UG/Keller. | G164: GF | H164: 25
A165: 162 | B165: D 01.01 | C165: 231 | D165: Apparate Starkstrom | E165: Anlage Erzeugung Starkstrom | F165: Photovoltaikanlagen | G165: m2 | H165: 280
A166: 163 | B166: D 01.05 | C166: 233 | D166: Leuchten und Lampen | E166: Verbraucher Starkstrom: Leuchten | F166: EG-OG. | G166: GF | H166: 12
A167: 164 | B167: D 01.05 | C167: 233 | D167: Leuchten und Lampen | E167: Verbraucher Starkstrom: Leuchten | F167: UG/Keller. | G167: GF | H167: 8
A168: 165 | B168: D 04.01 | C168: 236 | D168: Schwachstrominstallationen | E168: Brandmeldeanlage | F168: Brandmeldeanlage EG-AG. | G168: GF | H168: 25
A169: 166 | B169: D 04.01 | C169: 236 | D169: Schwachstrominstallationen | E169: Brandmeldeanlage | F169: Brandmeldeanlage ESH. | G169: GF | H169: 7
A170: 167 | B170: D 04.02 | C170: 236 | D170: Schwachstrominstallationen | F170: Gaswarnanlage. | G170: GF | H170: 15
A171: 168 | B171: D 02.01 | C171: 237.1 | D171: .1 Automationsebene | E171: Managementebene | F171: Elektro. | G171: GF | H171: 7
A172: 169 | B172: D 02.01 | C172: 237.1 | D172: .1 Automationsebene | E172: Managementebene | F172: HLKS | G172: GF | H172: 12
A173: 170 | B173: D 05.02 | C173: 242 | D173: 242 Wärmeerzeugung | F173: Wärmepumpe Erdsonde/Wasser & Bohrung ca. 200m. | G173: EBF | H173: 60
A174: 171 | B174: D 05.04 | C174: 243 | D174: 243 Wärmeverteilung | F174: Wärmehauptverteilung. | G174: EBF | H174: 60
A175: 172 | B175: D 04.06 | C175: 244 | D175: 244 Lüftungsanlagen | F175: Rauch- und Wärmeabzugsanlage ESH. | G175: GF | H175: 20
A176: 173 | B176: D 07.01 | C176: 244 | D176: 244 Lüftungsanlagen | E176: Aussenluftversorgung, Fortluftführung | F176: Lüftungsanalgen UG/Keller. | G176: GF | H176: 35
A177: 174 | B177: D 07.01 | C177: 244 | D177: 244 Lüftungsanlagen | E177: Aussenluftversorgung, Fortluftführung | F177: Lüftungsanalgen ESH. | G177: GF | H177: 40
A178: 175 | B178: D 07.02 | C178: 244 | D178: 244 Lüftungsanlagen | E178: Luftaufbereitung | F178: Kontrollierte Wohnungslüftung. | G178: Whg. | H178: 11000
A179: 176 | B179: D 07.02 | C179: 244 | D179: 244 Lüftungsanlagen | F179: Einzelne Abluftanlagen. | G179: Stk | H179: 1800
A180: 177 | B180: D 07.03 | C180: 244 | D180: 244 Lüftungsanlagen | F180: Luftwärmespeicherung. | G180: GF | H180: 500
A181: 178 | B181: D 06.02 | C181: 246 | D181: 246 Kälteanlagen | F181: Freecooling. | G181: EBF | H181: 2.5
A182: 179 | B182: D 08.05 | C182: 251 | D182: 251 Allgemeine Sanitärapparate | E182: Wasser: Armatur, Apparat | F182: Lieferung Sanitärapparate 2.5-Zimmerwohnung. | G182: Whg | H182: 7000
A183: 180 | B183: D 08.05 | C183: 251 | D183: 251 Allgemeine Sanitärapparate | E183: Wasser: Armatur, Apparat | F183: Lieferung Sanitärapparate 3.5-Zimmerwohnung. | G183: Whg | H183: 7000
A184: 181 | B184: D 08.05 | C184: 251 | D184: 251 Allgemeine Sanitärapparate | E184: Wasser: Armatur, Apparat | F184: Lieferung Sanitärapparate 4.5-Zimmerwohnung. | G184: Whg | H184: 13000
A185: 182 | B185: D 08.05 | C185: 251 | D185: 251 Allgemeine Sanitärapparate | E185: Wasser: Armatur, Apparat | F185: Lieferung Sanitärapparate 5.5-Zimmerwohnung. | G185: Whg | H185: 13000
A186: 183 | B186: D 08.05 | C186: 251 | D186: 251 Allgemeine Sanitärapparate | E186: Wasser: Armatur, Apparat | F186: Montage Sanitärapparate, Prozentsatz auf Apparatelieferung | G186: % | H186: 30
A187: 184 | B187: D 08.02 | C187: 253 | D187: 253 Sanitäre Ver- und Entsorgungsapparate | F187: Wasserbehandlung. | G187: GF | H187: 555
A188: 185 | B188: D 08.04 | C188: 254 | D188: 254 Sanitärleitungen | E188: Wasserverteilung | F188: Leitungen über GF. | G188: GF | H188: 38
A189: 186 | B189: D 08.04 | C189: 255 | D189: 255 Dämmungen Sanitärinstallationen | E189: Wasserverteilung | F189: Dämmungen Leitungen über GF. | G189: GF | H189: 18
A190: 187 | B190: D 08.06 | C190: 256 | D190: 256 Sanitärinstallationselemente | E190: Wasser: Installationselemente | F190: Installationselemente. | G190: Stk | H190: 1600
A191: 188 | B191: D 04.05 | C191: 257 | D191: 257 Elektro- und Pneumatiktafeln | E191: Löschgerät | F191: Handfeuerlöscher. | G191: Stk. | H191: 550
A192: 189 | B192: D 04.05 | C192: 257 | D192: 257 Elektro- und Pneumatiktafeln | E192: Löschgerät | F192: Feuerlöschposten. | G192: Stk. | H192: 2600
A193: 190 | B193: D 04.03 | C193: 257 | D193: 257 Elektro- und Pneumatiktafeln | F193: Sprinkleranlage ESH | G193: GF | H193: 15
A194: 191 | B194: G 05.02 | C194: 258 | D194: 258 Kücheneinrichtungen | F194: Küche für 2.5-Zimmerwohnung (5 Elemente). | G194: Stk | H194: 7500
A195: 192 | B195: G 05.02 | C195: 258 | D195: 258 Kücheneinrichtungen | F195: Küche für 3.5-Zimmerwohnung (6 Elemente). | G195: Stk | H195: 9000
A196: 193 | B196: G 05.02 | C196: 258 | D196: =IF(C196=0,"",LOOKUP(C196,BKP,Baukostenplan)) -> 258 Kücheneinrichtungen | F196: Küche für 4.5-Zimmerwohnung (7 Elemente). | G196: Stk | H196: 10500
A197: =IF(C197=0,"",A196+1) -> 194 | B197: G 05.02 | C197: 258 | D197: 258 Kücheneinrichtungen | F197: Küche für 5.5-Zimmerwohnung (7 Elemente). | G197: Stk | H197: 10500
A198: 195 | B198: D 12.01 | C198: 261 | D198: 261 Aufzüge | E198: Personenaufzug | F198: Aufzüge (8 Pers.) mit xy Haltestellen (pro Haltestelle Hst). | G198: Hst | H198: 8200
A199: 196 | B199: D 12.02 | C199: 261 | D199: 261 Aufzüge | E199: Lasten- und Serviceaufzug | F199: Lasten- und Serviceaufzüge. | G199: Hst | H199: 20000
A200: 197 | B200: D 12.03 | C200: 263 | D200: 263 Fassadenreinigungsanlagen | E200: Spezialaufzüge | F200: Befahranlage für Fassade | G200: Stk | H200: 150000
A201: 198 | B201: G 03.02 | C201: 271.0 | D201: .0 Verputzarbeiten (innere) | F201: Grundputz. | G201: m2 | H201: 9
... 83 more rows

Sheet Bauteile (3) (hidden)
A1: Lfd.-Nr. | B1: BKP | C1: eBKP-H | D1: Beschreibung | E1: Untertitel | F1: Bauteil | G1: Einheit | H1: 2024 | I1: 2023 | J1: 2022 | K1: =COUNTIF(A:A,">0") -> 276
A2: 1 | B2: 101 | C2: B 01.02 | D2: =IF(B2=0,"",LOOKUP(B2,BKP,Baukostenplan)) -> Bestandesaufnahmen | F2: Gebäudeaufnahme Rissprotokolle | G2: gl
A3: =IF(B3=0,"",A2+1) -> 2 | B3: 102 | C3: B 01.01 | D3: Baugrunduntersuchungen | F3: Untersuchung | G3: gl
A4: 3 | B4: 102 | C4: B 01.03 | D4: Baugrunduntersuchungen | E4: Umweltmessungen | F4: Materialanalysen (falls Schadstoffe). | G4: gl
A5: 4 | B5: 102 | C5: B 01.04 | D5: Baugrunduntersuchungen | E5: Überwachungen | F5: Regelmässige Kontrollen (z.B. Gleis und dgl.). | G5: h | H5: 120
A6: 5 | B6: 111 | C6: B 05.01 | D6: Rodungen | F6: Roden bestehender Sträucher und Bäume. | G6: m2 | H6: 3.5
A7: 6 | B7: 112 | D7: Abbrüche | E7: Rückbau nicht kontaminiertes Bauwerk | F7: Budgetbetrag für Entrümpelung. Verrechung nach effektivem Aufwand. | G7: gl
A8: 7 | B8: 112 | C8: B 05.02 | D8: Abbrüche | E8: Rückbau nicht kontaminiertes Bauwerk | F8: Abbrüche / Demontagen | G8: m3 | H8: 40
A9: 8 | B9: 119 | C9: B 05.03 | D9: Übriges | E9: Rückbau kontaminiertes Bauwerk | F9: Abbruch | G9: m3 | H9: 42
A10: 9 | B10: 119 | C10: B 05.03 | D10: Übriges | E10: Rückbau kontaminiertes Bauwerk | F10: Zusätzliche Entsorgungsgebühren. | G10: m3 | H10: 32
A11: 10 | B11: 119 | D11: Übriges | E11: Rückbau kontaminiertes Bauwerk | F11: Schadstoffsanierung. Verrechung nach effektivem Aufwand. | G11: gl
A12: 11 | B12: 120 | C12: B 03 | D12: Übergangsposition | F12: Sicherung und Provisorien. | G12: gl
A13: 12 | B13: 13 | C13: B 02.01 | D13: Gemeinsame Baustelleneinrichtung | F13: Prozentsatz von BKP 2-4 | G13: %
A14: 13 | B14: 131 | C14: B 02.01 | D14: Abschrankungen | F14: Signalisation u.d.gl. | G14: gl
A15: 14 | B15: 132 | C15: B 02.01 | D15: Zufahrten, Plätze | F15: Zufahrten und Plätze | G15: m2
A16: 15 | B16: 132 | C16: B 02.01 | D16: Zufahrten, Plätze | F16: Provisorische Parkplätze | G16: Stk. | H16: 150
A17: 16 | B17: 133 | C17: B 02.03 | D17: Büro Bauleitung | F17: Einr. + Vorh. Bauleitungscontainer (LE=St x Mt). | G17: LE | H17: 650
A18: 17 | B18: 135.0 | C18: B 02.02 | D18: Kanalisationen | E18: Provisorische Installationen | G18: gl
A19: 18 | B19: 135.1 | C19: B 02.02 | D19: Elektro | E19: Provisorische Installationen | F19: Einr. + Vorh. Baustromverteiler 2 Stk | G19: Mnt. | H19: 535
A20: 19 | B20: 135.1 | C20: B 02.02 | D20: Elektro | E20: Provisorische Installationen | F20: Längeres Vorh. Baustromv. 2 Stk | G20: Mnt. | H20: 344
A21: 20 | B21: 135.3 | C21: B 02.02 | D21: Wasser | E21: Provisorische Installationen | G21: gl
A22: 21 | B22: 136 | C22: B 02.02 | D22: Kosten für Energie, Wasser und dgl . | F22: Verbr.+Ents. Baustrom, -wasser, -heizung | G22: Mnt. | H22: 3750
A23: 22 | B23: 139 | C23: B 02.06 | D23: Übriges | F23: Winterbaumassnahmen. | G23: m2
A24: 23 | B24: 150 | D24: Übergangsposition | E24: Telekommunikationsleitung | F24: Nur Kabel. | G24: m
A25: 24 | B25: 150 | D25: Übergangsposition | E25: Wasserleitung | G25: m
A26: 25 | B26: 151 | C26: B 04 | D26: Erdarbeiten | E26: Aushub und Hinterfüllung | F26: Für sämtliche Werkleitungen (Wasser, Elektro, Medien). | G26: m3 | H26: 50
A27: 26 | B27: 152 | D27: Kanalisationsleitungen | F27: Kanalisation inkl. Schächte, Grabarbeiten und Spülung. | G27: pl
A28: 27 | B28: 153 | D28: Elektroleitungen | F28: Hüllrohre inkl. Schächte. | G28: m
A29: 28 | B29: 153 | D29: Elektroleitungen | F29: Stark.- Schwachstrom | G29: m | H29: 95
A30: 29 | B30: 153 | D30: Elektroleitungen | F30: Bestehende Leitungen umlegen inkl. Grabarbeiten. | G30: m
A31: 30 | B31: 154 | C31: B 04 | D31: Heizungs-, Lüftungs-, Klima-, Kälteleitungen | E31: Fernwärme, Fernbkälte | F31: Heizungs- und Kälteleitung. | G31: m | H31: 500
A32: 31 | B32: 154 | C32: B 04.08 | D32: Heizungs-, Lüftungs-, Klima-, Kälteleitungen | E32: Gasleitung | G32: m | H32: 80
A33: 32 | B33: 172 | C33: B 06.03 | D33: Baugrubenabschlüsse | E33: Böschungssicherung | F33: Spritzbeton. | G33: m2 | H33: 180
A34: 33 | B34: 172 | C34: B 06.03 | D34: Baugrubenabschlüsse | E34: Böschungssicherung | F34: Nagelwände. | G34: m2 | H34: 360
A35: 34 | B35: 172 | C35: B 06.04 | D35: Baugrubenabschlüsse | F35: Spundwand. | G35: m2 | H35: 470
A36: 35 | B36: 172 | C36: B 06.04 | D36: Baugrubenabschlüsse | F36: Rühlwand. | G36: m2 | H36: 560
A37: 36 | B37: 172 | C37: B 06.04 | D37: Baugrubenabschlüsse | F37: Bohrpfahlwand. | G37: m2 | H37: 920
A38: 37 | B38: 175 | C38: C 01.01 | D38: Grundwasserabdichtungen | F38: Feuchtigkeitsabdichtung DK 2. | G38: GGF | H38: 35
A39: 38 | B39: 175 | C39: C 01.01 | D39: Grundwasserabdichtungen | F39: Feuchtigkeitsabdichtung DK 1. | G39: GGF | H39: 60
A40: 39 | B40: 175 | C40: E 01.01 | D40: Grundwasserabdichtungen | E40: Abdichtung, Beschichtung unter Terrain | F40: Abdichtung DK 2 Wände UG. | G40: m2 | H40: 35
A41: 40 | B41: 175 | C41: E 01.01 | D41: Grundwasserabdichtungen | E41: Abdichtung, Beschichtung unter Terrain | F41: Abdichtung DK 1 Wände UG. | G41: m2 | H41: 75
A42: 41 | B42: 176 | C42: B 06.06 | D42: Wasserhaltung | F42: Wasserhaltung für Oberflächenwasser. | G42: gl
A43: 42 | B43: 176 | C43: B 06.06 | D43: Wasserhaltung | F43: Gebühren für Einleitung Meteorwasser in Kanalisation. | G43: m3 | H43: 0.65
A44: 43 | B44: 176 | C44: B 06.06 | D44: Wasserhaltung | F44: Grundwasserabsenkung | G44: m3
A45: 44 | B45: 201.1 | C45: B 06.01 | D45: Erdarbeiten | E45: Nicht kontaminierter Aushub | F45: Oberboden maschinell mit seitlicher Lagerung. | G45: m3 | H45: 3.05
A46: 45 | B46: 201.1 | C46: B 06.01 | D46: Erdarbeiten | E46: Nicht kontaminierter Aushub | F46: Aushub maschinell mit seitlicher Lagerung. | G46: m3 | H46: 3.65
A47: 46 | B47: 201.1 | C47: B 06.01 | D47: Erdarbeiten | E47: Nicht kontaminierter Aushub | F47: Sohlenaushub letzte 20cm. | G47: m3 | H47: 4
A48: 47 | B48: 201.1 | C48: B 06.01 | D48: Erdarbeiten | E48: Nicht kontaminierter Aushub | F48: Transport Oberboden auf Deponie Baustelle. | G48: m3 | H48: 4
A49: 48 | B49: 201.1 | C49: B 06.01 | D49: Erdarbeiten | E49: Nicht kontaminierter Aushub | F49: Transport Oberboden auf Deponie Unternehmer. | G49: m3 | H49: 6.7
A50: 49 | B50: 201.1 | C50: B 06.01 | D50: Erdarbeiten | E50: Nicht kontaminierter Aushub | F50: Transport Aushub auf Deponie Unternehmer. | G50: m3 | H50: 10.6 | I50: 12 | J50: 11
A51: 50 | B51: 201.1 | C51: B 06.01 | D51: Erdarbeiten | E51: Nicht kontaminierter Aushub | F51: Gebühren Oberboden (Lagerung oder Abgabe). | G51: m3 | H51: 0.55
A52: 51 | B52: 201.1 | C52: B 06.01 | D52: Erdarbeiten | E52: Nicht kontaminierter Aushub | F52: Gebühren Aushub (Lagerung oder Abgabe). | G52: m3 | H52: 5.6
A53: 52 | B53: 201.1 | C53: B 06.02 | D53: Erdarbeiten | E53: Kontaminierter Aushub | F53: Kontaminierter Aushub baggerfähig. | G53: m3 | H53: 36
A54: 53 | B54: 201.1 | C54: B 06.02 | D54: Erdarbeiten | E54: Kontaminierter Aushub | F54: Zusätzliche Gebühren. | G54: m3
A55: 54 | B55: 201.1 | C55: B 06.03 | D55: Erdarbeiten | E55: Böschungssicherung | F55: Einfache Baugrubensicherung mit PE-Folie. | G55: m2 | H55: 5.5
A56: 55 | B56: 201.1 | C56: B 06.05 | D56: Erdarbeiten | E56: Materialeinbau | F56: Einbringen Hinterfüllung von Deponie Baustelle. | G56: m3 | H56: 6.5
A57: 56 | B57: 201.1 | C57: B 06.05 | D57: Erdarbeiten | E57: Materialeinbau | F57: Hinderfüllung maschinell Verdichten. | G57: m3 | H57: 2.5
A58: 57 | B58: 201.1 | C58: B 06.05 | D58: Erdarbeiten | E58: Materialeinbau | F58: Liefern und Einbringen von Sickerkies 32-45mm. | G58: m3 | H58: 83
A59: 58 | B59: 211.0 | C59: B 02.01 | D59: Baustelleneinrichtung | E59: Allgemeine Baustelleneinrichtung | F59: Prozentsatz von BKP 2 | G59: % | H59: 6-8
A60: 59 | B60: 211.0 | C60: B 02.03 | D60: Baustelleneinrichtung | F60: Bau-WC (LE=St x Mt) | G60: LE | H60: 200
A61: 60 | B61: 211.0 | C61: B 02.03 | D61: Baustelleneinrichtung | F61: Längeres Vorh. Bau-WC (LE=St x Mt) | G61: LE | H61: 200
A62: 61 | B62: 211.0 | C62: B 02.04 | D62: Baustelleneinrichtung | F62: Baukran (LE=St x Mt) | G62: LE | H62: 5500
A63: 62 | B63: 211.0 | C63: B 02.04 | D63: Baustelleneinrichtung | F63: Kranbetrieb für dritte inkl. Bedinung | G63: h
A64: 63 | B64: 211.0 | C64: B 02.04 | D64: Baustelleneinrichtung | F64: Radwaschanlage (LE=St x Mt). | G64: LE | H64: 2640
A65: 64 | B65: 211.1 | C65: B 08.01 | D65: Gerüste | F65: Fassadengerüst. | G65: m2 | H65: 36
A66: 65 | B66: 211.1 | C66: B 08.02 | D66: =IF(B66=0,"",LOOKUP(B66,BKP,Baukostenplan)) -> Gerüste | F66: Innengerüst. | G66: GF | H66: 2
A67: =IF(B67=0,"",A66+1) -> 66 | B67: 211.1 | C67: B 08.02 | D67: Gerüste | F67: Liftschachtgerüste. | G67: Stk | H67: 410
A68: 67 | B68: 211.4 | C68: D 09.04 | D68: Kanalisationen im Gebäude | F68: Kanalisation unter/in Bodenplatte inkl. Aushub. | G68: GGF | H68: 65
A69: 68 | B69: 211.4 | C69: D 09.04 | D69: Kanalisationen im Gebäude | F69: Versickerungsanlage | G69: GGF | H69: 8
A70: 69 | B70: 211.4 | C70: D 09.04 | D70: Kanalisationen im Gebäude | E70: Abwassersammlung | F70: Kanalisation. | G70: GGF | H70: 40
A71: 70 | B71: 211.5 | C71: C 01.02 | D71: Beton- und Stahlbetonarbeiten | F71: Einzelfundament, Beton horizontal oder im Gefalle bis 3%, | G71: m2 | H71: Link | I71: 1000 | J71: 800
A72: 71 | B72: 211.5 | C72: C 01.03 | D72: Beton- und Stahlbetonarbeiten | F72: Bodenplatte, Beton horizontal oder im Gefalle bis 3%, | G72: m2 | H72: Link
A73: 72 | B73: 211.5 | C73: C 02.01 | D73: Beton- und Stahlbetonarbeiten | E73: Aussenwand | F73: Aussenwandkonstruktion Betonwände | G73: m2 | H73: Link
A74: 73 | B74: 211.5 | C74: C 02.02 | D74: Beton- und Stahlbetonarbeiten | E74: Innenwand | F74: Innenwandkonstruktion Betonwände | G74: m2 | H74: Link
A75: 74 | B75: 211.5 | C75: C 04.01 | D75: Beton- und Stahlbetonarbeiten | F75: Geschossdecke in Beton | G75: m2 | H75: Link
A76: 75 | B76: 211.5 | C76: C 04.04 | D76: Beton- und Stahlbetonarbeiten | F76: Flachdachkonstruktion in Beton | G76: m2 | H76: Link
A77: 76 | B77: 211.5 | C77: C 04.08 | D77: Beton- und Stahlbetonarbeiten | E77: Aussen liegende Konstruktion, Vordach | F77: Kragplattenanschlüsse gedämmt. | G77: m | H77: 320
A78: 77 | B78: 211.5 | C78: C 04.08 | D78: Beton- und Stahlbetonarbeiten | E78: Aussen liegende Konstruktion, Vordach | F78: Balkone | G78: m2 | H78: 230
A79: 78 | B79: 211.5 | C79: C 05.01 | D79: Beton- und Stahlbetonarbeiten | E79: Durchbruch, Schlitz zu Konstruktion | F79: Regie Baumeister, Prozent von BKP 23, 24, 25, 26 | G79: % | H79: 2.3
A80: 79 | B80: 211.5 | C80: C 05.01 | D80: Beton- und Stahlbetonarbeiten | E80: Durchbruch, Schlitz zu Konstruktion | F80: Durchbruch, Schlitz zu Konstruktion, Prozent von BKP 23, 24, 25, 26 | G80: % | H80: 2.3
A81: 80 | B81: 211.5 | C81: C 01 03 | D81: Beton- und Stahlbetonarbeiten | F81: Bodenplatte aus Stahlfaserbeton (ca. 35Kg/m3) | G81: m2 | H81: Link
A82: 81 | B82: 211.6 | C82: C 02.01 | D82: Maurerarbeiten | E82: Backstein | F82: Aussenwandkonstruktion Backstein | G82: m2 | H82: Link
A83: 82 | B83: 211.6 | C83: C 02.01 | D83: Maurerarbeiten | E83: Dämmbackstein | F83: Aussenwand Dämmbackstein Imbrex z7 inkl. Leibungen und Stürze | G83: m2 | H83: Link
A84: 83 | B84: 211.6 | C84: C 02.02 | D84: Maurerarbeiten | F84: Innenwandkonstruktion Backstein | G84: m2 | H84: Link
A85: 84 | B85: 211.6 | C85: C 02.02 | D85: Maurerarbeiten | F85: Innenwandkonstruktion Backstein | G85: m2 | H85: Link
A86: 85 | B86: 211.6 | C86: C 02.02 | D86: Maurerarbeiten | F86: Innenwandkonstruktion Kalksandstein | G86: m2 | H86: Link
A87: 86 | B87: 211.6 | C87: C 02.02 | D87: Maurerarbeiten | F87: Stürze zu Mauerwerke | G87: m | H87: Link
A88: 87 | B88: 211.6 | C88: C 05.02 | D88: Maurerarbeiten | E88: Ergänzende Leistungen | F88: Zu Maurerarbeiten wie Mörtel Stahlzargen und dgl, Prozent von BKP 27+28 | G88: % | H88: 4.5
A89: 88 | B89: 211.9 | C89: C 01.01 | D89: 0 | E89: Abdichtung, Dämmung Bodenplatte | F89: Perimeterdämmung XPS 500, 160mm. | G89: m2 | H89: 75
A90: 89 | B90: 211.9 | C90: E 01.02 | D90: 0 | E90: Aussenwärmedämmung unter Terrain | F90: Perimeterdämmung. | G90: m2 | H90: 60
A91: 90 | B91: 211.9 | C91: E 01.03 | D91: 0 | F91: Schutzschicht unter Terrain. | G91: m2 | H91: 15
A92: 91 | B92: 212.2 | C92: C 03.01 | D92: Elemente aus Beton | E92: Aussenstütze vorfabriziert | F92: Vorfabrizierte Betonstützen 20x20cm. | G92: m | H92: 500
A93: 92 | B93: 212.2 | C93: C 03.02 | D93: Elemente aus Beton | E93: Innenstütze vorfabriziert | F93: Vorfabrizierte Betonstützen 20x20cm. | G93: m | H93: 500
A94: 93 | B94: 212.2 | C94: C 04.02 | D94: Elemente aus Beton | E94: Innen liegende Treppen, Rampe | F94: Vorfabrizierte innen Treppen in Beton. (Gemessene Aufsichtsfläche) | G94: m2 | H94: 650
A95: 94 | B95: 212.2 | C95: C 04.03 | D95: Elemente aus Beton | E95: Innen liegendes Podest | F95: Vorfabrizierte innen Podest in Beton. | G95: m2 | H95: 590
A96: 95 | B96: 212.2 | C96: C 04.06 | D96: Elemente aus Beton | E96: Aussen liegende Treppe, Rampe | F96: Vorfabrizierte aussen Treppen in Beton. | G96: m2 | H96: 650
A97: 96 | B97: 212.2 | C97: C 04.07 | D97: Elemente aus Beton | E97: Aussen liegendes Podest | F97: Vorfabrizierte aussen Podest in Beton. | G97: m2 | H97: 590
A98: 97 | B98: 212.2 | C98: E 02.06 | D98: Elemente aus Beton | E98: Aussen liegende Absturzsicherung | F98: Balkonbrüstungen Beton. | G98: m | H98: 250
A99: 98 | B99: 212.2 | C99: C 01.04 | D99: Elemente aus Beton | F99: Erdverbundene Treppe, Rampe | G99: m2 | H99: 500
A100: 99 | B100: 212.2 | C100: C 01.05 | D100: Elemente aus Beton | F100: Erdverbundenes Podest. | G100: m2 | H100: 300
A101: 100 | B101: 214.1 | C101: C 04.05 | D101: Traggerippe (Zimmermanns- konstruktionen) | E101: Konstruktion geneigtes Dach | F101: Konstruktion geneigtes Dach in Holz. | G101: m2 | H101: 160
A102: 101 | B102: 215.2 | C102: E 02.03 | D102: Fassadenbau | E102: Hinterlüftete Fassadensysteme | F102: Lattenrost ausgedämmt, hinterl. Faserzementplatten. | G102: m2 | H102: 450
A103: 102 | B103: 217 | C103: C 05.02 | D103: Schutzraumabschlüsse | E103: Schutzraumbauteile | F103: Panzertüre. | G103: Stk. | H103: 1200
A104: 103 | B104: 217 | C104: C 05.02 | D104: Schutzraumabschlüsse | E104: Schutzraumbauteile | F104: Fluchtröhre. | G104: m1
A105: 104 | B105: 221.1 | C105: E 03.01 | D105: Fenster aus Holz/Metall | E105: Fenster | F105: Fenster und Fenstertüren in Holz/Metall (mit SIGAB). | G105: m2 | H105: 650
A106: 105 | B106: 221.1 | C106: E 03.01 | D106: Fenster aus Holz/Metall | E106: Fenster | F106: Hebeschiebe in Holz/Metall (mit SIGAB). | G106: m2 | H106: 800
A107: 106 | B107: 221.2 | C107: E 03.01 | D107: Fenster aus Kunststoff | E107: Fenster | F107: Fenster und Fenstertüren in Kunststoff (mit SIGAB). | G107: m2 | H107: 500
A108: 107 | B108: 221.2 | C108: E 03.01 | D108: Fenster aus Kunststoff | E108: Fenster | F108: Hebeschiebe in Kunststoff (mit SIGAB). | G108: m2 | H108: 560
A109: 108 | B109: 221.3 | C109: E 03.01 | D109: Fenster aus Stahl | E109: Fenster | F109: Fenster und Fenstertüren in Kunststoff/Metall (mit SIGAB). | G109: m2 | H109: 560
A110: 109 | B110: 221.3 | C110: E 03.01 | D110: Fenster aus Stahl | E110: Fenster | F110: Hebeschiebe in Kunststoff/Metall (mit SIGAB). | G110: m2 | H110: 680
A111: 110 | B111: 221.6 | C111: E 03.02 | D111: Aussentüren, Tore aus Metall | E111: Aussentüre | F111: Aluminium Haustüre. | G111: m2 | H111: 1500
A112: 111 | B112: 221.6 | C112: E 03.03 | D112: Aussentüren, Tore aus Metall | E112: Aussentor | F112: Kipptor aus Metall. | G112: m2 | H112: 1200
A113: 112 | B113: 221.6 | C113: E 03.03 | D113: Aussentüren, Tore aus Metall | E113: Aussentor | F113: Handsender zu Tor | G113: Stk | H113: 90
A114: 113 | B114: 221.7 | C114: E 02.04 | D114: Schaufensteranlagen | E114: Systemfassade | F114: Pfosten-/Riegel ohne Konstruktion max. über 1 Gechoss. | G114: m2 | H114: 1050
A115: 114 | B115: 222 | C115: F 01.01 | D115: Spenglerarbeiten | E115: Dachabdichtung | F115: Spenglerarbeiten, pro m2 Dachfläche | G115: m2 | H115: 35
A116: 115 | B116: 223 | C116: F 02.03 | D116: Blitzschutz | E116: Schutzanlage zu Dach | F116: Blitzschutz.Pro m2 Dachfläche | G116: m2 | H116: 13
A117: 116 | B117: 224.1 | C117: F 01.01 | D117: Plastische und elastische Dichtungsbeläge (Flachdächer) | E117: Dachabdichtung unter Terrain | F117: Vorarbeiten und Arbeiten. | G117: m2 | H117: 2.5
A118: 117 | B118: 224.1 | C118: F 01.01 | D118: Plastische und elastische Dichtungsbeläge (Flachdächer) | E118: Dachabdichtung unter Terrain | F118: Bitumenvoranstrich. | G118: m2 | H118: 3
A119: 118 | B119: 224.1 | C119: F 01.01 | D119: Plastische und elastische Dichtungsbeläge (Flachdächer) | E119: Dachabdichtung unter Terrain | F119: 1cm Abdichtung bituminös 2-lagig. | G119: m2 | H119: 25
A120: 119 | B120: 224.1 | C120: F 01.01 | D120: Plastische und elastische Dichtungsbeläge (Flachdächer) | E120: Dachabdichtung unter Terrain | F120: Drain WS20. | G120: m2 | H120: 9
A121: 120 | B121: 224.1 | C121: F 01.01 | D121: Plastische und elastische Dichtungsbeläge (Flachdächer) | E121: Dachabdichtung unter Terrain | F121: Service pro Jahr. 5 x Kosten Dachabdichtung unter Terrain | G121: Stk | H121: 0.75
A122: 121 | B122: 224.1 | C122: F 01.01 | D122: Plastische und elastische Dichtungsbeläge (Flachdächer) | E122: Dachabdichtung | F122: Zuschläge, Prozentsatz auf Adichtungsarbeiten | G122: % | H122: 10
A123: 122 | B123: 224.1 | C123: F 01.02 | D123: Plastische und elastische Dichtungsbeläge (Flachdächer) | E123: Flachdach begrünt | F123: Dampfsperre. | G123: m2 | H123: 13
A124: 123 | B124: 224.1 | C124: F 01.02 | D124: Plastische und elastische Dichtungsbeläge (Flachdächer) | E124: Flachdach begrünt | F124: Wärmedämmung. | G124: m2 | H124: 60
A125: 124 | B125: 224.1 | C125: F 01.02 | D125: Plastische und elastische Dichtungsbeläge (Flachdächer) | E125: Flachdach begrünt | F125: Bitumendichtungsbahn 2-lagig. | G125: m2 | H125: 30
A126: 125 | B126: 224.1 | C126: F 01.02 | D126: Plastische und elastische Dichtungsbeläge (Flachdächer) | E126: Flachdach begrünt | F126: Schutz-/Entwässerungsschicht. | G126: m2 | H126: 15
A127: 126 | B127: 224.1 | C127: F 01.02 | D127: Plastische und elastische Dichtungsbeläge (Flachdächer) | E127: Flachdach begrünt | F127: Extensive Begrünung. | G127: m2 | H127: 30
A128: 127 | B128: 224.1 | C128: F 01.02 | D128: Plastische und elastische Dichtungsbeläge (Flachdächer) | E128: Flachdach Balkon ungedämmt | F128: Abdichtung. | G128: m2 | H128: 20
A129: 128 | B129: 224.1 | C129: F 01.02 | D129: Plastische und elastische Dichtungsbeläge (Flachdächer) | E129: Flachdach Balkon ungedämmt | F129: Zementüberzug. | G129: m2 | H129: 35
A130: 129 | B130: 224.1 | C130: F 01.02 | D130: =IF(B130=0,"",LOOKUP(B130,BKP,Baukostenplan)) -> Plastische und elastische Dichtungsbeläge (Flachdächer) | E130: Flachdach Balkon gedämmt | F130: Zementplatten inkl. Kiesschicht. | G130: m2 | H130: 65
A131: =IF(B131=0,"",A130+1) -> 130 | B131: 224.1 | C131: F 01.02 | D131: Plastische und elastische Dichtungsbeläge (Flachdächer) | E131: Absturzsicherung Flachdach | F131: Anschlagpunkte mit Grundplatten auf Beton. 5 Stück pro m | G131: m | H131: 240
A132: 131 | B132: 224.1 | C132: F 01.02 | D132: Plastische und elastische Dichtungsbeläge (Flachdächer) | E132: Absturzsicherung Flachdach | F132: Führungsseil. | G132: m | H132: 14
A133: 132 | B133: 224.1 | C133: F 01.02 | D133: Plastische und elastische Dichtungsbeläge (Flachdächer) | E133: Absturzsicherung Flachdach | F133: Eckverbindung. | G133: Stk | H133: 25
A134: 133 | B134: 224.1 | C134: F 01.02 | D134: Plastische und elastische Dichtungsbeläge (Flachdächer) | E134: Absturzsicherung Flachdach | F134: Sicherheitstest. | G134: Stk | H134: 375
A135: 134 | B135: 224.1 | C135: F 01.02 | D135: Plastische und elastische Dichtungsbeläge (Flachdächer) | E135: Absturzsicherung Flachdach | F135: Auffanggurt. | G135: Stk | H135: 170
A136: 135 | B136: 224.1 | C136: F 01.02 | D136: Plastische und elastische Dichtungsbeläge (Flachdächer) | E136: Absturzsicherung Flachdach | F136: Sicherungsseil. | G136: Stk | H136: 160
A137: 136 | B137: 224.2 | C137: F 02.02 | D137: Glaseinbauten in Steildächern | E137: Element zu geneigtem Dach | F137: Dachfenster z.B. Velux | G137: Stk | H137: 2000
A138: 137 | B138: 224.3 | C138: F 02.01 | D138: Glaseinbauten in Flachdächern | E138: Element zu Flachdach | F138: RWA 1.2x1.2m ohne Sonnenschutz. | G138: Stk | H138: 3500
A139: 138 | B139: 224.3 | C139: F 02.01 | D139: Glaseinbauten in Flachdächern | E139: Element zu Flachdach | F139: Dachausstieg 1.5x0.75m. | G139: Stk | H139: 2500
A140: 139 | B140: 225.1 | C140: G 06.01 | D140: .1 Fugendichtungen | E140: Durchbruch, Schlitz zu Ausbau | F140: Fugendichtungen. | G140: GF | H140: 5
A141: 140 | B141: 225.2 | C141: G 03.01 | D141: .2 Spezielle Dämmungen | E141: Unterkonstruktion zu Wandbekleidung | F141: Wanddämmung z.B. Unitex gestrichen UG. | G141: m2 | H141: 65
A142: 141 | B142: 225.2 | C142: G 04.01 | D142: .2 Spezielle Dämmungen | E142: Fertige Bekleidung Decke | F142: Deckendämmung z.B. Unitex gestrichen UG. | G142: m2 | H142: 65
A143: 142 | B143: 225.4 | C143: G 06.02 | D143: .4 Brandschutzbekleidungen und dgl . | E143: Abschottung | F143: Brandschutzbekleidungen. | G143: GF | H143: 6
A144: 143 | B144: 225.4 | C144: G 06.02 | D144: .4 Brandschutzbekleidungen und dgl . | E144: Abschottung | F144: Ausflocken von GIS-Elemente. | G144: m3 | H144: 210
A145: 144 | B145: 226.2 | C145: E 02.01 | D145: .2 Verputzte Aussenwärmedämmungen | E145: Äussere Beschichtung | F145: Kunststoffnetz-Armierung. | G145: m2 | H145: 9
A146: 145 | B146: 226.2 | C146: E 02.01 | D146: .2 Verputzte Aussenwärmedämmungen | E146: Äussere Beschichtung | F146: Grundputz. | G146: m2 | H146: 18
A147: 146 | B147: 226.2 | C147: E 02.01 | D147: .2 Verputzte Aussenwärmedämmungen | E147: Äussere Beschichtung | F147: Deckputz. | G147: m2 | H147: 30
A148: 147 | B148: 226.2 | C148: E 02.01 | D148: .2 Verputzte Aussenwärmedämmungen | E148: Äussere Beschichtung | F148: Zuschläge für Anschlüsse, Durchdringungen, etc., Prozentsatz auf Aussenwärmedämmung | G148: % | H148: 12
A149: 148 | B149: 226.2 | C149: E 02.02 | D149: .2 Verputzte Aussenwärmedämmungen | E149: Aussendämmung | F149: Klebemörtel 0.5cm. | G149: m2 | H149: 12
A150: 149 | B150: 226.2 | C150: E 02.02 | D150: .2 Verputzte Aussenwärmedämmungen | E150: Aussendämmung | F150: EPS-Dämmplatte 20.0cm. | G150: m2 | H150: 72
A151: 150 | B151: 226.2 | C151: E 02.02 | D151: .2 Verputzte Aussenwärmedämmungen | E151: Aussendämmung | F151: Sturzelemente. | G151: m | H151: 60
A152: 151 | B152: 226.2 | C152: E 02.02 | D152: .2 Verputzte Aussenwärmedämmungen | E152: Aussendämmung | F152: Alu-Fensterbänke inkl. Winkel. | G152: m | H152: 130
A153: 152 | B153: 226.2 | C153: E 02.02 | D153: .2 Verputzte Aussenwärmedämmungen | E153: Aussendämmung | F153: Zuschläge für Leibungen. Prozentsatz auf Aussenwärmedämmung | G153: % | H153: 3
A154: 153 | B154: 226.2 | C154: E 02.02 | D154: .2 Verputzte Aussenwärmedämmungen | E154: Aussendämmung | F154: Zuschläge für Trawik in Leibungen (zur Handlaufbef.). Prozentsatz auf Aussenwärmedämmung | G154: % | H154: 8
A155: 154 | B155: 226.2 | C155: E 02.02 | D155: .2 Verputzte Aussenwärmedämmungen | E155: Aussendämmung | F155: Zuschläge für Anschlüsse, Durchdringungen, etc. Prozentsatz auf Aussenwärmedämmung | G155: % | H155: 10
A156: 155 | B156: 227.1 | C156: E 02.01 | D156: .1 Äussere Malerarbeiten | E156: Äussere Beschichtung | F156: Anstrich auf Deckputz. | G156: m2 | H156: 12
A157: 156 | B157: 227.1 | C157: E 02.05 | D157: .1 Äussere Malerarbeiten | E157: Fassadenbekleidung Untersicht | F157: Anstrich auf Balkonuntersichten. | G157: m2 | H157: 10
A158: 157 | B158: 228.2 | C158: E 03.04 | D158: .2 Lamellenstoren | E158: Sonnenschutz | F158: Verbundraffstoren mit Handkurbel. | G158: m2 | H158: 110
A159: 158 | B159: 228.3 | C159: E 03.04 | D159: .3 Sonnenstoren | E159: Sonnenschutz | F159: Gelenkarmmarkisen mit Handkurbel. | G159: m2 | H159: 130
A160: 159 | B160: 228.3 | C160: E 03.04 | D160: .3 Sonnenstoren | E160: Sonnenschutz | F160: Balkon / Loggia Vertikalmarkise Seilführung. Elektrisch. | G160: m2 | H160: 190
A161: 160 | B161: 228.3 | C161: E 03.04 | D161: .3 Sonnenstoren | E161: Sonnenschutz | F161: Balkon / Loggia Vertikalmarkise Seilführung. Manuell | G161: m2 | H161: 170
A162: 161 | B162: 231 | C162: D 01.01 | D162: Apparate Starkstrom | E162: Anlage Erzeugung Starkstrom | F162: EG-OG. | G162: GF | H162: 90
A163: 162 | B163: 231 | C163: D 01.01 | D163: Apparate Starkstrom | E163: Anlage Erzeugung Starkstrom | F163: UG/Keller. | G163: GF | H163: 25
A164: 163 | B164: 231 | C164: D 01.01 | D164: Apparate Starkstrom | E164: Anlage Erzeugung Starkstrom | F164: Photovoltaikanlagen | G164: m2 | H164: 280
A165: 164 | B165: 233 | C165: D 01.05 | D165: Leuchten und Lampen | E165: Verbraucher Starkstrom: Leuchten | F165: EG-OG. | G165: GF | H165: 12
A166: 165 | B166: 233 | C166: D 01.05 | D166: Leuchten und Lampen | E166: Verbraucher Starkstrom: Leuchten | F166: UG/Keller. | G166: GF | H166: 8
A167: 166 | B167: 236 | C167: D 04.01 | D167: Schwachstrominstallationen | E167: Brandmeldeanlage | F167: Brandmeldeanlage EG-AG. | G167: GF | H167: 25
A168: 167 | B168: 236 | C168: D 04.01 | D168: Schwachstrominstallationen | E168: Brandmeldeanlage | F168: Brandmeldeanlage ESH. | G168: GF | H168: 7
A169: 168 | B169: 236 | C169: D 04.02 | D169: Schwachstrominstallationen | F169: Gaswarnanlage. | G169: GF | H169: 15
A170: 169 | B170: 237.1 | C170: D 02.01 | D170: .1 Automationsebene | E170: Managementebene | F170: Elektro. | G170: GF | H170: 7
A171: 170 | B171: 237.1 | C171: D 02.01 | D171: .1 Automationsebene | E171: Managementebene | F171: HLKS | G171: GF | H171: 12
A172: 171 | B172: 242 | C172: D 05.02 | D172: 242 Wärmeerzeugung | F172: Wärmepumpe Erdsonde/Wasser & Bohrung ca. 200m. | G172: EBF | H172: 60
A173: 172 | B173: 243 | C173: D 05.04 | D173: 243 Wärmeverteilung | F173: Wärmehauptverteilung. | G173: EBF | H173: 60
A174: 173 | B174: 244 | C174: D 04.06 | D174: 244 Lüftungsanlagen | F174: Rauch- und Wärmeabzugsanlage ESH. | G174: GF | H174: 20
A175: 174 | B175: 244 | C175: D 07.01 | D175: 244 Lüftungsanlagen | E175: Aussenluftversorgung, Fortluftführung | F175: Lüftungsanalgen UG/Keller. | G175: GF | H175: 35
A176: 175 | B176: 244 | C176: D 07.01 | D176: 244 Lüftungsanlagen | E176: Aussenluftversorgung, Fortluftführung | F176: Lüftungsanalgen ESH. | G176: GF | H176: 40
A177: 176 | B177: 244 | C177: D 07.02 | D177: 244 Lüftungsanlagen | E177: Luftaufbereitung | F177: Kontrollierte Wohnungslüftung. | G177: Whg. | H177: 11000
A178: 177 | B178: 244 | C178: D 07.02 | D178: 244 Lüftungsanlagen | F178: Einzelne Abluftanlagen. | G178: Stk | H178: 1800
A179: 178 | B179: 244 | C179: D 07.03 | D179: 244 Lüftungsanlagen | F179: Luftwärmespeicherung. | G179: GF | H179: 500
A180: 179 | B180: 246 | C180: D 06.02 | D180: 246 Kälteanlagen | F180: Freecooling. | G180: EBF | H180: 2.5
A181: 180 | B181: 251 | C181: D 08.05 | D181: 251 Allgemeine Sanitärapparate | E181: Wasser: Armatur, Apparat | F181: Lieferung Sanitärapparate 2.5-Zimmerwohnung. | G181: Whg | H181: 7000
A182: 181 | B182: 251 | C182: D 08.05 | D182: 251 Allgemeine Sanitärapparate | E182: Wasser: Armatur, Apparat | F182: Lieferung Sanitärapparate 3.5-Zimmerwohnung. | G182: Whg | H182: 7000
A183: 182 | B183: 251 | C183: D 08.05 | D183: 251 Allgemeine Sanitärapparate | E183: Wasser: Armatur, Apparat | F183: Lieferung Sanitärapparate 4.5-Zimmerwohnung. | G183: Whg | H183: 13000
A184: 183 | B184: 251 | C184: D 08.05 | D184: 251 Allgemeine Sanitärapparate | E184: Wasser: Armatur, Apparat | F184: Lieferung Sanitärapparate 5.5-Zimmerwohnung. | G184: Whg | H184: 13000
A185: 184 | B185: 251 | C185: D 08.05 | D185: 251 Allgemeine Sanitärapparate | E185: Wasser: Armatur, Apparat | F185: Montage Sanitärapparate, Prozentsatz auf Apparatelieferung | G185: % | H185: 30
A186: 185 | B186: 253 | C186: D 08.02 | D186: 253 Sanitäre Ver- und Entsorgungsapparate | F186: Wasserbehandlung. | G186: GF | H186: 555
A187: 186 | B187: 254 | C187: D 08.04 | D187: 254 Sanitärleitungen | E187: Wasserverteilung | F187: Leitungen über GF. | G187: GF | H187: 38
A188: 187 | B188: 255 | C188: D 08.04 | D188: 255 Dämmungen Sanitärinstallationen | E188: Wasserverteilung | F188: Dämmungen Leitungen über GF. | G188: GF | H188: 18
A189: 188 | B189: 256 | C189: D 08.06 | D189: 256 Sanitärinstallationselemente | E189: Wasser: Installationselemente | F189: Installationselemente. | G189: Stk | H189: 1600
A190: 189 | B190: 257 | C190: D 04.05 | D190: 257 Elektro- und Pneumatiktafeln | E190: Löschgerät | F190: Handfeuerlöscher. | G190: Stk. | H190: 550
A191: 190 | B191: 257 | C191: D 04.05 | D191: 257 Elektro- und Pneumatiktafeln | E191: Löschgerät | F191: Feuerlöschposten. | G191: Stk. | H191: 2600
A192: 191 | B192: 257 | C192: D 04.03 | D192: 257 Elektro- und Pneumatiktafeln | F192: Sprinkleranlage ESH | G192: GF | H192: 15
A193: 192 | B193: 258 | C193: G 05.02 | D193: 258 Kücheneinrichtungen | F193: Küche für 2.5-Zimmerwohnung (5 Elemente). | G193: Stk | H193: 7500
A194: 193 | B194: 258 | C194: G 05.02 | D194: =IF(B194=0,"",LOOKUP(B194,BKP,Baukostenplan)) -> 258 Kücheneinrichtungen | F194: Küche für 3.5-Zimmerwohnung (6 Elemente). | G194: Stk | H194: 9000
A195: =IF(B195=0,"",A194+1) -> 194 | B195: 258 | C195: G 05.02 | D195: 258 Kücheneinrichtungen | F195: Küche für 4.5-Zimmerwohnung (7 Elemente). | G195: Stk | H195: 10500
A196: 195 | B196: 258 | C196: G 05.02 | D196: 258 Kücheneinrichtungen | F196: Küche für 5.5-Zimmerwohnung (7 Elemente). | G196: Stk | H196: 10500
A197: 196 | B197: 261 | C197: D 12.01 | D197: 261 Aufzüge | E197: Personenaufzug | F197: Aufzüge (8 Pers.) mit xy Haltestellen (pro Haltestelle Hst). | G197: Hst | H197: 8200
A198: 197 | B198: 261 | C198: D 12.02 | D198: 261 Aufzüge | E198: Lasten- und Serviceaufzug | F198: Lasten- und Serviceaufzüge. | G198: Hst | H198: 20000
A199: 198 | B199: 263 | C199: D 12.03 | D199: 263 Fassadenreinigungsanlagen | E199: Spezialaufzüge | F199: Befahranlage für Fassade | G199: Stk | H199: 150000
A200: 199 | B200: 271.0 | C200: G 03.02 | D200: .0 Verputzarbeiten (innere) | F200: Grundputz. | G200: m2 | H200: 9
... 85 more rows

Sheet Bauteile (4) (hidden)
A1: ID | B1: BKP | C1: eBKP-H | D1: Beschreibung | E1: Untertitel | F1: Bauteil | G1: Einheit | H1: 2024 | I1: 2023 | J1: 2022
A2: 1 | B2: 101 | C2: B 01.02 | D2: =IF(B2=0,"",LOOKUP(B2,BKP,Baukostenplan)) -> Bestandesaufnahmen | F2: Gebäudeaufnahme Rissprotokolle | G2: gl
